Workbook

Sheet Tabelle1

Sheet 1460
A1: P.Zeit | C1: Pyrometer | D1: Pyrometer B | E1: MTC1 | F1: MTC2 | G1: MTC3 | H1: MTC4 | I1: Press. abs 1 | J1: Press. abs 2 | K1: Speed | L1: U RMS | M1: I RMS | N1: Power | O1: Force | P1: Abs Piston Tra. | Q1: Rel Piston Tra.
A2: 00:00:00 | B2: 00:54:35 | C2: 400 | D2: 400 | E2: 22 | F2: 23 | G2: 23 | H2: 22 | I2: 0.14 | J2: 4 | K2: 0 | L2: 0 | M2: 0.04 | O2: 5 | P2: 33.25
A3: 00:00:01 | B3: 00:54:36 | C3: 400 | D3: 400 | E3: 22 | F3: 23 | G3: 23 | H3: 22 | I3: 0.14 | J3: 4 | K3: 0 | L3: 0 | M3: 0.04 | O3: 5 | P3: 33.25
A4: 00:00:02 | B4: 00:54:37 | C4: 400 | D4: 400 | E4: 22 | F4: 23 | G4: 23 | H4: 22 | I4: 0.14 | J4: 4 | K4: 0 | L4: 0 | M4: 0.04 | O4: 5 | P4: 33.39
A5: 00:00:03 | B5: 00:54:38 | C5: 400 | D5: 400 | E5: 22 | F5: 23 | G5: 23 | H5: 22 | I5: 0.14 | J5: 4 | K5: 5.89 | L5: 0 | M5: 0.04 | O5: 5 | P5: 33.56
A6: 00:00:04 | B6: 00:54:39 | C6: 400 | D6: 400 | E6: 22 | F6: 23 | G6: 23 | H6: 22 | I6: 0.13 | J6: 4 | K6: 5.89 | L6: 0 | M6: 0.04 | O6: 5 | P6: 33.56
A7: 00:00:05 | B7: 00:54:40 | C7: 400 | D7: 400 | E7: 22 | F7: 23 | G7: 23 | H7: 22 | I7: 0.13 | J7: 4 | K7: 5.89 | L7: 0 | M7: 0.04 | O7: 5 | P7: 33.56
A8: 00:00:06 | B8: 00:54:41 | C8: 400 | D8: 400 | E8: 22 | F8: 23 | G8: 22 | H8: 22 | I8: 0.13 | J8: 4 | K8: 0.09 | L8: 0 | M8: 0.04 | O8: 6 | P8: 33.57
A9: 00:00:07 | B9: 00:54:42 | C9: 400 | D9: 400 | E9: 22 | F9: 23 | G9: 22 | H9: 22 | I9: 0.13 | J9: 4 | K9: 0.09 | L9: 0 | M9: 0.04 | O9: 6 | P9: 33.57
A10: 00:00:08 | B10: 00:54:43 | C10: 400 | D10: 400 | E10: 22 | F10: 23 | G10: 22 | H10: 22 | I10: 0.13 | J10: 4 | K10: 0.09 | L10: 0 | M10: 0.04 | O10: 6 | P10: 33.57
A11: 00:00:09 | B11: 00:54:44 | C11: 400 | D11: 400 | E11: 22 | F11: 23 | G11: 22 | H11: 22 | I11: 0.13 | J11: 4 | K11: 0.09 | L11: 0 | M11: 0.04 | O11: 6 | P11: 33.57
A12: 00:00:10 | B12: 00:54:45 | C12: 400 | D12: 400 | E12: 22 | F12: 23 | G12: 23 | H12: 22 | I12: 0.13 | J12: 4 | K12: 0.14 | L12: 0 | M12: 0.04 | O12: 6 | P12: 33.57
A13: 00:00:11 | B13: 00:54:46 | C13: 400 | D13: 400 | E13: 22 | F13: 23 | G13: 23 | H13: 22 | I13: 0.13 | J13: 4 | K13: 0.14 | L13: 0 | M13: 0.04 | O13: 6 | P13: 33.57
A14: 00:00:12 | B14: 00:54:47 | C14: 400 | D14: 400 | E14: 22 | F14: 23 | G14: 23 | H14: 22 | I14: 0.13 | J14: 4 | K14: 0.14 | L14: 0 | M14: 0.04 | O14: 6 | P14: 33.57
A15: 00:00:13 | B15: 00:54:48 | C15: 400 | D15: 400 | E15: 22 | F15: 23 | G15: 23 | H15: 22 | I15: 0.13 | J15: 4 | K15: 0.08 | L15: 0 | M15: 0.04 | O15: 6 | P15: 33.58
A16: 00:00:14 | B16: 00:54:49 | C16: 400 | D16: 400 | E16: 22 | F16: 23 | G16: 23 | H16: 22 | I16: 0.13 | J16: 4 | K16: 0.08 | L16: 0 | M16: 0.04 | O16: 6 | P16: 33.59
A17: 00:00:15 | B17: 00:54:50 | C17: 400 | D17: 400 | E17: 22 | F17: 23 | G17: 23 | H17: 22 | I17: 0.13 | J17: 4 | K17: 0.08 | L17: 0 | M17: 0.04 | O17: 6 | P17: 33.59
A18: 00:00:16 | B18: 00:54:51 | C18: 400 | D18: 400 | E18: 22 | F18: 23 | G18: 23 | H18: 22 | I18: 0.13 | J18: 4 | K18: 0.23 | L18: 0 | M18: 0.04 | O18: 6 | P18: 33.59
A19: 00:00:17 | B19: 00:54:52 | C19: 400 | D19: 400 | E19: 22 | F19: 23 | G19: 23 | H19: 22 | I19: 0.13 | J19: 4 | K19: 0.23 | L19: 0 | M19: 0.04 | O19: 6 | P19: 33.59
A20: 00:00:18 | B20: 00:54:53 | C20: 400 | D20: 400 | E20: 22 | F20: 23 | G20: 23 | H20: 22 | I20: 0.13 | J20: 4 | K20: 0.23 | L20: 0 | M20: 0.04 | O20: 6 | P20: 33.6
A21: 00:00:19 | B21: 00:54:54 | C21: 400 | D21: 400 | E21: 22 | F21: 23 | G21: 23 | H21: 22 | I21: 0.13 | J21: 4 | K21: 0.23 | L21: 0 | M21: 0.04 | O21: 7 | P21: 33.61
A22: 00:00:20 | B22: 00:54:55 | C22: 400 | D22: 400 | E22: 22 | F22: 23 | G22: 23 | H22: 22 | I22: 0.13 | J22: 4 | K22: 0.48 | L22: 0 | M22: 0.04 | O22: 7 | P22: 33.62
A23: 00:00:21 | B23: 00:54:56 | C23: 400 | D23: 400 | E23: 22 | F23: 23 | G23: 23 | H23: 22 | I23: 0.13 | J23: 4 | K23: 0.48 | L23: 0 | M23: 0.04 | O23: 7 | P23: 33.62
A24: 00:00:22 | B24: 00:54:57 | C24: 400 | D24: 400 | E24: 22 | F24: 23 | G24: 23 | H24: 22 | I24: 0.13 | J24: 4 | K24: 0.48 | L24: 0 | M24: 0.04 | O24: 7 | P24: 33.62
A25: 00:00:23 | B25: 00:54:58 | C25: 400 | D25: 400 | E25: 22 | F25: 23 | G25: 23 | H25: 22 | I25: 0.13 | J25: 4 | K25: 0.14 | L25: 0 | M25: 0.04 | O25: 7 | P25: 33.62
A26: 00:00:24 | B26: 00:54:59 | C26: 400 | D26: 400 | E26: 22 | F26: 23 | G26: 23 | H26: 22 | I26: 0.13 | J26: 4 | K26: 0.14 | L26: 0 | M26: 0.04 | O26: 7 | P26: 33.63
A27: 00:00:25 | B27: 00:55:00 | C27: 400 | D27: 400 | E27: 22 | F27: 23 | G27: 23 | H27: 22 | I27: 0.13 | J27: 4 | K27: 0.14 | L27: 0 | M27: 0.04 | O27: 7 | P27: 33.65
A28: 00:00:26 | B28: 00:55:01 | C28: 400 | D28: 400 | E28: 22 | F28: 23 | G28: 23 | H28: 22 | I28: 0.13 | J28: 4 | K28: 0.14 | L28: 0 | M28: 0.04 | O28: 7 | P28: 33.66
A29: 00:00:27 | B29: 00:55:02 | C29: 400 | D29: 400 | E29: 22 | F29: 23 | G29: 22 | H29: 22 | I29: 0.13 | J29: 4 | K29: 0.64 | L29: 0 | M29: 0.04 | O29: 7 | P29: 33.66
A30: 00:00:28 | B30: 00:55:03 | C30: 400 | D30: 400 | E30: 22 | F30: 23 | G30: 23 | H30: 22 | I30: 0.13 | J30: 4 | K30: 0.64 | L30: 0 | M30: 0.04 | O30: 7 | P30: 33.66
A31: 00:00:29 | B31: 00:55:04 | C31: 400 | D31: 400 | E31: 22 | F31: 23 | G31: 23 | H31: 22 | I31: 0.13 | J31: 4 | K31: 0.64 | L31: 0 | M31: 0.04 | O31: 7 | P31: 33.66
A32: 00:00:30 | B32: 00:55:05 | C32: 400 | D32: 400 | E32: 22 | F32: 23 | G32: 23 | H32: 22 | I32: 0.13 | J32: 4 | K32: 0.2 | L32: 0 | M32: 0.04 | O32: 7 | P32: 33.68
A33: 00:00:31 | B33: 00:55:06 | C33: 400 | D33: 400 | E33: 22 | F33: 23 | G33: 23 | H33: 22 | I33: 0.13 | J33: 4 | K33: 0.2 | L33: 0 | M33: 0.04 | O33: 8 | P33: 33.69
A34: 00:00:32 | B34: 00:55:07 | C34: 400 | D34: 400 | E34: 22 | F34: 23 | G34: 23 | H34: 22 | I34: 0.13 | J34: 4 | K34: 0.2 | L34: 0 | M34: 0.04 | O34: 8 | P34: 33.69
A35: 00:00:33 | B35: 00:55:08 | C35: 400 | D35: 400 | E35: 22 | F35: 23 | G35: 23 | H35: 22 | I35: 0.13 | J35: 4 | K35: 0.39 | L35: 0 | M35: 0.04 | O35: 8 | P35: 33.69
A36: 00:00:34 | B36: 00:55:09 | C36: 400 | D36: 400 | E36: 22 | F36: 23 | G36: 23 | H36: 22 | I36: 0.13 | J36: 4 | K36: 0.39 | L36: 0 | M36: 0.04 | O36: 8 | P36: 33.69
A37: 00:00:35 | B37: 00:55:10 | C37: 400 | D37: 400 | E37: 22 | F37: 23 | G37: 23 | H37: 22 | I37: 0.13 | J37: 4 | K37: 0.39 | L37: 0 | M37: 0.04 | O37: 8 | P37: 33.7
A38: 00:00:36 | B38: 00:55:11 | C38: 400 | D38: 400 | E38: 22 | F38: 23 | G38: 23 | H38: 22 | I38: 0.13 | J38: 4 | K38: 0.48 | L38: 0 | M38: 0.04 | O38: 8 | P38: 33.72
A39: 00:00:37 | B39: 00:55:12 | C39: 400 | D39: 400 | E39: 22 | F39: 23 | G39: 23 | H39: 22 | I39: 0.13 | J39: 4 | K39: 0.48 | L39: 0 | M39: 0.04 | O39: 8 | P39: 33.72
A40: 00:00:38 | B40: 00:55:13 | C40: 400 | D40: 400 | E40: 22 | F40: 23 | G40: 22 | H40: 22 | I40: 0.13 | J40: 4 | K40: 0.48 | L40: 0 | M40: 0.04 | O40: 8 | P40: 33.73
A41: 00:00:39 | B41: 00:55:14 | C41: 400 | D41: 400 | E41: 22 | F41: 23 | G41: 22 | H41: 22 | I41: 0.13 | J41: 4 | K41: 0.48 | L41: 0 | M41: 0.04 | O41: 8 | P41: 33.73
A42: 00:00:40 | B42: 00:55:15 | C42: 400 | D42: 400 | E42: 22 | F42: 23 | G42: 23 | H42: 22 | I42: 0.13 | J42: 4 | K42: 0.25 | L42: 0 | M42: 0.04 | O42: 8 | P42: 33.73
A43: 00:00:41 | B43: 00:55:16 | C43: 400 | D43: 400 | E43: 22 | F43: 23 | G43: 23 | H43: 22 | I43: 0.13 | J43: 4 | K43: 0.25 | L43: 0 | M43: 0.04 | O43: 8 | P43: 33.74
A44: 00:00:42 | B44: 00:55:17 | C44: 400 | D44: 400 | E44: 22 | F44: 23 | G44: 23 | H44: 22 | I44: 0.12 | J44: 4 | K44: 0.25 | L44: 0 | M44: 0.04 | O44: 9 | P44: 33.76
A45: 00:00:43 | B45: 00:55:18 | C45: 400 | D45: 400 | E45: 22 | F45: 23 | G45: 22 | H45: 22 | I45: 0.12 | J45: 4 | K45: 0.54 | L45: 0 | M45: 0.04 | O45: 9 | P45: 33.76
A46: 00:00:44 | B46: 00:55:19 | C46: 400 | D46: 400 | E46: 22 | F46: 23 | G46: 23 | H46: 22 | I46: 0.12 | J46: 4 | K46: 0.54 | L46: 0 | M46: 0.04 | O46: 9 | P46: 33.77
A47: 00:00:45 | B47: 00:55:20 | C47: 400 | D47: 400 | E47: 22 | F47: 23 | G47: 23 | H47: 22 | I47: 0.12 | J47: 4 | K47: 0.54 | L47: 0 | M47: 0.04 | O47: 9 | P47: 33.77
A48: 00:00:46 | B48: 00:55:21 | C48: 400 | D48: 400 | E48: 22 | F48: 23 | G48: 23 | H48: 22 | I48: 0.12 | J48: 4 | K48: 0.54 | L48: 0 | M48: 0.04 | O48: 9 | P48: 33.77
A49: 00:00:47 | B49: 00:55:22 | C49: 400 | D49: 400 | E49: 22 | F49: 23 | G49: 23 | H49: 22 | I49: 0.12 | J49: 4 | K49: 0.25 | L49: 0 | M49: 0.04 | O49: 9 | P49: 33.78
A50: 00:00:48 | B50: 00:55:23 | C50: 400 | D50: 400 | E50: 22 | F50: 23 | G50: 23 | H50: 22 | I50: 0.12 | J50: 4 | K50: 0.25 | L50: 0 | M50: 0.04 | O50: 9 | P50: 33.78
A51: 00:00:49 | B51: 00:55:24 | C51: 400 | D51: 400 | E51: 22 | F51: 23 | G51: 23 | H51: 22 | I51: 0.12 | J51: 4 | K51: 0.25 | L51: 0 | M51: 0.04 | O51: 9 | P51: 33.8
A52: 00:00:50 | B52: 00:55:25 | C52: 400 | D52: 400 | E52: 22 | F52: 23 | G52: 23 | H52: 22 | I52: 0.12 | J52: 4 | K52: 0.51 | L52: 0 | M52: 0.04 | O52: 9 | P52: 33.81
A53: 00:00:51 | B53: 00:55:26 | C53: 400 | D53: 400 | E53: 22 | F53: 23 | G53: 23 | H53: 22 | I53: 0.12 | J53: 4 | K53: 0.51 | L53: 0 | M53: 0.04 | O53: 9 | P53: 33.82
A54: 00:00:52 | B54: 00:55:27 | C54: 400 | D54: 400 | E54: 22 | F54: 23 | G54: 23 | H54: 22 | I54: 0.12 | J54: 4 | K54: 0.51 | L54: 0 | M54: 0.04 | O54: 9 | P54: 33.82
A55: 00:00:53 | B55: 00:55:28 | C55: 400 | D55: 400 | E55: 22 | F55: 23 | G55: 23 | H55: 22 | I55: 0.12 | J55: 4 | K55: 0.4 | L55: 0 | M55: 0.04 | O55: 9 | P55: 33.83
A56: 00:00:54 | B56: 00:55:29 | C56: 400 | D56: 400 | E56: 22 | F56: 23 | G56: 23 | H56: 22 | I56: 0.12 | J56: 4 | K56: 0.4 | L56: 0 | M56: 0.04 | O56: 9 | P56: 33.83
A57: 00:00:55 | B57: 00:55:30 | C57: 400 | D57: 400 | E57: 22 | F57: 23 | G57: 23 | H57: 22 | I57: 0.12 | J57: 4 | K57: 0.4 | L57: 0 | M57: 0.04 | O57: 10 | P57: 33.83
A58: 00:00:56 | B58: 00:55:31 | C58: 400 | D58: 400 | E58: 22 | F58: 23 | G58: 23 | H58: 22 | I58: 0.12 | J58: 4 | K58: 0.33 | L58: 0 | M58: 0.04 | O58: 10 | P58: 33.84
A59: 00:00:57 | B59: 00:55:32 | C59: 400 | D59: 400 | E59: 22 | F59: 23 | G59: 23 | H59: 22 | I59: 0.12 | J59: 4 | K59: 0.33 | L59: 0 | M59: 0.04 | O59: 10 | P59: 33.85
A60: 00:00:58 | B60: 00:55:33 | C60: 400 | D60: 400 | E60: 22 | F60: 23 | G60: 23 | H60: 22 | I60: 0.12 | J60: 4 | K60: 0.33 | L60: 0 | M60: 0.04 | O60: 10 | P60: 33.87
A61: 00:00:59 | B61: 00:55:34 | C61: 400 | D61: 400 | E61: 22 | F61: 23 | G61: 23 | H61: 22 | I61: 0.12 | J61: 4 | K61: 0.33 | L61: 0 | M61: 0.04 | O61: 10 | P61: 33.87
A62: 00:01:00 | B62: 00:55:35 | C62: 400 | D62: 400 | E62: 22 | F62: 23 | G62: 23 | H62: 22 | I62: 0.12 | J62: 4 | K62: 0.69 | L62: 0 | M62: 0.04 | O62: 10 | P62: 33.88
A63: 00:01:01 | B63: 00:55:36 | C63: 400 | D63: 400 | E63: 22 | F63: 23 | G63: 23 | H63: 22 | I63: 0.12 | J63: 4 | K63: 0.69 | L63: 0 | M63: 0.04 | O63: 10 | P63: 33.89
A64: 00:01:02 | B64: 00:55:37 | C64: 400 | D64: 400 | E64: 22 | F64: 23 | G64: 23 | H64: 22 | I64: 0.12 | J64: 4 | K64: 0.69 | L64: 0 | M64: 0.04 | O64: 10 | P64: 33.89
A65: 00:01:03 | B65: 00:55:38 | C65: 400 | D65: 400 | E65: 22 | F65: 23 | G65: 23 | H65: 22 | I65: 0.12 | J65: 4 | K65: 0.15 | L65: 0 | M65: 0.04 | O65: 10 | P65: 33.89
A66: 00:01:04 | B66: 00:55:39 | C66: 400 | D66: 400 | E66: 22 | F66: 23 | G66: 23 | H66: 22 | I66: 0.12 | J66: 4 | K66: 0.15 | L66: 0 | M66: 0.04 | O66: 10 | P66: 33.89
A67: 00:01:05 | B67: 00:55:40 | C67: 400 | D67: 400 | E67: 22 | F67: 23 | G67: 23 | H67: 22 | I67: 0.12 | J67: 4 | K67: 0.15 | L67: 0 | M67: 0.04 | O67: 10 | P67: 33.9
A68: 00:01:06 | B68: 00:55:41 | C68: 400 | D68: 400 | E68: 22 | F68: 23 | G68: 23 | H68: 22 | I68: 0.12 | J68: 4 | K68: 0.15 | L68: 0 | M68: 0.04 | O68: 10 | P68: 33.9
A69: 00:01:07 | B69: 00:55:42 | C69: 400 | D69: 400 | E69: 22 | F69: 23 | G69: 23 | H69: 22 | I69: 0.12 | J69: 4 | K69: 0.29 | L69: 0 | M69: 0.04 | O69: 10 | P69: 33.91
A70: 00:01:08 | B70: 00:55:43 | C70: 400 | D70: 400 | E70: 22 | F70: 23 | G70: 23 | H70: 22 | I70: 0.12 | J70: 4 | K70: 0.29 | L70: 0 | M70: 0.04 | O70: 10 | P70: 33.91
A71: 00:01:09 | B71: 00:55:44 | C71: 400 | D71: 400 | E71: 22 | F71: 23 | G71: 23 | H71: 22 | I71: 0.12 | J71: 4 | K71: 0.29 | L71: 0 | M71: 0.03 | O71: 10 | P71: 33.91
A72: 00:01:10 | B72: 00:55:45 | C72: 400 | D72: 400 | E72: 22 | F72: 23 | G72: 23 | H72: 22 | I72: 0.12 | J72: 4 | K72: 0.1 | L72: 0 | M72: 0.04 | O72: 10 | P72: 33.91
A73: 00:01:11 | B73: 00:55:46 | C73: 400 | D73: 400 | E73: 22 | F73: 23 | G73: 23 | H73: 22 | I73: 0.12 | J73: 4 | K73: 0.1 | L73: 0 | M73: 0.04 | O73: 10 | P73: 33.91
A74: 00:01:12 | B74: 00:55:47 | C74: 400 | D74: 400 | E74: 22 | F74: 23 | G74: 23 | H74: 22 | I74: 0.12 | J74: 4 | K74: 0.1 | L74: 0 | M74: 0.04 | O74: 10 | P74: 33.92
A75: 00:01:13 | B75: 00:55:48 | C75: 400 | D75: 400 | E75: 22 | F75: 23 | G75: 23 | H75: 22 | I75: 0.12 | J75: 4 | K75: 0.07 | L75: 0 | M75: 0.04 | O75: 10 | P75: 33.92
A76: 00:01:14 | B76: 00:55:49 | C76: 400 | D76: 400 | E76: 22 | F76: 23 | G76: 23 | H76: 22 | I76: 0.12 | J76: 4 | K76: 0.07 | L76: 0 | M76: 0.04 | O76: 10 | P76: 33.92
A77: 00:01:15 | B77: 00:55:50 | C77: 400 | D77: 400 | E77: 22 | F77: 23 | G77: 23 | H77: 22 | I77: 0.12 | J77: 4 | K77: 0.07 | L77: 0 | M77: 0.04 | O77: 10 | P77: 33.92
A78: 00:01:16 | B78: 00:55:51 | C78: 400 | D78: 400 | E78: 22 | F78: 23 | G78: 23 | H78: 22 | I78: 0.12 | J78: 4 | K78: 0.07 | L78: 0 | M78: 0.04 | O78: 10 | P78: 33.92
A79: 00:01:17 | B79: 00:55:52 | C79: 400 | D79: 400 | E79: 22 | F79: 23 | G79: 23 | H79: 22 | I79: 0.19 | J79: 4 | K79: 0.12 | L79: 0 | M79: 0.04 | O79: 10 | P79: 33.92
A80: 00:01:18 | B80: 00:55:53 | C80: 400 | D80: 400 | E80: 22 | F80: 23 | G80: 23 | H80: 22 | I80: 0.22 | J80: 4 | K80: 0.12 | L80: 0 | M80: 0.04 | O80: 10 | P80: 33.92
A81: 00:01:19 | B81: 00:55:54 | C81: 400 | D81: 400 | E81: 22 | F81: 23 | G81: 23 | H81: 22 | I81: 0.22 | J81: 4 | K81: 0.12 | L81: 0 | M81: 0.04 | O81: 10 | P81: 33.92
A82: 00:01:20 | B82: 00:55:55 | C82: 400 | D82: 400 | E82: 22 | F82: 23 | G82: 23 | H82: 22 | I82: 0.21 | J82: 4 | K82: 0 | L82: 0 | M82: 0.04 | O82: 10 | P82: 33.93
A83: 00:01:21 | B83: 00:55:56 | C83: 400 | D83: 400 | E83: 22 | F83: 23 | G83: 23 | H83: 22 | I83: 0.21 | J83: 4 | K83: 0 | L83: 0 | M83: 0.04 | O83: 10 | P83: 33.93
A84: 00:01:22 | B84: 00:55:57 | C84: 400 | D84: 400 | E84: 22 | F84: 23 | G84: 23 | H84: 22 | I84: 0.2 | J84: 4 | K84: 0 | L84: 0 | M84: 0.04 | O84: 10 | P84: 33.93
A85: 00:01:23 | B85: 00:55:58 | C85: 400 | D85: 400 | E85: 22 | F85: 23 | G85: 23 | H85: 22 | I85: 0.2 | J85: 4 | K85: 0 | L85: 0 | M85: 0.04 | O85: 10 | P85: 33.93
A86: 00:01:24 | B86: 00:55:59 | C86: 400 | D86: 400 | E86: 22 | F86: 23 | G86: 23 | H86: 22 | I86: 0.2 | J86: 4 | K86: 0.08 | L86: 0 | M86: 0.04 | O86: 10 | P86: 33.93
A87: 00:01:25 | B87: 00:56:00 | C87: 400 | D87: 400 | E87: 22 | F87: 23 | G87: 23 | H87: 22 | I87: 0.2 | J87: 4 | K87: 0.08 | L87: 0 | M87: 0.04 | O87: 10 | P87: 33.93
A88: 00:01:26 | B88: 00:56:01 | C88: 400 | D88: 400 | E88: 22 | F88: 23 | G88: 23 | H88: 22 | I88: 0.2 | J88: 4 | K88: 0.08 | L88: 0 | M88: 0.04 | O88: 10 | P88: 33.93
A89: 00:01:27 | B89: 00:56:02 | C89: 400 | D89: 400 | E89: 22 | F89: 23 | G89: 23 | H89: 22 | I89: 0.19 | J89: 4 | K89: 0 | L89: 0 | M89: 0.04 | O89: 10 | P89: 33.93
A90: 00:01:28 | B90: 00:56:03 | C90: 400 | D90: 400 | E90: 22 | F90: 23 | G90: 23 | H90: 22 | I90: 0.19 | J90: 4 | K90: 0 | L90: 0 | M90: 0.04 | O90: 10 | P90: 33.93
A91: 00:01:29 | B91: 00:56:04 | C91: 400 | D91: 400 | E91: 22 | F91: 23 | G91: 23 | H91: 22 | I91: 0.18 | J91: 4 | K91: 0 | L91: 0 | M91: 0.04 | O91: 10 | P91: 33.94
A92: 00:01:30 | B92: 00:56:05 | C92: 400 | D92: 400 | E92: 22 | F92: 23 | G92: 23 | H92: 22 | I92: 0.18 | J92: 4 | K92: 0.07 | L92: 0 | M92: 0.04 | O92: 10 | P92: 33.94
A93: 00:01:31 | B93: 00:56:06 | C93: 400 | D93: 400 | E93: 22 | F93: 23 | G93: 23 | H93: 22 | I93: 0.18 | J93: 4 | K93: 0.07 | L93: 0 | M93: 0.04 | O93: 10 | P93: 33.94
A94: 00:01:32 | B94: 00:56:07 | C94: 400 | D94: 400 | E94: 22 | F94: 23 | G94: 23 | H94: 22 | I94: 0.18 | J94: 4 | K94: 0.07 | L94: 0 | M94: 0.04 | O94: 10 | P94: 33.94
A95: 00:01:33 | B95: 00:56:08 | C95: 400 | D95: 400 | E95: 22 | F95: 23 | G95: 23 | H95: 22 | I95: 0.18 | J95: 4 | K95: 0.07 | L95: 0 | M95: 0.04 | O95: 10 | P95: 33.94
A96: 00:01:34 | B96: 00:56:09 | C96: 400 | D96: 400 | E96: 22 | F96: 23 | G96: 23 | H96: 22 | I96: 0.18 | J96: 4 | K96: 0.02 | L96: 0 | M96: 0.04 | O96: 10 | P96: 33.94
A97: 00:01:35 | B97: 00:56:10 | C97: 400 | D97: 400 | E97: 22 | F97: 23 | G97: 23 | H97: 22 | I97: 0.17 | J97: 4 | K97: 0.02 | L97: 0 | M97: 0.05 | O97: 10 | P97: 33.94
A98: 00:01:36 | B98: 00:56:11 | C98: 400 | D98: 400 | E98: 22 | F98: 23 | G98: 23 | H98: 22 | I98: 0.17 | J98: 4 | K98: 0.02 | L98: 0 | M98: 0.04 | O98: 10 | P98: 33.94
A99: 00:01:37 | B99: 00:56:12 | C99: 400 | D99: 400 | E99: 22 | F99: 23 | G99: 23 | H99: 22 | I99: 0.17 | J99: 4 | K99: 0.1 | L99: 0 | M99: 0.04 | O99: 10 | P99: 33.94
A100: 00:01:38 | B100: 00:56:13 | C100: 400 | D100: 400 | E100: 22 | F100: 23 | G100: 23 | H100: 22 | I100: 0.17 | J100: 4 | K100: 0.1 | L100: 0 | M100: 0.04 | O100: 10 | P100: 33.94
A101: 00:01:39 | B101: 00:56:14 | C101: 400 | D101: 400 | E101: 22 | F101: 23 | G101: 23 | H101: 22 | I101: 0.17 | J101: 4 | K101: 0.1 | L101: 0 | M101: 0.04 | O101: 10 | P101: 33.94
A102: 00:01:40 | B102: 00:56:15 | C102: 400 | D102: 400 | E102: 22 | F102: 23 | G102: 23 | H102: 22 | I102: 0.16 | J102: 4 | K102: 0.03 | L102: 0 | M102: 0.04 | O102: 10 | P102: 33.94
A103: 00:01:41 | B103: 00:56:16 | C103: 400 | D103: 400 | E103: 22 | F103: 23 | G103: 23 | H103: 22 | I103: 0.16 | J103: 4 | K103: 0.03 | L103: 0 | M103: 0.04 | O103: 10 | P103: 33.94
A104: 00:01:42 | B104: 00:56:17 | C104: 400 | D104: 400 | E104: 22 | F104: 23 | G104: 23 | H104: 22 | I104: 0.16 | J104: 4 | K104: 0.03 | L104: 0 | M104: 0.04 | O104: 10 | P104: 33.94
A105: 00:01:43 | B105: 00:56:18 | C105: 400 | D105: 400 | E105: 22 | F105: 23 | G105: 23 | H105: 22 | I105: 0.16 | J105: 4 | K105: 0.06 | L105: 0 | M105: 0.04 | O105: 10 | P105: 33.95
A106: 00:01:44 | B106: 00:56:19 | C106: 400 | D106: 400 | E106: 22 | F106: 23 | G106: 23 | H106: 22 | I106: 0.16 | J106: 4 | K106: 0.06 | L106: 0 | M106: 0.04 | O106: 10 | P106: 33.95
A107: 00:01:45 | B107: 00:56:20 | C107: 400 | D107: 400 | E107: 22 | F107: 23 | G107: 23 | H107: 22 | I107: 0.16 | J107: 4 | K107: 0.06 | L107: 0 | M107: 0.04 | O107: 10 | P107: 33.95
A108: 00:01:46 | B108: 00:56:21 | C108: 400 | D108: 400 | E108: 22 | F108: 23 | G108: 23 | H108: 22 | I108: 0.16 | J108: 4 | K108: 0.06 | L108: 0 | M108: 0.04 | O108: 10 | P108: 33.95
A109: 00:01:47 | B109: 00:56:22 | C109: 400 | D109: 400 | E109: 22 | F109: 23 | G109: 23 | H109: 22 | I109: 0.15 | J109: 4 | K109: 0 | L109: 0 | M109: 0.04 | O109: 10 | P109: 33.95
A110: 00:01:48 | B110: 00:56:23 | C110: 400 | D110: 400 | E110: 22 | F110: 23 | G110: 23 | H110: 22 | I110: 0.15 | J110: 4 | K110: 0 | L110: 0 | M110: 0.04 | O110: 10 | P110: 33.95
A111: 00:01:49 | B111: 00:56:24 | C111: 400 | D111: 400 | E111: 22 | F111: 23 | G111: 23 | H111: 22 | I111: 0.15 | J111: 4 | K111: 0 | L111: 0 | M111: 0.04 | O111: 10 | P111: 33.95
A112: 00:01:50 | B112: 00:56:25 | C112: 400 | D112: 400 | E112: 22 | F112: 23 | G112: 23 | H112: 22 | I112: 0.15 | J112: 4 | K112: 0 | L112: 0 | M112: 0.04 | O112: 10 | P112: 33.95
A113: 00:01:51 | B113: 00:56:26 | C113: 400 | D113: 400 | E113: 22 | F113: 23 | G113: 23 | H113: 22 | I113: 0.15 | J113: 4 | K113: 0.04 | L113: 0 | M113: 0.04 | O113: 10 | P113: 33.95
A114: 00:01:52 | B114: 00:56:27 | C114: 400 | D114: 400 | E114: 22 | F114: 23 | G114: 23 | H114: 22 | I114: 0.15 | J114: 4 | K114: 0.04 | L114: 0 | M114: 0.04 | O114: 10 | P114: 33.95
A115: 00:01:53 | B115: 00:56:28 | C115: 400 | D115: 400 | E115: 22 | F115: 23 | G115: 23 | H115: 22 | I115: 0.15 | J115: 4 | K115: 0.04 | L115: 0 | M115: 0.04 | O115: 10 | P115: 33.95
A116: 00:01:54 | B116: 00:56:29 | C116: 400 | D116: 400 | E116: 22 | F116: 23 | G116: 23 | H116: 22 | I116: 0.15 | J116: 4 | K116: 0 | L116: 0 | M116: 0.05 | O116: 10 | P116: 33.95
A117: 00:01:55 | B117: 00:56:30 | C117: 400 | D117: 400 | E117: 22 | F117: 23 | G117: 23 | H117: 22 | I117: 0.15 | J117: 4 | K117: 0 | L117: 0 | M117: 0.05 | O117: 10 | P117: 33.95
A118: 00:01:56 | B118: 00:56:31 | C118: 400 | D118: 400 | E118: 22 | F118: 23 | G118: 23 | H118: 22 | I118: 0.15 | J118: 4 | K118: 0 | L118: 0 | M118: 0.04 | O118: 10 | P118: 33.95
A119: 00:01:57 | B119: 00:56:32 | C119: 400 | D119: 400 | E119: 22 | F119: 23 | G119: 23 | H119: 22 | I119: 0.14 | J119: 4 | K119: 0.03 | L119: 0 | M119: 0.04 | O119: 10 | P119: 33.95
A120: 00:01:58 | B120: 00:56:33 | C120: 400 | D120: 400 | E120: 22 | F120: 23 | G120: 23 | H120: 22 | I120: 0.14 | J120: 4 | K120: 0.03 | L120: 0 | M120: 0.04 | O120: 10 | P120: 33.95
A121: 00:01:59 | B121: 00:56:34 | C121: 400 | D121: 400 | E121: 22 | F121: 23 | G121: 23 | H121: 22 | I121: 0.14 | J121: 4 | K121: 0.03 | L121: 0 | M121: 0.04 | O121: 10 | P121: 33.95
A122: 00:02:00 | B122: 00:56:35 | C122: 400 | D122: 400 | E122: 22 | F122: 23 | G122: 23 | H122: 22 | I122: 0.14 | J122: 4 | K122: 0.02 | L122: 0 | M122: 0.04 | O122: 10 | P122: 33.95
A123: 00:02:01 | B123: 00:56:36 | C123: 400 | D123: 400 | E123: 22 | F123: 23 | G123: 23 | H123: 22 | I123: 0.14 | J123: 4 | K123: 0.02 | L123: 0 | M123: 0.04 | O123: 10 | P123: 33.95
A124: 00:02:02 | B124: 00:56:37 | C124: 400 | D124: 400 | E124: 22 | F124: 23 | G124: 23 | H124: 22 | I124: 0.14 | J124: 4 | K124: 0.02 | L124: 0 | M124: 0.04 | O124: 10 | P124: 33.95
A125: 00:02:03 | B125: 00:56:38 | C125: 400 | D125: 400 | E125: 22 | F125: 23 | G125: 23 | H125: 22 | I125: 0.14 | J125: 4 | K125: 0.02 | L125: 0 | M125: 0.04 | O125: 10 | P125: 33.95
A126: 00:02:04 | B126: 00:56:39 | C126: 400 | D126: 400 | E126: 22 | F126: 23 | G126: 23 | H126: 22 | I126: 0.14 | J126: 4 | K126: 0.01 | L126: 0 | M126: 0.04 | O126: 10 | P126: 33.95
A127: 00:02:05 | B127: 00:56:40 | C127: 400 | D127: 400 | E127: 22 | F127: 23 | G127: 23 | H127: 22 | I127: 0.14 | J127: 4 | K127: 0.01 | L127: 0 | M127: 0.04 | O127: 10 | P127: 33.95
A128: 00:02:06 | B128: 00:56:41 | C128: 400 | D128: 400 | E128: 22 | F128: 23 | G128: 23 | H128: 22 | I128: 0.14 | J128: 4 | K128: 0.01 | L128: 0 | M128: 0.04 | O128: 10 | P128: 33.95
A129: 00:02:07 | B129: 00:56:42 | C129: 400 | D129: 400 | E129: 22 | F129: 23 | G129: 23 | H129: 22 | I129: 0.14 | J129: 4 | K129: 0.04 | L129: 0 | M129: 0.04 | O129: 10 | P129: 33.95
A130: 00:02:08 | B130: 00:56:43 | C130: 400 | D130: 400 | E130: 22 | F130: 23 | G130: 23 | H130: 22 | I130: 0.14 | J130: 4 | K130: 0.04 | L130: 0 | M130: 0.04 | O130: 10 | P130: 33.95
A131: 00:02:09 | B131: 00:56:44 | C131: 400 | D131: 400 | E131: 22 | F131: 23 | G131: 23 | H131: 22 | I131: 0.14 | J131: 4 | K131: 0.04 | L131: 0 | M131: 0.04 | O131: 10 | P131: 33.95
A132: 00:02:10 | B132: 00:56:45 | C132: 400 | D132: 400 | E132: 22 | F132: 23 | G132: 23 | H132: 22 | I132: 0.13 | J132: 4 | K132: 0.04 | L132: 0 | M132: 0.04 | O132: 10 | P132: 33.95
A133: 00:02:11 | B133: 00:56:46 | C133: 400 | D133: 400 | E133: 22 | F133: 23 | G133: 23 | H133: 22 | I133: 0.13 | J133: 4 | K133: 0 | L133: 0 | M133: 0.04 | O133: 10 | P133: 33.95
A134: 00:02:12 | B134: 00:56:47 | C134: 400 | D134: 400 | E134: 22 | F134: 23 | G134: 23 | H134: 22 | I134: 0.13 | J134: 4 | K134: 0 | L134: 0 | M134: 0.04 | O134: 10 | P134: 33.95
A135: 00:02:13 | B135: 00:56:48 | C135: 400 | D135: 400 | E135: 22 | F135: 23 | G135: 22 | H135: 22 | I135: 0.13 | J135: 4 | K135: 0 | L135: 0 | M135: 0.04 | O135: 10 | P135: 33.96
A136: 00:02:14 | B136: 00:56:49 | C136: 400 | D136: 400 | E136: 22 | F136: 23 | G136: 23 | H136: 22 | I136: 0.13 | J136: 4 | K136: 0.03 | L136: 0 | M136: 0.04 | O136: 10 | P136: 33.96
A137: 00:02:15 | B137: 00:56:50 | C137: 400 | D137: 400 | E137: 22 | F137: 23 | G137: 23 | H137: 22 | I137: 0.13 | J137: 4 | K137: 0.03 | L137: 0 | M137: 0.04 | O137: 10 | P137: 33.96
A138: 00:02:16 | B138: 00:56:51 | C138: 400 | D138: 400 | E138: 22 | F138: 23 | G138: 23 | H138: 22 | I138: 0.13 | J138: 4 | K138: 0.03 | L138: 0 | M138: 0.04 | O138: 10 | P138: 33.96
A139: 00:02:17 | B139: 00:56:52 | C139: 400 | D139: 400 | E139: 22 | F139: 23 | G139: 23 | H139: 22 | I139: 0.13 | J139: 4 | K139: 0 | L139: 0 | M139: 0.04 | O139: 10 | P139: 33.96
A140: 00:02:18 | B140: 00:56:53 | C140: 400 | D140: 400 | E140: 22 | F140: 23 | G140: 23 | H140: 22 | I140: 0.13 | J140: 4 | K140: 0 | L140: 0 | M140: 0.04 | O140: 10 | P140: 33.96
A141: 00:02:19 | B141: 00:56:54 | C141: 400 | D141: 400 | E141: 22 | F141: 23 | G141: 23 | H141: 22 | I141: 0.13 | J141: 4 | K141: 0 | L141: 0 | M141: 0.04 | O141: 10 | P141: 33.96
A142: 00:02:20 | B142: 00:56:55 | C142: 400 | D142: 400 | E142: 22 | F142: 23 | G142: 23 | H142: 22 | I142: 0.13 | J142: 4 | K142: 0.02 | L142: 0 | M142: 0.04 | O142: 10 | P142: 33.96
A143: 00:02:21 | B143: 00:56:56 | C143: 400 | D143: 400 | E143: 22 | F143: 23 | G143: 23 | H143: 22 | I143: 0.13 | J143: 4 | K143: 0.02 | L143: 0 | M143: 0.04 | O143: 10 | P143: 33.96
A144: 00:02:22 | B144: 00:56:57 | C144: 400 | D144: 400 | E144: 22 | F144: 23 | G144: 23 | H144: 22 | I144: 0.13 | J144: 4 | K144: 0.02 | L144: 0 | M144: 0.04 | O144: 10 | P144: 33.96
A145: 00:02:23 | B145: 00:56:58 | C145: 400 | D145: 400 | E145: 22 | F145: 23 | G145: 23 | H145: 22 | I145: 0.13 | J145: 4 | K145: 0.02 | L145: 0 | M145: 0.04 | O145: 10 | P145: 33.96
A146: 00:02:24 | B146: 00:56:59 | C146: 400 | D146: 400 | E146: 22 | F146: 23 | G146: 23 | H146: 22 | I146: 0.13 | J146: 4 | K146: 0 | L146: 0 | M146: 0.04 | O146: 10 | P146: 33.96
A147: 00:02:25 | B147: 00:57:00 | C147: 400 | D147: 400 | E147: 22 | F147: 23 | G147: 23 | H147: 22 | I147: 0.13 | J147: 4 | K147: 0 | L147: 0 | M147: 0.04 | O147: 10 | P147: 33.96
A148: 00:02:26 | B148: 00:57:01 | C148: 400 | D148: 400 | E148: 22 | F148: 23 | G148: 23 | H148: 22 | I148: 0.13 | J148: 4 | K148: 0 | L148: 0 | M148: 0.04 | O148: 10 | P148: 33.96
A149: 00:02:27 | B149: 00:57:02 | C149: 400 | D149: 400 | E149: 22 | F149: 23 | G149: 23 | H149: 22 | I149: 0.13 | J149: 4 | K149: 0.01 | L149: 0 | M149: 0.04 | O149: 10 | P149: 33.96
A150: 00:02:28 | B150: 00:57:03 | C150: 400 | D150: 400 | E150: 22 | F150: 23 | G150: 23 | H150: 22 | I150: 0.13 | J150: 4 | K150: 0.01 | L150: 0 | M150: 0.04 | O150: 10 | P150: 33.96
A151: 00:02:29 | B151: 00:57:04 | C151: 400 | D151: 400 | E151: 22 | F151: 23 | G151: 23 | H151: 22 | I151: 0.12 | J151: 4 | K151: 0.01 | L151: 0 | M151: 0.04 | O151: 10 | P151: 33.96
A152: 00:02:30 | B152: 00:57:05 | C152: 400 | D152: 400 | E152: 22 | F152: 23 | G152: 23 | H152: 22 | I152: 0.12 | J152: 4 | K152: 0.01 | L152: 0 | M152: 0.04 | O152: 10 | P152: 33.96
A153: 00:02:31 | B153: 00:57:06 | C153: 400 | D153: 400 | E153: 22 | F153: 23 | G153: 23 | H153: 22 | I153: 0.12 | J153: 4 | K153: -0.01 | L153: 0 | M153: 0.04 | O153: 10 | P153: 33.96
A154: 00:02:32 | B154: 00:57:07 | C154: 400 | D154: 400 | E154: 22 | F154: 23 | G154: 23 | H154: 22 | I154: 0.12 | J154: 4 | K154: -0.01 | L154: 0 | M154: 0.04 | O154: 10 | P154: 33.96
A155: 00:02:33 | B155: 00:57:08 | C155: 400 | D155: 400 | E155: 22 | F155: 23 | G155: 23 | H155: 22 | I155: 0.12 | J155: 4 | K155: -0.01 | L155: 0 | M155: 0.04 | O155: 10 | P155: 33.96
A156: 00:02:34 | B156: 00:57:09 | C156: 400 | D156: 400 | E156: 22 | F156: 23 | G156: 23 | H156: 22 | I156: 0.12 | J156: 4 | K156: 0 | L156: 0 | M156: 0.04 | O156: 10 | P156: 33.96
A157: 00:02:35 | B157: 00:57:10 | C157: 400 | D157: 400 | E157: 22 | F157: 23 | G157: 23 | H157: 22 | I157: 0.12 | J157: 4 | K157: 0 | L157: 0 | M157: 0.04 | O157: 10 | P157: 33.96
A158: 00:02:36 | B158: 00:57:11 | C158: 400 | D158: 400 | E158: 22 | F158: 23 | G158: 22 | H158: 22 | I158: 0.12 | J158: 4 | K158: 0 | L158: 0 | M158: 0.04 | O158: 10 | P158: 33.96
A159: 00:02:37 | B159: 00:57:12 | C159: 400 | D159: 400 | E159: 22 | F159: 23 | G159: 22 | H159: 22 | I159: 0.12 | J159: 4 | K159: 0 | L159: 0 | M159: 0.04 | O159: 10 | P159: 33.96
A160: 00:02:38 | B160: 00:57:13 | C160: 400 | D160: 400 | E160: 22 | F160: 23 | G160: 23 | H160: 22 | I160: 0.12 | J160: 4 | K160: 0.01 | L160: 0 | M160: 0.04 | O160: 10 | P160: 33.96
A161: 00:02:39 | B161: 00:57:14 | C161: 400 | D161: 400 | E161: 22 | F161: 23 | G161: 23 | H161: 22 | I161: 0.12 | J161: 4 | K161: 0.01 | L161: 0 | M161: 0.04 | O161: 10 | P161: 33.96
A162: 00:02:40 | B162: 00:57:15 | C162: 400 | D162: 400 | E162: 22 | F162: 23 | G162: 23 | H162: 22 | I162: 0.12 | J162: 4 | K162: 0.01 | L162: 0 | M162: 0.04 | O162: 10 | P162: 33.96
A163: 00:02:41 | B163: 00:57:16 | C163: 400 | D163: 400 | E163: 22 | F163: 23 | G163: 23 | H163: 22 | I163: 0.12 | J163: 4 | K163: 0.03 | L163: 0 | M163: 0.04 | O163: 10 | P163: 33.96
A164: 00:02:42 | B164: 00:57:17 | C164: 400 | D164: 400 | E164: 22 | F164: 23 | G164: 23 | H164: 22 | I164: 0.12 | J164: 4 | K164: 0.03 | L164: 0 | M164: 0.04 | O164: 10 | P164: 33.96
A165: 00:02:43 | B165: 00:57:18 | C165: 400 | D165: 400 | E165: 22 | F165: 23 | G165: 23 | H165: 22 | I165: 0.12 | J165: 4 | K165: 0.03 | L165: 0 | M165: 0.04 | O165: 10 | P165: 33.96
A166: 00:02:44 | B166: 00:57:19 | C166: 400 | D166: 400 | E166: 22 | F166: 23 | G166: 23 | H166: 22 | I166: 0.12 | J166: 4 | K166: 0 | L166: 0 | M166: 0.04 | O166: 10 | P166: 33.96
A167: 00:02:45 | B167: 00:57:20 | C167: 400 | D167: 400 | E167: 22 | F167: 23 | G167: 23 | H167: 22 | I167: 0.12 | J167: 4 | K167: 0 | L167: 0 | M167: 0.05 | O167: 10 | P167: 33.96
A168: 00:02:46 | B168: 00:57:21 | C168: 400 | D168: 400 | E168: 22 | F168: 23 | G168: 23 | H168: 22 | I168: 0.12 | J168: 4 | K168: 0 | L168: 0 | M168: 0.05 | O168: 10 | P168: 33.96
A169: 00:02:47 | B169: 00:57:22 | C169: 400 | D169: 400 | E169: 22 | F169: 23 | G169: 23 | H169: 22 | I169: 0.12 | J169: 4 | K169: 0.02 | L169: 0 | M169: 0.04 | O169: 10 | P169: 33.96
A170: 00:02:48 | B170: 00:57:23 | C170: 400 | D170: 400 | E170: 22 | F170: 23 | G170: 22 | H170: 22 | I170: 0.12 | J170: 4 | K170: 0.02 | L170: 0 | M170: 0.04 | O170: 10 | P170: 33.96
A171: 00:02:49 | B171: 00:57:24 | C171: 400 | D171: 400 | E171: 22 | F171: 23 | G171: 23 | H171: 22 | I171: 0.12 | J171: 4 | K171: 0.02 | L171: 0 | M171: 0.04 | O171: 10 | P171: 33.96
A172: 00:02:50 | B172: 00:57:25 | C172: 400 | D172: 400 | E172: 22 | F172: 23 | G172: 23 | H172: 22 | I172: 0.12 | J172: 4 | K172: 0.02 | L172: 0 | M172: 0.04 | O172: 10 | P172: 33.96
A173: 00:02:51 | B173: 00:57:26 | C173: 400 | D173: 400 | E173: 22 | F173: 23 | G173: 23 | H173: 22 | I173: 0.12 | J173: 4 | K173: 0.01 | L173: 0 | M173: 0.04 | O173: 10 | P173: 33.96
A174: 00:02:52 | B174: 00:57:27 | C174: 400 | D174: 400 | E174: 22 | F174: 23 | G174: 23 | H174: 22 | I174: 0.12 | J174: 4 | K174: 0.01 | L174: 0 | M174: 0.04 | O174: 10 | P174: 33.96
A175: 00:02:53 | B175: 00:57:28 | C175: 400 | D175: 400 | E175: 22 | F175: 23 | G175: 23 | H175: 22 | I175: 0.12 | J175: 4 | K175: 0.01 | L175: 0 | M175: 0.04 | O175: 10 | P175: 33.96
A176: 00:02:54 | B176: 00:57:29 | C176: 400 | D176: 400 | E176: 22 | F176: 23 | G176: 23 | H176: 22 | I176: 0.12 | J176: 4 | K176: 0 | L176: 0 | M176: 0.04 | O176: 10 | P176: 33.96
A177: 00:02:55 | B177: 00:57:30 | C177: 400 | D177: 400 | E177: 22 | F177: 23 | G177: 22 | H177: 22 | I177: 0.12 | J177: 4 | K177: 0 | L177: 0 | M177: 0.04 | O177: 10 | P177: 33.96
A178: 00:02:56 | B178: 00:57:31 | C178: 400 | D178: 400 | E178: 22 | F178: 23 | G178: 23 | H178: 22 | I178: 0.12 | J178: 4 | K178: 0 | L178: 0 | M178: 0.04 | O178: 10 | P178: 33.96
A179: 00:02:57 | B179: 00:57:32 | C179: 400 | D179: 400 | E179: 22 | F179: 23 | G179: 23 | H179: 22 | I179: 0.12 | J179: 4 | K179: 0 | L179: 0 | M179: 0.04 | O179: 10 | P179: 33.96
A180: 00:02:58 | B180: 00:57:33 | C180: 400 | D180: 400 | E180: 22 | F180: 23 | G180: 22 | H180: 22 | I180: 0.12 | J180: 4 | K180: 0.04 | L180: 0 | M180: 0.04 | O180: 10 | P180: 33.96
A181: 00:02:59 | B181: 00:57:34 | C181: 400 | D181: 400 | E181: 22 | F181: 23 | G181: 22 | H181: 22 | I181: 0.12 | J181: 4 | K181: 0.04 | L181: 0 | M181: 0.04 | O181: 10 | P181: 33.96
A182: 00:03:00 | B182: 00:57:35 | C182: 400 | D182: 400 | E182: 22 | F182: 23 | G182: 23 | H182: 22 | I182: 0.12 | J182: 4 | K182: 0.04 | L182: 0 | M182: 0.04 | O182: 10 | P182: 33.96
A183: 00:03:01 | B183: 00:57:36 | C183: 400 | D183: 400 | E183: 22 | F183: 23 | G183: 23 | H183: 22 | I183: 0.12 | J183: 4 | K183: 0 | L183: 0 | M183: 0.04 | O183: 10 | P183: 33.96
A184: 00:03:02 | B184: 00:57:37 | C184: 400 | D184: 400 | E184: 22 | F184: 23 | G184: 23 | H184: 22 | I184: 0.12 | J184: 4 | K184: 0 | L184: 0 | M184: 0.04 | O184: 10 | P184: 33.96
A185: 00:03:03 | B185: 00:57:38 | C185: 400 | D185: 400 | E185: 22 | F185: 23 | G185: 23 | H185: 22 | I185: 0.12 | J185: 4 | K185: 0 | L185: 0 | M185: 0.04 | O185: 10 | P185: 33.96
A186: 00:03:04 | B186: 00:57:39 | C186: 400 | D186: 400 | E186: 22 | F186: 23 | G186: 23 | H186: 22 | I186: 0.12 | J186: 4 | K186: 0.01 | L186: 0 | M186: 0.04 | O186: 10 | P186: 33.96
A187: 00:03:05 | B187: 00:57:40 | C187: 400 | D187: 400 | E187: 22 | F187: 23 | G187: 23 | H187: 22 | I187: 0.12 | J187: 4 | K187: 0.01 | L187: 0 | M187: 0.04 | O187: 10 | P187: 33.96
A188: 00:03:06 | B188: 00:57:41 | C188: 400 | D188: 400 | E188: 22 | F188: 23 | G188: 23 | H188: 22 | I188: 0.11 | J188: 4 | K188: 0.01 | L188: 0 | M188: 0.04 | O188: 10 | P188: 33.97
A189: 00:03:07 | B189: 00:57:42 | C189: 400 | D189: 400 | E189: 22 | F189: 23 | G189: 23 | H189: 22 | I189: 0.11 | J189: 4 | K189: 0 | L189: 0 | M189: 0.05 | O189: 10 | P189: 33.96
A190: 00:03:08 | B190: 00:57:43 | C190: 400 | D190: 400 | E190: 22 | F190: 23 | G190: 23 | H190: 22 | I190: 0.11 | J190: 4 | K190: 0 | L190: 0 | M190: 0.05 | O190: 10 | P190: 33.96
A191: 00:03:09 | B191: 00:57:44 | C191: 400 | D191: 400 | E191: 22 | F191: 23 | G191: 23 | H191: 22 | I191: 0.11 | J191: 4 | K191: 0 | L191: 0 | M191: 0.04 | O191: 10 | P191: 33.97
A192: 00:03:10 | B192: 00:57:45 | C192: 400 | D192: 400 | E192: 22 | F192: 23 | G192: 23 | H192: 22 | I192: 0.11 | J192: 4 | K192: 0 | L192: 0 | M192: 0.04 | O192: 10 | P192: 33.97
A193: 00:03:11 | B193: 00:57:46 | C193: 400 | D193: 400 | E193: 22 | F193: 23 | G193: 23 | H193: 22 | I193: 0.11 | J193: 4 | K193: 0.04 | L193: 0 | M193: 0.04 | O193: 10 | P193: 33.97
A194: 00:03:12 | B194: 00:57:47 | C194: 400 | D194: 400 | E194: 22 | F194: 23 | G194: 23 | H194: 22 | I194: 0.11 | J194: 4 | K194: 0.04 | L194: 0 | M194: 0.04 | O194: 10 | P194: 33.97
A195: 00:03:13 | B195: 00:57:48 | C195: 400 | D195: 400 | E195: 22 | F195: 23 | G195: 23 | H195: 22 | I195: 0.11 | J195: 4 | K195: 0.04 | L195: 0 | M195: 0.04 | O195: 10 | P195: 33.97
A196: 00:03:14 | B196: 00:57:49 | C196: 400 | D196: 400 | E196: 22 | F196: 23 | G196: 23 | H196: 22 | I196: 0.11 | J196: 4 | K196: -0.01 | L196: 0 | M196: 0.04 | O196: 10 | P196: 33.97
A197: 00:03:15 | B197: 00:57:50 | C197: 400 | D197: 400 | E197: 22 | F197: 23 | G197: 23 | H197: 22 | I197: 0.11 | J197: 4 | K197: -0.01 | L197: 0 | M197: 0.04 | O197: 10 | P197: 33.97
A198: 00:03:16 | B198: 00:57:51 | C198: 400 | D198: 400 | E198: 22 | F198: 23 | G198: 23 | H198: 22 | I198: 0.11 | J198: 4 | K198: -0.01 | L198: 0 | M198: 0.04 | O198: 10 | P198: 33.97
A199: 00:03:17 | B199: 00:57:52 | C199: 400 | D199: 400 | E199: 22 | F199: 23 | G199: 23 | H199: 22 | I199: 0.11 | J199: 4 | K199: -0.01 | L199: 0 | M199: 0.04 | O199: 10 | P199: 33.97
A200: 00:03:18 | B200: 00:57:53 | C200: 400 | D200: 400 | E200: 22 | F200: 23 | G200: 22 | H200: 22 | I200: 0.11 | J200: 4 | K200: 0.03 | L200: 0 | M200: 0.04 | O200: 10 | P200: 33.97
... 1664 more rows

Sheet 1468
A1: P.Zeit | C1: Pyrometer | D1: Pyrometer B | E1: MTC1 | F1: MTC2 | G1: MTC3 | H1: MTC4 | I1: Press. abs 1 | J1: Press. abs 2 | K1: Speed | L1: U RMS | M1: I RMS | N1: Power | O1: Force | P1: Abs Piston Tra. | Q1: Rel Piston Tra.
C2: °C | D2: °C | E2: °C | F2: °C | G2: °C | H2: °C | I2: hPa | J2: hPa | K2: mm/min | L2: V | M2: kA | N2: KW | O2: kN | P2: mm | Q2: mm
A3: 00:00:00 | B3: 00:56:45 | C3: 400 | D3: 400 | E3: 23 | F3: 24 | G3: 24 | H3: 23 | I3: 0.11 | J3: 4 | K3: 0 | L3: 0 | M3: 0.04 | N3: =L3*M3 -> 0 | O3: 5 | P3: 31.55
A4: 00:00:01 | B4: 00:56:46 | C4: 400 | D4: 400 | E4: 23 | F4: 24 | G4: 24 | H4: 23 | I4: 0.11 | J4: 4 | K4: 0 | L4: 0 | M4: 0.04 | N4: 0 | O4: 5 | P4: 31.55
A5: 00:00:02 | B5: 00:56:47 | C5: 400 | D5: 400 | E5: 23 | F5: 24 | G5: 24 | H5: 23 | I5: 0.11 | J5: 4 | K5: 0 | L5: 0 | M5: 0.04 | N5: 0 | O5: 6 | P5: 31.66
A6: 00:00:03 | B6: 00:56:48 | C6: 400 | D6: 400 | E6: 23 | F6: 24 | G6: 24 | H6: 23 | I6: 0.11 | J6: 4 | K6: 6.35 | L6: 0 | M6: 0.04 | N6: 0 | O6: 6 | P6: 32.02
A7: 00:00:04 | B7: 00:56:49 | C7: 400 | D7: 400 | E7: 23 | F7: 24 | G7: 24 | H7: 23 | I7: 0.11 | J7: 4 | K7: 6.35 | L7: 0 | M7: 0.04 | N7: 0 | O7: 6 | P7: 32.1
A8: 00:00:05 | B8: 00:56:50 | C8: 400 | D8: 400 | E8: 23 | F8: 24 | G8: 24 | H8: 23 | I8: 0.11 | J8: 4 | K8: 6.35 | L8: 0 | M8: 0.04 | N8: 0 | O8: 6 | P8: 32.16
A9: 00:00:06 | B9: 00:56:51 | C9: 400 | D9: 400 | E9: 23 | F9: 24 | G9: 24 | H9: 23 | I9: 0.11 | J9: 4 | K9: 5.09 | L9: 0 | M9: 0.04 | N9: 0 | O9: 7 | P9: 32.28
A10: 00:00:07 | B10: 00:56:52 | C10: 400 | D10: 400 | E10: 23 | F10: 24 | G10: 24 | H10: 23 | I10: 0.11 | J10: 4 | K10: 5.09 | L10: 0 | M10: 0.04 | N10: 0 | O10: 7 | P10: 32.45
A11: 00:00:08 | B11: 00:56:53 | C11: 400 | D11: 400 | E11: 23 | F11: 24 | G11: 24 | H11: 23 | I11: 0.11 | J11: 4 | K11: 5.09 | L11: 0 | M11: 0.04 | N11: 0 | O11: 7 | P11: 32.54
A12: 00:00:09 | B12: 00:56:54 | C12: 400 | D12: 400 | E12: 23 | F12: 24 | G12: 24 | H12: 23 | I12: 0.11 | J12: 4 | K12: 9.58 | L12: 0 | M12: 0.04 | N12: 0 | O12: 8 | P12: 32.78
A13: 00:00:10 | B13: 00:56:55 | C13: 400 | D13: 400 | E13: 23 | F13: 24 | G13: 24 | H13: 23 | I13: 0.11 | J13: 4 | K13: 9.58 | L13: 0 | M13: 0.04 | N13: 0 | O13: 8 | P13: 33.06
A14: 00:00:11 | B14: 00:56:56 | C14: 400 | D14: 400 | E14: 23 | F14: 24 | G14: 24 | H14: 23 | I14: 0.11 | J14: 4 | K14: 9.58 | L14: 0 | M14: 0.04 | N14: 0 | O14: 8 | P14: 33.16
A15: 00:00:12 | B15: 00:56:57 | C15: 400 | D15: 400 | E15: 23 | F15: 24 | G15: 24 | H15: 23 | I15: 0.11 | J15: 4 | K15: 9.58 | L15: 0 | M15: 0.04 | N15: 0 | O15: 8 | P15: 33.32
A16: 00:00:13 | B16: 00:56:58 | C16: 400 | D16: 400 | E16: 23 | F16: 24 | G16: 24 | H16: 23 | I16: 0.11 | J16: 4 | K16: 9.93 | L16: 0 | M16: 0.04 | N16: 0 | O16: 9 | P16: 33.37
A17: 00:00:14 | B17: 00:56:59 | C17: 400 | D17: 400 | E17: 23 | F17: 24 | G17: 24 | H17: 23 | I17: 0.11 | J17: 4 | K17: 9.93 | L17: 0 | M17: 0.04 | N17: 0 | O17: 9 | P17: 33.49
A18: 00:00:15 | B18: 00:57:00 | C18: 400 | D18: 400 | E18: 23 | F18: 24 | G18: 24 | H18: 23 | I18: 0.11 | J18: 4 | K18: 9.93 | L18: 0 | M18: 0.04 | N18: 0 | O18: 9 | P18: 33.63
A19: 00:00:16 | B19: 00:57:01 | C19: 400 | D19: 400 | E19: 23 | F19: 24 | G19: 24 | H19: 23 | I19: 0.11 | J19: 4 | K19: 6.37 | L19: 0 | M19: 0.04 | N19: 0 | O19: 9 | P19: 33.7
A20: 00:00:17 | B20: 00:57:02 | C20: 400 | D20: 400 | E20: 23 | F20: 24 | G20: 24 | H20: 23 | I20: 0.11 | J20: 4 | K20: 6.37 | L20: 0 | M20: 0.03 | N20: 0 | O20: 10 | P20: 33.83
A21: 00:00:18 | B21: 00:57:03 | C21: 400 | D21: 400 | E21: 23 | F21: 24 | G21: 24 | H21: 23 | I21: 0.11 | J21: 4 | K21: 6.37 | L21: 0 | M21: 0.03 | N21: 0 | O21: 10 | P21: 33.9
A22: 00:00:19 | B22: 00:57:04 | C22: 400 | D22: 400 | E22: 23 | F22: 24 | G22: 24 | H22: 23 | I22: 0.11 | J22: 4 | K22: 6.37 | L22: 0 | M22: 0.04 | N22: 0 | O22: 10 | P22: 33.92
A23: 00:00:20 | B23: 00:57:05 | C23: 400 | D23: 400 | E23: 23 | F23: 24 | G23: 24 | H23: 23 | I23: 0.11 | J23: 4 | K23: 4.22 | L23: 0 | M23: 0.04 | N23: 0 | O23: 11 | P23: 33.99
A24: 00:00:21 | B24: 00:57:06 | C24: 400 | D24: 400 | E24: 23 | F24: 24 | G24: 24 | H24: 23 | I24: 0.11 | J24: 4 | K24: 4.22 | L24: 0 | M24: 0.04 | N24: 0 | O24: 11 | P24: 34.03
A25: 00:00:22 | B25: 00:57:07 | C25: 400 | D25: 400 | E25: 23 | F25: 24 | G25: 24 | H25: 23 | I25: 0.11 | J25: 4 | K25: 4.22 | L25: 0 | M25: 0.04 | N25: 0 | O25: 11 | P25: 34.13
A26: 00:00:23 | B26: 00:57:08 | C26: 400 | D26: 400 | E26: 23 | F26: 24 | G26: 24 | H26: 23 | I26: 0.11 | J26: 4 | K26: 4.62 | L26: 0 | M26: 0.04 | N26: 0 | O26: 12 | P26: 34.24
A27: 00:00:24 | B27: 00:57:09 | C27: 400 | D27: 400 | E27: 23 | F27: 24 | G27: 24 | H27: 23 | I27: 0.11 | J27: 4 | K27: 4.62 | L27: 0 | M27: 0.04 | N27: 0 | O27: 12 | P27: 34.29
A28: 00:00:25 | B28: 00:57:10 | C28: 400 | D28: 400 | E28: 23 | F28: 24 | G28: 24 | H28: 23 | I28: 0.11 | J28: 4 | K28: 4.62 | L28: 0 | M28: 0.04 | N28: 0 | O28: 12 | P28: 34.35
A29: 00:00:26 | B29: 00:57:11 | C29: 400 | D29: 400 | E29: 23 | F29: 24 | G29: 24 | H29: 23 | I29: 0.11 | J29: 4 | K29: 4.62 | L29: 0 | M29: 0.04 | N29: 0 | O29: 12 | P29: 34.38
A30: 00:00:27 | B30: 00:57:12 | C30: 400 | D30: 400 | E30: 23 | F30: 24 | G30: 24 | H30: 23 | I30: 0.11 | J30: 4 | K30: 3.7 | L30: 0 | M30: 0.03 | N30: 0 | O30: 13 | P30: 34.44
A31: 00:00:28 | B31: 00:57:13 | C31: 400 | D31: 400 | E31: 23 | F31: 24 | G31: 24 | H31: 23 | I31: 0.11 | J31: 4 | K31: 3.7 | L31: 0 | M31: 0.04 | N31: 0 | O31: 13 | P31: 34.51
A32: 00:00:29 | B32: 00:57:14 | C32: 400 | D32: 400 | E32: 23 | F32: 24 | G32: 24 | H32: 23 | I32: 0.11 | J32: 4 | K32: 3.7 | L32: 0 | M32: 0.04 | N32: 0 | O32: 13 | P32: 34.56
A33: 00:00:30 | B33: 00:57:15 | C33: 400 | D33: 400 | E33: 23 | F33: 24 | G33: 24 | H33: 23 | I33: 0.11 | J33: 4 | K33: 3.79 | L33: 0 | M33: 0.03 | N33: 0 | O33: 13 | P33: 34.66
A34: 00:00:31 | B34: 00:57:16 | C34: 400 | D34: 400 | E34: 23 | F34: 24 | G34: 24 | H34: 23 | I34: 0.11 | J34: 4 | K34: 3.79 | L34: 0 | M34: 0.04 | N34: 0 | O34: 14 | P34: 34.76
A35: 00:00:32 | B35: 00:57:17 | C35: 400 | D35: 400 | E35: 23 | F35: 24 | G35: 24 | H35: 23 | I35: 0.11 | J35: 4 | K35: 3.79 | L35: 0 | M35: 0.04 | N35: 0 | O35: 14 | P35: 34.81
A36: 00:00:33 | B36: 00:57:18 | C36: 400 | D36: 400 | E36: 23 | F36: 24 | G36: 24 | H36: 23 | I36: 0.11 | J36: 4 | K36: 4.6 | L36: 0 | M36: 0.04 | N36: 0 | O36: 14 | P36: 34.87
A37: 00:00:34 | B37: 00:57:19 | C37: 400 | D37: 400 | E37: 23 | F37: 24 | G37: 24 | H37: 23 | I37: 0.11 | J37: 4 | K37: 4.6 | L37: 0 | M37: 0.04 | N37: 0 | O37: 15 | P37: 34.92
A38: 00:00:35 | B38: 00:57:20 | C38: 400 | D38: 400 | E38: 23 | F38: 24 | G38: 24 | H38: 23 | I38: 0.11 | J38: 4 | K38: 4.6 | L38: 0 | M38: 0.04 | N38: 0 | O38: 15 | P38: 34.95
A39: 00:00:36 | B39: 00:57:21 | C39: 400 | D39: 400 | E39: 23 | F39: 24 | G39: 24 | H39: 23 | I39: 0.11 | J39: 4 | K39: 2.5 | L39: 0 | M39: 0.04 | N39: 0 | O39: 15 | P39: 35
A40: 00:00:37 | B40: 00:57:22 | C40: 400 | D40: 400 | E40: 23 | F40: 24 | G40: 24 | H40: 23 | I40: 0.11 | J40: 4 | K40: 2.5 | L40: 0 | M40: 0.03 | N40: 0 | O40: 15 | P40: 35.03
A41: 00:00:38 | B41: 00:57:23 | C41: 400 | D41: 400 | E41: 23 | F41: 24 | G41: 24 | H41: 23 | I41: 0.11 | J41: 4 | K41: 2.5 | L41: 0 | M41: 0.04 | N41: 0 | O41: 16 | P41: 35.12
A42: 00:00:39 | B42: 00:57:24 | C42: 400 | D42: 400 | E42: 23 | F42: 24 | G42: 24 | H42: 23 | I42: 0.11 | J42: 4 | K42: 2.5 | L42: 0 | M42: 0.03 | N42: 0 | O42: 16 | P42: 35.2
A43: 00:00:40 | B43: 00:57:25 | C43: 400 | D43: 400 | E43: 23 | F43: 24 | G43: 24 | H43: 23 | I43: 0.11 | J43: 4 | K43: 4 | L43: 0 | M43: 0.04 | N43: 0 | O43: 16 | P43: 35.24
A44: 00:00:41 | B44: 00:57:26 | C44: 400 | D44: 400 | E44: 23 | F44: 24 | G44: 24 | H44: 23 | I44: 0.11 | J44: 4 | K44: 4 | L44: 0 | M44: 0.04 | N44: 0 | O44: 17 | P44: 35.3
A45: 00:00:42 | B45: 00:57:27 | C45: 400 | D45: 400 | E45: 23 | F45: 24 | G45: 24 | H45: 23 | I45: 0.11 | J45: 4 | K45: 4 | L45: 0 | M45: 0.03 | N45: 0 | O45: 17 | P45: 35.34
A46: 00:00:43 | B46: 00:57:28 | C46: 400 | D46: 400 | E46: 23 | F46: 24 | G46: 24 | H46: 23 | I46: 0.11 | J46: 4 | K46: 2.43 | L46: 0 | M46: 0.04 | N46: 0 | O46: 17 | P46: 35.37
A47: 00:00:44 | B47: 00:57:29 | C47: 400 | D47: 400 | E47: 23 | F47: 24 | G47: 24 | H47: 23 | I47: 0.11 | J47: 4 | K47: 2.43 | L47: 0 | M47: 0.04 | N47: 0 | O47: 17 | P47: 35.43
A48: 00:00:45 | B48: 00:57:30 | C48: 400 | D48: 400 | E48: 23 | F48: 24 | G48: 24 | H48: 23 | I48: 0.11 | J48: 4 | K48: 2.43 | L48: 0 | M48: 0.04 | N48: 0 | O48: 18 | P48: 35.51
A49: 00:00:46 | B49: 00:57:31 | C49: 400 | D49: 400 | E49: 23 | F49: 24 | G49: 24 | H49: 23 | I49: 0.11 | J49: 4 | K49: 2.43 | L49: 0 | M49: 0.03 | N49: 0 | O49: 18 | P49: 35.56
A50: 00:00:47 | B50: 00:57:32 | C50: 400 | D50: 400 | E50: 23 | F50: 24 | G50: 24 | H50: 23 | I50: 0.11 | J50: 4 | K50: 3.83 | L50: 0 | M50: 0.04 | N50: 0 | O50: 18 | P50: 35.62
A51: 00:00:48 | B51: 00:57:33 | C51: 400 | D51: 400 | E51: 23 | F51: 24 | G51: 24 | H51: 23 | I51: 0.11 | J51: 4 | K51: 3.83 | L51: 0 | M51: 0.04 | N51: 0 | O51: 19 | P51: 35.66
A52: 00:00:49 | B52: 00:57:34 | C52: 400 | D52: 400 | E52: 23 | F52: 24 | G52: 24 | H52: 23 | I52: 0.11 | J52: 4 | K52: 3.83 | L52: 0 | M52: 0.04 | N52: 0 | O52: 19 | P52: 35.69
A53: 00:00:50 | B53: 00:57:35 | C53: 400 | D53: 400 | E53: 23 | F53: 24 | G53: 24 | H53: 23 | I53: 0.11 | J53: 4 | K53: 2.36 | L53: 0 | M53: 0.04 | N53: 0 | O53: 19 | P53: 35.74
A54: 00:00:51 | B54: 00:57:36 | C54: 400 | D54: 400 | E54: 23 | F54: 24 | G54: 24 | H54: 23 | I54: 0.11 | J54: 4 | K54: 2.36 | L54: 0 | M54: 0.04 | N54: 0 | O54: 19 | P54: 35.77
A55: 00:00:52 | B55: 00:57:37 | C55: 400 | D55: 400 | E55: 23 | F55: 24 | G55: 24 | H55: 23 | I55: 0.11 | J55: 4 | K55: 2.36 | L55: 0 | M55: 0.04 | N55: 0 | O55: 20 | P55: 35.85
A56: 00:00:53 | B56: 00:57:38 | C56: 400 | D56: 400 | E56: 23 | F56: 24 | G56: 24 | H56: 23 | I56: 0.11 | J56: 4 | K56: 3.57 | L56: 0 | M56: 0.04 | N56: 0 | O56: 20 | P56: 35.92
A57: 00:00:54 | B57: 00:57:39 | C57: 400 | D57: 400 | E57: 23 | F57: 24 | G57: 24 | H57: 23 | I57: 0.11 | J57: 4 | K57: 3.57 | L57: 0 | M57: 0.04 | N57: 0 | O57: 20 | P57: 35.96
A58: 00:00:55 | B58: 00:57:40 | C58: 400 | D58: 400 | E58: 23 | F58: 24 | G58: 24 | H58: 23 | I58: 0.11 | J58: 4 | K58: 3.57 | L58: 0 | M58: 0.03 | N58: 0 | O58: 20 | P58: 36.02
A59: 00:00:56 | B59: 00:57:41 | C59: 400 | D59: 400 | E59: 23 | F59: 24 | G59: 24 | H59: 23 | I59: 0.11 | J59: 4 | K59: 2.96 | L59: 0 | M59: 0.04 | N59: 0 | O59: 21 | P59: 36.07
A60: 00:00:57 | B60: 00:57:42 | C60: 400 | D60: 400 | E60: 23 | F60: 24 | G60: 24 | H60: 23 | I60: 0.11 | J60: 4 | K60: 2.96 | L60: 0 | M60: 0.03 | N60: 0 | O60: 21 | P60: 36.09
A61: 00:00:58 | B61: 00:57:43 | C61: 400 | D61: 400 | E61: 23 | F61: 24 | G61: 24 | H61: 23 | I61: 0.11 | J61: 4 | K61: 2.96 | L61: 0 | M61: 0.04 | N61: 0 | O61: 21 | P61: 36.13
A62: 00:00:59 | B62: 00:57:44 | C62: 400 | D62: 400 | E62: 23 | F62: 24 | G62: 24 | H62: 23 | I62: 0.11 | J62: 4 | K62: 2.96 | L62: 0 | M62: 0.04 | N62: 0 | O62: 22 | P62: 36.2
A63: 00:01:00 | B63: 00:57:45 | C63: 400 | D63: 400 | E63: 23 | F63: 24 | G63: 24 | H63: 23 | I63: 0.11 | J63: 4 | K63: 2.64 | L63: 0 | M63: 0.04 | N63: 0 | O63: 22 | P63: 36.24
A64: 00:01:01 | B64: 00:57:46 | C64: 400 | D64: 400 | E64: 23 | F64: 24 | G64: 24 | H64: 23 | I64: 0.11 | J64: 4 | K64: 2.64 | L64: 0 | M64: 0.04 | N64: 0 | O64: 22 | P64: 36.31
A65: 00:01:02 | B65: 00:57:47 | C65: 400 | D65: 400 | E65: 23 | F65: 24 | G65: 24 | H65: 23 | I65: 0.11 | J65: 4 | K65: 2.64 | L65: 0 | M65: 0.04 | N65: 0 | O65: 22 | P65: 36.36
A66: 00:01:03 | B66: 00:57:48 | C66: 400 | D66: 400 | E66: 23 | F66: 24 | G66: 24 | H66: 23 | I66: 0.11 | J66: 4 | K66: 2.62 | L66: 0 | M66: 0.04 | N66: 0 | O66: 22 | P66: 36.37
A67: 00:01:04 | B67: 00:57:49 | C67: 400 | D67: 400 | E67: 23 | F67: 24 | G67: 24 | H67: 23 | I67: 0.11 | J67: 4 | K67: 2.62 | L67: 0 | M67: 0.04 | N67: 0 | O67: 22 | P67: 36.38
A68: 00:01:05 | B68: 00:57:50 | C68: 400 | D68: 400 | E68: 23 | F68: 24 | G68: 24 | H68: 23 | I68: 0.11 | J68: 4 | K68: 2.62 | L68: 0 | M68: 0.03 | N68: 0 | O68: 22 | P68: 36.38
A69: 00:01:06 | B69: 00:57:51 | C69: 400 | D69: 400 | E69: 23 | F69: 24 | G69: 24 | H69: 23 | I69: 0.11 | J69: 4 | K69: 2.62 | L69: 0 | M69: 0.04 | N69: 0 | O69: 22 | P69: 36.39
A70: 00:01:07 | B70: 00:57:52 | C70: 400 | D70: 400 | E70: 23 | F70: 24 | G70: 24 | H70: 23 | I70: 0.11 | J70: 4 | K70: 0.31 | L70: 0 | M70: 0.04 | N70: 0 | O70: 22 | P70: 36.39
A71: 00:01:08 | B71: 00:57:53 | C71: 400 | D71: 400 | E71: 23 | F71: 24 | G71: 24 | H71: 23 | I71: 0.11 | J71: 4 | K71: 0.31 | L71: 0 | M71: 0.04 | N71: 0 | O71: 22 | P71: 36.4
A72: 00:01:09 | B72: 00:57:54 | C72: 400 | D72: 400 | E72: 23 | F72: 24 | G72: 24 | H72: 23 | I72: 0.11 | J72: 4 | K72: 0.31 | L72: 0 | M72: 0.04 | N72: 0 | O72: 22 | P72: 36.41
A73: 00:01:10 | B73: 00:57:55 | C73: 400 | D73: 400 | E73: 23 | F73: 24 | G73: 24 | H73: 23 | I73: 0.11 | J73: 4 | K73: 0.46 | L73: 0 | M73: 0.03 | N73: 0 | O73: 22 | P73: 36.41
A74: 00:01:11 | B74: 00:57:56 | C74: 400 | D74: 400 | E74: 23 | F74: 24 | G74: 24 | H74: 23 | I74: 0.11 | J74: 4 | K74: 0.46 | L74: 0 | M74: 0.03 | N74: 0 | O74: 22 | P74: 36.42
A75: 00:01:12 | B75: 00:57:57 | C75: 400 | D75: 400 | E75: 23 | F75: 24 | G75: 24 | H75: 23 | I75: 0.11 | J75: 4 | K75: 0.46 | L75: 0 | M75: 0.04 | N75: 0 | O75: 22 | P75: 36.42
A76: 00:01:13 | B76: 00:57:58 | C76: 400 | D76: 400 | E76: 23 | F76: 24 | G76: 24 | H76: 23 | I76: 0.11 | J76: 4 | K76: 0.1 | L76: 0 | M76: 0.04 | N76: 0 | O76: 22 | P76: 36.42
A77: 00:01:14 | B77: 00:57:59 | C77: 400 | D77: 400 | E77: 23 | F77: 24 | G77: 24 | H77: 23 | I77: 0.11 | J77: 4 | K77: 0.1 | L77: 0 | M77: 0.04 | N77: 0 | O77: 22 | P77: 36.42
A78: 00:01:15 | B78: 00:58:00 | C78: 400 | D78: 400 | E78: 23 | F78: 24 | G78: 24 | H78: 23 | I78: 0.11 | J78: 4 | K78: 0.1 | L78: 0 | M78: 0.04 | N78: 0 | O78: 22 | P78: 36.43
A79: 00:01:16 | B79: 00:58:01 | C79: 400 | D79: 400 | E79: 23 | F79: 24 | G79: 24 | H79: 23 | I79: 0.11 | J79: 4 | K79: 0.1 | L79: 0 | M79: 0.04 | N79: 0 | O79: 22 | P79: 36.43
A80: 00:01:17 | B80: 00:58:02 | C80: 400 | D80: 400 | E80: 23 | F80: 24 | G80: 24 | H80: 23 | I80: 0.11 | J80: 4 | K80: 0.25 | L80: 0 | M80: 0.04 | N80: 0 | O80: 22 | P80: 36.43
A81: 00:01:18 | B81: 00:58:03 | C81: 400 | D81: 400 | E81: 23 | F81: 24 | G81: 24 | H81: 23 | I81: 0.11 | J81: 4 | K81: 0.25 | L81: 0 | M81: 0.04 | N81: 0 | O81: 22 | P81: 36.43
A82: 00:01:19 | B82: 00:58:04 | C82: 400 | D82: 400 | E82: 23 | F82: 24 | G82: 24 | H82: 23 | I82: 0.11 | J82: 4 | K82: 0.25 | L82: 0 | M82: 0.04 | N82: 0 | O82: 22 | P82: 36.43
A83: 00:01:20 | B83: 00:58:05 | C83: 400 | D83: 400 | E83: 23 | F83: 24 | G83: 24 | H83: 23 | I83: 0.11 | J83: 4 | K83: 0.09 | L83: 0 | M83: 0.04 | N83: 0 | O83: 22 | P83: 36.44
A84: 00:01:21 | B84: 00:58:06 | C84: 400 | D84: 400 | E84: 23 | F84: 24 | G84: 24 | H84: 23 | I84: 0.11 | J84: 4 | K84: 0.09 | L84: 0 | M84: 0.04 | N84: 0 | O84: 22 | P84: 36.44
A85: 00:01:22 | B85: 00:58:07 | C85: 400 | D85: 400 | E85: 23 | F85: 24 | G85: 24 | H85: 23 | I85: 0.11 | J85: 4 | K85: 0.09 | L85: 0 | M85: 0.04 | N85: 0 | O85: 22 | P85: 36.44
A86: 00:01:23 | B86: 00:58:08 | C86: 400 | D86: 400 | E86: 23 | F86: 24 | G86: 24 | H86: 23 | I86: 0.11 | J86: 4 | K86: 0.09 | L86: 0 | M86: 0.04 | N86: 0 | O86: 22 | P86: 36.44
A87: 00:01:24 | B87: 00:58:09 | C87: 400 | D87: 400 | E87: 23 | F87: 24 | G87: 24 | H87: 23 | I87: 0.11 | J87: 4 | K87: 0.1 | L87: 0 | M87: 0.04 | N87: 0 | O87: 22 | P87: 36.44
A88: 00:01:25 | B88: 00:58:10 | C88: 400 | D88: 400 | E88: 23 | F88: 24 | G88: 24 | H88: 23 | I88: 0.11 | J88: 4 | K88: 0.1 | L88: 0 | M88: 0.04 | N88: 0 | O88: 22 | P88: 36.45
A89: 00:01:26 | B89: 00:58:11 | C89: 400 | D89: 400 | E89: 23 | F89: 24 | G89: 24 | H89: 23 | I89: 0.11 | J89: 4 | K89: 0.1 | L89: 0 | M89: 0.04 | N89: 0 | O89: 22 | P89: 36.45
A90: 00:01:27 | B90: 00:58:12 | C90: 400 | D90: 400 | E90: 23 | F90: 24 | G90: 24 | H90: 23 | I90: 0.11 | J90: 4 | K90: 0.14 | L90: 0 | M90: 0.04 | N90: 0 | O90: 22 | P90: 36.45
A91: 00:01:28 | B91: 00:58:13 | C91: 400 | D91: 400 | E91: 23 | F91: 24 | G91: 24 | H91: 23 | I91: 0.11 | J91: 4 | K91: 0.14 | L91: 0 | M91: 0.04 | N91: 0 | O91: 22 | P91: 36.45
A92: 00:01:29 | B92: 00:58:14 | C92: 400 | D92: 400 | E92: 23 | F92: 24 | G92: 24 | H92: 23 | I92: 0.11 | J92: 4 | K92: 0.14 | L92: 0 | M92: 0.04 | N92: 0 | O92: 22 | P92: 36.45
A93: 00:01:30 | B93: 00:58:15 | C93: 400 | D93: 400 | E93: 23 | F93: 24 | G93: 24 | H93: 23 | I93: 0.11 | J93: 4 | K93: 0.14 | L93: 0 | M93: 0.04 | N93: 0 | O93: 22 | P93: 36.45
A94: 00:01:31 | B94: 00:58:16 | C94: 400 | D94: 400 | E94: 23 | F94: 24 | G94: 24 | H94: 23 | I94: 0.11 | J94: 4 | K94: 0.02 | L94: 0 | M94: 0.04 | N94: 0 | O94: 22 | P94: 36.45
A95: 00:01:32 | B95: 00:58:17 | C95: 400 | D95: 400 | E95: 23 | F95: 24 | G95: 24 | H95: 23 | I95: 0.11 | J95: 4 | K95: 0.02 | L95: 0 | M95: 0.03 | N95: 0 | O95: 22 | P95: 36.45
A96: 00:01:33 | B96: 00:58:18 | C96: 400 | D96: 400 | E96: 23 | F96: 24 | G96: 24 | H96: 23 | I96: 0.11 | J96: 4 | K96: 0.02 | L96: 0 | M96: 0.04 | N96: 0 | O96: 22 | P96: 36.46
A97: 00:01:34 | B97: 00:58:19 | C97: 400 | D97: 400 | E97: 23 | F97: 24 | G97: 24 | H97: 23 | I97: 0.11 | J97: 4 | K97: 0.07 | L97: 0 | M97: 0.04 | N97: 0 | O97: 22 | P97: 36.46
A98: 00:01:35 | B98: 00:58:20 | C98: 400 | D98: 400 | E98: 23 | F98: 24 | G98: 24 | H98: 23 | I98: 0.11 | J98: 4 | K98: 0.07 | L98: 0 | M98: 0.03 | N98: 0 | O98: 22 | P98: 36.46
A99: 00:01:36 | B99: 00:58:21 | C99: 400 | D99: 400 | E99: 23 | F99: 24 | G99: 24 | H99: 23 | I99: 0.11 | J99: 4 | K99: 0.07 | L99: 0 | M99: 0.04 | N99: 0 | O99: 22 | P99: 36.46
A100: 00:01:37 | B100: 00:58:22 | C100: 400 | D100: 400 | E100: 23 | F100: 24 | G100: 24 | H100: 23 | I100: 0.11 | J100: 4 | K100: 0.06 | L100: 0 | M100: 0.04 | N100: 0 | O100: 22 | P100: 36.46
A101: 00:01:38 | B101: 00:58:23 | C101: 400 | D101: 400 | E101: 23 | F101: 24 | G101: 24 | H101: 23 | I101: 0.11 | J101: 4 | K101: 0.06 | L101: 0 | M101: 0.04 | N101: 0 | O101: 22 | P101: 36.46
A102: 00:01:39 | B102: 00:58:24 | C102: 400 | D102: 400 | E102: 23 | F102: 24 | G102: 24 | H102: 23 | I102: 0.11 | J102: 4 | K102: 0.06 | L102: 0 | M102: 0.04 | N102: 0 | O102: 22 | P102: 36.46
A103: 00:01:40 | B103: 00:58:25 | C103: 400 | D103: 400 | E103: 23 | F103: 24 | G103: 24 | H103: 23 | I103: 0.11 | J103: 4 | K103: 0.03 | L103: 0 | M103: 0.04 | N103: 0 | O103: 22 | P103: 36.46
A104: 00:01:41 | B104: 00:58:26 | C104: 400 | D104: 400 | E104: 23 | F104: 24 | G104: 24 | H104: 23 | I104: 0.11 | J104: 4 | K104: 0.03 | L104: 0 | M104: 0.04 | N104: 0 | O104: 22 | P104: 36.46
A105: 00:01:42 | B105: 00:58:27 | C105: 400 | D105: 400 | E105: 23 | F105: 24 | G105: 24 | H105: 23 | I105: 0.11 | J105: 4 | K105: 0.03 | L105: 0 | M105: 0.04 | N105: 0 | O105: 22 | P105: 36.46
A106: 00:01:43 | B106: 00:58:28 | C106: 400 | D106: 400 | E106: 23 | F106: 24 | G106: 24 | H106: 23 | I106: 0.11 | J106: 4 | K106: 0.03 | L106: 0 | M106: 0.04 | N106: 0 | O106: 22 | P106: 36.46
A107: 00:01:44 | B107: 00:58:29 | C107: 400 | D107: 400 | E107: 23 | F107: 24 | G107: 24 | H107: 23 | I107: 0.11 | J107: 4 | K107: 0.04 | L107: 0 | M107: 0.04 | N107: 0 | O107: 22 | P107: 36.46
A108: 00:01:45 | B108: 00:58:30 | C108: 400 | D108: 400 | E108: 23 | F108: 24 | G108: 24 | H108: 23 | I108: 0.11 | J108: 4 | K108: 0.04 | L108: 0 | M108: 0.04 | N108: 0 | O108: 22 | P108: 36.46
A109: 00:01:46 | B109: 00:58:31 | C109: 400 | D109: 400 | E109: 23 | F109: 24 | G109: 24 | H109: 23 | I109: 0.11 | J109: 4 | K109: 0.04 | L109: 0 | M109: 0.03 | N109: 0 | O109: 22 | P109: 36.47
A110: 00:01:47 | B110: 00:58:32 | C110: 400 | D110: 400 | E110: 23 | F110: 24 | G110: 24 | H110: 23 | I110: 0.11 | J110: 4 | K110: 0.01 | L110: 0 | M110: 0.04 | N110: 0 | O110: 22 | P110: 36.47
A111: 00:01:48 | B111: 00:58:33 | C111: 400 | D111: 400 | E111: 23 | F111: 24 | G111: 24 | H111: 23 | I111: 0.11 | J111: 4 | K111: 0.01 | L111: 0 | M111: 0.03 | N111: 0 | O111: 22 | P111: 36.47
A112: 00:01:49 | B112: 00:58:34 | C112: 400 | D112: 400 | E112: 23 | F112: 24 | G112: 24 | H112: 23 | I112: 0.11 | J112: 4 | K112: 0.01 | L112: 0 | M112: 0.03 | N112: 0 | O112: 22 | P112: 36.47
A113: 00:01:50 | B113: 00:58:35 | C113: 400 | D113: 400 | E113: 23 | F113: 24 | G113: 24 | H113: 23 | I113: 0.11 | J113: 4 | K113: 0.01 | L113: 0 | M113: 0.04 | N113: 0 | O113: 22 | P113: 36.47
A114: 00:01:51 | B114: 00:58:36 | C114: 400 | D114: 400 | E114: 23 | F114: 24 | G114: 24 | H114: 23 | I114: 0.11 | J114: 4 | K114: 0.03 | L114: 0 | M114: 0.04 | N114: 0 | O114: 22 | P114: 36.47
A115: 00:01:52 | B115: 00:58:37 | C115: 400 | D115: 400 | E115: 23 | F115: 24 | G115: 24 | H115: 23 | I115: 0.11 | J115: 4 | K115: 0.03 | L115: 0 | M115: 0.04 | N115: 0 | O115: 22 | P115: 36.47
A116: 00:01:53 | B116: 00:58:38 | C116: 400 | D116: 400 | E116: 23 | F116: 24 | G116: 24 | H116: 23 | I116: 0.11 | J116: 4 | K116: 0.03 | L116: 0 | M116: 0.03 | N116: 0 | O116: 22 | P116: 36.47
A117: 00:01:54 | B117: 00:58:39 | C117: 400 | D117: 400 | E117: 23 | F117: 24 | G117: 24 | H117: 23 | I117: 0.11 | J117: 4 | K117: 0.01 | L117: 0 | M117: 0.04 | N117: 0 | O117: 22 | P117: 36.47
A118: 00:01:55 | B118: 00:58:40 | C118: 400 | D118: 400 | E118: 23 | F118: 24 | G118: 24 | H118: 23 | I118: 0.11 | J118: 4 | K118: 0.01 | L118: 0 | M118: 0.04 | N118: 0 | O118: 22 | P118: 36.47
A119: 00:01:56 | B119: 00:58:41 | C119: 400 | D119: 400 | E119: 23 | F119: 24 | G119: 24 | H119: 23 | I119: 0.11 | J119: 4 | K119: 0.01 | L119: 0 | M119: 0.04 | N119: 0 | O119: 22 | P119: 36.47
A120: 00:01:57 | B120: 00:58:42 | C120: 400 | D120: 400 | E120: 23 | F120: 24 | G120: 24 | H120: 23 | I120: 0.11 | J120: 4 | K120: 0.04 | L120: 0 | M120: 0.04 | N120: 0 | O120: 22 | P120: 36.47
A121: 00:01:58 | B121: 00:58:43 | C121: 400 | D121: 400 | E121: 23 | F121: 24 | G121: 24 | H121: 23 | I121: 0.11 | J121: 4 | K121: 0.04 | L121: 0 | M121: 0.04 | N121: 0 | O121: 22 | P121: 36.47
A122: 00:01:59 | B122: 00:58:44 | C122: 400 | D122: 400 | E122: 23 | F122: 24 | G122: 24 | H122: 23 | I122: 0.11 | J122: 4 | K122: 0.04 | L122: 0 | M122: 0.03 | N122: 0 | O122: 22 | P122: 36.47
A123: 00:02:00 | B123: 00:58:45 | C123: 400 | D123: 400 | E123: 23 | F123: 24 | G123: 24 | H123: 23 | I123: 0.11 | J123: 4 | K123: 0 | L123: 0 | M123: 0.04 | N123: 0 | O123: 22 | P123: 36.47
A124: 00:02:01 | B124: 00:58:46 | C124: 400 | D124: 400 | E124: 23 | F124: 24 | G124: 24 | H124: 23 | I124: 0.11 | J124: 4 | K124: 0 | L124: 0 | M124: 0.04 | N124: 0 | O124: 22 | P124: 36.47
A125: 00:02:02 | B125: 00:58:47 | C125: 400 | D125: 400 | E125: 23 | F125: 24 | G125: 24 | H125: 23 | I125: 0.11 | J125: 4 | K125: 0 | L125: 0 | M125: 0.04 | N125: 0 | O125: 22 | P125: 36.47
A126: 00:02:03 | B126: 00:58:48 | C126: 400 | D126: 400 | E126: 23 | F126: 24 | G126: 24 | H126: 23 | I126: 0.11 | J126: 4 | K126: 0 | L126: 0 | M126: 0.04 | N126: 0 | O126: 22 | P126: 36.47
A127: 00:02:04 | B127: 00:58:49 | C127: 400 | D127: 400 | E127: 23 | F127: 24 | G127: 24 | H127: 23 | I127: 0.11 | J127: 4 | K127: 0.01 | L127: 0 | M127: 0.04 | N127: 0 | O127: 22 | P127: 36.47
A128: 00:02:05 | B128: 00:58:50 | C128: 400 | D128: 400 | E128: 23 | F128: 24 | G128: 24 | H128: 23 | I128: 0.11 | J128: 4 | K128: 0.01 | L128: 0 | M128: 0.04 | N128: 0 | O128: 22 | P128: 36.47
A129: 00:02:06 | B129: 00:58:51 | C129: 400 | D129: 400 | E129: 23 | F129: 24 | G129: 24 | H129: 23 | I129: 0.11 | J129: 4 | K129: 0.01 | L129: 0 | M129: 0.04 | N129: 0 | O129: 22 | P129: 36.47
A130: 00:02:07 | B130: 00:58:52 | C130: 400 | D130: 400 | E130: 23 | F130: 24 | G130: 24 | H130: 23 | I130: 0.11 | J130: 4 | K130: 0.02 | L130: 0 | M130: 0.04 | N130: 0 | O130: 22 | P130: 36.47
A131: 00:02:08 | B131: 00:58:53 | C131: 400 | D131: 400 | E131: 23 | F131: 24 | G131: 24 | H131: 23 | I131: 0.11 | J131: 4 | K131: 0.02 | L131: 0 | M131: 0.04 | N131: 0 | O131: 22 | P131: 36.48
A132: 00:02:09 | B132: 00:58:54 | C132: 400 | D132: 400 | E132: 23 | F132: 24 | G132: 24 | H132: 23 | I132: 0.11 | J132: 4 | K132: 0.02 | L132: 0 | M132: 0.04 | N132: 0 | O132: 22 | P132: 36.48
A133: 00:02:10 | B133: 00:58:55 | C133: 400 | D133: 400 | E133: 23 | F133: 24 | G133: 24 | H133: 23 | I133: 0.11 | J133: 4 | K133: 0.03 | L133: 0 | M133: 0.03 | N133: 0 | O133: 22 | P133: 36.48
A134: 00:02:11 | B134: 00:58:56 | C134: 400 | D134: 400 | E134: 23 | F134: 24 | G134: 24 | H134: 23 | I134: 0.11 | J134: 4 | K134: 0.03 | L134: 0 | M134: 0.03 | N134: 0 | O134: 22 | P134: 36.48
A135: 00:02:12 | B135: 00:58:57 | C135: 400 | D135: 400 | E135: 23 | F135: 24 | G135: 24 | H135: 23 | I135: 0.11 | J135: 4 | K135: 0.03 | L135: 0 | M135: 0.04 | N135: 0 | O135: 22 | P135: 36.48
A136: 00:02:13 | B136: 00:58:58 | C136: 400 | D136: 400 | E136: 23 | F136: 24 | G136: 24 | H136: 23 | I136: 0.11 | J136: 4 | K136: 0.03 | L136: 0 | M136: 0.04 | N136: 0 | O136: 22 | P136: 36.48
A137: 00:02:14 | B137: 00:58:59 | C137: 400 | D137: 400 | E137: 23 | F137: 24 | G137: 24 | H137: 23 | I137: 0.11 | J137: 4 | K137: 0.01 | L137: 0 | M137: 0.04 | N137: 0 | O137: 22 | P137: 36.48
A138: 00:02:15 | B138: 00:59:00 | C138: 400 | D138: 400 | E138: 23 | F138: 24 | G138: 24 | H138: 23 | I138: 0.11 | J138: 4 | K138: 0.01 | L138: 0 | M138: 0.04 | N138: 0 | O138: 22 | P138: 36.48
A139: 00:02:16 | B139: 00:59:01 | C139: 400 | D139: 400 | E139: 23 | F139: 24 | G139: 24 | H139: 23 | I139: 0.11 | J139: 4 | K139: 0.01 | L139: 0 | M139: 0.04 | N139: 0 | O139: 22 | P139: 36.48
A140: 00:02:17 | B140: 00:59:02 | C140: 400 | D140: 400 | E140: 23 | F140: 24 | G140: 24 | H140: 23 | I140: 0.11 | J140: 4 | K140: 0 | L140: 0 | M140: 0.04 | N140: 0 | O140: 22 | P140: 36.48
A141: 00:02:18 | B141: 00:59:03 | C141: 400 | D141: 400 | E141: 23 | F141: 24 | G141: 24 | H141: 23 | I141: 0.11 | J141: 4 | K141: 0 | L141: 0 | M141: 0.04 | N141: 0 | O141: 22 | P141: 36.48
A142: 00:02:19 | B142: 00:59:04 | C142: 400 | D142: 400 | E142: 23 | F142: 24 | G142: 24 | H142: 23 | I142: 0.11 | J142: 4 | K142: 0 | L142: 0 | M142: 0.04 | N142: 0 | O142: 22 | P142: 36.48
A143: 00:02:20 | B143: 00:59:05 | C143: 400 | D143: 400 | E143: 23 | F143: 24 | G143: 24 | H143: 23 | I143: 0.11 | J143: 4 | K143: 0.04 | L143: 0 | M143: 0.03 | N143: 0 | O143: 22 | P143: 36.48
A144: 00:02:21 | B144: 00:59:06 | C144: 400 | D144: 400 | E144: 23 | F144: 24 | G144: 24 | H144: 23 | I144: 0.11 | J144: 4 | K144: 0.04 | L144: 0 | M144: 0.03 | N144: 0 | O144: 22 | P144: 36.48
A145: 00:02:22 | B145: 00:59:07 | C145: 400 | D145: 400 | E145: 23 | F145: 24 | G145: 24 | H145: 23 | I145: 0.11 | J145: 4 | K145: 0.04 | L145: 0 | M145: 0.04 | N145: 0 | O145: 22 | P145: 36.48
A146: 00:02:23 | B146: 00:59:08 | C146: 400 | D146: 400 | E146: 23 | F146: 24 | G146: 24 | H146: 23 | I146: 0.11 | J146: 4 | K146: 0.04 | L146: 0 | M146: 0.03 | N146: 0 | O146: 22 | P146: 36.48
A147: 00:02:24 | B147: 00:59:09 | C147: 400 | D147: 400 | E147: 23 | F147: 24 | G147: 24 | H147: 23 | I147: 0.11 | J147: 4 | K147: 0 | L147: 0 | M147: 0.04 | N147: 0 | O147: 22 | P147: 36.48
A148: 00:02:25 | B148: 00:59:10 | C148: 400 | D148: 400 | E148: 23 | F148: 24 | G148: 24 | H148: 23 | I148: 0.11 | J148: 4 | K148: 0 | L148: 0 | M148: 0.03 | N148: 0 | O148: 22 | P148: 36.48
A149: 00:02:26 | B149: 00:59:11 | C149: 400 | D149: 400 | E149: 23 | F149: 24 | G149: 24 | H149: 23 | I149: 0.11 | J149: 4 | K149: 0 | L149: 0 | M149: 0.03 | N149: 0 | O149: 22 | P149: 36.48
A150: 00:02:27 | B150: 00:59:12 | C150: 400 | D150: 400 | E150: 23 | F150: 24 | G150: 24 | H150: 23 | I150: 0.11 | J150: 4 | K150: 0 | L150: 0 | M150: 0.04 | N150: 0 | O150: 22 | P150: 36.48
A151: 00:02:28 | B151: 00:59:13 | C151: 400 | D151: 400 | E151: 23 | F151: 24 | G151: 24 | H151: 23 | I151: 0.11 | J151: 4 | K151: 0 | L151: 0 | M151: 0.04 | N151: 0 | O151: 22 | P151: 36.48
A152: 00:02:29 | B152: 00:59:14 | C152: 400 | D152: 400 | E152: 23 | F152: 24 | G152: 24 | H152: 23 | I152: 0.11 | J152: 4 | K152: 0 | L152: 0 | M152: 0.04 | N152: 0 | O152: 22 | P152: 36.48
A153: 00:02:30 | B153: 00:59:15 | C153: 400 | D153: 400 | E153: 23 | F153: 24 | G153: 24 | H153: 23 | I153: 0.11 | J153: 4 | K153: 0 | L153: 0 | M153: 0.04 | N153: 0 | O153: 22 | P153: 36.48
A154: 00:02:31 | B154: 00:59:16 | C154: 400 | D154: 400 | E154: 23 | F154: 24 | G154: 24 | H154: 23 | I154: 0.11 | J154: 4 | K154: 0.03 | L154: 0 | M154: 0.04 | N154: 0 | O154: 22 | P154: 36.48
A155: 00:02:32 | B155: 00:59:17 | C155: 400 | D155: 400 | E155: 23 | F155: 24 | G155: 24 | H155: 23 | I155: 0.11 | J155: 4 | K155: 0.03 | L155: 0 | M155: 0.04 | N155: 0 | O155: 22 | P155: 36.48
A156: 00:02:33 | B156: 00:59:18 | C156: 400 | D156: 400 | E156: 23 | F156: 24 | G156: 24 | H156: 23 | I156: 0.11 | J156: 4 | K156: 0.03 | L156: 0 | M156: 0.04 | N156: 0 | O156: 22 | P156: 36.48
A157: 00:02:34 | B157: 00:59:19 | C157: 400 | D157: 400 | E157: 23 | F157: 24 | G157: 24 | H157: 23 | I157: 0.11 | J157: 4 | K157: 0 | L157: 0 | M157: 0.04 | N157: 0 | O157: 22 | P157: 36.48
A158: 00:02:35 | B158: 00:59:20 | C158: 400 | D158: 400 | E158: 23 | F158: 24 | G158: 24 | H158: 23 | I158: 0.11 | J158: 4 | K158: 0 | L158: 0 | M158: 0.04 | N158: 0 | O158: 22 | P158: 36.48
A159: 00:02:36 | B159: 00:59:21 | C159: 400 | D159: 400 | E159: 23 | F159: 24 | G159: 24 | H159: 23 | I159: 0.11 | J159: 4 | K159: 0 | L159: 0 | M159: 0.04 | N159: 0 | O159: 22 | P159: 36.48
A160: 00:02:37 | B160: 00:59:22 | C160: 400 | D160: 400 | E160: 23 | F160: 24 | G160: 24 | H160: 23 | I160: 0.11 | J160: 4 | K160: 0.02 | L160: 0 | M160: 0.04 | N160: 0 | O160: 22 | P160: 36.48
A161: 00:02:38 | B161: 00:59:23 | C161: 400 | D161: 400 | E161: 23 | F161: 24 | G161: 24 | H161: 23 | I161: 0.11 | J161: 4 | K161: 0.02 | L161: 0 | M161: 0.04 | N161: 0 | O161: 22 | P161: 36.48
A162: 00:02:39 | B162: 00:59:24 | C162: 400 | D162: 400 | E162: 23 | F162: 24 | G162: 24 | H162: 23 | I162: 0.11 | J162: 4 | K162: 0.02 | L162: 0 | M162: 0.03 | N162: 0 | O162: 22 | P162: 36.48
A163: 00:02:40 | B163: 00:59:25 | C163: 400 | D163: 400 | E163: 23 | F163: 24 | G163: 24 | H163: 23 | I163: 0.11 | J163: 4 | K163: -0.02 | L163: 0 | M163: 0.04 | N163: 0 | O163: 22 | P163: 36.48
A164: 00:02:41 | B164: 00:59:26 | C164: 400 | D164: 400 | E164: 23 | F164: 24 | G164: 24 | H164: 23 | I164: 0.11 | J164: 4 | K164: -0.02 | L164: 0 | M164: 0.04 | N164: 0 | O164: 22 | P164: 36.48
A165: 00:02:42 | B165: 00:59:27 | C165: 400 | D165: 400 | E165: 23 | F165: 24 | G165: 24 | H165: 23 | I165: 0.11 | J165: 4 | K165: -0.02 | L165: 0 | M165: 0.04 | N165: 0 | O165: 22 | P165: 36.48 | Q165: =P165-36.48 -> 0
A166: 00:02:43 | B166: 00:59:28 | C166: 400 | D166: 400 | E166: 23 | F166: 24 | G166: 24 | H166: 23 | I166: 0.11 | J166: 4 | K166: -0.02 | L166: 5.34 | M166: 0.56 | N166: 2.9904 | O166: 22 | P166: 36.48 | Q166: 0
A167: 00:02:44 | B167: 00:59:29 | C167: 400 | D167: 400 | E167: 23 | F167: 24 | G167: 24 | H167: 23 | I167: 0.11 | J167: 4 | K167: 0.01 | L167: 5.34 | M167: 0.56 | N167: 2.9904 | O167: 22 | P167: 36.48 | Q167: 0
A168: 00:02:45 | B168: 00:59:30 | C168: 400 | D168: 400 | E168: 23 | F168: 25 | G168: 24 | H168: 24 | I168: 0.11 | J168: 4 | K168: 0.01 | L168: 5.86 | M168: 0.92 | N168: 5.3912 | O168: 22 | P168: 36.48 | Q168: 0
A169: 00:02:46 | B169: 00:59:31 | C169: 400 | D169: 400 | E169: 24 | F169: 25 | G169: 24 | H169: 24 | I169: 0.11 | J169: 4 | K169: 0.01 | L169: 5.86 | M169: 0.95 | N169: 5.567 | O169: 22 | P169: 36.48 | Q169: 0
A170: 00:02:47 | B170: 00:59:32 | C170: 400 | D170: 400 | E170: 24 | F170: 25 | G170: 24 | H170: 24 | I170: 0.11 | J170: 4 | K170: -0.01 | L170: 5.86 | M170: 0.95 | N170: 5.567 | O170: 22 | P170: 36.48 | Q170: 0
A171: 00:02:48 | B171: 00:59:33 | C171: 400 | D171: 400 | E171: 24 | F171: 25 | G171: 24 | H171: 24 | I171: 0.11 | J171: 4 | K171: -0.01 | L171: 5.85 | M171: 0.98 | N171: 5.733 | O171: 22 | P171: 36.48 | Q171: 0
A172: 00:02:49 | B172: 00:59:34 | C172: 400 | D172: 400 | E172: 24 | F172: 25 | G172: 24 | H172: 24 | I172: 0.11 | J172: 4 | K172: -0.01 | L172: 5.85 | M172: 0.98 | N172: 5.733 | O172: 22 | P172: 36.48 | Q172: 0
A173: 00:02:50 | B173: 00:59:35 | C173: 400 | D173: 400 | E173: 24 | F173: 25 | G173: 24 | H173: 24 | I173: 0.11 | J173: 4 | K173: -0.01 | L173: 5.86 | M173: 1 | N173: 5.86 | O173: 22 | P173: 36.48 | Q173: 0
A174: 00:02:51 | B174: 00:59:36 | C174: 400 | D174: 400 | E174: 24 | F174: 25 | G174: 24 | H174: 24 | I174: 0.11 | J174: 4 | K174: 0 | L174: 5.85 | M174: 1.03 | N174: 6.0255 | O174: 22 | P174: 36.48 | Q174: 0
A175: 00:02:52 | B175: 00:59:37 | C175: 400 | D175: 400 | E175: 24 | F175: 25 | G175: 24 | H175: 24 | I175: 0.11 | J175: 4 | K175: 0 | L175: 5.82 | M175: 1.03 | N175: 5.9946 | O175: 22 | P175: 36.48 | Q175: 0
A176: 00:02:53 | B176: 00:59:38 | C176: 400 | D176: 400 | E176: 24 | F176: 25 | G176: 24 | H176: 24 | I176: 0.11 | J176: 4 | K176: 0 | L176: 5.83 | M176: 1.04 | N176: 6.0632 | O176: 22 | P176: 36.48 | Q176: 0
A177: 00:02:54 | B177: 00:59:39 | C177: 400 | D177: 400 | E177: 24 | F177: 25 | G177: 24 | H177: 24 | I177: 0.11 | J177: 4 | K177: 0 | L177: 5.82 | M177: 1.05 | N177: 6.111 | O177: 22 | P177: 36.48 | Q177: 0
A178: 00:02:55 | B178: 00:59:40 | C178: 400 | D178: 400 | E178: 24 | F178: 25 | G178: 24 | H178: 24 | I178: 0.11 | J178: 4 | K178: 0 | L178: 5.84 | M178: 1.06 | N178: 6.1904 | O178: 22 | P178: 36.48 | Q178: 0
A179: 00:02:56 | B179: 00:59:41 | C179: 400 | D179: 400 | E179: 24 | F179: 25 | G179: 24 | H179: 24 | I179: 0.11 | J179: 4 | K179: 0 | L179: 5.85 | M179: 1.07 | N179: 6.2595 | O179: 22 | P179: 36.48 | Q179: 0
A180: 00:02:57 | B180: 00:59:42 | C180: 400 | D180: 400 | E180: 24 | F180: 25 | G180: 24 | H180: 24 | I180: 0.11 | J180: 4 | K180: 0.02 | L180: 5.81 | M180: 1.08 | N180: 6.2748 | O180: 22 | P180: 36.48 | Q180: 0
A181: 00:02:58 | B181: 00:59:43 | C181: 400 | D181: 400 | E181: 24 | F181: 26 | G181: 24 | H181: 24 | I181: 0.11 | J181: 4 | K181: 0.02 | L181: 5.85 | M181: 1.09 | N181: 6.3765 | O181: 22 | P181: 36.48 | Q181: 0
A182: 00:02:59 | B182: 00:59:44 | C182: 400 | D182: 400 | E182: 25 | F182: 26 | G182: 24 | H182: 24 | I182: 0.11 | J182: 4 | K182: 0.02 | L182: 5.81 | M182: 1.1 | N182: 6.391 | O182: 22 | P182: 36.48 | Q182: 0
A183: 00:03:00 | B183: 00:59:45 | C183: 400 | D183: 400 | E183: 25 | F183: 26 | G183: 24 | H183: 24 | I183: 0.12 | J183: 4 | K183: 0.02 | L183: 5.81 | M183: 1.11 | N183: 6.4491 | O183: 22 | P183: 36.48 | Q183: 0
A184: 00:03:01 | B184: 00:59:46 | C184: 400 | D184: 400 | E184: 25 | F184: 26 | G184: 24 | H184: 24 | I184: 0.12 | J184: 4 | K184: 0 | L184: 5.8 | M184: 1.11 | N184: 6.438 | O184: 22 | P184: 36.48 | Q184: 0
A185: 00:03:02 | B185: 00:59:47 | C185: 400 | D185: 400 | E185: 25 | F185: 26 | G185: 24 | H185: 24 | I185: 0.12 | J185: 4 | K185: 0 | L185: 5.79 | M185: 1.12 | N185: 6.4848 | O185: 22 | P185: 36.48 | Q185: 0
A186: 00:03:03 | B186: 00:59:48 | C186: 400 | D186: 400 | E186: 25 | F186: 26 | G186: 24 | H186: 24 | I186: 0.12 | J186: 4 | K186: 0 | L186: 5.76 | M186: 1.13 | N186: 6.5088 | O186: 22 | P186: 36.49 | Q186: 0.01
A187: 00:03:04 | B187: 00:59:49 | C187: 400 | D187: 400 | E187: 26 | F187: 26 | G187: 24 | H187: 24 | I187: 0.12 | J187: 4 | K187: 0.02 | L187: 5.77 | M187: 1.13 | N187: 6.5201 | O187: 22 | P187: 36.49 | Q187: 0.01
A188: 00:03:05 | B188: 00:59:50 | C188: 400 | D188: 400 | E188: 26 | F188: 26 | G188: 24 | H188: 24 | I188: 0.12 | J188: 4 | K188: 0.02 | L188: 5.81 | M188: 1.14 | N188: 6.6234 | O188: 22 | P188: 36.49 | Q188: 0.01
A189: 00:03:06 | B189: 00:59:51 | C189: 400 | D189: 400 | E189: 26 | F189: 26 | G189: 24 | H189: 24 | I189: 0.12 | J189: 4 | K189: 0.02 | L189: 5.78 | M189: 1.15 | N189: 6.647 | O189: 22 | P189: 36.5 | Q189: 0.02
A190: 00:03:07 | B190: 00:59:52 | C190: 400 | D190: 400 | E190: 26 | F190: 26 | G190: 25 | H190: 24 | I190: 0.12 | J190: 4 | K190: 0.5 | L190: 5.78 | M190: 1.15 | N190: 6.647 | O190: 22 | P190: 36.51 | Q190: 0.03
A191: 00:03:08 | B191: 00:59:53 | C191: 400 | D191: 400 | E191: 27 | F191: 26 | G191: 25 | H191: 24 | I191: 0.12 | J191: 4 | K191: 0.5 | L191: 5.79 | M191: 1.16 | N191: 6.7164 | O191: 22 | P191: 36.52 | Q191: 0.04
A192: 00:03:09 | B192: 00:59:54 | C192: 400 | D192: 400 | E192: 27 | F192: 26 | G192: 25 | H192: 24 | I192: 0.12 | J192: 4 | K192: 0.5 | L192: 5.79 | M192: 1.17 | N192: 6.7743 | O192: 22 | P192: 36.53 | Q192: 0.05
A193: 00:03:10 | B193: 00:59:55 | C193: 413 | D193: 400 | E193: 27 | F193: 27 | G193: 25 | H193: 24 | I193: 0.12 | J193: 4 | K193: 0.5 | L193: 5.79 | M193: 1.17 | N193: 6.7743 | O193: 22 | P193: 36.53 | Q193: 0.05
A194: 00:03:11 | B194: 00:59:56 | C194: 427 | D194: 400 | E194: 28 | F194: 27 | G194: 25 | H194: 24 | I194: 0.12 | J194: 4 | K194: 0.31 | L194: 5.79 | M194: 1.18 | N194: 6.8322 | O194: 22 | P194: 36.54 | Q194: 0.06
A195: 00:03:12 | B195: 00:59:57 | C195: 427 | D195: 400 | E195: 29 | F195: 27 | G195: 25 | H195: 24 | I195: 0.12 | J195: 4 | K195: 0.31 | L195: 5.76 | M195: 1.18 | N195: 6.7968 | O195: 22 | P195: 36.54 | Q195: 0.06
A196: 00:03:13 | B196: 00:59:58 | C196: 441 | D196: 400 | E196: 29 | F196: 28 | G196: 25 | H196: 24 | I196: 0.13 | J196: 4 | K196: 0.31 | L196: 5.77 | M196: 1.18 | N196: 6.8086 | O196: 22 | P196: 36.55 | Q196: 0.07
A197: 00:03:14 | B197: 00:59:59 | C197: 441 | D197: 404 | E197: 29 | F197: 28 | G197: 26 | H197: 24 | I197: 0.13 | J197: 4 | K197: 0.31 | L197: 5.76 | M197: 1.19 | N197: 6.8544 | O197: 22 | P197: 36.55 | Q197: 0.07
A198: 00:03:15 | B198: 01:00:00 | C198: 455 | D198: 412 | E198: 29 | F198: 27 | G198: 26 | H198: 23 | I198: 0.13 | J198: 4 | K198: 0.39 | L198: 3.05 | M198: 0.55 | N198: 1.6775 | O198: 22 | P198: 36.59 | Q198: 0.11
A199: 00:03:16 | B199: 01:00:01 | C199: 458 | D199: 412 | E199: 29 | F199: 27 | G199: 25 | H199: 23 | I199: 0.13 | J199: 4 | K199: 0.39 | L199: 3.84 | M199: 0.43 | N199: 1.6512 | O199: 22 | P199: 36.62 | Q199: 0.14
A200: 00:03:17 | B200: 01:00:02 | C200: 454 | D200: 424 | E200: 29 | F200: 27 | G200: 26 | H200: 23 | I200: 0.13 | J200: 4 | K200: 0.39 | L200: 0.01 | M200: 0.04 | N200: 0.0004 | O200: 22 | P200: 36.68 | Q200: 0.2
... 1538 more rows

Sheet 1469
A1: P.Zeit | C1: Pyrometer | D1: Pyrometer B | E1: MTC1 | F1: MTC2 | G1: MTC3 | H1: MTC4 | I1: Press. abs 1 | J1: Press. abs 2 | K1: Speed | L1: U RMS | M1: I RMS | N1: Power | O1: Force | P1: Abs Piston Tra. | Q1: Rel Piston Tra.
A2: 00:00:00 | B2: 00:57:19 | C2: 400 | D2: 400 | E2: 25 | F2: 26 | G2: 25 | H2: 25 | I2: 0.11 | J2: 4 | K2: -0.06 | L2: 0 | M2: 0.03 | N2: =L2*M2 -> 0 | O2: 5 | P2: 33.82
A3: 00:00:01 | B3: 00:57:20 | C3: 400 | D3: 400 | E3: 25 | F3: 26 | G3: 25 | H3: 25 | I3: 0.11 | J3: 4 | K3: -0.04 | L3: 0 | M3: 0.03 | N3: 0 | O3: 5 | P3: 33.82
A4: 00:00:02 | B4: 00:57:21 | C4: 400 | D4: 400 | E4: 25 | F4: 26 | G4: 25 | H4: 25 | I4: 0.11 | J4: 4 | K4: -0.04 | L4: 0 | M4: 0.03 | N4: 0 | O4: 5 | P4: 33.9
A5: 00:00:03 | B5: 00:57:22 | C5: 400 | D5: 400 | E5: 25 | F5: 26 | G5: 25 | H5: 25 | I5: 0.11 | J5: 4 | K5: -0.04 | L5: 0 | M5: 0.04 | N5: 0 | O5: 6 | P5: 34.08
A6: 00:00:04 | B6: 00:57:23 | C6: 400 | D6: 400 | E6: 25 | F6: 26 | G6: 25 | H6: 25 | I6: 0.11 | J6: 4 | K6: -0.04 | L6: 0 | M6: 0.03 | N6: 0 | O6: 6 | P6: 34.1
A7: 00:00:05 | B7: 00:57:24 | C7: 400 | D7: 400 | E7: 25 | F7: 26 | G7: 25 | H7: 25 | I7: 0.11 | J7: 4 | K7: 5.35 | L7: 0 | M7: 0.03 | N7: 0 | O7: 6 | P7: 34.11
A8: 00:00:06 | B8: 00:57:25 | C8: 400 | D8: 400 | E8: 25 | F8: 26 | G8: 25 | H8: 25 | I8: 0.11 | J8: 4 | K8: 5.35 | L8: 0 | M8: 0.03 | N8: 0 | O8: 7 | P8: 34.13
A9: 00:00:07 | B9: 00:57:26 | C9: 400 | D9: 400 | E9: 25 | F9: 26 | G9: 25 | H9: 25 | I9: 0.11 | J9: 4 | K9: 5.35 | L9: 0 | M9: 0.03 | N9: 0 | O9: 7 | P9: 34.18
A10: 00:00:08 | B10: 00:57:27 | C10: 400 | D10: 400 | E10: 25 | F10: 26 | G10: 25 | H10: 25 | I10: 0.11 | J10: 4 | K10: 1.5 | L10: 0 | M10: 0.03 | N10: 0 | O10: 7 | P10: 34.21
A11: 00:00:09 | B11: 00:57:28 | C11: 400 | D11: 400 | E11: 25 | F11: 26 | G11: 25 | H11: 25 | I11: 0.11 | J11: 4 | K11: 1.5 | L11: 0 | M11: 0.03 | N11: 0 | O11: 7 | P11: 34.32
A12: 00:00:10 | B12: 00:57:29 | C12: 400 | D12: 400 | E12: 25 | F12: 26 | G12: 25 | H12: 25 | I12: 0.11 | J12: 4 | K12: 1.5 | L12: 0 | M12: 0.03 | N12: 0 | O12: 8 | P12: 34.48
A13: 00:00:11 | B13: 00:57:30 | C13: 400 | D13: 400 | E13: 25 | F13: 26 | G13: 25 | H13: 25 | I13: 0.11 | J13: 4 | K13: 6.57 | L13: 0 | M13: 0.03 | N13: 0 | O13: 8 | P13: 34.57
A14: 00:00:12 | B14: 00:57:31 | C14: 400 | D14: 400 | E14: 25 | F14: 26 | G14: 25 | H14: 25 | I14: 0.11 | J14: 4 | K14: 6.57 | L14: 0 | M14: 0.03 | N14: 0 | O14: 8 | P14: 34.73
A15: 00:00:13 | B15: 00:57:32 | C15: 400 | D15: 400 | E15: 25 | F15: 26 | G15: 25 | H15: 25 | I15: 0.11 | J15: 4 | K15: 6.57 | L15: 0 | M15: 0.03 | N15: 0 | O15: 9 | P15: 34.86
A16: 00:00:14 | B16: 00:57:33 | C16: 400 | D16: 400 | E16: 25 | F16: 26 | G16: 25 | H16: 25 | I16: 0.11 | J16: 4 | K16: 6.57 | L16: 0 | M16: 0.03 | N16: 0 | O16: 9 | P16: 34.94
A17: 00:00:15 | B17: 00:57:34 | C17: 400 | D17: 400 | E17: 25 | F17: 26 | G17: 25 | H17: 25 | I17: 0.11 | J17: 4 | K17: 7.26 | L17: 0 | M17: 0.03 | N17: 0 | O17: 9 | P17: 35.07
A18: 00:00:16 | B18: 00:57:35 | C18: 400 | D18: 400 | E18: 25 | F18: 26 | G18: 25 | H18: 25 | I18: 0.11 | J18: 4 | K18: 7.26 | L18: 0 | M18: 0.03 | N18: 0 | O18: 9 | P18: 35.12
A19: 00:00:17 | B19: 00:57:36 | C19: 400 | D19: 400 | E19: 25 | F19: 26 | G19: 25 | H19: 25 | I19: 0.11 | J19: 4 | K19: 7.26 | L19: 0 | M19: 0.03 | N19: 0 | O19: 10 | P19: 35.23
A20: 00:00:18 | B20: 00:57:37 | C20: 400 | D20: 400 | E20: 25 | F20: 26 | G20: 25 | H20: 25 | I20: 0.11 | J20: 4 | K20: 5.6 | L20: 0 | M20: 0.03 | N20: 0 | O20: 10 | P20: 35.33
A21: 00:00:19 | B21: 00:57:38 | C21: 400 | D21: 400 | E21: 25 | F21: 26 | G21: 25 | H21: 25 | I21: 0.11 | J21: 4 | K21: 5.6 | L21: 0 | M21: 0.03 | N21: 0 | O21: 10 | P21: 35.38
A22: 00:00:20 | B22: 00:57:39 | C22: 400 | D22: 400 | E22: 25 | F22: 26 | G22: 25 | H22: 25 | I22: 0.11 | J22: 4 | K22: 5.6 | L22: 0 | M22: 0.03 | N22: 0 | O22: 11 | P22: 35.46
A23: 00:00:21 | B23: 00:57:40 | C23: 400 | D23: 400 | E23: 25 | F23: 26 | G23: 25 | H23: 25 | I23: 0.11 | J23: 4 | K23: 4.25 | L23: 0 | M23: 0.03 | N23: 0 | O23: 11 | P23: 35.53
A24: 00:00:22 | B24: 00:57:41 | C24: 400 | D24: 400 | E24: 25 | F24: 26 | G24: 25 | H24: 25 | I24: 0.11 | J24: 4 | K24: 4.25 | L24: 0 | M24: 0.03 | N24: 0 | O24: 11 | P24: 35.56
A25: 00:00:23 | B25: 00:57:42 | C25: 400 | D25: 400 | E25: 25 | F25: 26 | G25: 25 | H25: 25 | I25: 0.11 | J25: 4 | K25: 4.25 | L25: 0 | M25: 0.03 | N25: 0 | O25: 11 | P25: 35.63
A26: 00:00:24 | B26: 00:57:43 | C26: 400 | D26: 400 | E26: 25 | F26: 26 | G26: 25 | H26: 25 | I26: 0.11 | J26: 4 | K26: 3.35 | L26: 0 | M26: 0.03 | N26: 0 | O26: 12 | P26: 35.7
A27: 00:00:25 | B27: 00:57:44 | C27: 400 | D27: 400 | E27: 25 | F27: 26 | G27: 25 | H27: 25 | I27: 0.11 | J27: 4 | K27: 3.35 | L27: 0 | M27: 0.03 | N27: 0 | O27: 12 | P27: 35.74
A28: 00:00:26 | B28: 00:57:45 | C28: 400 | D28: 400 | E28: 25 | F28: 26 | G28: 25 | H28: 25 | I28: 0.11 | J28: 4 | K28: 3.35 | L28: 0 | M28: 0.03 | N28: 0 | O28: 12 | P28: 35.82
A29: 00:00:27 | B29: 00:57:46 | C29: 400 | D29: 400 | E29: 25 | F29: 26 | G29: 25 | H29: 25 | I29: 0.11 | J29: 4 | K29: 3.35 | L29: 0 | M29: 0.03 | N29: 0 | O29: 13 | P29: 35.92
A30: 00:00:28 | B30: 00:57:47 | C30: 400 | D30: 400 | E30: 25 | F30: 26 | G30: 25 | H30: 25 | I30: 0.11 | J30: 4 | K30: 4.34 | L30: 0 | M30: 0.03 | N30: 0 | O30: 13 | P30: 35.97
A31: 00:00:29 | B31: 00:57:48 | C31: 400 | D31: 400 | E31: 25 | F31: 26 | G31: 25 | H31: 25 | I31: 0.11 | J31: 4 | K31: 4.34 | L31: 0 | M31: 0.03 | N31: 0 | O31: 13 | P31: 36.06
A32: 00:00:30 | B32: 00:57:49 | C32: 400 | D32: 400 | E32: 25 | F32: 26 | G32: 25 | H32: 25 | I32: 0.11 | J32: 4 | K32: 4.34 | L32: 0 | M32: 0.03 | N32: 0 | O32: 13 | P32: 36.11
A33: 00:00:31 | B33: 00:57:50 | C33: 400 | D33: 400 | E33: 25 | F33: 26 | G33: 25 | H33: 25 | I33: 0.11 | J33: 4 | K33: 4.81 | L33: 0 | M33: 0.03 | N33: 0 | O33: 14 | P33: 36.2
A34: 00:00:32 | B34: 00:57:51 | C34: 400 | D34: 400 | E34: 25 | F34: 26 | G34: 25 | H34: 25 | I34: 0.11 | J34: 4 | K34: 4.81 | L34: 0 | M34: 0.03 | N34: 0 | O34: 14 | P34: 36.3
A35: 00:00:33 | B35: 00:57:52 | C35: 400 | D35: 400 | E35: 25 | F35: 26 | G35: 25 | H35: 25 | I35: 0.11 | J35: 4 | K35: 4.81 | L35: 0 | M35: 0.03 | N35: 0 | O35: 14 | P35: 36.34
A36: 00:00:34 | B36: 00:57:53 | C36: 400 | D36: 400 | E36: 25 | F36: 26 | G36: 25 | H36: 25 | I36: 0.11 | J36: 4 | K36: 4.81 | L36: 0 | M36: 0.03 | N36: 0 | O36: 15 | P36: 36.4
A37: 00:00:35 | B37: 00:57:54 | C37: 400 | D37: 400 | E37: 25 | F37: 26 | G37: 25 | H37: 25 | I37: 0.11 | J37: 4 | K37: 3.67 | L37: 0 | M37: 0.03 | N37: 0 | O37: 15 | P37: 36.44
A38: 00:00:36 | B38: 00:57:55 | C38: 400 | D38: 400 | E38: 25 | F38: 26 | G38: 25 | H38: 25 | I38: 0.11 | J38: 4 | K38: 3.67 | L38: 0 | M38: 0.03 | N38: 0 | O38: 15 | P38: 36.47
A39: 00:00:37 | B39: 00:57:56 | C39: 400 | D39: 400 | E39: 25 | F39: 26 | G39: 25 | H39: 25 | I39: 0.11 | J39: 4 | K39: 3.67 | L39: 0 | M39: 0.03 | N39: 0 | O39: 15 | P39: 36.53
A40: 00:00:38 | B40: 00:57:57 | C40: 400 | D40: 400 | E40: 25 | F40: 26 | G40: 25 | H40: 25 | I40: 0.11 | J40: 4 | K40: 2.86 | L40: 0 | M40: 0.03 | N40: 0 | O40: 16 | P40: 36.61
A41: 00:00:39 | B41: 00:57:58 | C41: 400 | D41: 400 | E41: 25 | F41: 26 | G41: 25 | H41: 25 | I41: 0.11 | J41: 4 | K41: 2.86 | L41: 0 | M41: 0.03 | N41: 0 | O41: 16 | P41: 36.65
A42: 00:00:40 | B42: 00:57:59 | C42: 400 | D42: 400 | E42: 25 | F42: 26 | G42: 25 | H42: 25 | I42: 0.11 | J42: 4 | K42: 2.86 | L42: 0 | M42: 0.03 | N42: 0 | O42: 16 | P42: 36.75
A43: 00:00:41 | B43: 00:58:00 | C43: 400 | D43: 400 | E43: 25 | F43: 26 | G43: 25 | H43: 25 | I43: 0.11 | J43: 4 | K43: 4.24 | L43: 0 | M43: 0.03 | N43: 0 | O43: 17 | P43: 36.82
A44: 00:00:42 | B44: 00:58:01 | C44: 400 | D44: 400 | E44: 25 | F44: 26 | G44: 25 | H44: 25 | I44: 0.11 | J44: 4 | K44: 4.24 | L44: 0 | M44: 0.03 | N44: 0 | O44: 17 | P44: 36.85
A45: 00:00:43 | B45: 00:58:02 | C45: 400 | D45: 400 | E45: 25 | F45: 26 | G45: 25 | H45: 25 | I45: 0.11 | J45: 4 | K45: 4.24 | L45: 0 | M45: 0.03 | N45: 0 | O45: 17 | P45: 36.91
A46: 00:00:44 | B46: 00:58:03 | C46: 400 | D46: 400 | E46: 25 | F46: 26 | G46: 25 | H46: 25 | I46: 0.11 | J46: 4 | K46: 4.24 | L46: 0 | M46: 0.03 | N46: 0 | O46: 17 | P46: 36.93
A47: 00:00:45 | B47: 00:58:04 | C47: 400 | D47: 400 | E47: 25 | F47: 26 | G47: 25 | H47: 25 | I47: 0.11 | J47: 4 | K47: 2.64 | L47: 0 | M47: 0.03 | N47: 0 | O47: 18 | P47: 36.98
A48: 00:00:46 | B48: 00:58:05 | C48: 400 | D48: 400 | E48: 25 | F48: 26 | G48: 25 | H48: 25 | I48: 0.11 | J48: 4 | K48: 2.64 | L48: 0 | M48: 0.03 | N48: 0 | O48: 18 | P48: 37.03
A49: 00:00:47 | B49: 00:58:06 | C49: 400 | D49: 400 | E49: 25 | F49: 26 | G49: 25 | H49: 25 | I49: 0.11 | J49: 4 | K49: 2.64 | L49: 0 | M49: 0.03 | N49: 0 | O49: 18 | P49: 37.07
A50: 00:00:48 | B50: 00:58:07 | C50: 400 | D50: 400 | E50: 25 | F50: 26 | G50: 25 | H50: 25 | I50: 0.11 | J50: 4 | K50: 3.1 | L50: 0 | M50: 0.03 | N50: 0 | O50: 18 | P50: 37.15
A51: 00:00:49 | B51: 00:58:08 | C51: 400 | D51: 400 | E51: 25 | F51: 26 | G51: 25 | H51: 25 | I51: 0.11 | J51: 4 | K51: 3.1 | L51: 0 | M51: 0.03 | N51: 0 | O51: 19 | P51: 37.22
A52: 00:00:50 | B52: 00:58:09 | C52: 400 | D52: 400 | E52: 25 | F52: 26 | G52: 25 | H52: 25 | I52: 0.11 | J52: 4 | K52: 3.1 | L52: 0 | M52: 0.03 | N52: 0 | O52: 19 | P52: 37.26
A53: 00:00:51 | B53: 00:58:10 | C53: 400 | D53: 400 | E53: 25 | F53: 26 | G53: 25 | H53: 25 | I53: 0.11 | J53: 4 | K53: 3.35 | L53: 0 | M53: 0.03 | N53: 0 | O53: 19 | P53: 37.31
A54: 00:00:52 | B54: 00:58:11 | C54: 400 | D54: 400 | E54: 25 | F54: 26 | G54: 25 | H54: 25 | I54: 0.11 | J54: 4 | K54: 3.35 | L54: 0 | M54: 0.03 | N54: 0 | O54: 20 | P54: 37.35
A55: 00:00:53 | B55: 00:58:12 | C55: 400 | D55: 400 | E55: 25 | F55: 26 | G55: 25 | H55: 25 | I55: 0.11 | J55: 4 | K55: 3.35 | L55: 0 | M55: 0.03 | N55: 0 | O55: 20 | P55: 37.37
A56: 00:00:54 | B56: 00:58:13 | C56: 400 | D56: 400 | E56: 25 | F56: 26 | G56: 25 | H56: 25 | I56: 0.11 | J56: 4 | K56: 3.35 | L56: 0 | M56: 0.03 | N56: 0 | O56: 20 | P56: 37.42
A57: 00:00:55 | B57: 00:58:14 | C57: 400 | D57: 400 | E57: 25 | F57: 26 | G57: 25 | H57: 25 | I57: 0.11 | J57: 4 | K57: 2.1 | L57: 0 | M57: 0.03 | N57: 0 | O57: 20 | P57: 37.45
A58: 00:00:56 | B58: 00:58:15 | C58: 400 | D58: 400 | E58: 25 | F58: 26 | G58: 25 | H58: 25 | I58: 0.11 | J58: 4 | K58: 2.1 | L58: 0 | M58: 0.03 | N58: 0 | O58: 21 | P58: 37.51
A59: 00:00:57 | B59: 00:58:16 | C59: 400 | D59: 400 | E59: 25 | F59: 26 | G59: 25 | H59: 25 | I59: 0.11 | J59: 4 | K59: 2.1 | L59: 0 | M59: 0.03 | N59: 0 | O59: 21 | P59: 37.57
A60: 00:00:58 | B60: 00:58:17 | C60: 400 | D60: 400 | E60: 25 | F60: 26 | G60: 25 | H60: 25 | I60: 0.11 | J60: 4 | K60: 3.01 | L60: 0 | M60: 0.03 | N60: 0 | O60: 21 | P60: 37.6
A61: 00:00:59 | B61: 00:58:18 | C61: 400 | D61: 400 | E61: 25 | F61: 26 | G61: 25 | H61: 25 | I61: 0.11 | J61: 4 | K61: 3.01 | L61: 0 | M61: 0.03 | N61: 0 | O61: 22 | P61: 37.69
A62: 00:01:00 | B62: 00:58:19 | C62: 400 | D62: 400 | E62: 25 | F62: 26 | G62: 25 | H62: 25 | I62: 0.11 | J62: 4 | K62: 3.01 | L62: 0 | M62: 0.03 | N62: 0 | O62: 22 | P62: 37.76
A63: 00:01:01 | B63: 00:58:20 | C63: 400 | D63: 400 | E63: 25 | F63: 26 | G63: 25 | H63: 25 | I63: 0.11 | J63: 4 | K63: 3.01 | L63: 0 | M63: 0.03 | N63: 0 | O63: 22 | P63: 37.79
A64: 00:01:02 | B64: 00:58:21 | C64: 400 | D64: 400 | E64: 25 | F64: 26 | G64: 25 | H64: 25 | I64: 0.11 | J64: 4 | K64: 3.57 | L64: 0 | M64: 0.03 | N64: 0 | O64: 22 | P64: 37.83
A65: 00:01:03 | B65: 00:58:22 | C65: 400 | D65: 400 | E65: 25 | F65: 26 | G65: 25 | H65: 25 | I65: 0.11 | J65: 4 | K65: 3.57 | L65: 0 | M65: 0.03 | N65: 0 | O65: 22 | P65: 37.85
A66: 00:01:04 | B66: 00:58:23 | C66: 400 | D66: 400 | E66: 25 | F66: 26 | G66: 25 | H66: 25 | I66: 0.11 | J66: 4 | K66: 3.57 | L66: 0 | M66: 0.03 | N66: 0 | O66: 22 | P66: 37.86
A67: 00:01:05 | B67: 00:58:24 | C67: 400 | D67: 400 | E67: 25 | F67: 26 | G67: 25 | H67: 25 | I67: 0.11 | J67: 4 | K67: 1.03 | L67: 0 | M67: 0.03 | N67: 0 | O67: 22 | P67: 37.86
A68: 00:01:06 | B68: 00:58:25 | C68: 400 | D68: 400 | E68: 25 | F68: 26 | G68: 25 | H68: 25 | I68: 0.11 | J68: 4 | K68: 1.03 | L68: 0 | M68: 0.03 | N68: 0 | O68: 22 | P68: 37.87
A69: 00:01:07 | B69: 00:58:26 | C69: 400 | D69: 400 | E69: 25 | F69: 26 | G69: 25 | H69: 25 | I69: 0.11 | J69: 4 | K69: 1.03 | L69: 0 | M69: 0.03 | N69: 0 | O69: 22 | P69: 37.87
A70: 00:01:08 | B70: 00:58:27 | C70: 400 | D70: 400 | E70: 25 | F70: 26 | G70: 25 | H70: 25 | I70: 0.11 | J70: 4 | K70: 0.18 | L70: 0 | M70: 0.03 | N70: 0 | O70: 22 | P70: 37.87
A71: 00:01:09 | B71: 00:58:28 | C71: 400 | D71: 400 | E71: 25 | F71: 26 | G71: 25 | H71: 25 | I71: 0.11 | J71: 4 | K71: 0.18 | L71: 0 | M71: 0.03 | N71: 0 | O71: 22 | P71: 37.87
A72: 00:01:10 | B72: 00:58:29 | C72: 400 | D72: 400 | E72: 25 | F72: 26 | G72: 25 | H72: 25 | I72: 0.11 | J72: 4 | K72: 0.18 | L72: 0 | M72: 0.03 | N72: 0 | O72: 22 | P72: 37.88
A73: 00:01:11 | B73: 00:58:30 | C73: 400 | D73: 400 | E73: 25 | F73: 26 | G73: 25 | H73: 25 | I73: 0.11 | J73: 4 | K73: 0.39 | L73: 0 | M73: 0.03 | N73: 0 | O73: 22 | P73: 37.89
A74: 00:01:12 | B74: 00:58:31 | C74: 400 | D74: 400 | E74: 25 | F74: 26 | G74: 25 | H74: 25 | I74: 0.11 | J74: 4 | K74: 0.39 | L74: 0 | M74: 0.03 | N74: 0 | O74: 22 | P74: 37.9
A75: 00:01:13 | B75: 00:58:32 | C75: 400 | D75: 400 | E75: 25 | F75: 26 | G75: 25 | H75: 25 | I75: 0.11 | J75: 4 | K75: 0.39 | L75: 0 | M75: 0.03 | N75: 0 | O75: 22 | P75: 37.91
A76: 00:01:14 | B76: 00:58:33 | C76: 400 | D76: 400 | E76: 25 | F76: 26 | G76: 25 | H76: 25 | I76: 0.11 | J76: 4 | K76: 0.39 | L76: 0 | M76: 0.03 | N76: 0 | O76: 22 | P76: 37.91
A77: 00:01:15 | B77: 00:58:34 | C77: 400 | D77: 400 | E77: 25 | F77: 26 | G77: 25 | H77: 25 | I77: 0.11 | J77: 4 | K77: 0.41 | L77: 0 | M77: 0.03 | N77: 0 | O77: 22 | P77: 37.92
A78: 00:01:16 | B78: 00:58:35 | C78: 400 | D78: 400 | E78: 25 | F78: 26 | G78: 25 | H78: 25 | I78: 0.11 | J78: 4 | K78: 0.41 | L78: 0 | M78: 0.03 | N78: 0 | O78: 22 | P78: 37.92
A79: 00:01:17 | B79: 00:58:36 | C79: 400 | D79: 400 | E79: 25 | F79: 26 | G79: 25 | H79: 25 | I79: 0.11 | J79: 4 | K79: 0.41 | L79: 0 | M79: 0.03 | N79: 0 | O79: 22 | P79: 37.92
A80: 00:01:18 | B80: 00:58:37 | C80: 400 | D80: 400 | E80: 25 | F80: 26 | G80: 25 | H80: 25 | I80: 0.11 | J80: 4 | K80: 0.04 | L80: 0 | M80: 0.03 | N80: 0 | O80: 22 | P80: 37.92
A81: 00:01:19 | B81: 00:58:38 | C81: 400 | D81: 400 | E81: 25 | F81: 26 | G81: 25 | H81: 25 | I81: 0.11 | J81: 4 | K81: 0.04 | L81: 0 | M81: 0.03 | N81: 0 | O81: 22 | P81: 37.92
A82: 00:01:20 | B82: 00:58:39 | C82: 400 | D82: 400 | E82: 25 | F82: 26 | G82: 25 | H82: 25 | I82: 0.11 | J82: 4 | K82: 0.04 | L82: 0 | M82: 0.03 | N82: 0 | O82: 22 | P82: 37.92
A83: 00:01:21 | B83: 00:58:40 | C83: 400 | D83: 400 | E83: 25 | F83: 26 | G83: 25 | H83: 25 | I83: 0.11 | J83: 4 | K83: 0.04 | L83: 0 | M83: 0.03 | N83: 0 | O83: 22 | P83: 37.92
A84: 00:01:22 | B84: 00:58:41 | C84: 400 | D84: 400 | E84: 25 | F84: 26 | G84: 25 | H84: 25 | I84: 0.11 | J84: 4 | K84: 0.03 | L84: 0 | M84: 0.03 | N84: 0 | O84: 22 | P84: 37.92
A85: 00:01:23 | B85: 00:58:42 | C85: 400 | D85: 400 | E85: 25 | F85: 26 | G85: 25 | H85: 25 | I85: 0.11 | J85: 4 | K85: 0.03 | L85: 0 | M85: 0.03 | N85: 0 | O85: 22 | P85: 37.92
A86: 00:01:24 | B86: 00:58:43 | C86: 400 | D86: 400 | E86: 25 | F86: 26 | G86: 25 | H86: 25 | I86: 0.11 | J86: 4 | K86: 0.03 | L86: 0 | M86: 0.03 | N86: 0 | O86: 22 | P86: 37.93
A87: 00:01:25 | B87: 00:58:44 | C87: 400 | D87: 400 | E87: 25 | F87: 26 | G87: 25 | H87: 25 | I87: 0.11 | J87: 4 | K87: 0.14 | L87: 0 | M87: 0.03 | N87: 0 | O87: 22 | P87: 37.93
A88: 00:01:26 | B88: 00:58:45 | C88: 400 | D88: 400 | E88: 25 | F88: 26 | G88: 25 | H88: 25 | I88: 0.11 | J88: 4 | K88: 0.14 | L88: 0 | M88: 0.03 | N88: 0 | O88: 22 | P88: 37.93
A89: 00:01:27 | B89: 00:58:46 | C89: 400 | D89: 400 | E89: 25 | F89: 26 | G89: 25 | H89: 25 | I89: 0.11 | J89: 4 | K89: 0.14 | L89: 0 | M89: 0.03 | N89: 0 | O89: 22 | P89: 37.94
A90: 00:01:28 | B90: 00:58:47 | C90: 400 | D90: 400 | E90: 25 | F90: 26 | G90: 25 | H90: 25 | I90: 0.11 | J90: 4 | K90: 0.17 | L90: 0 | M90: 0.03 | N90: 0 | O90: 22 | P90: 37.94
A91: 00:01:29 | B91: 00:58:48 | C91: 400 | D91: 400 | E91: 25 | F91: 26 | G91: 25 | H91: 25 | I91: 0.11 | J91: 4 | K91: 0.17 | L91: 0 | M91: 0.03 | N91: 0 | O91: 22 | P91: 37.94
A92: 00:01:30 | B92: 00:58:49 | C92: 400 | D92: 400 | E92: 25 | F92: 26 | G92: 25 | H92: 25 | I92: 0.11 | J92: 4 | K92: 0.17 | L92: 0 | M92: 0.03 | N92: 0 | O92: 22 | P92: 37.94
A93: 00:01:31 | B93: 00:58:50 | C93: 400 | D93: 400 | E93: 25 | F93: 26 | G93: 25 | H93: 25 | I93: 0.11 | J93: 4 | K93: 0.17 | L93: 0 | M93: 0.03 | N93: 0 | O93: 22 | P93: 37.94
A94: 00:01:32 | B94: 00:58:51 | C94: 400 | D94: 400 | E94: 25 | F94: 26 | G94: 25 | H94: 25 | I94: 0.11 | J94: 4 | K94: 0.04 | L94: 0 | M94: 0.03 | N94: 0 | O94: 22 | P94: 37.94
A95: 00:01:33 | B95: 00:58:52 | C95: 400 | D95: 400 | E95: 25 | F95: 26 | G95: 25 | H95: 25 | I95: 0.11 | J95: 4 | K95: 0.04 | L95: 0 | M95: 0.03 | N95: 0 | O95: 22 | P95: 37.94
A96: 00:01:34 | B96: 00:58:53 | C96: 400 | D96: 400 | E96: 25 | F96: 26 | G96: 25 | H96: 25 | I96: 0.11 | J96: 4 | K96: 0.04 | L96: 0 | M96: 0.03 | N96: 0 | O96: 22 | P96: 37.94
A97: 00:01:35 | B97: 00:58:54 | C97: 400 | D97: 400 | E97: 25 | F97: 26 | G97: 25 | H97: 25 | I97: 0.11 | J97: 4 | K97: 0.02 | L97: 0 | M97: 0.03 | N97: 0 | O97: 22 | P97: 37.94
A98: 00:01:36 | B98: 00:58:55 | C98: 400 | D98: 400 | E98: 25 | F98: 26 | G98: 25 | H98: 25 | I98: 0.11 | J98: 4 | K98: 0.02 | L98: 0 | M98: 0.03 | N98: 0 | O98: 22 | P98: 37.94
A99: 00:01:37 | B99: 00:58:56 | C99: 400 | D99: 400 | E99: 25 | F99: 26 | G99: 25 | H99: 25 | I99: 0.11 | J99: 4 | K99: 0.02 | L99: 0 | M99: 0.03 | N99: 0 | O99: 22 | P99: 37.94
A100: 00:01:38 | B100: 00:58:57 | C100: 400 | D100: 400 | E100: 25 | F100: 26 | G100: 25 | H100: 25 | I100: 0.11 | J100: 4 | K100: 0.02 | L100: 0 | M100: 0.03 | N100: 0 | O100: 22 | P100: 37.94
A101: 00:01:39 | B101: 00:58:58 | C101: 400 | D101: 400 | E101: 25 | F101: 26 | G101: 25 | H101: 25 | I101: 0.11 | J101: 4 | K101: 0.09 | L101: 0 | M101: 0.03 | N101: 0 | O101: 22 | P101: 37.95
A102: 00:01:40 | B102: 00:58:59 | C102: 400 | D102: 400 | E102: 25 | F102: 26 | G102: 25 | H102: 25 | I102: 0.11 | J102: 4 | K102: 0.09 | L102: 0 | M102: 0.03 | N102: 0 | O102: 22 | P102: 37.95
A103: 00:01:41 | B103: 00:59:00 | C103: 400 | D103: 400 | E103: 25 | F103: 26 | G103: 25 | H103: 25 | I103: 0.11 | J103: 4 | K103: 0.09 | L103: 0 | M103: 0.03 | N103: 0 | O103: 22 | P103: 37.95
A104: 00:01:42 | B104: 00:59:01 | C104: 400 | D104: 400 | E104: 25 | F104: 26 | G104: 25 | H104: 25 | I104: 0.11 | J104: 4 | K104: 0.06 | L104: 0 | M104: 0.03 | N104: 0 | O104: 22 | P104: 37.95
A105: 00:01:43 | B105: 00:59:02 | C105: 400 | D105: 400 | E105: 25 | F105: 26 | G105: 25 | H105: 25 | I105: 0.11 | J105: 4 | K105: 0.06 | L105: 0 | M105: 0.03 | N105: 0 | O105: 22 | P105: 37.95
A106: 00:01:44 | B106: 00:59:03 | C106: 400 | D106: 400 | E106: 25 | F106: 26 | G106: 25 | H106: 25 | I106: 0.11 | J106: 4 | K106: 0.06 | L106: 0 | M106: 0.03 | N106: 0 | O106: 22 | P106: 37.95
A107: 00:01:45 | B107: 00:59:04 | C107: 400 | D107: 400 | E107: 25 | F107: 26 | G107: 25 | H107: 25 | I107: 0.11 | J107: 4 | K107: 0.01 | L107: 0 | M107: 0.04 | N107: 0 | O107: 22 | P107: 37.95
A108: 00:01:46 | B108: 00:59:05 | C108: 400 | D108: 400 | E108: 25 | F108: 26 | G108: 25 | H108: 25 | I108: 0.11 | J108: 4 | K108: 0.01 | L108: 0 | M108: 0.04 | N108: 0 | O108: 22 | P108: 37.95
A109: 00:01:47 | B109: 00:59:06 | C109: 400 | D109: 400 | E109: 24 | F109: 26 | G109: 25 | H109: 25 | I109: 0.11 | J109: 4 | K109: 0.01 | L109: 0 | M109: 0.03 | N109: 0 | O109: 22 | P109: 37.95
A110: 00:01:48 | B110: 00:59:07 | C110: 400 | D110: 400 | E110: 24 | F110: 26 | G110: 25 | H110: 25 | I110: 0.11 | J110: 4 | K110: 0.01 | L110: 0 | M110: 0.03 | N110: 0 | O110: 22 | P110: 37.95
A111: 00:01:49 | B111: 00:59:08 | C111: 400 | D111: 400 | E111: 25 | F111: 26 | G111: 25 | H111: 25 | I111: 0.11 | J111: 4 | K111: 0.03 | L111: 0 | M111: 0.03 | N111: 0 | O111: 22 | P111: 37.95
A112: 00:01:50 | B112: 00:59:09 | C112: 400 | D112: 400 | E112: 25 | F112: 26 | G112: 25 | H112: 25 | I112: 0.11 | J112: 4 | K112: 0.03 | L112: 0 | M112: 0.03 | N112: 0 | O112: 22 | P112: 37.95
A113: 00:01:51 | B113: 00:59:10 | C113: 400 | D113: 400 | E113: 25 | F113: 26 | G113: 25 | H113: 25 | I113: 0.11 | J113: 4 | K113: 0.03 | L113: 0 | M113: 0.03 | N113: 0 | O113: 22 | P113: 37.95
A114: 00:01:52 | B114: 00:59:11 | C114: 400 | D114: 400 | E114: 24 | F114: 26 | G114: 25 | H114: 25 | I114: 0.11 | J114: 4 | K114: 0.1 | L114: 0 | M114: 0.03 | N114: 0 | O114: 22 | P114: 37.96
A115: 00:01:53 | B115: 00:59:12 | C115: 400 | D115: 400 | E115: 24 | F115: 26 | G115: 25 | H115: 25 | I115: 0.1 | J115: 4 | K115: 0.1 | L115: 0 | M115: 0.03 | N115: 0 | O115: 22 | P115: 37.96
A116: 00:01:54 | B116: 00:59:13 | C116: 400 | D116: 400 | E116: 24 | F116: 26 | G116: 25 | H116: 25 | I116: 0.1 | J116: 4 | K116: 0.1 | L116: 0 | M116: 0.03 | N116: 0 | O116: 22 | P116: 37.96
A117: 00:01:55 | B117: 00:59:14 | C117: 400 | D117: 400 | E117: 24 | F117: 26 | G117: 25 | H117: 25 | I117: 0.11 | J117: 4 | K117: 0.03 | L117: 0 | M117: 0.03 | N117: 0 | O117: 22 | P117: 37.96
A118: 00:01:56 | B118: 00:59:15 | C118: 400 | D118: 400 | E118: 24 | F118: 26 | G118: 25 | H118: 25 | I118: 0.1 | J118: 4 | K118: 0.03 | L118: 0 | M118: 0.03 | N118: 0 | O118: 22 | P118: 37.96
A119: 00:01:57 | B119: 00:59:16 | C119: 400 | D119: 400 | E119: 24 | F119: 26 | G119: 25 | H119: 25 | I119: 0.1 | J119: 4 | K119: 0.03 | L119: 0 | M119: 0.03 | N119: 0 | O119: 22 | P119: 37.96
A120: 00:01:58 | B120: 00:59:17 | C120: 400 | D120: 400 | E120: 24 | F120: 26 | G120: 25 | H120: 25 | I120: 0.1 | J120: 4 | K120: 0.03 | L120: 0 | M120: 0.03 | N120: 0 | O120: 22 | P120: 37.96
A121: 00:01:59 | B121: 00:59:18 | C121: 400 | D121: 400 | E121: 24 | F121: 26 | G121: 25 | H121: 25 | I121: 0.1 | J121: 4 | K121: -0.03 | L121: 0 | M121: 0.03 | N121: 0 | O121: 22 | P121: 37.96
A122: 00:02:00 | B122: 00:59:19 | C122: 400 | D122: 400 | E122: 24 | F122: 26 | G122: 25 | H122: 25 | I122: 0.1 | J122: 4 | K122: -0.03 | L122: 0 | M122: 0.03 | N122: 0 | O122: 22 | P122: 37.96
A123: 00:02:01 | B123: 00:59:20 | C123: 400 | D123: 400 | E123: 24 | F123: 26 | G123: 25 | H123: 25 | I123: 0.1 | J123: 4 | K123: -0.03 | L123: 0 | M123: 0.03 | N123: 0 | O123: 22 | P123: 37.96
A124: 00:02:02 | B124: 00:59:21 | C124: 400 | D124: 400 | E124: 24 | F124: 26 | G124: 25 | H124: 25 | I124: 0.1 | J124: 4 | K124: 0 | L124: 0 | M124: 0.03 | N124: 0 | O124: 22 | P124: 37.96
A125: 00:02:03 | B125: 00:59:22 | C125: 400 | D125: 400 | E125: 24 | F125: 26 | G125: 25 | H125: 25 | I125: 0.1 | J125: 4 | K125: 0 | L125: 0 | M125: 0.03 | N125: 0 | O125: 22 | P125: 37.96
A126: 00:02:04 | B126: 00:59:23 | C126: 400 | D126: 400 | E126: 24 | F126: 26 | G126: 25 | H126: 25 | I126: 0.1 | J126: 4 | K126: 0 | L126: 0 | M126: 0.03 | N126: 0 | O126: 22 | P126: 37.96
A127: 00:02:05 | B127: 00:59:24 | C127: 400 | D127: 400 | E127: 24 | F127: 26 | G127: 25 | H127: 25 | I127: 0.1 | J127: 4 | K127: 0 | L127: 0 | M127: 0.03 | N127: 0 | O127: 22 | P127: 37.96
A128: 00:02:06 | B128: 00:59:25 | C128: 400 | D128: 400 | E128: 24 | F128: 26 | G128: 25 | H128: 25 | I128: 0.1 | J128: 4 | K128: 0.02 | L128: 0 | M128: 0.03 | N128: 0 | O128: 22 | P128: 37.96
A129: 00:02:07 | B129: 00:59:26 | C129: 400 | D129: 400 | E129: 24 | F129: 26 | G129: 25 | H129: 25 | I129: 0.1 | J129: 4 | K129: 0.02 | L129: 0 | M129: 0.03 | N129: 0 | O129: 22 | P129: 37.96
A130: 00:02:08 | B130: 00:59:27 | C130: 400 | D130: 400 | E130: 24 | F130: 26 | G130: 25 | H130: 25 | I130: 0.1 | J130: 4 | K130: 0.02 | L130: 0 | M130: 0.03 | N130: 0 | O130: 22 | P130: 37.96
A131: 00:02:09 | B131: 00:59:28 | C131: 400 | D131: 400 | E131: 24 | F131: 26 | G131: 25 | H131: 25 | I131: 0.1 | J131: 4 | K131: 0 | L131: 0 | M131: 0.03 | N131: 0 | O131: 22 | P131: 37.96 | Q131: =P131-37.96 -> 0
A132: 00:02:10 | B132: 00:59:29 | C132: 400 | D132: 400 | E132: 25 | F132: 27 | G132: 26 | H132: 25 | I132: 0.1 | J132: 4 | K132: 0 | L132: 5.75 | M132: 0.79 | N132: 4.5425 | O132: 22 | P132: 37.96 | Q132: 0
A133: 00:02:11 | B133: 00:59:30 | C133: 400 | D133: 400 | E133: 25 | F133: 27 | G133: 26 | H133: 25 | I133: 0.1 | J133: 4 | K133: 0 | L133: 5.75 | M133: 0.92 | N133: 5.29 | O133: 22 | P133: 37.96 | Q133: 0
A134: 00:02:12 | B134: 00:59:31 | C134: 400 | D134: 400 | E134: 25 | F134: 27 | G134: 26 | H134: 26 | I134: 0.11 | J134: 4 | K134: -0.02 | L134: 5.83 | M134: 0.95 | N134: 5.5385 | O134: 22 | P134: 37.96 | Q134: 0
A135: 00:02:13 | B135: 00:59:32 | C135: 400 | D135: 400 | E135: 26 | F135: 27 | G135: 26 | H135: 26 | I135: 0.11 | J135: 4 | K135: -0.02 | L135: 5.83 | M135: 0.97 | N135: 5.6551 | O135: 22 | P135: 37.96 | Q135: 0
A136: 00:02:14 | B136: 00:59:33 | C136: 400 | D136: 400 | E136: 26 | F136: 27 | G136: 26 | H136: 26 | I136: 0.11 | J136: 4 | K136: -0.02 | L136: 5.83 | M136: 0.99 | N136: 5.7717 | O136: 22 | P136: 37.96 | Q136: 0
A137: 00:02:15 | B137: 00:59:34 | C137: 400 | D137: 400 | E137: 26 | F137: 27 | G137: 26 | H137: 26 | I137: 0.11 | J137: 4 | K137: 0 | L137: 5.86 | M137: 1.01 | N137: 5.9186 | O137: 22 | P137: 37.96 | Q137: 0
A138: 00:02:16 | B138: 00:59:35 | C138: 400 | D138: 400 | E138: 26 | F138: 27 | G138: 26 | H138: 26 | I138: 0.11 | J138: 4 | K138: 0 | L138: 5.86 | M138: 1.01 | N138: 5.9186 | O138: 22 | P138: 37.96 | Q138: 0
A139: 00:02:17 | B139: 00:59:36 | C139: 400 | D139: 400 | E139: 26 | F139: 27 | G139: 26 | H139: 26 | I139: 0.11 | J139: 4 | K139: 0 | L139: 5.82 | M139: 1.03 | N139: 5.9946 | O139: 22 | P139: 37.96 | Q139: 0
A140: 00:02:18 | B140: 00:59:37 | C140: 400 | D140: 400 | E140: 26 | F140: 27 | G140: 26 | H140: 26 | I140: 0.12 | J140: 4 | K140: 0 | L140: 5.78 | M140: 1.05 | N140: 6.069 | O140: 22 | P140: 37.96 | Q140: 0
A141: 00:02:19 | B141: 00:59:38 | C141: 400 | D141: 400 | E141: 26 | F141: 27 | G141: 26 | H141: 26 | I141: 0.12 | J141: 4 | K141: 0 | L141: 5.81 | M141: 1.05 | N141: 6.1005 | O141: 22 | P141: 37.96 | Q141: 0
A142: 00:02:20 | B142: 00:59:39 | C142: 400 | D142: 400 | E142: 26 | F142: 27 | G142: 26 | H142: 26 | I142: 0.12 | J142: 4 | K142: 0 | L142: 5.85 | M142: 1.06 | N142: 6.201 | O142: 22 | P142: 37.96 | Q142: 0
A143: 00:02:21 | B143: 00:59:40 | C143: 400 | D143: 400 | E143: 26 | F143: 27 | G143: 26 | H143: 26 | I143: 0.12 | J143: 4 | K143: 0 | L143: 5.8 | M143: 1.08 | N143: 6.264 | O143: 22 | P143: 37.96 | Q143: 0
A144: 00:02:22 | B144: 00:59:41 | C144: 400 | D144: 400 | E144: 26 | F144: 27 | G144: 26 | H144: 26 | I144: 0.12 | J144: 4 | K144: 0.03 | L144: 5.8 | M144: 1.08 | N144: 6.264 | O144: 22 | P144: 37.96 | Q144: 0
A145: 00:02:23 | B145: 00:59:42 | C145: 400 | D145: 400 | E145: 26 | F145: 27 | G145: 26 | H145: 26 | I145: 0.12 | J145: 4 | K145: 0.03 | L145: 5.8 | M145: 1.1 | N145: 6.38 | O145: 22 | P145: 37.96 | Q145: 0
A146: 00:02:24 | B146: 00:59:43 | C146: 400 | D146: 400 | E146: 26 | F146: 27 | G146: 26 | H146: 26 | I146: 0.12 | J146: 4 | K146: 0.03 | L146: 5.8 | M146: 1.11 | N146: 6.438 | O146: 22 | P146: 37.97 | Q146: 0.01
A147: 00:02:25 | B147: 00:59:44 | C147: 400 | D147: 400 | E147: 27 | F147: 27 | G147: 26 | H147: 26 | I147: 0.12 | J147: 4 | K147: 0.03 | L147: 5.8 | M147: 1.11 | N147: 6.438 | O147: 22 | P147: 37.98 | Q147: 0.02
A148: 00:02:26 | B148: 00:59:45 | C148: 400 | D148: 400 | E148: 27 | F148: 27 | G148: 26 | H148: 26 | I148: 0.12 | J148: 4 | K148: 0.26 | L148: 5.79 | M148: 1.12 | N148: 6.4848 | O148: 22 | P148: 37.98 | Q148: 0.02
A149: 00:02:27 | B149: 00:59:46 | C149: 400 | D149: 400 | E149: 27 | F149: 27 | G149: 26 | H149: 26 | I149: 0.12 | J149: 4 | K149: 0.26 | L149: 5.79 | M149: 1.13 | N149: 6.5427 | O149: 22 | P149: 37.98 | Q149: 0.02
A150: 00:02:28 | B150: 00:59:47 | C150: 400 | D150: 400 | E150: 27 | F150: 28 | G150: 26 | H150: 26 | I150: 0.12 | J150: 4 | K150: 0.26 | L150: 5.79 | M150: 1.14 | N150: 6.6006 | O150: 22 | P150: 37.99 | Q150: 0.03
A151: 00:02:29 | B151: 00:59:48 | C151: 400 | D151: 400 | E151: 27 | F151: 27 | G151: 27 | H151: 26 | I151: 0.12 | J151: 4 | K151: 0.23 | L151: 5.82 | M151: 1.14 | N151: 6.6348 | O151: 22 | P151: 37.99 | Q151: 0.03
A152: 00:02:30 | B152: 00:59:49 | C152: 400 | D152: 400 | E152: 27 | F152: 27 | G152: 27 | H152: 26 | I152: 0.13 | J152: 4 | K152: 0.23 | L152: 5.81 | M152: 1.15 | N152: 6.6815 | O152: 22 | P152: 37.99 | Q152: 0.03
A153: 00:02:31 | B153: 00:59:50 | C153: 400 | D153: 400 | E153: 28 | F153: 28 | G153: 27 | H153: 26 | I153: 0.13 | J153: 4 | K153: 0.23 | L153: 5.78 | M153: 1.16 | N153: 6.7048 | O153: 22 | P153: 37.99 | Q153: 0.03
A154: 00:02:32 | B154: 00:59:51 | C154: 400 | D154: 400 | E154: 29 | F154: 28 | G154: 26 | H154: 26 | I154: 0.13 | J154: 4 | K154: 0.08 | L154: 5.74 | M154: 1.16 | N154: 6.6584 | O154: 22 | P154: 37.99 | Q154: 0.03
A155: 00:02:33 | B155: 00:59:52 | C155: 400 | D155: 400 | E155: 29 | F155: 28 | G155: 26 | H155: 26 | I155: 0.13 | J155: 4 | K155: 0.08 | L155: 5.76 | M155: 1.17 | N155: 6.7392 | O155: 22 | P155: 37.99 | Q155: 0.03
A156: 00:02:34 | B156: 00:59:53 | C156: 400 | D156: 400 | E156: 29 | F156: 28 | G156: 26 | H156: 26 | I156: 0.13 | J156: 4 | K156: 0.08 | L156: 5.74 | M156: 1.17 | N156: 6.7158 | O156: 22 | P156: 38 | Q156: 0.04
A157: 00:02:35 | B157: 00:59:54 | C157: 409 | D157: 400 | E157: 30 | F157: 29 | G157: 27 | H157: 26 | I157: 0.13 | J157: 4 | K157: 0.32 | L157: 5.78 | M157: 1.18 | N157: 6.8204 | O157: 22 | P157: 38.01 | Q157: 0.05
A158: 00:02:36 | B158: 00:59:55 | C158: 409 | D158: 400 | E158: 30 | F158: 29 | G158: 27 | H158: 26 | I158: 0.13 | J158: 4 | K158: 0.32 | L158: 5.79 | M158: 1.2 | N158: 6.948 | O158: 22 | P158: 38.02 | Q158: 0.06
A159: 00:02:37 | B159: 00:59:56 | C159: 425 | D159: 400 | E159: 30 | F159: 29 | G159: 27 | H159: 26 | I159: 0.13 | J159: 4 | K159: 0.32 | L159: 5.76 | M159: 1.19 | N159: 6.8544 | O159: 22 | P159: 38.03 | Q159: 0.07
A160: 00:02:38 | B160: 00:59:57 | C160: 440 | D160: 400 | E160: 31 | F160: 29 | G160: 28 | H160: 26 | I160: 0.13 | J160: 4 | K160: 0.32 | L160: 5.73 | M160: 1.2 | N160: 6.876 | O160: 22 | P160: 38.06 | Q160: 0.1
A161: 00:02:39 | B161: 00:59:58 | C161: 440 | D161: 400 | E161: 31 | F161: 29 | G161: 28 | H161: 26 | I161: 0.13 | J161: 4 | K161: 0.94 | L161: 5.73 | M161: 1.2 | N161: 6.876 | O161: 22 | P161: 38.07 | Q161: 0.11
A162: 00:02:40 | B162: 00:59:59 | C162: 455 | D162: 400 | E162: 31 | F162: 30 | G162: 27 | H162: 25 | I162: 0.13 | J162: 4 | K162: 0.94 | L162: 2.94 | M162: 0.52 | N162: 1.5288 | O162: 22 | P162: 38.1 | Q162: 0.14
A163: 00:02:41 | B163: 01:00:00 | C163: 459 | D163: 400 | E163: 31 | F163: 29 | G163: 27 | H163: 25 | I163: 0.13 | J163: 4 | K163: 0.94 | L163: 2.94 | M163: 0.52 | N163: 1.5288 | O163: 22 | P163: 38.14 | Q163: 0.18
A164: 00:02:42 | B164: 01:00:01 | C164: 459 | D164: 406 | E164: 32 | F164: 29 | G164: 27 | H164: 25 | I164: 0.14 | J164: 4 | K164: 2.22 | L164: 4.83 | M164: 0.03 | N164: 0.1449 | O164: 22 | P164: 38.19 | Q164: 0.23
A165: 00:02:43 | B165: 01:00:02 | C165: 457 | D165: 417 | E165: 33 | F165: 29 | G165: 27 | H165: 25 | I165: 0.14 | J165: 4 | K165: 2.22 | L165: 0 | M165: 0.03 | N165: 0 | O165: 22 | P165: 38.24 | Q165: 0.28
A166: 00:02:44 | B166: 01:00:03 | C166: 452 | D166: 417 | E166: 33 | F166: 30 | G166: 28 | H166: 25 | I166: 0.14 | J166: 4 | K166: 2.22 | L166: 0 | M166: 0.03 | N166: 0 | O166: 22 | P166: 38.25 | Q166: 0.29
A167: 00:02:45 | B167: 01:00:04 | C167: 452 | D167: 420 | E167: 34 | F167: 30 | G167: 28 | H167: 25 | I167: 0.14 | J167: 4 | K167: 2.22 | L167: 3.6 | M167: 0.42 | N167: 1.512 | O167: 22 | P167: 38.28 | Q167: 0.32
A168: 00:02:46 | B168: 01:00:05 | C168: 446 | D168: 426 | E168: 35 | F168: 30 | G168: 28 | H168: 26 | I168: 0.14 | J168: 4 | K168: 1.82 | L168: 4.15 | M168: 0.54 | N168: 2.241 | O168: 22 | P168: 38.3 | Q168: 0.34
A169: 00:02:47 | B169: 01:00:06 | C169: 444 | D169: 426 | E169: 35 | F169: 31 | G169: 28 | H169: 26 | I169: 0.14 | J169: 4 | K169: 1.82 | L169: 4.15 | M169: 0.54 | N169: 2.241 | O169: 22 | P169: 38.3 | Q169: 0.34
A170: 00:02:48 | B170: 01:00:07 | C170: 444 | D170: 431 | E170: 36 | F170: 32 | G170: 29 | H170: 26 | I170: 0.14 | J170: 4 | K170: 1.82 | L170: 5.01 | M170: 0.85 | N170: 4.2585 | O170: 22 | P170: 38.31 | Q170: 0.35
A171: 00:02:49 | B171: 01:00:08 | C171: 445 | D171: 433 | E171: 37 | F171: 32 | G171: 29 | H171: 26 | I171: 0.14 | J171: 4 | K171: 0.43 | L171: 5.29 | M171: 0.95 | N171: 5.0255 | O171: 22 | P171: 38.31 | Q171: 0.35
A172: 00:02:50 | B172: 01:00:09 | C172: 452 | D172: 433 | E172: 37 | F172: 32 | G172: 29 | H172: 26 | I172: 0.14 | J172: 4 | K172: 0.43 | L172: 5.52 | M172: 1.05 | N172: 5.796 | O172: 22 | P172: 38.31 | Q172: 0.35
A173: 00:02:51 | B173: 01:00:10 | C173: 464 | D173: 439 | E173: 38 | F173: 33 | G173: 29 | H173: 26 | I173: 0.14 | J173: 4 | K173: 0.43 | L173: 5.52 | M173: 1.05 | N173: 5.796 | O173: 22 | P173: 38.31 | Q173: 0.35
A174: 00:02:52 | B174: 01:00:11 | C174: 464 | D174: 400 | E174: 39 | F174: 33 | G174: 29 | H174: 26 | I174: 0.14 | J174: 4 | K174: 0.02 | L174: 5.38 | M174: 1.06 | N174: 5.7028 | O174: 22 | P174: 38.31 | Q174: 0.35
A175: 00:02:53 | B175: 01:00:12 | C175: 476 | D175: 400 | E175: 39 | F175: 33 | G175: 29 | H175: 26 | I175: 0.14 | J175: 4 | K175: 0.02 | L175: 5.38 | M175: 1.11 | N175: 5.9718 | O175: 22 | P175: 38.31 | Q175: 0.35
A176: 00:02:54 | B176: 01:00:13 | C176: 488 | D176: 412 | E176: 39 | F176: 34 | G176: 30 | H176: 26 | I176: 0.14 | J176: 4 | K176: 0.02 | L176: 5.3 | M176: 1.01 | N176: 5.353 | O176: 22 | P176: 38.31 | Q176: 0.35
A177: 00:02:55 | B177: 01:00:14 | C177: 488 | D177: 412 | E177: 39 | F177: 34 | G177: 30 | H177: 26 | I177: 0.14 | J177: 4 | K177: 0.02 | L177: 5.3 | M177: 1.01 | N177: 5.353 | O177: 22 | P177: 38.31 | Q177: 0.35
A178: 00:02:56 | B178: 01:00:15 | C178: 497 | D178: 452 | E178: 40 | F178: 34 | G178: 30 | H178: 26 | I178: 0.14 | J178: 4 | K178: 0.03 | L178: 5.02 | M178: 0.93 | N178: 4.6686 | O178: 22 | P178: 38.31 | Q178: 0.35
A179: 00:02:57 | B179: 01:00:16 | C179: 503 | D179: 469 | E179: 41 | F179: 35 | G179: 30 | H179: 26 | I179: 0.14 | J179: 4 | K179: 0.03 | L179: 4.98 | M179: 0.88 | N179: 4.3824 | O179: 22 | P179: 38.32 | Q179: 0.36
A180: 00:02:58 | B180: 01:00:17 | C180: 503 | D180: 469 | E180: 41 | F180: 35 | G180: 30 | H180: 26 | I180: 0.14 | J180: 4 | K180: 0.03 | L180: 4.98 | M180: 0.88 | N180: 4.3824 | O180: 22 | P180: 38.32 | Q180: 0.36
A181: 00:02:59 | B181: 01:00:18 | C181: 509 | D181: 475 | E181: 41 | F181: 35 | G181: 30 | H181: 26 | I181: 0.14 | J181: 4 | K181: 0.17 | L181: 4.93 | M181: 0.87 | N181: 4.2891 | O181: 22 | P181: 38.33 | Q181: 0.37
A182: 00:03:00 | B182: 01:00:19 | C182: 514 | D182: 484 | E182: 42 | F182: 36 | G182: 31 | H182: 26 | I182: 0.14 | J182: 4 | K182: 0.17 | L182: 5.07 | M182: 0.91 | N182: 4.6137 | O182: 22 | P182: 38.33 | Q182: 0.37
A183: 00:03:01 | B183: 01:00:20 | C183: 514 | D183: 484 | E183: 42 | F183: 36 | G183: 31 | H183: 26 | I183: 0.14 | J183: 4 | K183: 0.17 | L183: 5.07 | M183: 0.91 | N183: 4.6137 | O183: 22 | P183: 38.34 | Q183: 0.38
A184: 00:03:02 | B184: 01:00:21 | C184: 519 | D184: 488 | E184: 43 | F184: 36 | G184: 32 | H184: 26 | I184: 0.14 | J184: 4 | K184: 0.36 | L184: 5.02 | M184: 0.9 | N184: 4.518 | O184: 22 | P184: 38.34 | Q184: 0.38
A185: 00:03:03 | B185: 01:00:22 | C185: 524 | D185: 497 | E185: 43 | F185: 37 | G185: 31 | H185: 26 | I185: 0.15 | J185: 4 | K185: 0.36 | L185: 5.04 | M185: 0.93 | N185: 4.6872 | O185: 22 | P185: 38.35 | Q185: 0.39
A186: 00:03:04 | B186: 01:00:23 | C186: 524 | D186: 497 | E186: 44 | F186: 37 | G186: 32 | H186: 26 | I186: 0.15 | J186: 4 | K186: 0.36 | L186: 5.04 | M186: 0.93 | N186: 4.6872 | O186: 22 | P186: 38.35 | Q186: 0.39
A187: 00:03:05 | B187: 01:00:24 | C187: 529 | D187: 501 | E187: 44 | F187: 37 | G187: 32 | H187: 26 | I187: 0.15 | J187: 4 | K187: 0.36 | L187: 5.09 | M187: 0.9 | N187: 4.581 | O187: 22 | P187: 38.36 | Q187: 0.4
A188: 00:03:06 | B188: 01:00:25 | C188: 535 | D188: 509 | E188: 44 | F188: 38 | G188: 32 | H188: 26 | I188: 0.15 | J188: 4 | K188: 0.39 | L188: 5.04 | M188: 0.94 | N188: 4.7376 | O188: 22 | P188: 38.37 | Q188: 0.41
A189: 00:03:07 | B189: 01:00:26 | C189: 541 | D189: 509 | E189: 45 | F189: 38 | G189: 32 | H189: 26 | I189: 0.15 | J189: 4 | K189: 0.39 | L189: 5.04 | M189: 0.94 | N189: 4.7376 | O189: 22 | P189: 38.38 | Q189: 0.42
A190: 00:03:08 | B190: 01:00:27 | C190: 541 | D190: 513 | E190: 46 | F190: 39 | G190: 33 | H190: 26 | I190: 0.15 | J190: 4 | K190: 0.39 | L190: 5.08 | M190: 0.94 | N190: 4.7752 | O190: 22 | P190: 38.39 | Q190: 0.43
A191: 00:03:09 | B191: 01:00:28 | C191: 547 | D191: 517 | E191: 46 | F191: 39 | G191: 33 | H191: 26 | I191: 0.15 | J191: 4 | K191: 0.51 | L191: 5.04 | M191: 0.91 | N191: 4.5864 | O191: 22 | P191: 38.39 | Q191: 0.43
A192: 00:03:10 | B192: 01:00:29 | C192: 552 | D192: 522 | E192: 46 | F192: 39 | G192: 33 | H192: 26 | I192: 0.15 | J192: 4 | K192: 0.51 | L192: 4.99 | M192: 0.89 | N192: 4.4411 | O192: 22 | P192: 38.4 | Q192: 0.44
A193: 00:03:11 | B193: 01:00:30 | C193: 557 | D193: 526 | E193: 46 | F193: 39 | G193: 34 | H193: 26 | I193: 0.15 | J193: 4 | K193: 0.51 | L193: 4.99 | M193: 0.91 | N193: 4.5409 | O193: 22 | P193: 38.4 | Q193: 0.44
A194: 00:03:12 | B194: 01:00:31 | C194: 557 | D194: 529 | E194: 46 | F194: 39 | G194: 34 | H194: 26 | I194: 0.15 | J194: 4 | K194: 0.51 | L194: 5.02 | M194: 0.92 | N194: 4.6184 | O194: 22 | P194: 38.41 | Q194: 0.45
A195: 00:03:13 | B195: 01:00:32 | C195: 562 | D195: 533 | E195: 47 | F195: 40 | G195: 34 | H195: 26 | I195: 0.15 | J195: 4 | K195: 0.25 | L195: 4.94 | M195: 0.89 | N195: 4.3966 | O195: 22 | P195: 38.41 | Q195: 0.45
A196: 00:03:14 | B196: 01:00:33 | C196: 567 | D196: 537 | E196: 48 | F196: 41 | G196: 34 | H196: 26 | I196: 0.15 | J196: 4 | K196: 0.25 | L196: 4.95 | M196: 0.88 | N196: 4.356 | O196: 22 | P196: 38.41 | Q196: 0.45
A197: 00:03:15 | B197: 01:00:34 | C197: 567 | D197: 541 | E197: 48 | F197: 41 | G197: 34 | H197: 26 | I197: 0.16 | J197: 4 | K197: 0.25 | L197: 5.06 | M197: 0.93 | N197: 4.7058 | O197: 22 | P197: 38.42 | Q197: 0.46
A198: 00:03:16 | B198: 01:00:35 | C198: 572 | D198: 545 | E198: 49 | F198: 41 | G198: 35 | H198: 26 | I198: 0.16 | J198: 4 | K198: 0.24 | L198: 5.02 | M198: 0.91 | N198: 4.5682 | O198: 22 | P198: 38.43 | Q198: 0.47
A199: 00:03:17 | B199: 01:00:36 | C199: 577 | D199: 549 | E199: 49 | F199: 42 | G199: 35 | H199: 26 | I199: 0.16 | J199: 4 | K199: 0.24 | L199: 4.99 | M199: 0.9 | N199: 4.491 | O199: 22 | P199: 38.44 | Q199: 0.48
A200: 00:03:18 | B200: 01:00:37 | C200: 577 | D200: 549 | E200: 49 | F200: 42 | G200: 35 | H200: 25 | I200: 0.16 | J200: 4 | K200: 0.24 | L200: 4.99 | M200: 0.9 | N200: 4.491 | O200: 22 | P200: 38.45 | Q200: 0.49
... 1501 more rows

Sheet 1471
A1: P.Zeit | C1: Pyrometer | D1: Pyrometer B | E1: MTC1 | F1: MTC2 | G1: MTC3 | H1: MTC4 | I1: Press. abs 1 | J1: Press. abs 2 | K1: Speed | L1: U RMS | M1: I RMS | N1: Power | O1: Force | P1: Abs Piston Tra. | Q1: Rel Piston Tra.
A2: 00:00:00 | B2: 00:56:45 | C2: 400 | D2: 400 | E2: 20 | F2: 22 | G2: 21 | H2: 20 | I2: 0.12 | J2: 4 | K2: 0 | L2: 0 | M2: 0.02 | N2: =L2*M2 -> 0 | O2: 5 | P2: 34.34
A3: 00:00:01 | B3: 00:56:46 | C3: 400 | D3: 400 | E3: 20 | F3: 22 | G3: 21 | H3: 20 | I3: 0.12 | J3: 4 | K3: 0 | L3: 0.01 | M3: 0.03 | N3: 0.0003 | O3: 5 | P3: 34.34
A4: 00:00:02 | B4: 00:56:47 | C4: 400 | D4: 400 | E4: 20 | F4: 22 | G4: 21 | H4: 20 | I4: 0.12 | J4: 4 | K4: 0 | L4: 0.01 | M4: 0.03 | N4: 0.0003 | O4: 5 | P4: 34.33
A5: 00:00:03 | B5: 00:56:48 | C5: 400 | D5: 400 | E5: 20 | F5: 22 | G5: 21 | H5: 20 | I5: 0.12 | J5: 4 | K5: 0 | L5: 0.01 | M5: 0.03 | N5: 0.0003 | O5: 5 | P5: 34.47
A6: 00:00:04 | B6: 00:56:49 | C6: 400 | D6: 400 | E6: 20 | F6: 22 | G6: 21 | H6: 20 | I6: 0.12 | J6: 4 | K6: 5.04 | L6: 0 | M6: 0.02 | N6: 0 | O6: 6 | P6: 34.61
A7: 00:00:05 | B7: 00:56:50 | C7: 400 | D7: 400 | E7: 20 | F7: 22 | G7: 21 | H7: 20 | I7: 0.12 | J7: 4 | K7: 5.04 | L7: 0 | M7: 0.02 | N7: 0 | O7: 6 | P7: 34.61
A8: 00:00:06 | B8: 00:56:51 | C8: 400 | D8: 400 | E8: 20 | F8: 22 | G8: 21 | H8: 20 | I8: 0.12 | J8: 4 | K8: 5.04 | L8: 0 | M8: 0.02 | N8: 0 | O8: 6 | P8: 34.61
A9: 00:00:07 | B9: 00:56:52 | C9: 400 | D9: 400 | E9: 20 | F9: 22 | G9: 21 | H9: 20 | I9: 0.12 | J9: 4 | K9: 5.04 | L9: 0 | M9: 0.02 | N9: 0 | O9: 6 | P9: 34.61
A10: 00:00:08 | B10: 00:56:53 | C10: 400 | D10: 400 | E10: 20 | F10: 22 | G10: 21 | H10: 20 | I10: 0.12 | J10: 4 | K10: 0.13 | L10: 0 | M10: 0.02 | N10: 0 | O10: 6 | P10: 34.61
A11: 00:00:09 | B11: 00:56:54 | C11: 400 | D11: 400 | E11: 20 | F11: 22 | G11: 21 | H11: 20 | I11: 0.12 | J11: 4 | K11: 0.13 | L11: 0 | M11: 0.02 | N11: 0 | O11: 6 | P11: 34.62
A12: 00:00:10 | B12: 00:56:55 | C12: 400 | D12: 400 | E12: 20 | F12: 22 | G12: 21 | H12: 20 | I12: 0.12 | J12: 4 | K12: 0.13 | L12: 0 | M12: 0.03 | N12: 0 | O12: 7 | P12: 34.62
A13: 00:00:11 | B13: 00:56:56 | C13: 400 | D13: 400 | E13: 20 | F13: 22 | G13: 21 | H13: 20 | I13: 0.12 | J13: 4 | K13: 0.12 | L13: 0 | M13: 0.02 | N13: 0 | O13: 7 | P13: 34.62
A14: 00:00:12 | B14: 00:56:57 | C14: 400 | D14: 400 | E14: 20 | F14: 22 | G14: 21 | H14: 20 | I14: 0.12 | J14: 4 | K14: 0.12 | L14: 0 | M14: 0.02 | N14: 0 | O14: 7 | P14: 34.63
A15: 00:00:13 | B15: 00:56:58 | C15: 400 | D15: 400 | E15: 20 | F15: 22 | G15: 21 | H15: 20 | I15: 0.12 | J15: 4 | K15: 0.12 | L15: 0 | M15: 0.02 | N15: 0 | O15: 7 | P15: 34.64
A16: 00:00:14 | B16: 00:56:59 | C16: 400 | D16: 400 | E16: 20 | F16: 22 | G16: 21 | H16: 20 | I16: 0.12 | J16: 4 | K16: 0.41 | L16: 0 | M16: 0.02 | N16: 0 | O16: 7 | P16: 34.65
A17: 00:00:15 | B17: 00:57:00 | C17: 400 | D17: 400 | E17: 20 | F17: 22 | G17: 21 | H17: 20 | I17: 0.12 | J17: 4 | K17: 0.41 | L17: 0 | M17: 0.02 | N17: 0 | O17: 8 | P17: 34.66
A18: 00:00:16 | B18: 00:57:01 | C18: 400 | D18: 400 | E18: 20 | F18: 22 | G18: 21 | H18: 20 | I18: 0.12 | J18: 4 | K18: 0.41 | L18: 0 | M18: 0.02 | N18: 0 | O18: 8 | P18: 34.68
A19: 00:00:17 | B19: 00:57:02 | C19: 400 | D19: 400 | E19: 20 | F19: 22 | G19: 21 | H19: 20 | I19: 0.12 | J19: 4 | K19: 0.41 | L19: 0 | M19: 0.02 | N19: 0 | O19: 8 | P19: 34.69
A20: 00:00:18 | B20: 00:57:03 | C20: 400 | D20: 400 | E20: 20 | F20: 22 | G20: 21 | H20: 20 | I20: 0.12 | J20: 4 | K20: 1 | L20: 0 | M20: 0.02 | N20: 0 | O20: 8 | P20: 34.71
A21: 00:00:19 | B21: 00:57:04 | C21: 400 | D21: 400 | E21: 20 | F21: 22 | G21: 21 | H21: 20 | I21: 0.12 | J21: 4 | K21: 1 | L21: 0.01 | M21: 0.02 | N21: 0.0002 | O21: 8 | P21: 34.74
A22: 00:00:20 | B22: 00:57:05 | C22: 400 | D22: 400 | E22: 20 | F22: 22 | G22: 21 | H22: 20 | I22: 0.12 | J22: 4 | K22: 1 | L22: 0.01 | M22: 0.02 | N22: 0.0002 | O22: 8 | P22: 34.75
A23: 00:00:21 | B23: 00:57:06 | C23: 400 | D23: 400 | E23: 20 | F23: 22 | G23: 21 | H23: 20 | I23: 0.12 | J23: 4 | K23: 1.06 | L23: 0 | M23: 0.02 | N23: 0 | O23: 9 | P23: 34.77
A24: 00:00:22 | B24: 00:57:07 | C24: 400 | D24: 400 | E24: 20 | F24: 22 | G24: 21 | H24: 20 | I24: 0.12 | J24: 4 | K24: 1.06 | L24: 0 | M24: 0.02 | N24: 0 | O24: 9 | P24: 34.79
A25: 00:00:23 | B25: 00:57:08 | C25: 400 | D25: 400 | E25: 20 | F25: 22 | G25: 21 | H25: 20 | I25: 0.12 | J25: 4 | K25: 1.06 | L25: 0 | M25: 0.03 | N25: 0 | O25: 9 | P25: 34.8
A26: 00:00:24 | B26: 00:57:09 | C26: 400 | D26: 400 | E26: 20 | F26: 22 | G26: 21 | H26: 20 | I26: 0.12 | J26: 4 | K26: 0.9 | L26: 0 | M26: 0.02 | N26: 0 | O26: 9 | P26: 34.81
A27: 00:00:25 | B27: 00:57:10 | C27: 400 | D27: 400 | E27: 20 | F27: 22 | G27: 21 | H27: 20 | I27: 0.12 | J27: 4 | K27: 0.9 | L27: 0 | M27: 0.02 | N27: 0 | O27: 9 | P27: 34.83
A28: 00:00:26 | B28: 00:57:11 | C28: 400 | D28: 400 | E28: 20 | F28: 22 | G28: 21 | H28: 20 | I28: 0.12 | J28: 4 | K28: 0.9 | L28: 0 | M28: 0.03 | N28: 0 | O28: 10 | P28: 34.83
A29: 00:00:27 | B29: 00:57:12 | C29: 400 | D29: 400 | E29: 20 | F29: 22 | G29: 21 | H29: 20 | I29: 0.12 | J29: 4 | K29: 0.9 | L29: 0 | M29: 0.02 | N29: 0 | O29: 10 | P29: 34.85
A30: 00:00:28 | B30: 00:57:13 | C30: 400 | D30: 400 | E30: 20 | F30: 22 | G30: 21 | H30: 20 | I30: 0.12 | J30: 4 | K30: 0.66 | L30: 0 | M30: 0.02 | N30: 0 | O30: 10 | P30: 34.86
A31: 00:00:29 | B31: 00:57:14 | C31: 400 | D31: 400 | E31: 20 | F31: 22 | G31: 21 | H31: 20 | I31: 0.12 | J31: 4 | K31: 0.66 | L31: 0 | M31: 0.02 | N31: 0 | O31: 10 | P31: 34.87
A32: 00:00:30 | B32: 00:57:15 | C32: 400 | D32: 400 | E32: 20 | F32: 22 | G32: 21 | H32: 20 | I32: 0.12 | J32: 4 | K32: 0.66 | L32: 0 | M32: 0.03 | N32: 0 | O32: 10 | P32: 34.88
A33: 00:00:31 | B33: 00:57:16 | C33: 400 | D33: 400 | E33: 20 | F33: 22 | G33: 21 | H33: 20 | I33: 0.12 | J33: 4 | K33: 0.54 | L33: 0 | M33: 0.03 | N33: 0 | O33: 10 | P33: 34.88
A34: 00:00:32 | B34: 00:57:17 | C34: 400 | D34: 400 | E34: 20 | F34: 22 | G34: 21 | H34: 20 | I34: 0.12 | J34: 4 | K34: 0.54 | L34: 0 | M34: 0.02 | N34: 0 | O34: 11 | P34: 34.89
A35: 00:00:33 | B35: 00:57:18 | C35: 400 | D35: 400 | E35: 20 | F35: 22 | G35: 21 | H35: 20 | I35: 0.12 | J35: 4 | K35: 0.54 | L35: 0 | M35: 0.03 | N35: 0 | O35: 11 | P35: 34.91
A36: 00:00:34 | B36: 00:57:19 | C36: 400 | D36: 400 | E36: 20 | F36: 22 | G36: 21 | H36: 20 | I36: 0.12 | J36: 4 | K36: 0.54 | L36: 0 | M36: 0.03 | N36: 0 | O36: 11 | P36: 34.91
A37: 00:00:35 | B37: 00:57:20 | C37: 400 | D37: 400 | E37: 20 | F37: 22 | G37: 21 | H37: 20 | I37: 0.12 | J37: 4 | K37: 0.64 | L37: 0 | M37: 0.02 | N37: 0 | O37: 11 | P37: 34.93
A38: 00:00:36 | B38: 00:57:21 | C38: 400 | D38: 400 | E38: 20 | F38: 22 | G38: 21 | H38: 20 | I38: 0.11 | J38: 4 | K38: 0.64 | L38: 0 | M38: 0.03 | N38: 0 | O38: 11 | P38: 34.94
A39: 00:00:37 | B39: 00:57:22 | C39: 400 | D39: 400 | E39: 20 | F39: 22 | G39: 21 | H39: 20 | I39: 0.11 | J39: 4 | K39: 0.64 | L39: 0 | M39: 0.03 | N39: 0 | O39: 12 | P39: 34.95
A40: 00:00:38 | B40: 00:57:23 | C40: 400 | D40: 400 | E40: 20 | F40: 22 | G40: 21 | H40: 20 | I40: 0.11 | J40: 4 | K40: 0.62 | L40: 0 | M40: 0.02 | N40: 0 | O40: 12 | P40: 34.96
A41: 00:00:39 | B41: 00:57:24 | C41: 400 | D41: 400 | E41: 20 | F41: 22 | G41: 21 | H41: 20 | I41: 0.11 | J41: 4 | K41: 0.62 | L41: 0 | M41: 0.02 | N41: 0 | O41: 12 | P41: 34.97
A42: 00:00:40 | B42: 00:57:25 | C42: 400 | D42: 400 | E42: 20 | F42: 22 | G42: 21 | H42: 20 | I42: 0.11 | J42: 4 | K42: 0.62 | L42: 0 | M42: 0.02 | N42: 0 | O42: 12 | P42: 34.98
A43: 00:00:41 | B43: 00:57:26 | C43: 400 | D43: 400 | E43: 20 | F43: 22 | G43: 21 | H43: 20 | I43: 0.11 | J43: 4 | K43: 0.72 | L43: 0 | M43: 0.02 | N43: 0 | O43: 12 | P43: 34.99
A44: 00:00:42 | B44: 00:57:27 | C44: 400 | D44: 400 | E44: 20 | F44: 22 | G44: 21 | H44: 20 | I44: 0.11 | J44: 4 | K44: 0.72 | L44: 0 | M44: 0.02 | N44: 0 | O44: 13 | P44: 35.01
A45: 00:00:43 | B45: 00:57:28 | C45: 400 | D45: 400 | E45: 20 | F45: 22 | G45: 21 | H45: 20 | I45: 0.11 | J45: 4 | K45: 0.72 | L45: 0 | M45: 0.02 | N45: 0 | O45: 13 | P45: 35.02
A46: 00:00:44 | B46: 00:57:29 | C46: 400 | D46: 400 | E46: 20 | F46: 22 | G46: 21 | H46: 20 | I46: 0.11 | J46: 4 | K46: 0.73 | L46: 0 | M46: 0.02 | N46: 0 | O46: 13 | P46: 35.03
A47: 00:00:45 | B47: 00:57:30 | C47: 400 | D47: 400 | E47: 20 | F47: 21 | G47: 21 | H47: 20 | I47: 0.11 | J47: 4 | K47: 0.73 | L47: 0 | M47: 0.02 | N47: 0 | O47: 13 | P47: 35.04
A48: 00:00:46 | B48: 00:57:31 | C48: 400 | D48: 400 | E48: 20 | F48: 22 | G48: 21 | H48: 20 | I48: 0.11 | J48: 4 | K48: 0.73 | L48: 0 | M48: 0.03 | N48: 0 | O48: 13 | P48: 35.06
A49: 00:00:47 | B49: 00:57:32 | C49: 400 | D49: 400 | E49: 20 | F49: 22 | G49: 21 | H49: 20 | I49: 0.11 | J49: 4 | K49: 0.73 | L49: 0 | M49: 0.02 | N49: 0 | O49: 13 | P49: 35.08
A50: 00:00:48 | B50: 00:57:33 | C50: 400 | D50: 400 | E50: 20 | F50: 22 | G50: 21 | H50: 20 | I50: 0.11 | J50: 4 | K50: 0.87 | L50: 0 | M50: 0.02 | N50: 0 | O50: 14 | P50: 35.08
A51: 00:00:49 | B51: 00:57:34 | C51: 400 | D51: 400 | E51: 20 | F51: 22 | G51: 21 | H51: 20 | I51: 0.11 | J51: 4 | K51: 0.87 | L51: 0 | M51: 0.02 | N51: 0 | O51: 14 | P51: 35.1
A52: 00:00:50 | B52: 00:57:35 | C52: 400 | D52: 400 | E52: 21 | F52: 22 | G52: 21 | H52: 21 | I52: 0.11 | J52: 4 | K52: 0.87 | L52: 0 | M52: 0.02 | N52: 0 | O52: 14 | P52: 35.11
A53: 00:00:51 | B53: 00:57:36 | C53: 400 | D53: 400 | E53: 21 | F53: 22 | G53: 21 | H53: 21 | I53: 0.11 | J53: 4 | K53: 0.73 | L53: 0 | M53: 0.02 | N53: 0 | O53: 14 | P53: 35.12
A54: 00:00:52 | B54: 00:57:37 | C54: 400 | D54: 400 | E54: 21 | F54: 22 | G54: 21 | H54: 21 | I54: 0.11 | J54: 4 | K54: 0.73 | L54: 0 | M54: 0.03 | N54: 0 | O54: 14 | P54: 35.14
A55: 00:00:53 | B55: 00:57:38 | C55: 400 | D55: 400 | E55: 21 | F55: 22 | G55: 21 | H55: 21 | I55: 0.11 | J55: 4 | K55: 0.73 | L55: 0 | M55: 0.03 | N55: 0 | O55: 15 | P55: 35.16
A56: 00:00:54 | B56: 00:57:39 | C56: 400 | D56: 400 | E56: 21 | F56: 22 | G56: 21 | H56: 21 | I56: 0.11 | J56: 4 | K56: 0.73 | L56: 0 | M56: 0.03 | N56: 0 | O56: 15 | P56: 35.16
A57: 00:00:55 | B57: 00:57:40 | C57: 400 | D57: 400 | E57: 21 | F57: 22 | G57: 21 | H57: 21 | I57: 0.11 | J57: 4 | K57: 0.84 | L57: 0 | M57: 0.02 | N57: 0 | O57: 15 | P57: 35.18
A58: 00:00:56 | B58: 00:57:41 | C58: 400 | D58: 400 | E58: 21 | F58: 22 | G58: 21 | H58: 21 | I58: 0.11 | J58: 4 | K58: 0.84 | L58: 0 | M58: 0.02 | N58: 0 | O58: 15 | P58: 35.19
A59: 00:00:57 | B59: 00:57:42 | C59: 400 | D59: 400 | E59: 21 | F59: 22 | G59: 21 | H59: 21 | I59: 0.11 | J59: 4 | K59: 0.84 | L59: 0 | M59: 0.02 | N59: 0 | O59: 15 | P59: 35.2
A60: 00:00:58 | B60: 00:57:43 | C60: 400 | D60: 400 | E60: 21 | F60: 22 | G60: 21 | H60: 21 | I60: 0.11 | J60: 4 | K60: 0.76 | L60: 0 | M60: 0.02 | N60: 0 | O60: 15 | P60: 35.22
A61: 00:00:59 | B61: 00:57:44 | C61: 400 | D61: 400 | E61: 21 | F61: 22 | G61: 21 | H61: 21 | I61: 0.11 | J61: 4 | K61: 0.76 | L61: 0 | M61: 0.02 | N61: 0 | O61: 16 | P61: 35.23
A62: 00:01:00 | B62: 00:57:45 | C62: 400 | D62: 400 | E62: 21 | F62: 22 | G62: 21 | H62: 21 | I62: 0.11 | J62: 4 | K62: 0.76 | L62: 0 | M62: 0.02 | N62: 0 | O62: 16 | P62: 35.25
A63: 00:01:01 | B63: 00:57:46 | C63: 400 | D63: 400 | E63: 21 | F63: 22 | G63: 21 | H63: 21 | I63: 0.11 | J63: 4 | K63: 0.87 | L63: 0 | M63: 0.03 | N63: 0 | O63: 16 | P63: 35.26
A64: 00:01:02 | B64: 00:57:47 | C64: 400 | D64: 400 | E64: 21 | F64: 22 | G64: 21 | H64: 21 | I64: 0.11 | J64: 4 | K64: 0.87 | L64: 0 | M64: 0.02 | N64: 0 | O64: 16 | P64: 35.27
A65: 00:01:03 | B65: 00:57:48 | C65: 400 | D65: 400 | E65: 21 | F65: 22 | G65: 21 | H65: 21 | I65: 0.11 | J65: 4 | K65: 0.87 | L65: 0 | M65: 0.03 | N65: 0 | O65: 16 | P65: 35.28
A66: 00:01:04 | B66: 00:57:49 | C66: 400 | D66: 400 | E66: 21 | F66: 22 | G66: 21 | H66: 21 | I66: 0.11 | J66: 4 | K66: 0.45 | L66: 0 | M66: 0.02 | N66: 0 | O66: 16 | P66: 35.28
A67: 00:01:05 | B67: 00:57:50 | C67: 400 | D67: 400 | E67: 21 | F67: 22 | G67: 21 | H67: 21 | I67: 0.11 | J67: 4 | K67: 0.45 | L67: 0 | M67: 0.02 | N67: 0 | O67: 16 | P67: 35.29
A68: 00:01:06 | B68: 00:57:51 | C68: 400 | D68: 400 | E68: 21 | F68: 22 | G68: 21 | H68: 21 | I68: 0.11 | J68: 4 | K68: 0.45 | L68: 0 | M68: 0.03 | N68: 0 | O68: 16 | P68: 35.29
A69: 00:01:07 | B69: 00:57:52 | C69: 400 | D69: 400 | E69: 21 | F69: 22 | G69: 21 | H69: 21 | I69: 0.11 | J69: 4 | K69: 0.45 | L69: 0 | M69: 0.03 | N69: 0 | O69: 16 | P69: 35.29
A70: 00:01:08 | B70: 00:57:53 | C70: 400 | D70: 400 | E70: 21 | F70: 22 | G70: 21 | H70: 21 | I70: 0.11 | J70: 4 | K70: 0.17 | L70: 0 | M70: 0.02 | N70: 0 | O70: 16 | P70: 35.29
A71: 00:01:09 | B71: 00:57:54 | C71: 400 | D71: 400 | E71: 21 | F71: 22 | G71: 21 | H71: 21 | I71: 0.11 | J71: 4 | K71: 0.17 | L71: 0 | M71: 0.03 | N71: 0 | O71: 16 | P71: 35.3
A72: 00:01:10 | B72: 00:57:55 | C72: 400 | D72: 400 | E72: 21 | F72: 22 | G72: 21 | H72: 21 | I72: 0.11 | J72: 4 | K72: 0.17 | L72: 0 | M72: 0.03 | N72: 0 | O72: 16 | P72: 35.3
A73: 00:01:11 | B73: 00:57:56 | C73: 400 | D73: 400 | E73: 21 | F73: 22 | G73: 21 | H73: 21 | I73: 0.11 | J73: 4 | K73: 0.12 | L73: 0 | M73: 0.03 | N73: 0 | O73: 16 | P73: 35.3
A74: 00:01:12 | B74: 00:57:57 | C74: 400 | D74: 400 | E74: 21 | F74: 22 | G74: 21 | H74: 21 | I74: 0.11 | J74: 4 | K74: 0.12 | L74: 0.01 | M74: 0.03 | N74: 0.0003 | O74: 16 | P74: 35.3
A75: 00:01:13 | B75: 00:57:58 | C75: 400 | D75: 400 | E75: 21 | F75: 22 | G75: 21 | H75: 21 | I75: 0.11 | J75: 4 | K75: 0.12 | L75: 0.01 | M75: 0.03 | N75: 0.0003 | O75: 16 | P75: 35.31
A76: 00:01:14 | B76: 00:57:59 | C76: 400 | D76: 400 | E76: 21 | F76: 22 | G76: 21 | H76: 21 | I76: 0.11 | J76: 4 | K76: 0.12 | L76: 0 | M76: 0.03 | N76: 0 | O76: 16 | P76: 35.31
A77: 00:01:15 | B77: 00:58:00 | C77: 400 | D77: 400 | E77: 21 | F77: 22 | G77: 21 | H77: 21 | I77: 0.11 | J77: 4 | K77: 0.17 | L77: 0 | M77: 0.03 | N77: 0 | O77: 16 | P77: 35.32
A78: 00:01:16 | B78: 00:58:01 | C78: 400 | D78: 400 | E78: 21 | F78: 22 | G78: 21 | H78: 21 | I78: 0.11 | J78: 4 | K78: 0.17 | L78: 0 | M78: 0.03 | N78: 0 | O78: 16 | P78: 35.32
A79: 00:01:17 | B79: 00:58:02 | C79: 400 | D79: 400 | E79: 21 | F79: 22 | G79: 21 | H79: 21 | I79: 0.11 | J79: 4 | K79: 0.17 | L79: 0 | M79: 0.03 | N79: 0 | O79: 16 | P79: 35.32
A80: 00:01:18 | B80: 00:58:03 | C80: 400 | D80: 400 | E80: 21 | F80: 22 | G80: 21 | H80: 21 | I80: 0.11 | J80: 4 | K80: 0.26 | L80: 0 | M80: 0.02 | N80: 0 | O80: 16 | P80: 35.33
A81: 00:01:19 | B81: 00:58:04 | C81: 400 | D81: 400 | E81: 21 | F81: 22 | G81: 21 | H81: 21 | I81: 0.11 | J81: 4 | K81: 0.26 | L81: 0 | M81: 0.02 | N81: 0 | O81: 16 | P81: 35.33
A82: 00:01:20 | B82: 00:58:05 | C82: 400 | D82: 400 | E82: 21 | F82: 22 | G82: 21 | H82: 21 | I82: 0.11 | J82: 4 | K82: 0.26 | L82: 0 | M82: 0.02 | N82: 0 | O82: 16 | P82: 35.33
A83: 00:01:21 | B83: 00:58:06 | C83: 400 | D83: 400 | E83: 21 | F83: 22 | G83: 21 | H83: 21 | I83: 0.11 | J83: 4 | K83: 0.1 | L83: 0 | M83: 0.02 | N83: 0 | O83: 16 | P83: 35.33
A84: 00:01:22 | B84: 00:58:07 | C84: 400 | D84: 400 | E84: 21 | F84: 22 | G84: 21 | H84: 21 | I84: 0.11 | J84: 4 | K84: 0.1 | L84: 0 | M84: 0.02 | N84: 0 | O84: 16 | P84: 35.33
A85: 00:01:23 | B85: 00:58:08 | C85: 400 | D85: 400 | E85: 21 | F85: 22 | G85: 21 | H85: 21 | I85: 0.11 | J85: 4 | K85: 0.1 | L85: 0 | M85: 0.02 | N85: 0 | O85: 16 | P85: 35.33
A86: 00:01:24 | B86: 00:58:09 | C86: 400 | D86: 400 | E86: 21 | F86: 22 | G86: 21 | H86: 21 | I86: 0.11 | J86: 4 | K86: 0.1 | L86: 0 | M86: 0.02 | N86: 0 | O86: 16 | P86: 35.33
A87: 00:01:25 | B87: 00:58:10 | C87: 400 | D87: 400 | E87: 21 | F87: 22 | G87: 21 | H87: 21 | I87: 0.11 | J87: 4 | K87: 0 | L87: 0 | M87: 0.02 | N87: 0 | O87: 16 | P87: 35.33
A88: 00:01:26 | B88: 00:58:11 | C88: 400 | D88: 400 | E88: 21 | F88: 22 | G88: 21 | H88: 21 | I88: 0.11 | J88: 4 | K88: 0 | L88: 0.01 | M88: 0.02 | N88: 0.0002 | O88: 16 | P88: 35.33
A89: 00:01:27 | B89: 00:58:12 | C89: 400 | D89: 400 | E89: 21 | F89: 22 | G89: 21 | H89: 21 | I89: 0.11 | J89: 4 | K89: 0 | L89: 0.01 | M89: 0.02 | N89: 0.0002 | O89: 16 | P89: 35.33
A90: 00:01:28 | B90: 00:58:13 | C90: 400 | D90: 400 | E90: 21 | F90: 22 | G90: 21 | H90: 21 | I90: 0.11 | J90: 4 | K90: 0 | L90: 0 | M90: 0.02 | N90: 0 | O90: 16 | P90: 35.33
A91: 00:01:29 | B91: 00:58:14 | C91: 400 | D91: 400 | E91: 21 | F91: 22 | G91: 21 | H91: 21 | I91: 0.11 | J91: 4 | K91: 0 | L91: 0 | M91: 0.03 | N91: 0 | O91: 16 | P91: 35.33
A92: 00:01:30 | B92: 00:58:15 | C92: 400 | D92: 400 | E92: 21 | F92: 22 | G92: 21 | H92: 21 | I92: 0.11 | J92: 4 | K92: 0 | L92: 0 | M92: 0.02 | N92: 0 | O92: 16 | P92: 35.33
A93: 00:01:31 | B93: 00:58:16 | C93: 400 | D93: 400 | E93: 21 | F93: 22 | G93: 21 | H93: 21 | I93: 0.11 | J93: 4 | K93: 0.07 | L93: 0 | M93: 0.03 | N93: 0 | O93: 16 | P93: 35.33
A94: 00:01:32 | B94: 00:58:17 | C94: 400 | D94: 400 | E94: 21 | F94: 22 | G94: 21 | H94: 21 | I94: 0.11 | J94: 4 | K94: 0.07 | L94: 0 | M94: 0.02 | N94: 0 | O94: 16 | P94: 35.34
A95: 00:01:33 | B95: 00:58:18 | C95: 400 | D95: 400 | E95: 21 | F95: 22 | G95: 21 | H95: 21 | I95: 0.11 | J95: 4 | K95: 0.07 | L95: 0 | M95: 0.03 | N95: 0 | O95: 16 | P95: 35.34
A96: 00:01:34 | B96: 00:58:19 | C96: 400 | D96: 400 | E96: 21 | F96: 22 | G96: 21 | H96: 21 | I96: 0.11 | J96: 4 | K96: 0.07 | L96: 0 | M96: 0.02 | N96: 0 | O96: 16 | P96: 35.34
A97: 00:01:35 | B97: 00:58:20 | C97: 400 | D97: 400 | E97: 21 | F97: 22 | G97: 21 | H97: 21 | I97: 0.11 | J97: 4 | K97: 0.09 | L97: 0 | M97: 0.02 | N97: 0 | O97: 16 | P97: 35.34
A98: 00:01:36 | B98: 00:58:21 | C98: 400 | D98: 400 | E98: 21 | F98: 22 | G98: 21 | H98: 21 | I98: 0.11 | J98: 4 | K98: 0.09 | L98: 0 | M98: 0.03 | N98: 0 | O98: 16 | P98: 35.34
A99: 00:01:37 | B99: 00:58:22 | C99: 400 | D99: 400 | E99: 21 | F99: 22 | G99: 21 | H99: 21 | I99: 0.11 | J99: 4 | K99: 0.09 | L99: 0.01 | M99: 0.02 | N99: 0.0002 | O99: 16 | P99: 35.34
A100: 00:01:38 | B100: 00:58:23 | C100: 400 | D100: 400 | E100: 21 | F100: 22 | G100: 21 | H100: 21 | I100: 0.11 | J100: 4 | K100: 0.01 | L100: 0 | M100: 0.03 | N100: 0 | O100: 16 | P100: 35.34
A101: 00:01:39 | B101: 00:58:24 | C101: 400 | D101: 400 | E101: 21 | F101: 22 | G101: 21 | H101: 21 | I101: 0.11 | J101: 4 | K101: 0.01 | L101: 0 | M101: 0.02 | N101: 0 | O101: 16 | P101: 35.34
A102: 00:01:40 | B102: 00:58:25 | C102: 400 | D102: 400 | E102: 21 | F102: 22 | G102: 21 | H102: 21 | I102: 0.11 | J102: 4 | K102: 0.01 | L102: 0 | M102: 0.02 | N102: 0 | O102: 16 | P102: 35.34
A103: 00:01:41 | B103: 00:58:26 | C103: 400 | D103: 400 | E103: 21 | F103: 22 | G103: 21 | H103: 21 | I103: 0.11 | J103: 4 | K103: 0.01 | L103: 0 | M103: 0.02 | N103: 0 | O103: 16 | P103: 35.34
A104: 00:01:42 | B104: 00:58:27 | C104: 400 | D104: 400 | E104: 21 | F104: 22 | G104: 21 | H104: 21 | I104: 0.11 | J104: 4 | K104: 0 | L104: 0 | M104: 0.02 | N104: 0 | O104: 16 | P104: 35.34
A105: 00:01:43 | B105: 00:58:28 | C105: 400 | D105: 400 | E105: 21 | F105: 22 | G105: 21 | H105: 21 | I105: 0.11 | J105: 4 | K105: 0 | L105: 0.01 | M105: 0.02 | N105: 0.0002 | O105: 16 | P105: 35.34
A106: 00:01:44 | B106: 00:58:29 | C106: 400 | D106: 400 | E106: 21 | F106: 22 | G106: 21 | H106: 21 | I106: 0.11 | J106: 4 | K106: 0 | L106: 0.01 | M106: 0.02 | N106: 0.0002 | O106: 16 | P106: 35.34
A107: 00:01:45 | B107: 00:58:30 | C107: 400 | D107: 400 | E107: 21 | F107: 22 | G107: 21 | H107: 21 | I107: 0.11 | J107: 4 | K107: 0.03 | L107: 0 | M107: 0.02 | N107: 0 | O107: 16 | P107: 35.34
A108: 00:01:46 | B108: 00:58:31 | C108: 400 | D108: 400 | E108: 21 | F108: 22 | G108: 21 | H108: 21 | I108: 0.11 | J108: 4 | K108: 0.03 | L108: 0 | M108: 0.02 | N108: 0 | O108: 16 | P108: 35.34
A109: 00:01:47 | B109: 00:58:32 | C109: 400 | D109: 400 | E109: 21 | F109: 22 | G109: 21 | H109: 21 | I109: 0.11 | J109: 4 | K109: 0.03 | L109: 0 | M109: 0.02 | N109: 0 | O109: 16 | P109: 35.34
A110: 00:01:48 | B110: 00:58:33 | C110: 400 | D110: 400 | E110: 21 | F110: 22 | G110: 21 | H110: 21 | I110: 0.11 | J110: 4 | K110: 0.06 | L110: 0 | M110: 0.02 | N110: 0 | O110: 16 | P110: 35.34
A111: 00:01:49 | B111: 00:58:34 | C111: 400 | D111: 400 | E111: 21 | F111: 22 | G111: 21 | H111: 21 | I111: 0.11 | J111: 4 | K111: 0.06 | L111: 0 | M111: 0.02 | N111: 0 | O111: 16 | P111: 35.35
A112: 00:01:50 | B112: 00:58:35 | C112: 400 | D112: 400 | E112: 21 | F112: 22 | G112: 21 | H112: 21 | I112: 0.11 | J112: 4 | K112: 0.06 | L112: 0 | M112: 0.02 | N112: 0 | O112: 16 | P112: 35.35
A113: 00:01:51 | B113: 00:58:36 | C113: 400 | D113: 400 | E113: 21 | F113: 22 | G113: 21 | H113: 21 | I113: 0.11 | J113: 4 | K113: 0.06 | L113: 0.01 | M113: 0.02 | N113: 0.0002 | O113: 16 | P113: 35.35
A114: 00:01:52 | B114: 00:58:37 | C114: 400 | D114: 400 | E114: 21 | F114: 22 | G114: 21 | H114: 21 | I114: 0.11 | J114: 4 | K114: 0.03 | L114: 0 | M114: 0.02 | N114: 0 | O114: 16 | P114: 35.35
A115: 00:01:53 | B115: 00:58:38 | C115: 400 | D115: 400 | E115: 21 | F115: 22 | G115: 21 | H115: 21 | I115: 0.11 | J115: 4 | K115: 0.03 | L115: 0 | M115: 0.02 | N115: 0 | O115: 16 | P115: 35.35
A116: 00:01:54 | B116: 00:58:39 | C116: 400 | D116: 400 | E116: 21 | F116: 22 | G116: 21 | H116: 21 | I116: 0.11 | J116: 4 | K116: 0.03 | L116: 0 | M116: 0.02 | N116: 0 | O116: 16 | P116: 35.35
A117: 00:01:55 | B117: 00:58:40 | C117: 400 | D117: 400 | E117: 21 | F117: 22 | G117: 21 | H117: 21 | I117: 0.11 | J117: 4 | K117: 0.03 | L117: 0 | M117: 0.02 | N117: 0 | O117: 16 | P117: 35.35
A118: 00:01:56 | B118: 00:58:41 | C118: 400 | D118: 400 | E118: 21 | F118: 22 | G118: 21 | H118: 21 | I118: 0.11 | J118: 4 | K118: 0.03 | L118: 0 | M118: 0.03 | N118: 0 | O118: 16 | P118: 35.35
A119: 00:01:57 | B119: 00:58:42 | C119: 400 | D119: 400 | E119: 21 | F119: 22 | G119: 21 | H119: 21 | I119: 0.11 | J119: 4 | K119: 0.03 | L119: 0 | M119: 0.03 | N119: 0 | O119: 16 | P119: 35.35
A120: 00:01:58 | B120: 00:58:43 | C120: 400 | D120: 400 | E120: 21 | F120: 22 | G120: 21 | H120: 21 | I120: 0.11 | J120: 4 | K120: 0.03 | L120: 0 | M120: 0.02 | N120: 0 | O120: 16 | P120: 35.35
A121: 00:01:59 | B121: 00:58:44 | C121: 400 | D121: 400 | E121: 21 | F121: 22 | G121: 21 | H121: 21 | I121: 0.11 | J121: 4 | K121: 0.03 | L121: 0 | M121: 0.02 | N121: 0 | O121: 16 | P121: 35.35
A122: 00:02:00 | B122: 00:58:45 | C122: 400 | D122: 400 | E122: 21 | F122: 22 | G122: 21 | H122: 21 | I122: 0.11 | J122: 4 | K122: 0.03 | L122: 0 | M122: 0.02 | N122: 0 | O122: 16 | P122: 35.35
A123: 00:02:01 | B123: 00:58:46 | C123: 400 | D123: 400 | E123: 21 | F123: 22 | G123: 21 | H123: 21 | I123: 0.11 | J123: 4 | K123: 0.03 | L123: 0 | M123: 0.03 | N123: 0 | O123: 16 | P123: 35.35
A124: 00:02:02 | B124: 00:58:47 | C124: 400 | D124: 400 | E124: 21 | F124: 22 | G124: 21 | H124: 21 | I124: 0.11 | J124: 4 | K124: 0.06 | L124: 0 | M124: 0.02 | N124: 0 | O124: 16 | P124: 35.35
A125: 00:02:03 | B125: 00:58:48 | C125: 400 | D125: 400 | E125: 21 | F125: 22 | G125: 21 | H125: 21 | I125: 0.11 | J125: 4 | K125: 0.06 | L125: 0 | M125: 0.03 | N125: 0 | O125: 16 | P125: 35.35
A126: 00:02:04 | B126: 00:58:49 | C126: 400 | D126: 400 | E126: 21 | F126: 22 | G126: 21 | H126: 21 | I126: 0.11 | J126: 4 | K126: 0.06 | L126: 0 | M126: 0.02 | N126: 0 | O126: 16 | P126: 35.36
A127: 00:02:05 | B127: 00:58:50 | C127: 400 | D127: 400 | E127: 21 | F127: 22 | G127: 21 | H127: 21 | I127: 0.11 | J127: 4 | K127: 0.01 | L127: 0 | M127: 0.02 | N127: 0 | O127: 16 | P127: 35.36
A128: 00:02:06 | B128: 00:58:51 | C128: 400 | D128: 400 | E128: 21 | F128: 22 | G128: 21 | H128: 21 | I128: 0.11 | J128: 4 | K128: 0.01 | L128: 0 | M128: 0.02 | N128: 0 | O128: 16 | P128: 35.36
A129: 00:02:07 | B129: 00:58:52 | C129: 400 | D129: 400 | E129: 21 | F129: 22 | G129: 21 | H129: 21 | I129: 0.11 | J129: 4 | K129: 0.01 | L129: 0 | M129: 0.02 | N129: 0 | O129: 16 | P129: 35.36
A130: 00:02:08 | B130: 00:58:53 | C130: 400 | D130: 400 | E130: 21 | F130: 22 | G130: 21 | H130: 21 | I130: 0.11 | J130: 4 | K130: 0 | L130: 0 | M130: 0.03 | N130: 0 | O130: 16 | P130: 35.36
A131: 00:02:09 | B131: 00:58:54 | C131: 400 | D131: 400 | E131: 21 | F131: 22 | G131: 21 | H131: 21 | I131: 0.11 | J131: 4 | K131: 0 | L131: 0 | M131: 0.02 | N131: 0 | O131: 16 | P131: 35.36
A132: 00:02:10 | B132: 00:58:55 | C132: 400 | D132: 400 | E132: 21 | F132: 22 | G132: 21 | H132: 21 | I132: 0.11 | J132: 4 | K132: 0 | L132: 0 | M132: 0.02 | N132: 0 | O132: 16 | P132: 35.36
A133: 00:02:11 | B133: 00:58:56 | C133: 400 | D133: 400 | E133: 21 | F133: 22 | G133: 21 | H133: 21 | I133: 0.11 | J133: 4 | K133: 0 | L133: 0 | M133: 0.03 | N133: 0 | O133: 16 | P133: 35.36
A134: 00:02:12 | B134: 00:58:57 | C134: 400 | D134: 400 | E134: 21 | F134: 22 | G134: 21 | H134: 21 | I134: 0.11 | J134: 4 | K134: 0 | L134: 0 | M134: 0.03 | N134: 0 | O134: 16 | P134: 35.36
A135: 00:02:13 | B135: 00:58:58 | C135: 400 | D135: 400 | E135: 21 | F135: 22 | G135: 21 | H135: 21 | I135: 0.11 | J135: 4 | K135: 0 | L135: 0 | M135: 0.02 | N135: 0 | O135: 16 | P135: 35.36
A136: 00:02:14 | B136: 00:58:59 | C136: 400 | D136: 400 | E136: 21 | F136: 22 | G136: 21 | H136: 21 | I136: 0.11 | J136: 4 | K136: 0 | L136: 0.01 | M136: 0.03 | N136: 0.0003 | O136: 16 | P136: 35.36
A137: 00:02:15 | B137: 00:59:00 | C137: 400 | D137: 400 | E137: 21 | F137: 22 | G137: 21 | H137: 21 | I137: 0.11 | J137: 4 | K137: 0 | L137: 0.01 | M137: 0.02 | N137: 0.0002 | O137: 16 | P137: 35.36
A138: 00:02:16 | B138: 00:59:01 | C138: 400 | D138: 400 | E138: 21 | F138: 22 | G138: 21 | H138: 21 | I138: 0.11 | J138: 4 | K138: 0 | L138: 0 | M138: 0.03 | N138: 0 | O138: 16 | P138: 35.36
A139: 00:02:17 | B139: 00:59:02 | C139: 400 | D139: 400 | E139: 21 | F139: 22 | G139: 21 | H139: 21 | I139: 0.11 | J139: 4 | K139: 0 | L139: 0 | M139: 0.03 | N139: 0 | O139: 16 | P139: 35.36
A140: 00:02:18 | B140: 00:59:03 | C140: 400 | D140: 400 | E140: 21 | F140: 22 | G140: 21 | H140: 21 | I140: 0.11 | J140: 4 | K140: 0 | L140: 0.01 | M140: 0.03 | N140: 0.0003 | O140: 16 | P140: 35.36
A141: 00:02:19 | B141: 00:59:04 | C141: 400 | D141: 400 | E141: 21 | F141: 22 | G141: 21 | H141: 21 | I141: 0.11 | J141: 4 | K141: 0.02 | L141: 0.01 | M141: 0.03 | N141: 0.0003 | O141: 16 | P141: 35.36
A142: 00:02:20 | B142: 00:59:05 | C142: 400 | D142: 400 | E142: 21 | F142: 22 | G142: 21 | H142: 21 | I142: 0.11 | J142: 4 | K142: 0.02 | L142: 0 | M142: 0.03 | N142: 0 | O142: 16 | P142: 35.36
A143: 00:02:21 | B143: 00:59:06 | C143: 400 | D143: 400 | E143: 21 | F143: 22 | G143: 21 | H143: 21 | I143: 0.11 | J143: 4 | K143: 0.02 | L143: 0 | M143: 0.02 | N143: 0 | O143: 16 | P143: 35.36
A144: 00:02:22 | B144: 00:59:07 | C144: 400 | D144: 400 | E144: 20 | F144: 22 | G144: 21 | H144: 21 | I144: 0.11 | J144: 4 | K144: -0.02 | L144: 0.01 | M144: 0.03 | N144: 0.0003 | O144: 16 | P144: 35.36
A145: 00:02:23 | B145: 00:59:08 | C145: 400 | D145: 400 | E145: 20 | F145: 22 | G145: 21 | H145: 21 | I145: 0.11 | J145: 4 | K145: -0.02 | L145: 0 | M145: 0.03 | N145: 0 | O145: 16 | P145: 35.36
A146: 00:02:24 | B146: 00:59:09 | C146: 400 | D146: 400 | E146: 20 | F146: 22 | G146: 21 | H146: 21 | I146: 0.11 | J146: 4 | K146: -0.02 | L146: 0.01 | M146: 0.03 | N146: 0.0003 | O146: 16 | P146: 35.36
A147: 00:02:25 | B147: 00:59:10 | C147: 400 | D147: 400 | E147: 20 | F147: 22 | G147: 21 | H147: 21 | I147: 0.11 | J147: 4 | K147: 0 | L147: 0.01 | M147: 0.02 | N147: 0.0002 | O147: 16 | P147: 35.36
A148: 00:02:26 | B148: 00:59:11 | C148: 400 | D148: 400 | E148: 20 | F148: 22 | G148: 21 | H148: 21 | I148: 0.11 | J148: 4 | K148: 0 | L148: 0.01 | M148: 0.02 | N148: 0.0002 | O148: 16 | P148: 35.36
A149: 00:02:27 | B149: 00:59:12 | C149: 400 | D149: 400 | E149: 20 | F149: 22 | G149: 21 | H149: 21 | I149: 0.11 | J149: 4 | K149: 0 | L149: 0 | M149: 0.02 | N149: 0 | O149: 16 | P149: 35.36
A150: 00:02:28 | B150: 00:59:13 | C150: 400 | D150: 400 | E150: 20 | F150: 22 | G150: 21 | H150: 21 | I150: 0.11 | J150: 4 | K150: 0 | L150: 0 | M150: 0.02 | N150: 0 | O150: 16 | P150: 35.36
A151: 00:02:29 | B151: 00:59:14 | C151: 400 | D151: 400 | E151: 20 | F151: 22 | G151: 21 | H151: 21 | I151: 0.11 | J151: 4 | K151: 0 | L151: 0 | M151: 0.03 | N151: 0 | O151: 16 | P151: 35.36
A152: 00:02:30 | B152: 00:59:15 | C152: 400 | D152: 400 | E152: 20 | F152: 22 | G152: 21 | H152: 21 | I152: 0.11 | J152: 4 | K152: 0 | L152: 0 | M152: 0.02 | N152: 0 | O152: 16 | P152: 35.36
A153: 00:02:31 | B153: 00:59:16 | C153: 400 | D153: 400 | E153: 20 | F153: 22 | G153: 21 | H153: 21 | I153: 0.11 | J153: 4 | K153: 0 | L153: 0 | M153: 0.02 | N153: 0 | O153: 16 | P153: 35.36
A154: 00:02:32 | B154: 00:59:17 | C154: 400 | D154: 400 | E154: 20 | F154: 22 | G154: 21 | H154: 21 | I154: 0.11 | J154: 4 | K154: 0 | L154: 0 | M154: 0.02 | N154: 0 | O154: 16 | P154: 35.36
A155: 00:02:33 | B155: 00:59:18 | C155: 400 | D155: 400 | E155: 20 | F155: 22 | G155: 21 | H155: 21 | I155: 0.11 | J155: 4 | K155: 0 | L155: 0 | M155: 0.02 | N155: 0 | O155: 16 | P155: 35.36
A156: 00:02:34 | B156: 00:59:19 | C156: 400 | D156: 400 | E156: 20 | F156: 22 | G156: 21 | H156: 21 | I156: 0.11 | J156: 4 | K156: 0 | L156: 0 | M156: 0.02 | N156: 0 | O156: 16 | P156: 35.36
A157: 00:02:35 | B157: 00:59:20 | C157: 400 | D157: 400 | E157: 20 | F157: 22 | G157: 21 | H157: 21 | I157: 0.11 | J157: 4 | K157: 0.01 | L157: 0.01 | M157: 0.02 | N157: 0.0002 | O157: 16 | P157: 35.36
A158: 00:02:36 | B158: 00:59:21 | C158: 400 | D158: 400 | E158: 20 | F158: 22 | G158: 21 | H158: 21 | I158: 0.11 | J158: 4 | K158: 0.01 | L158: 0 | M158: 0.02 | N158: 0 | O158: 16 | P158: 35.36
A159: 00:02:37 | B159: 00:59:22 | C159: 400 | D159: 400 | E159: 20 | F159: 22 | G159: 21 | H159: 21 | I159: 0.11 | J159: 4 | K159: 0.01 | L159: 0 | M159: 0.03 | N159: 0 | O159: 16 | P159: 35.36
A160: 00:02:38 | B160: 00:59:23 | C160: 400 | D160: 400 | E160: 20 | F160: 22 | G160: 21 | H160: 21 | I160: 0.11 | J160: 4 | K160: 0.01 | L160: 0 | M160: 0.02 | N160: 0 | O160: 16 | P160: 35.36
A161: 00:02:39 | B161: 00:59:24 | C161: 400 | D161: 400 | E161: 20 | F161: 22 | G161: 21 | H161: 21 | I161: 0.11 | J161: 4 | K161: 0 | L161: 0 | M161: 0.03 | N161: 0 | O161: 16 | P161: 35.36 | Q161: =P161-35.36 -> 0
A162: 00:02:40 | B162: 00:59:25 | C162: 400 | D162: 400 | E162: 20 | F162: 22 | G162: 21 | H162: 21 | I162: 0.11 | J162: 4 | K162: 0 | L162: 5.9 | M162: 0.81 | N162: 4.779 | O162: 16 | P162: 35.36 | Q162: 0
A163: 00:02:41 | B163: 00:59:26 | C163: 400 | D163: 400 | E163: 21 | F163: 24 | G163: 22 | H163: 21 | I163: 0.11 | J163: 4 | K163: 0 | L163: 5.96 | M163: 0.89 | N163: 5.3044 | O163: 16 | P163: 35.35 | Q163: -0.01
A164: 00:02:42 | B164: 00:59:27 | C164: 400 | D164: 400 | E164: 21 | F164: 23 | G164: 22 | H164: 21 | I164: 0.11 | J164: 4 | K164: -0.05 | L164: 5.93 | M164: 0.93 | N164: 5.5149 | O164: 16 | P164: 35.35 | Q164: -0.01
A165: 00:02:43 | B165: 00:59:28 | C165: 400 | D165: 400 | E165: 21 | F165: 23 | G165: 22 | H165: 21 | I165: 0.11 | J165: 4 | K165: -0.05 | L165: 5.94 | M165: 0.96 | N165: 5.7024 | O165: 16 | P165: 35.35 | Q165: -0.01
A166: 00:02:44 | B166: 00:59:29 | C166: 400 | D166: 400 | E166: 21 | F166: 23 | G166: 22 | H166: 21 | I166: 0.11 | J166: 4 | K166: -0.05 | L166: 5.94 | M166: 0.97 | N166: 5.7618 | O166: 16 | P166: 35.35 | Q166: -0.01
A167: 00:02:45 | B167: 00:59:30 | C167: 400 | D167: 400 | E167: 21 | F167: 23 | G167: 22 | H167: 21 | I167: 0.11 | J167: 4 | K167: -0.05 | L167: 5.91 | M167: 0.99 | N167: 5.8509 | O167: 16 | P167: 35.35 | Q167: -0.01
A168: 00:02:46 | B168: 00:59:31 | C168: 400 | D168: 400 | E168: 21 | F168: 23 | G168: 22 | H168: 22 | I168: 0.11 | J168: 4 | K168: 0 | L168: 5.89 | M168: 0.99 | N168: 5.8311 | O168: 16 | P168: 35.35 | Q168: -0.01
A169: 00:02:47 | B169: 00:59:32 | C169: 400 | D169: 400 | E169: 21 | F169: 23 | G169: 22 | H169: 22 | I169: 0.11 | J169: 4 | K169: 0 | L169: 5.89 | M169: 1.01 | N169: 5.9489 | O169: 16 | P169: 35.35 | Q169: -0.01
A170: 00:02:48 | B170: 00:59:33 | C170: 400 | D170: 400 | E170: 21 | F170: 23 | G170: 22 | H170: 21 | I170: 0.11 | J170: 4 | K170: 0 | L170: 5.88 | M170: 1.02 | N170: 5.9976 | O170: 16 | P170: 35.35 | Q170: -0.01
A171: 00:02:49 | B171: 00:59:34 | C171: 400 | D171: 400 | E171: 21 | F171: 23 | G171: 22 | H171: 21 | I171: 0.12 | J171: 4 | K171: -0.01 | L171: 5.9 | M171: 1.03 | N171: 6.077 | O171: 16 | P171: 35.35 | Q171: -0.01
A172: 00:02:50 | B172: 00:59:35 | C172: 400 | D172: 400 | E172: 21 | F172: 23 | G172: 22 | H172: 21 | I172: 0.12 | J172: 4 | K172: -0.01 | L172: 5.88 | M172: 1.04 | N172: 6.1152 | O172: 16 | P172: 35.35 | Q172: -0.01
A173: 00:02:51 | B173: 00:59:36 | C173: 400 | D173: 400 | E173: 21 | F173: 23 | G173: 22 | H173: 21 | I173: 0.12 | J173: 4 | K173: -0.01 | L173: 5.9 | M173: 1.05 | N173: 6.195 | O173: 16 | P173: 35.35 | Q173: -0.01
A174: 00:02:52 | B174: 00:59:37 | C174: 400 | D174: 400 | E174: 21 | F174: 23 | G174: 22 | H174: 21 | I174: 0.12 | J174: 4 | K174: 0.01 | L174: 5.89 | M174: 1.07 | N174: 6.3023 | O174: 16 | P174: 35.35 | Q174: -0.01
A175: 00:02:53 | B175: 00:59:38 | C175: 400 | D175: 400 | E175: 21 | F175: 23 | G175: 22 | H175: 22 | I175: 0.12 | J175: 4 | K175: 0.01 | L175: 5.91 | M175: 1.07 | N175: 6.3237 | O175: 16 | P175: 35.35 | Q175: -0.01
A176: 00:02:54 | B176: 00:59:39 | C176: 400 | D176: 400 | E176: 21 | F176: 23 | G176: 22 | H176: 22 | I176: 0.12 | J176: 4 | K176: 0.01 | L176: 5.91 | M176: 1.08 | N176: 6.3828 | O176: 16 | P176: 35.35 | Q176: -0.01
A177: 00:02:55 | B177: 00:59:40 | C177: 400 | D177: 400 | E177: 21 | F177: 24 | G177: 22 | H177: 22 | I177: 0.12 | J177: 4 | K177: 0 | L177: 5.88 | M177: 1.09 | N177: 6.4092 | O177: 16 | P177: 35.35 | Q177: -0.01
A178: 00:02:56 | B178: 00:59:41 | C178: 400 | D178: 400 | E178: 21 | F178: 24 | G178: 22 | H178: 22 | I178: 0.12 | J178: 4 | K178: 0 | L178: 5.88 | M178: 1.09 | N178: 6.4092 | O178: 16 | P178: 35.35 | Q178: -0.01
A179: 00:02:57 | B179: 00:59:42 | C179: 400 | D179: 400 | E179: 21 | F179: 24 | G179: 22 | H179: 21 | I179: 0.13 | J179: 4 | K179: 0 | L179: 5.88 | M179: 1.1 | N179: 6.468 | O179: 16 | P179: 35.35 | Q179: -0.01
A180: 00:02:58 | B180: 00:59:43 | C180: 400 | D180: 400 | E180: 22 | F180: 24 | G180: 22 | H180: 22 | I180: 0.13 | J180: 4 | K180: 0 | L180: 5.88 | M180: 1.11 | N180: 6.5268 | O180: 16 | P180: 35.35 | Q180: -0.01
A181: 00:02:59 | B181: 00:59:44 | C181: 400 | D181: 400 | E181: 22 | F181: 24 | G181: 22 | H181: 22 | I181: 0.13 | J181: 4 | K181: 0.01 | L181: 5.88 | M181: 1.11 | N181: 6.5268 | O181: 16 | P181: 35.35 | Q181: -0.01
A182: 00:03:00 | B182: 00:59:45 | C182: 400 | D182: 400 | E182: 22 | F182: 24 | G182: 23 | H182: 22 | I182: 0.13 | J182: 4 | K182: 0.01 | L182: 5.92 | M182: 1.12 | N182: 6.6304 | O182: 16 | P182: 35.36 | Q182: 0
A183: 00:03:01 | B183: 00:59:46 | C183: 400 | D183: 400 | E183: 22 | F183: 25 | G183: 23 | H183: 21 | I183: 0.13 | J183: 4 | K183: 0.01 | L183: 5.88 | M183: 1.13 | N183: 6.6444 | O183: 16 | P183: 35.36 | Q183: 0
A184: 00:03:02 | B184: 00:59:47 | C184: 400 | D184: 400 | E184: 22 | F184: 25 | G184: 23 | H184: 21 | I184: 0.13 | J184: 4 | K184: 0.01 | L184: 5.88 | M184: 1.14 | N184: 6.7032 | O184: 16 | P184: 35.36 | Q184: 0
A185: 00:03:03 | B185: 00:59:48 | C185: 400 | D185: 400 | E185: 22 | F185: 25 | G185: 23 | H185: 21 | I185: 0.14 | J185: 4 | K185: 0.01 | L185: 5.87 | M185: 1.15 | N185: 6.7505 | O185: 16 | P185: 35.36 | Q185: 0
A186: 00:03:04 | B186: 00:59:49 | C186: 400 | D186: 400 | E186: 22 | F186: 25 | G186: 23 | H186: 22 | I186: 0.14 | J186: 4 | K186: 0.01 | L186: 5.86 | M186: 1.15 | N186: 6.739 | O186: 16 | P186: 35.36 | Q186: 0
A187: 00:03:05 | B187: 00:59:50 | C187: 400 | D187: 400 | E187: 22 | F187: 25 | G187: 23 | H187: 22 | I187: 0.14 | J187: 4 | K187: 0.01 | L187: 5.87 | M187: 1.16 | N187: 6.8092 | O187: 16 | P187: 35.36 | Q187: 0
A188: 00:03:06 | B188: 00:59:51 | C188: 400 | D188: 400 | E188: 22 | F188: 26 | G188: 23 | H188: 22 | I188: 0.14 | J188: 4 | K188: 0.01 | L188: 5.85 | M188: 1.17 | N188: 6.8445 | O188: 16 | P188: 35.36 | Q188: 0
A189: 00:03:07 | B189: 00:59:52 | C189: 400 | D189: 400 | E189: 22 | F189: 26 | G189: 23 | H189: 22 | I189: 0.14 | J189: 4 | K189: 0.01 | L189: 5.85 | M189: 1.17 | N189: 6.8445 | O189: 16 | P189: 35.36 | Q189: 0
A190: 00:03:08 | B190: 00:59:53 | C190: 400 | D190: 400 | E190: 23 | F190: 26 | G190: 23 | H190: 22 | I190: 0.14 | J190: 4 | K190: 0.01 | L190: 5.88 | M190: 1.18 | N190: 6.9384 | O190: 16 | P190: 35.37 | Q190: 0.01
A191: 00:03:09 | B191: 00:59:54 | C191: 411 | D191: 400 | E191: 23 | F191: 27 | G191: 23 | H191: 22 | I191: 0.15 | J191: 4 | K191: 0.21 | L191: 5.85 | M191: 1.18 | N191: 6.903 | O191: 16 | P191: 35.37 | Q191: 0.01
A192: 00:03:10 | B192: 00:59:55 | C192: 411 | D192: 400 | E192: 23 | F192: 27 | G192: 23 | H192: 22 | I192: 0.15 | J192: 4 | K192: 0.21 | L192: 5.85 | M192: 1.18 | N192: 6.903 | O192: 16 | P192: 35.38 | Q192: 0.02
A193: 00:03:11 | B193: 00:59:56 | C193: 426 | D193: 406 | E193: 23 | F193: 27 | G193: 23 | H193: 22 | I193: 0.15 | J193: 4 | K193: 0.21 | L193: 5.83 | M193: 1.19 | N193: 6.9377 | O193: 16 | P193: 35.39 | Q193: 0.03
A194: 00:03:12 | B194: 00:59:57 | C194: 440 | D194: 426 | E194: 23 | F194: 28 | G194: 24 | H194: 21 | I194: 0.15 | J194: 4 | K194: 0.76 | L194: 5.88 | M194: 1.19 | N194: 6.9972 | O194: 16 | P194: 35.41 | Q194: 0.05
A195: 00:03:13 | B195: 00:59:58 | C195: 440 | D195: 426 | E195: 23 | F195: 28 | G195: 24 | H195: 21 | I195: 0.15 | J195: 4 | K195: 0.76 | L195: 5.88 | M195: 1.19 | N195: 6.9972 | O195: 16 | P195: 35.42 | Q195: 0.06
A196: 00:03:14 | B196: 00:59:59 | C196: 454 | D196: 436 | E196: 23 | F196: 28 | G196: 24 | H196: 21 | I196: 0.16 | J196: 4 | K196: 0.76 | L196: 5.88 | M196: 0.03 | N196: 0.1764 | O196: 16 | P196: 35.45 | Q196: 0.09
A197: 00:03:15 | B197: 01:00:00 | C197: 460 | D197: 444 | E197: 23 | F197: 28 | G197: 23 | H197: 21 | I197: 0.16 | J197: 4 | K197: 0.76 | L197: 0.16 | M197: 0.24 | N197: 0.0384 | O197: 16 | P197: 35.5 | Q197: 0.14
A198: 00:03:16 | B198: 01:00:01 | C198: 460 | D198: 450 | E198: 23 | F198: 28 | G198: 24 | H198: 21 | I198: 0.16 | J198: 4 | K198: 1.72 | L198: 0.16 | M198: 0.24 | N198: 0.0384 | O198: 16 | P198: 35.53 | Q198: 0.17
A199: 00:03:17 | B199: 01:00:02 | C199: 460 | D199: 455 | E199: 24 | F199: 29 | G199: 24 | H199: 21 | I199: 0.16 | J199: 4 | K199: 1.72 | L199: 0.01 | M199: 0.03 | N199: 0.0003 | O199: 16 | P199: 35.58 | Q199: 0.22
A200: 00:03:18 | B200: 01:00:03 | C200: 458 | D200: 459 | E200: 24 | F200: 29 | G200: 24 | H200: 21 | I200: 0.17 | J200: 4 | K200: 1.72 | L200: 0 | M200: 0.02 | N200: 0 | O200: 16 | P200: 35.63 | Q200: 0.27
... 1852 more rows

Sheet 1483
A1: P.Zeit | C1: Pyrometer | D1: Pyrometer B | E1: MTC1 | F1: MTC2 | G1: MTC3 | H1: MTC4 | I1: Press. abs 1 | J1: Press. abs 2 | K1: Speed | L1: U RMS | M1: I RMS | N1: Power | O1: Force | P1: Abs Piston Tra. | Q1: Rel Piston Tra.
A2: 00:00:00 | B2: 00:55:26 | C2: 400 | D2: 400 | E2: 19 | F2: 20 | G2: 20 | H2: 19 | I2: 0.12 | J2: 4 | K2: 0 | L2: 0 | M2: 0 | N2: =L2*M2 -> 0 | O2: 5 | P2: 32.76
A3: 00:00:01 | B3: 00:55:27 | C3: 400 | D3: 400 | E3: 19 | F3: 20 | G3: 20 | H3: 19 | I3: 0.12 | J3: 4 | K3: 0 | L3: 0 | M3: 0.01 | N3: 0 | O3: 5 | P3: 32.86
A4: 00:00:02 | B4: 00:55:28 | C4: 400 | D4: 400 | E4: 19 | F4: 20 | G4: 20 | H4: 19 | I4: 0.12 | J4: 4 | K4: 0 | L4: 0 | M4: 0.01 | N4: 0 | O4: 5 | P4: 33.15
A5: 00:00:03 | B5: 00:55:29 | C5: 400 | D5: 400 | E5: 19 | F5: 20 | G5: 20 | H5: 19 | I5: 0.12 | J5: 4 | K5: 7.89 | L5: 0 | M5: 0.01 | N5: 0 | O5: 5 | P5: 33.18
A6: 00:00:04 | B6: 00:55:30 | C6: 400 | D6: 400 | E6: 19 | F6: 20 | G6: 20 | H6: 19 | I6: 0.12 | J6: 4 | K6: 7.89 | L6: 0 | M6: 0.01 | N6: 0 | O6: 5 | P6: 33.18
A7: 00:00:05 | B7: 00:55:31 | C7: 400 | D7: 400 | E7: 19 | F7: 20 | G7: 20 | H7: 19 | I7: 0.12 | J7: 4 | K7: 7.89 | L7: 0 | M7: 0.01 | N7: 0 | O7: 5 | P7: 33.21
A8: 00:00:06 | B8: 00:55:32 | C8: 400 | D8: 400 | E8: 19 | F8: 20 | G8: 20 | H8: 19 | I8: 0.12 | J8: 4 | K8: 7.89 | L8: 0 | M8: 0.01 | N8: 0 | O8: 6 | P8: 33.26
A9: 00:00:07 | B9: 00:55:33 | C9: 400 | D9: 400 | E9: 19 | F9: 20 | G9: 20 | H9: 19 | I9: 0.12 | J9: 4 | K9: 1.54 | L9: 0 | M9: 0.01 | N9: 0 | O9: 6 | P9: 33.28
A10: 00:00:08 | B10: 00:55:34 | C10: 400 | D10: 400 | E10: 19 | F10: 20 | G10: 20 | H10: 19 | I10: 0.12 | J10: 4 | K10: 1.54 | L10: 0 | M10: 0.01 | N10: 0 | O10: 6 | P10: 33.36
A11: 00:00:09 | B11: 00:55:35 | C11: 400 | D11: 400 | E11: 19 | F11: 20 | G11: 20 | H11: 19 | I11: 0.12 | J11: 4 | K11: 1.54 | L11: 0 | M11: 0.01 | N11: 0 | O11: 6 | P11: 33.41
A12: 00:00:10 | B12: 00:55:36 | C12: 400 | D12: 400 | E12: 19 | F12: 20 | G12: 20 | H12: 19 | I12: 0.12 | J12: 4 | K12: 2.87 | L12: 0 | M12: 0.01 | N12: 0 | O12: 6 | P12: 33.43
A13: 00:00:11 | B13: 00:55:37 | C13: 400 | D13: 400 | E13: 19 | F13: 20 | G13: 20 | H13: 19 | I13: 0.12 | J13: 4 | K13: 2.87 | L13: 0 | M13: 0.01 | N13: 0 | O13: 6 | P13: 33.46
A14: 00:00:12 | B14: 00:55:38 | C14: 400 | D14: 400 | E14: 19 | F14: 20 | G14: 20 | H14: 19 | I14: 0.12 | J14: 4 | K14: 2.87 | L14: 0 | M14: 0.01 | N14: 0 | O14: 6 | P14: 33.46
A15: 00:00:13 | B15: 00:55:39 | C15: 400 | D15: 400 | E15: 19 | F15: 20 | G15: 20 | H15: 19 | I15: 0.12 | J15: 4 | K15: 2.87 | L15: 0 | M15: 0.01 | N15: 0 | O15: 6 | P15: 33.48
A16: 00:00:14 | B16: 00:55:40 | C16: 400 | D16: 400 | E16: 19 | F16: 20 | G16: 20 | H16: 19 | I16: 0.12 | J16: 4 | K16: 1.05 | L16: 0 | M16: 0.01 | N16: 0 | O16: 6 | P16: 33.5
A17: 00:00:15 | B17: 00:55:41 | C17: 400 | D17: 400 | E17: 19 | F17: 20 | G17: 20 | H17: 19 | I17: 0.12 | J17: 4 | K17: 1.05 | L17: 0 | M17: 0.01 | N17: 0 | O17: 6 | P17: 33.51
A18: 00:00:16 | B18: 00:55:42 | C18: 400 | D18: 400 | E18: 19 | F18: 20 | G18: 20 | H18: 19 | I18: 0.12 | J18: 4 | K18: 1.05 | L18: 0 | M18: 0.01 | N18: 0 | O18: 6 | P18: 33.54
A19: 00:00:17 | B19: 00:55:43 | C19: 400 | D19: 400 | E19: 19 | F19: 20 | G19: 20 | H19: 19 | I19: 0.12 | J19: 4 | K19: 1.21 | L19: 0 | M19: 0.01 | N19: 0 | O19: 6 | P19: 33.57
A20: 00:00:18 | B20: 00:55:44 | C20: 400 | D20: 400 | E20: 19 | F20: 20 | G20: 20 | H20: 19 | I20: 0.12 | J20: 4 | K20: 1.21 | L20: 0 | M20: 0.01 | N20: 0 | O20: 7 | P20: 33.59
A21: 00:00:19 | B21: 00:55:45 | C21: 400 | D21: 400 | E21: 19 | F21: 20 | G21: 20 | H21: 19 | I21: 0.12 | J21: 4 | K21: 1.21 | L21: 0 | M21: 0.01 | N21: 0 | O21: 7 | P21: 33.65
A22: 00:00:20 | B22: 00:55:46 | C22: 400 | D22: 400 | E22: 19 | F22: 20 | G22: 20 | H22: 19 | I22: 0.12 | J22: 4 | K22: 2.74 | L22: 0 | M22: 0.01 | N22: 0 | O22: 7 | P22: 33.73
A23: 00:00:21 | B23: 00:55:47 | C23: 400 | D23: 400 | E23: 19 | F23: 20 | G23: 20 | H23: 19 | I23: 0.12 | J23: 4 | K23: 2.74 | L23: 0 | M23: 0.01 | N23: 0 | O23: 7 | P23: 33.78
A24: 00:00:22 | B24: 00:55:48 | C24: 400 | D24: 400 | E24: 19 | F24: 20 | G24: 20 | H24: 19 | I24: 0.12 | J24: 4 | K24: 2.74 | L24: 0 | M24: 0.01 | N24: 0 | O24: 7 | P24: 33.84
A25: 00:00:23 | B25: 00:55:49 | C25: 400 | D25: 400 | E25: 19 | F25: 20 | G25: 20 | H25: 19 | I25: 0.12 | J25: 4 | K25: 3.12 | L25: 0 | M25: 0.01 | N25: 0 | O25: 7 | P25: 33.88
A26: 00:00:24 | B26: 00:55:50 | C26: 400 | D26: 400 | E26: 19 | F26: 20 | G26: 20 | H26: 19 | I26: 0.12 | J26: 4 | K26: 3.12 | L26: 0 | M26: 0.01 | N26: 0 | O26: 7 | P26: 33.89
A27: 00:00:25 | B27: 00:55:51 | C27: 400 | D27: 400 | E27: 19 | F27: 20 | G27: 20 | H27: 19 | I27: 0.12 | J27: 4 | K27: 3.12 | L27: 0 | M27: 0 | N27: 0 | O27: 7 | P27: 33.92
A28: 00:00:26 | B28: 00:55:52 | C28: 400 | D28: 400 | E28: 19 | F28: 20 | G28: 20 | H28: 19 | I28: 0.12 | J28: 4 | K28: 3.12 | L28: 0 | M28: 0.01 | N28: 0 | O28: 7 | P28: 33.93
A29: 00:00:27 | B29: 00:55:53 | C29: 400 | D29: 400 | E29: 19 | F29: 20 | G29: 20 | H29: 19 | I29: 0.12 | J29: 4 | K29: 1.47 | L29: 0 | M29: 0.01 | N29: 0 | O29: 7 | P29: 33.97
A30: 00:00:28 | B30: 00:55:54 | C30: 400 | D30: 400 | E30: 19 | F30: 20 | G30: 20 | H30: 19 | I30: 0.12 | J30: 4 | K30: 1.47 | L30: 0 | M30: 0.01 | N30: 0 | O30: 7 | P30: 34.02
A31: 00:00:29 | B31: 00:55:55 | C31: 400 | D31: 400 | E31: 19 | F31: 20 | G31: 20 | H31: 19 | I31: 0.12 | J31: 4 | K31: 1.47 | L31: 0 | M31: 0.01 | N31: 0 | O31: 7 | P31: 34.04
A32: 00:00:30 | B32: 00:55:56 | C32: 400 | D32: 400 | E32: 19 | F32: 20 | G32: 20 | H32: 19 | I32: 0.12 | J32: 4 | K32: 2.6 | L32: 0 | M32: 0.01 | N32: 0 | O32: 8 | P32: 34.11
A33: 00:00:31 | B33: 00:55:57 | C33: 400 | D33: 400 | E33: 19 | F33: 20 | G33: 20 | H33: 19 | I33: 0.12 | J33: 4 | K33: 2.6 | L33: 0 | M33: 0.01 | N33: 0 | O33: 8 | P33: 34.18
A34: 00:00:32 | B34: 00:55:58 | C34: 400 | D34: 400 | E34: 19 | F34: 20 | G34: 20 | H34: 19 | I34: 0.12 | J34: 4 | K34: 2.6 | L34: 0 | M34: 0.01 | N34: 0 | O34: 8 | P34: 34.2
A35: 00:00:33 | B35: 00:55:59 | C35: 400 | D35: 400 | E35: 19 | F35: 20 | G35: 20 | H35: 19 | I35: 0.12 | J35: 4 | K35: 2.6 | L35: 0 | M35: 0.01 | N35: 0 | O35: 8 | P35: 34.23
A36: 00:00:34 | B36: 00:56:00 | C36: 400 | D36: 400 | E36: 19 | F36: 20 | G36: 20 | H36: 19 | I36: 0.12 | J36: 4 | K36: 2.28 | L36: 0 | M36: 0.01 | N36: 0 | O36: 8 | P36: 34.25
A37: 00:00:35 | B37: 00:56:01 | C37: 400 | D37: 400 | E37: 19 | F37: 20 | G37: 20 | H37: 19 | I37: 0.12 | J37: 4 | K37: 2.28 | L37: 0 | M37: 0.01 | N37: 0 | O37: 8 | P37: 34.26
A38: 00:00:36 | B38: 00:56:02 | C38: 400 | D38: 400 | E38: 19 | F38: 20 | G38: 20 | H38: 19 | I38: 0.12 | J38: 4 | K38: 2.28 | L38: 0 | M38: 0.01 | N38: 0 | O38: 8 | P38: 34.29
A39: 00:00:37 | B39: 00:56:03 | C39: 400 | D39: 400 | E39: 19 | F39: 20 | G39: 20 | H39: 19 | I39: 0.12 | J39: 4 | K39: 1.19 | L39: 0 | M39: 0.01 | N39: 0 | O39: 8 | P39: 34.33
A40: 00:00:38 | B40: 00:56:04 | C40: 400 | D40: 400 | E40: 19 | F40: 20 | G40: 20 | H40: 19 | I40: 0.12 | J40: 4 | K40: 1.19 | L40: 0 | M40: 0.01 | N40: 0 | O40: 8 | P40: 34.36
A41: 00:00:39 | B41: 00:56:05 | C41: 400 | D41: 400 | E41: 19 | F41: 20 | G41: 20 | H41: 19 | I41: 0.12 | J41: 4 | K41: 1.19 | L41: 0 | M41: 0.01 | N41: 0 | O41: 8 | P41: 34.42
A42: 00:00:40 | B42: 00:56:06 | C42: 400 | D42: 400 | E42: 19 | F42: 20 | G42: 20 | H42: 19 | I42: 0.12 | J42: 4 | K42: 1.19 | L42: 0 | M42: 0.01 | N42: 0 | O42: 8 | P42: 34.45
A43: 00:00:41 | B43: 00:56:07 | C43: 400 | D43: 400 | E43: 19 | F43: 20 | G43: 20 | H43: 19 | I43: 0.12 | J43: 4 | K43: 2.79 | L43: 0 | M43: 0.01 | N43: 0 | O43: 8 | P43: 34.48
A44: 00:00:42 | B44: 00:56:08 | C44: 400 | D44: 400 | E44: 19 | F44: 20 | G44: 20 | H44: 19 | I44: 0.12 | J44: 4 | K44: 2.79 | L44: 0 | M44: 0.01 | N44: 0 | O44: 9 | P44: 34.49
A45: 00:00:43 | B45: 00:56:09 | C45: 400 | D45: 400 | E45: 19 | F45: 20 | G45: 20 | H45: 19 | I45: 0.12 | J45: 4 | K45: 2.79 | L45: 0 | M45: 0.01 | N45: 0 | O45: 9 | P45: 34.5
A46: 00:00:44 | B46: 00:56:10 | C46: 400 | D46: 400 | E46: 19 | F46: 20 | G46: 20 | H46: 19 | I46: 0.12 | J46: 4 | K46: 0.97 | L46: 0 | M46: 0.01 | N46: 0 | O46: 9 | P46: 34.52
A47: 00:00:45 | B47: 00:56:11 | C47: 400 | D47: 400 | E47: 19 | F47: 20 | G47: 20 | H47: 19 | I47: 0.12 | J47: 4 | K47: 0.97 | L47: 0 | M47: 0.01 | N47: 0 | O47: 9 | P47: 34.56
A48: 00:00:46 | B48: 00:56:12 | C48: 400 | D48: 400 | E48: 19 | F48: 20 | G48: 20 | H48: 19 | I48: 0.12 | J48: 4 | K48: 0.97 | L48: 0 | M48: 0.01 | N48: 0 | O48: 9 | P48: 34.59
A49: 00:00:47 | B49: 00:56:13 | C49: 400 | D49: 400 | E49: 19 | F49: 20 | G49: 20 | H49: 19 | I49: 0.12 | J49: 4 | K49: 2.23 | L49: 0 | M49: 0.01 | N49: 0 | O49: 9 | P49: 34.65
A50: 00:00:48 | B50: 00:56:14 | C50: 400 | D50: 400 | E50: 19 | F50: 20 | G50: 20 | H50: 19 | I50: 0.12 | J50: 4 | K50: 2.23 | L50: 0 | M50: 0.01 | N50: 0 | O50: 9 | P50: 34.69
A51: 00:00:49 | B51: 00:56:15 | C51: 400 | D51: 400 | E51: 19 | F51: 20 | G51: 20 | H51: 19 | I51: 0.12 | J51: 4 | K51: 2.23 | L51: 0 | M51: 0.01 | N51: 0 | O51: 9 | P51: 34.71
A52: 00:00:50 | B52: 00:56:16 | C52: 400 | D52: 400 | E52: 19 | F52: 20 | G52: 20 | H52: 19 | I52: 0.12 | J52: 4 | K52: 1.61 | L52: 0 | M52: 0.01 | N52: 0 | O52: 9 | P52: 34.73
A53: 00:00:51 | B53: 00:56:17 | C53: 400 | D53: 400 | E53: 19 | F53: 20 | G53: 20 | H53: 19 | I53: 0.12 | J53: 4 | K53: 1.61 | L53: 0 | M53: 0.01 | N53: 0 | O53: 9 | P53: 34.73
A54: 00:00:52 | B54: 00:56:18 | C54: 400 | D54: 400 | E54: 19 | F54: 20 | G54: 20 | H54: 19 | I54: 0.12 | J54: 4 | K54: 1.61 | L54: 0 | M54: 0.01 | N54: 0 | O54: 9 | P54: 34.75
A55: 00:00:53 | B55: 00:56:19 | C55: 400 | D55: 400 | E55: 19 | F55: 20 | G55: 20 | H55: 19 | I55: 0.12 | J55: 4 | K55: 1.61 | L55: 0 | M55: 0.01 | N55: 0 | O55: 9 | P55: 34.77
A56: 00:00:54 | B56: 00:56:20 | C56: 400 | D56: 400 | E56: 19 | F56: 20 | G56: 20 | H56: 19 | I56: 0.12 | J56: 4 | K56: 0.84 | L56: 0 | M56: 0.01 | N56: 0 | O56: 10 | P56: 34.78
A57: 00:00:55 | B57: 00:56:21 | C57: 400 | D57: 400 | E57: 19 | F57: 20 | G57: 20 | H57: 19 | I57: 0.12 | J57: 4 | K57: 0.84 | L57: 0 | M57: 0.01 | N57: 0 | O57: 10 | P57: 34.82
A58: 00:00:56 | B58: 00:56:22 | C58: 400 | D58: 400 | E58: 19 | F58: 20 | G58: 20 | H58: 19 | I58: 0.12 | J58: 4 | K58: 0.84 | L58: 0 | M58: 0.01 | N58: 0 | O58: 10 | P58: 34.87
A59: 00:00:57 | B59: 00:56:23 | C59: 400 | D59: 400 | E59: 19 | F59: 20 | G59: 20 | H59: 19 | I59: 0.12 | J59: 4 | K59: 2.3 | L59: 0 | M59: 0.01 | N59: 0 | O59: 10 | P59: 34.9
A60: 00:00:58 | B60: 00:56:24 | C60: 400 | D60: 400 | E60: 19 | F60: 20 | G60: 20 | H60: 19 | I60: 0.12 | J60: 4 | K60: 2.3 | L60: 0 | M60: 0.01 | N60: 0 | O60: 10 | P60: 34.94
A61: 00:00:59 | B61: 00:56:25 | C61: 400 | D61: 400 | E61: 19 | F61: 20 | G61: 20 | H61: 19 | I61: 0.12 | J61: 4 | K61: 2.3 | L61: 0 | M61: 0.01 | N61: 0 | O61: 10 | P61: 34.97
A62: 00:01:00 | B62: 00:56:26 | C62: 400 | D62: 400 | E62: 19 | F62: 20 | G62: 20 | H62: 19 | I62: 0.12 | J62: 4 | K62: 2.3 | L62: 0 | M62: 0.01 | N62: 0 | O62: 10 | P62: 34.98
A63: 00:01:01 | B63: 00:56:27 | C63: 400 | D63: 400 | E63: 19 | F63: 20 | G63: 20 | H63: 19 | I63: 0.12 | J63: 4 | K63: 1.45 | L63: 0 | M63: 0.01 | N63: 0 | O63: 10 | P63: 34.99
A64: 00:01:02 | B64: 00:56:28 | C64: 400 | D64: 400 | E64: 19 | F64: 20 | G64: 20 | H64: 19 | I64: 0.12 | J64: 4 | K64: 1.45 | L64: 0 | M64: 0.01 | N64: 0 | O64: 10 | P64: 35
A65: 00:01:03 | B65: 00:56:29 | C65: 400 | D65: 400 | E65: 19 | F65: 20 | G65: 20 | H65: 19 | I65: 0.12 | J65: 4 | K65: 1.45 | L65: 0 | M65: 0.01 | N65: 0 | O65: 10 | P65: 35
A66: 00:01:04 | B66: 00:56:30 | C66: 400 | D66: 400 | E66: 19 | F66: 20 | G66: 20 | H66: 19 | I66: 0.12 | J66: 4 | K66: 0.43 | L66: 0 | M66: 0.01 | N66: 0 | O66: 10 | P66: 35.01
A67: 00:01:05 | B67: 00:56:31 | C67: 400 | D67: 400 | E67: 19 | F67: 20 | G67: 20 | H67: 19 | I67: 0.12 | J67: 4 | K67: 0.43 | L67: 0 | M67: 0.01 | N67: 0 | O67: 10 | P67: 35.02
A68: 00:01:06 | B68: 00:56:32 | C68: 400 | D68: 400 | E68: 19 | F68: 20 | G68: 20 | H68: 19 | I68: 0.12 | J68: 4 | K68: 0.43 | L68: 0 | M68: 0.01 | N68: 0 | O68: 10 | P68: 35.03
A69: 00:01:07 | B69: 00:56:33 | C69: 400 | D69: 400 | E69: 19 | F69: 20 | G69: 20 | H69: 19 | I69: 0.12 | J69: 4 | K69: 0.68 | L69: 0 | M69: 0.01 | N69: 0 | O69: 10 | P69: 35.05
A70: 00:01:08 | B70: 00:56:34 | C70: 400 | D70: 400 | E70: 19 | F70: 20 | G70: 20 | H70: 19 | I70: 0.12 | J70: 4 | K70: 0.68 | L70: 0 | M70: 0.01 | N70: 0 | O70: 10 | P70: 35.06
A71: 00:01:09 | B71: 00:56:35 | C71: 400 | D71: 400 | E71: 19 | F71: 20 | G71: 20 | H71: 19 | I71: 0.12 | J71: 4 | K71: 0.68 | L71: 0 | M71: 0.01 | N71: 0 | O71: 10 | P71: 35.07
A72: 00:01:10 | B72: 00:56:36 | C72: 400 | D72: 400 | E72: 19 | F72: 20 | G72: 20 | H72: 19 | I72: 0.11 | J72: 4 | K72: 0.6 | L72: 0 | M72: 0.01 | N72: 0 | O72: 10 | P72: 35.08
A73: 00:01:11 | B73: 00:56:37 | C73: 400 | D73: 400 | E73: 19 | F73: 20 | G73: 20 | H73: 19 | I73: 0.11 | J73: 4 | K73: 0.6 | L73: 0 | M73: 0.01 | N73: 0 | O73: 10 | P73: 35.08
A74: 00:01:12 | B74: 00:56:38 | C74: 400 | D74: 400 | E74: 19 | F74: 20 | G74: 20 | H74: 19 | I74: 0.11 | J74: 4 | K74: 0.6 | L74: 0 | M74: 0.01 | N74: 0 | O74: 10 | P74: 35.08
A75: 00:01:13 | B75: 00:56:39 | C75: 400 | D75: 400 | E75: 19 | F75: 20 | G75: 20 | H75: 19 | I75: 0.11 | J75: 4 | K75: 0.6 | L75: 0 | M75: 0 | N75: 0 | O75: 10 | P75: 35.08
A76: 00:01:14 | B76: 00:56:40 | C76: 400 | D76: 400 | E76: 19 | F76: 20 | G76: 20 | H76: 19 | I76: 0.11 | J76: 4 | K76: 0.11 | L76: 0 | M76: 0.01 | N76: 0 | O76: 10 | P76: 35.09
A77: 00:01:15 | B77: 00:56:41 | C77: 400 | D77: 400 | E77: 19 | F77: 20 | G77: 20 | H77: 19 | I77: 0.11 | J77: 4 | K77: 0.11 | L77: 0 | M77: 0.01 | N77: 0 | O77: 10 | P77: 35.09
A78: 00:01:16 | B78: 00:56:42 | C78: 400 | D78: 400 | E78: 19 | F78: 20 | G78: 20 | H78: 19 | I78: 0.11 | J78: 4 | K78: 0.11 | L78: 0 | M78: 0.01 | N78: 0 | O78: 10 | P78: 35.09
A79: 00:01:17 | B79: 00:56:43 | C79: 400 | D79: 400 | E79: 19 | F79: 20 | G79: 20 | H79: 19 | I79: 0.11 | J79: 4 | K79: 0.12 | L79: 0 | M79: 0.01 | N79: 0 | O79: 10 | P79: 35.09
A80: 00:01:18 | B80: 00:56:44 | C80: 400 | D80: 400 | E80: 19 | F80: 20 | G80: 20 | H80: 19 | I80: 0.11 | J80: 4 | K80: 0.12 | L80: 0 | M80: 0.01 | N80: 0 | O80: 10 | P80: 35.1
A81: 00:01:19 | B81: 00:56:45 | C81: 400 | D81: 400 | E81: 19 | F81: 20 | G81: 20 | H81: 19 | I81: 0.11 | J81: 4 | K81: 0.12 | L81: 0 | M81: 0.01 | N81: 0 | O81: 10 | P81: 35.1
A82: 00:01:20 | B82: 00:56:46 | C82: 400 | D82: 400 | E82: 19 | F82: 20 | G82: 20 | H82: 19 | I82: 0.11 | J82: 4 | K82: 0.12 | L82: 0 | M82: 0.01 | N82: 0 | O82: 10 | P82: 35.11
A83: 00:01:21 | B83: 00:56:47 | C83: 400 | D83: 400 | E83: 19 | F83: 20 | G83: 20 | H83: 19 | I83: 0.11 | J83: 4 | K83: 0.23 | L83: 0 | M83: 0.01 | N83: 0 | O83: 10 | P83: 35.11
A84: 00:01:22 | B84: 00:56:48 | C84: 400 | D84: 400 | E84: 19 | F84: 20 | G84: 20 | H84: 19 | I84: 0.11 | J84: 4 | K84: 0.23 | L84: 0 | M84: 0.01 | N84: 0 | O84: 10 | P84: 35.11
A85: 00:01:23 | B85: 00:56:49 | C85: 400 | D85: 400 | E85: 19 | F85: 20 | G85: 20 | H85: 19 | I85: 0.11 | J85: 4 | K85: 0.23 | L85: 0 | M85: 0.01 | N85: 0 | O85: 10 | P85: 35.11
A86: 00:01:24 | B86: 00:56:50 | C86: 400 | D86: 400 | E86: 19 | F86: 20 | G86: 20 | H86: 19 | I86: 0.11 | J86: 4 | K86: 0.06 | L86: 0 | M86: 0.01 | N86: 0 | O86: 10 | P86: 35.11
A87: 00:01:25 | B87: 00:56:51 | C87: 400 | D87: 400 | E87: 19 | F87: 20 | G87: 20 | H87: 19 | I87: 0.11 | J87: 4 | K87: 0.06 | L87: 0 | M87: 0.01 | N87: 0 | O87: 10 | P87: 35.11
A88: 00:01:26 | B88: 00:56:52 | C88: 400 | D88: 400 | E88: 19 | F88: 20 | G88: 20 | H88: 19 | I88: 0.11 | J88: 4 | K88: 0.06 | L88: 0 | M88: 0.01 | N88: 0 | O88: 10 | P88: 35.11
A89: 00:01:27 | B89: 00:56:53 | C89: 400 | D89: 400 | E89: 19 | F89: 20 | G89: 20 | H89: 19 | I89: 0.11 | J89: 4 | K89: 0.06 | L89: 0 | M89: 0.01 | N89: 0 | O89: 10 | P89: 35.11
A90: 00:01:28 | B90: 00:56:54 | C90: 400 | D90: 400 | E90: 19 | F90: 20 | G90: 20 | H90: 19 | I90: 0.11 | J90: 4 | K90: 0.06 | L90: 0 | M90: 0.01 | N90: 0 | O90: 10 | P90: 35.12
A91: 00:01:29 | B91: 00:56:55 | C91: 400 | D91: 400 | E91: 19 | F91: 20 | G91: 20 | H91: 19 | I91: 0.11 | J91: 4 | K91: 0.06 | L91: 0 | M91: 0.01 | N91: 0 | O91: 10 | P91: 35.12
A92: 00:01:30 | B92: 00:56:56 | C92: 400 | D92: 400 | E92: 19 | F92: 20 | G92: 20 | H92: 19 | I92: 0.11 | J92: 4 | K92: 0.06 | L92: 0 | M92: 0.01 | N92: 0 | O92: 10 | P92: 35.12
A93: 00:01:31 | B93: 00:56:57 | C93: 400 | D93: 400 | E93: 19 | F93: 20 | G93: 20 | H93: 19 | I93: 0.11 | J93: 4 | K93: 0.2 | L93: 0 | M93: 0.01 | N93: 0 | O93: 10 | P93: 35.13
A94: 00:01:32 | B94: 00:56:58 | C94: 400 | D94: 400 | E94: 19 | F94: 20 | G94: 20 | H94: 19 | I94: 0.11 | J94: 4 | K94: 0.2 | L94: 0 | M94: 0.01 | N94: 0 | O94: 10 | P94: 35.13
A95: 00:01:33 | B95: 00:56:59 | C95: 400 | D95: 400 | E95: 19 | F95: 20 | G95: 20 | H95: 19 | I95: 0.11 | J95: 4 | K95: 0.2 | L95: 0 | M95: 0.01 | N95: 0 | O95: 10 | P95: 35.13
A96: 00:01:34 | B96: 00:57:00 | C96: 400 | D96: 400 | E96: 19 | F96: 20 | G96: 20 | H96: 19 | I96: 0.11 | J96: 4 | K96: 0.02 | L96: 0 | M96: 0.01 | N96: 0 | O96: 10 | P96: 35.13
A97: 00:01:35 | B97: 00:57:01 | C97: 400 | D97: 400 | E97: 19 | F97: 20 | G97: 20 | H97: 19 | I97: 0.11 | J97: 4 | K97: 0.02 | L97: 0 | M97: 0.01 | N97: 0 | O97: 10 | P97: 35.13
A98: 00:01:36 | B98: 00:57:02 | C98: 400 | D98: 400 | E98: 19 | F98: 20 | G98: 20 | H98: 19 | I98: 0.11 | J98: 4 | K98: 0.02 | L98: 0 | M98: 0.01 | N98: 0 | O98: 10 | P98: 35.13
A99: 00:01:37 | B99: 00:57:03 | C99: 400 | D99: 400 | E99: 19 | F99: 20 | G99: 20 | H99: 19 | I99: 0.11 | J99: 4 | K99: 0.02 | L99: 0 | M99: 0.01 | N99: 0 | O99: 10 | P99: 35.13
A100: 00:01:38 | B100: 00:57:04 | C100: 400 | D100: 400 | E100: 19 | F100: 20 | G100: 20 | H100: 19 | I100: 0.11 | J100: 4 | K100: 0.02 | L100: 0 | M100: 0.01 | N100: 0 | O100: 10 | P100: 35.13
A101: 00:01:39 | B101: 00:57:05 | C101: 400 | D101: 400 | E101: 19 | F101: 20 | G101: 20 | H101: 19 | I101: 0.11 | J101: 4 | K101: 0.02 | L101: 0 | M101: 0.01 | N101: 0 | O101: 10 | P101: 35.13
A102: 00:01:40 | B102: 00:57:06 | C102: 400 | D102: 400 | E102: 19 | F102: 20 | G102: 20 | H102: 19 | I102: 0.11 | J102: 4 | K102: 0.02 | L102: 0 | M102: 0.01 | N102: 0 | O102: 10 | P102: 35.14
A103: 00:01:41 | B103: 00:57:07 | C103: 400 | D103: 400 | E103: 19 | F103: 20 | G103: 20 | H103: 19 | I103: 0.11 | J103: 4 | K103: 0.12 | L103: 0 | M103: 0.01 | N103: 0 | O103: 10 | P103: 35.14
A104: 00:01:42 | B104: 00:57:08 | C104: 400 | D104: 400 | E104: 19 | F104: 20 | G104: 20 | H104: 19 | I104: 0.11 | J104: 4 | K104: 0.12 | L104: 0 | M104: 0.01 | N104: 0 | O104: 10 | P104: 35.14
A105: 00:01:43 | B105: 00:57:09 | C105: 400 | D105: 400 | E105: 19 | F105: 20 | G105: 20 | H105: 19 | I105: 0.11 | J105: 4 | K105: 0.12 | L105: 0 | M105: 0.01 | N105: 0 | O105: 10 | P105: 35.14
A106: 00:01:44 | B106: 00:57:10 | C106: 400 | D106: 400 | E106: 19 | F106: 20 | G106: 20 | H106: 19 | I106: 0.11 | J106: 4 | K106: 0.03 | L106: 0 | M106: 0.01 | N106: 0 | O106: 10 | P106: 35.14
A107: 00:01:45 | B107: 00:57:11 | C107: 400 | D107: 400 | E107: 19 | F107: 20 | G107: 20 | H107: 19 | I107: 0.11 | J107: 4 | K107: 0.03 | L107: 0 | M107: 0.01 | N107: 0 | O107: 10 | P107: 35.14
A108: 00:01:46 | B108: 00:57:12 | C108: 400 | D108: 400 | E108: 19 | F108: 20 | G108: 20 | H108: 19 | I108: 0.11 | J108: 4 | K108: 0.03 | L108: 0 | M108: 0.01 | N108: 0 | O108: 10 | P108: 35.14
A109: 00:01:47 | B109: 00:57:13 | C109: 400 | D109: 400 | E109: 19 | F109: 20 | G109: 20 | H109: 19 | I109: 0.11 | J109: 4 | K109: 0.03 | L109: 0 | M109: 0.01 | N109: 0 | O109: 10 | P109: 35.14
A110: 00:01:48 | B110: 00:57:14 | C110: 400 | D110: 400 | E110: 19 | F110: 20 | G110: 20 | H110: 19 | I110: 0.11 | J110: 4 | K110: 0 | L110: 0 | M110: 0.01 | N110: 0 | O110: 10 | P110: 35.14
A111: 00:01:49 | B111: 00:57:15 | C111: 400 | D111: 400 | E111: 19 | F111: 20 | G111: 20 | H111: 19 | I111: 0.11 | J111: 4 | K111: 0 | L111: 0 | M111: 0.01 | N111: 0 | O111: 10 | P111: 35.14
A112: 00:01:50 | B112: 00:57:16 | C112: 400 | D112: 400 | E112: 19 | F112: 20 | G112: 20 | H112: 19 | I112: 0.11 | J112: 4 | K112: 0 | L112: 0 | M112: 0.01 | N112: 0 | O112: 10 | P112: 35.14
A113: 00:01:51 | B113: 00:57:17 | C113: 400 | D113: 400 | E113: 19 | F113: 20 | G113: 20 | H113: 19 | I113: 0.11 | J113: 4 | K113: 0.1 | L113: 0 | M113: 0.01 | N113: 0 | O113: 10 | P113: 35.15
A114: 00:01:52 | B114: 00:57:18 | C114: 400 | D114: 400 | E114: 19 | F114: 20 | G114: 20 | H114: 19 | I114: 0.11 | J114: 4 | K114: 0.1 | L114: 0 | M114: 0.01 | N114: 0 | O114: 10 | P114: 35.15
A115: 00:01:53 | B115: 00:57:19 | C115: 400 | D115: 400 | E115: 19 | F115: 20 | G115: 20 | H115: 19 | I115: 0.11 | J115: 4 | K115: 0.1 | L115: 0 | M115: 0.01 | N115: 0 | O115: 10 | P115: 35.15
A116: 00:01:54 | B116: 00:57:20 | C116: 400 | D116: 400 | E116: 19 | F116: 20 | G116: 20 | H116: 19 | I116: 0.11 | J116: 4 | K116: 0.1 | L116: 0 | M116: 0.01 | N116: 0 | O116: 10 | P116: 35.15
A117: 00:01:55 | B117: 00:57:21 | C117: 400 | D117: 400 | E117: 19 | F117: 20 | G117: 20 | H117: 19 | I117: 0.11 | J117: 4 | K117: 0.1 | L117: 0 | M117: 0.01 | N117: 0 | O117: 10 | P117: 35.15
A118: 00:01:56 | B118: 00:57:22 | C118: 400 | D118: 400 | E118: 19 | F118: 20 | G118: 20 | H118: 19 | I118: 0.11 | J118: 4 | K118: 0.1 | L118: 0 | M118: 0.01 | N118: 0 | O118: 10 | P118: 35.15
A119: 00:01:57 | B119: 00:57:23 | C119: 400 | D119: 400 | E119: 19 | F119: 20 | G119: 20 | H119: 19 | I119: 0.11 | J119: 4 | K119: 0.01 | L119: 0 | M119: 0.01 | N119: 0 | O119: 10 | P119: 35.15
A120: 00:01:58 | B120: 00:57:24 | C120: 400 | D120: 400 | E120: 19 | F120: 20 | G120: 20 | H120: 19 | I120: 0.11 | J120: 4 | K120: 0.01 | L120: 0 | M120: 0.01 | N120: 0 | O120: 10 | P120: 35.15
A121: 00:01:59 | B121: 00:57:25 | C121: 400 | D121: 400 | E121: 19 | F121: 20 | G121: 20 | H121: 19 | I121: 0.11 | J121: 4 | K121: 0.01 | L121: 0 | M121: 0.01 | N121: 0 | O121: 10 | P121: 35.15
A122: 00:02:00 | B122: 00:57:26 | C122: 400 | D122: 400 | E122: 19 | F122: 20 | G122: 20 | H122: 19 | I122: 0.11 | J122: 4 | K122: 0.01 | L122: 0 | M122: 0.01 | N122: 0 | O122: 10 | P122: 35.15
A123: 00:02:01 | B123: 00:57:27 | C123: 400 | D123: 400 | E123: 19 | F123: 20 | G123: 20 | H123: 19 | I123: 0.11 | J123: 4 | K123: 0 | L123: 0 | M123: 0.01 | N123: 0 | O123: 10 | P123: 35.15
A124: 00:02:02 | B124: 00:57:28 | C124: 400 | D124: 400 | E124: 19 | F124: 20 | G124: 20 | H124: 19 | I124: 0.11 | J124: 4 | K124: 0 | L124: 0 | M124: 0.01 | N124: 0 | O124: 10 | P124: 35.15
A125: 00:02:03 | B125: 00:57:29 | C125: 400 | D125: 400 | E125: 19 | F125: 20 | G125: 20 | H125: 19 | I125: 0.11 | J125: 4 | K125: 0 | L125: 0 | M125: 0.01 | N125: 0 | O125: 10 | P125: 35.15
A126: 00:02:04 | B126: 00:57:30 | C126: 400 | D126: 400 | E126: 19 | F126: 20 | G126: 20 | H126: 19 | I126: 0.11 | J126: 4 | K126: 0.01 | L126: 0 | M126: 0.01 | N126: 0 | O126: 10 | P126: 35.15
A127: 00:02:05 | B127: 00:57:31 | C127: 400 | D127: 400 | E127: 19 | F127: 20 | G127: 20 | H127: 19 | I127: 0.11 | J127: 4 | K127: 0.01 | L127: 0 | M127: 0.01 | N127: 0 | O127: 10 | P127: 35.15
A128: 00:02:06 | B128: 00:57:32 | C128: 400 | D128: 400 | E128: 19 | F128: 20 | G128: 20 | H128: 19 | I128: 0.11 | J128: 4 | K128: 0.01 | L128: 0 | M128: 0.01 | N128: 0 | O128: 10 | P128: 35.15
A129: 00:02:07 | B129: 00:57:33 | C129: 400 | D129: 400 | E129: 19 | F129: 20 | G129: 20 | H129: 19 | I129: 0.11 | J129: 4 | K129: 0.01 | L129: 0 | M129: 0.01 | N129: 0 | O129: 10 | P129: 35.15
A130: 00:02:08 | B130: 00:57:34 | C130: 400 | D130: 400 | E130: 19 | F130: 20 | G130: 20 | H130: 19 | I130: 0.11 | J130: 4 | K130: 0.02 | L130: 0 | M130: 0.01 | N130: 0 | O130: 10 | P130: 35.15
A131: 00:02:09 | B131: 00:57:35 | C131: 400 | D131: 400 | E131: 19 | F131: 20 | G131: 20 | H131: 19 | I131: 0.11 | J131: 4 | K131: 0.02 | L131: 0 | M131: 0.01 | N131: 0 | O131: 10 | P131: 35.16
A132: 00:02:10 | B132: 00:57:36 | C132: 400 | D132: 400 | E132: 19 | F132: 20 | G132: 20 | H132: 19 | I132: 0.11 | J132: 4 | K132: 0.02 | L132: 0 | M132: 0.01 | N132: 0 | O132: 10 | P132: 35.16
A133: 00:02:11 | B133: 00:57:37 | C133: 400 | D133: 400 | E133: 19 | F133: 20 | G133: 20 | H133: 19 | I133: 0.11 | J133: 4 | K133: 0.09 | L133: 0 | M133: 0.01 | N133: 0 | O133: 10 | P133: 35.16
A134: 00:02:12 | B134: 00:57:38 | C134: 400 | D134: 400 | E134: 19 | F134: 20 | G134: 20 | H134: 19 | I134: 0.11 | J134: 4 | K134: 0.09 | L134: 0 | M134: 0.01 | N134: 0 | O134: 10 | P134: 35.16
A135: 00:02:13 | B135: 00:57:39 | C135: 400 | D135: 400 | E135: 19 | F135: 20 | G135: 20 | H135: 19 | I135: 0.11 | J135: 4 | K135: 0.09 | L135: 0 | M135: 0.01 | N135: 0 | O135: 10 | P135: 35.16
A136: 00:02:14 | B136: 00:57:40 | C136: 400 | D136: 400 | E136: 19 | F136: 20 | G136: 20 | H136: 19 | I136: 0.11 | J136: 4 | K136: 0.09 | L136: 0 | M136: 0.01 | N136: 0 | O136: 10 | P136: 35.16
A137: 00:02:15 | B137: 00:57:41 | C137: 400 | D137: 400 | E137: 19 | F137: 20 | G137: 20 | H137: 19 | I137: 0.11 | J137: 4 | K137: 0.04 | L137: 0 | M137: 0.01 | N137: 0 | O137: 10 | P137: 35.16
A138: 00:02:16 | B138: 00:57:42 | C138: 400 | D138: 400 | E138: 19 | F138: 20 | G138: 20 | H138: 19 | I138: 0.11 | J138: 4 | K138: 0.04 | L138: 0 | M138: 0.01 | N138: 0 | O138: 10 | P138: 35.16
A139: 00:02:17 | B139: 00:57:43 | C139: 400 | D139: 400 | E139: 19 | F139: 20 | G139: 20 | H139: 19 | I139: 0.11 | J139: 4 | K139: 0.04 | L139: 0 | M139: 0.01 | N139: 0 | O139: 10 | P139: 35.16
A140: 00:02:18 | B140: 00:57:44 | C140: 400 | D140: 400 | E140: 19 | F140: 20 | G140: 20 | H140: 19 | I140: 0.11 | J140: 4 | K140: 0.01 | L140: 0 | M140: 0.01 | N140: 0 | O140: 10 | P140: 35.16
A141: 00:02:19 | B141: 00:57:45 | C141: 400 | D141: 400 | E141: 19 | F141: 20 | G141: 20 | H141: 19 | I141: 0.11 | J141: 4 | K141: 0.01 | L141: 0 | M141: 0.01 | N141: 0 | O141: 10 | P141: 35.16
A142: 00:02:20 | B142: 00:57:46 | C142: 400 | D142: 400 | E142: 19 | F142: 20 | G142: 20 | H142: 19 | I142: 0.11 | J142: 4 | K142: 0.01 | L142: 0 | M142: 0.01 | N142: 0 | O142: 10 | P142: 35.16
A143: 00:02:21 | B143: 00:57:47 | C143: 400 | D143: 400 | E143: 19 | F143: 20 | G143: 20 | H143: 19 | I143: 0.11 | J143: 4 | K143: 0 | L143: 0 | M143: 0.01 | N143: 0 | O143: 10 | P143: 35.16
A144: 00:02:22 | B144: 00:57:48 | C144: 400 | D144: 400 | E144: 19 | F144: 20 | G144: 20 | H144: 19 | I144: 0.11 | J144: 4 | K144: 0 | L144: 0 | M144: 0.01 | N144: 0 | O144: 10 | P144: 35.16
A145: 00:02:23 | B145: 00:57:49 | C145: 400 | D145: 400 | E145: 19 | F145: 20 | G145: 20 | H145: 19 | I145: 0.11 | J145: 4 | K145: 0 | L145: 0 | M145: 0.01 | N145: 0 | O145: 10 | P145: 35.16
A146: 00:02:24 | B146: 00:57:50 | C146: 400 | D146: 400 | E146: 19 | F146: 20 | G146: 20 | H146: 19 | I146: 0.11 | J146: 4 | K146: 0 | L146: 0 | M146: 0.01 | N146: 0 | O146: 10 | P146: 35.16
A147: 00:02:25 | B147: 00:57:51 | C147: 400 | D147: 400 | E147: 19 | F147: 20 | G147: 20 | H147: 19 | I147: 0.11 | J147: 4 | K147: 0 | L147: 0 | M147: 0.01 | N147: 0 | O147: 10 | P147: 35.16
A148: 00:02:26 | B148: 00:57:52 | C148: 400 | D148: 400 | E148: 19 | F148: 20 | G148: 20 | H148: 19 | I148: 0.11 | J148: 4 | K148: 0 | L148: 0 | M148: 0.01 | N148: 0 | O148: 10 | P148: 35.16
A149: 00:02:27 | B149: 00:57:53 | C149: 400 | D149: 400 | E149: 19 | F149: 20 | G149: 20 | H149: 19 | I149: 0.11 | J149: 4 | K149: 0.02 | L149: 0 | M149: 0.01 | N149: 0 | O149: 10 | P149: 35.17
A150: 00:02:28 | B150: 00:57:54 | C150: 400 | D150: 400 | E150: 19 | F150: 20 | G150: 20 | H150: 19 | I150: 0.11 | J150: 4 | K150: 0.02 | L150: 0 | M150: 0.01 | N150: 0 | O150: 10 | P150: 35.17
A151: 00:02:29 | B151: 00:57:55 | C151: 400 | D151: 400 | E151: 19 | F151: 20 | G151: 20 | H151: 19 | I151: 0.11 | J151: 4 | K151: 0.02 | L151: 0 | M151: 0.01 | N151: 0 | O151: 10 | P151: 35.17
A152: 00:02:30 | B152: 00:57:56 | C152: 400 | D152: 400 | E152: 19 | F152: 20 | G152: 20 | H152: 19 | I152: 0.11 | J152: 4 | K152: 0.02 | L152: 0 | M152: 0.01 | N152: 0 | O152: 10 | P152: 35.17
A153: 00:02:31 | B153: 00:57:57 | C153: 400 | D153: 400 | E153: 19 | F153: 20 | G153: 20 | H153: 19 | I153: 0.11 | J153: 4 | K153: 0.03 | L153: 0 | M153: 0.01 | N153: 0 | O153: 10 | P153: 35.17
A154: 00:02:32 | B154: 00:57:58 | C154: 400 | D154: 400 | E154: 19 | F154: 20 | G154: 20 | H154: 19 | I154: 0.11 | J154: 4 | K154: 0.03 | L154: 0 | M154: 0.01 | N154: 0 | O154: 10 | P154: 35.17
A155: 00:02:33 | B155: 00:57:59 | C155: 400 | D155: 400 | E155: 19 | F155: 20 | G155: 20 | H155: 19 | I155: 0.11 | J155: 4 | K155: 0.03 | L155: 0 | M155: 0.01 | N155: 0 | O155: 10 | P155: 35.17
A156: 00:02:34 | B156: 00:58:00 | C156: 400 | D156: 400 | E156: 19 | F156: 20 | G156: 20 | H156: 19 | I156: 0.11 | J156: 4 | K156: 0.03 | L156: 0 | M156: 0.01 | N156: 0 | O156: 10 | P156: 35.17
A157: 00:02:35 | B157: 00:58:01 | C157: 400 | D157: 400 | E157: 19 | F157: 20 | G157: 20 | H157: 19 | I157: 0.11 | J157: 4 | K157: 0.03 | L157: 0 | M157: 0.01 | N157: 0 | O157: 10 | P157: 35.17
A158: 00:02:36 | B158: 00:58:02 | C158: 400 | D158: 400 | E158: 19 | F158: 20 | G158: 20 | H158: 19 | I158: 0.11 | J158: 4 | K158: 0.03 | L158: 0 | M158: 0.01 | N158: 0 | O158: 10 | P158: 35.17
A159: 00:02:37 | B159: 00:58:03 | C159: 400 | D159: 400 | E159: 19 | F159: 20 | G159: 20 | H159: 19 | I159: 0.11 | J159: 4 | K159: 0.03 | L159: 0 | M159: 0.01 | N159: 0 | O159: 10 | P159: 35.17
A160: 00:02:38 | B160: 00:58:04 | C160: 400 | D160: 400 | E160: 19 | F160: 20 | G160: 20 | H160: 19 | I160: 0.11 | J160: 4 | K160: 0 | L160: 0 | M160: 0.01 | N160: 0 | O160: 10 | P160: 35.17
A161: 00:02:39 | B161: 00:58:05 | C161: 400 | D161: 400 | E161: 19 | F161: 20 | G161: 20 | H161: 19 | I161: 0.11 | J161: 4 | K161: 0 | L161: 0 | M161: 0.01 | N161: 0 | O161: 10 | P161: 35.17
A162: 00:02:40 | B162: 00:58:06 | C162: 400 | D162: 400 | E162: 19 | F162: 20 | G162: 20 | H162: 19 | I162: 0.11 | J162: 4 | K162: 0 | L162: 0 | M162: 0.01 | N162: 0 | O162: 10 | P162: 35.17
A163: 00:02:41 | B163: 00:58:07 | C163: 400 | D163: 400 | E163: 19 | F163: 20 | G163: 20 | H163: 19 | I163: 0.11 | J163: 4 | K163: 0 | L163: 0 | M163: 0.01 | N163: 0 | O163: 10 | P163: 35.17
A164: 00:02:42 | B164: 00:58:08 | C164: 400 | D164: 400 | E164: 19 | F164: 20 | G164: 20 | H164: 19 | I164: 0.11 | J164: 4 | K164: 0 | L164: 0 | M164: 0.01 | N164: 0 | O164: 10 | P164: 35.17
A165: 00:02:43 | B165: 00:58:09 | C165: 400 | D165: 400 | E165: 19 | F165: 20 | G165: 20 | H165: 19 | I165: 0.11 | J165: 4 | K165: 0 | L165: 0 | M165: 0.01 | N165: 0 | O165: 10 | P165: 35.17
A166: 00:02:44 | B166: 00:58:10 | C166: 400 | D166: 400 | E166: 19 | F166: 20 | G166: 20 | H166: 19 | I166: 0.11 | J166: 4 | K166: 0.01 | L166: 0 | M166: 0.01 | N166: 0 | O166: 10 | P166: 35.17
A167: 00:02:45 | B167: 00:58:11 | C167: 400 | D167: 400 | E167: 19 | F167: 20 | G167: 20 | H167: 19 | I167: 0.11 | J167: 4 | K167: 0.01 | L167: 0 | M167: 0.01 | N167: 0 | O167: 10 | P167: 35.17
A168: 00:02:46 | B168: 00:58:12 | C168: 400 | D168: 400 | E168: 19 | F168: 20 | G168: 20 | H168: 19 | I168: 0.11 | J168: 4 | K168: 0.01 | L168: 0 | M168: 0.01 | N168: 0 | O168: 10 | P168: 35.17
A169: 00:02:47 | B169: 00:58:13 | C169: 400 | D169: 400 | E169: 19 | F169: 20 | G169: 20 | H169: 19 | I169: 0.11 | J169: 4 | K169: 0.01 | L169: 0 | M169: 0.01 | N169: 0 | O169: 10 | P169: 35.17
A170: 00:02:48 | B170: 00:58:14 | C170: 400 | D170: 400 | E170: 19 | F170: 20 | G170: 20 | H170: 19 | I170: 0.11 | J170: 4 | K170: 0.02 | L170: 0 | M170: 0.01 | N170: 0 | O170: 10 | P170: 35.17
A171: 00:02:49 | B171: 00:58:15 | C171: 400 | D171: 400 | E171: 19 | F171: 20 | G171: 20 | H171: 19 | I171: 0.11 | J171: 4 | K171: 0.02 | L171: 0 | M171: 0.01 | N171: 0 | O171: 10 | P171: 35.17
A172: 00:02:50 | B172: 00:58:16 | C172: 400 | D172: 400 | E172: 19 | F172: 20 | G172: 20 | H172: 19 | I172: 0.11 | J172: 4 | K172: 0.02 | L172: 0 | M172: 0.01 | N172: 0 | O172: 10 | P172: 35.17
A173: 00:02:51 | B173: 00:58:17 | C173: 400 | D173: 400 | E173: 19 | F173: 20 | G173: 20 | H173: 19 | I173: 0.11 | J173: 4 | K173: 0.03 | L173: 0 | M173: 0.01 | N173: 0 | O173: 10 | P173: 35.17
A174: 00:02:52 | B174: 00:58:18 | C174: 400 | D174: 400 | E174: 19 | F174: 20 | G174: 20 | H174: 19 | I174: 0.11 | J174: 4 | K174: 0.03 | L174: 0 | M174: 0.01 | N174: 0 | O174: 10 | P174: 35.18
A175: 00:02:53 | B175: 00:58:19 | C175: 400 | D175: 400 | E175: 19 | F175: 20 | G175: 20 | H175: 19 | I175: 0.11 | J175: 4 | K175: 0.03 | L175: 0 | M175: 0.01 | N175: 0 | O175: 10 | P175: 35.18
A176: 00:02:54 | B176: 00:58:20 | C176: 400 | D176: 400 | E176: 19 | F176: 20 | G176: 20 | H176: 19 | I176: 0.11 | J176: 4 | K176: 0.03 | L176: 0 | M176: 0.01 | N176: 0 | O176: 10 | P176: 35.18
A177: 00:02:55 | B177: 00:58:21 | C177: 400 | D177: 400 | E177: 19 | F177: 20 | G177: 20 | H177: 19 | I177: 0.11 | J177: 4 | K177: 0.01 | L177: 0 | M177: 0.01 | N177: 0 | O177: 10 | P177: 35.18
A178: 00:02:56 | B178: 00:58:22 | C178: 400 | D178: 400 | E178: 19 | F178: 20 | G178: 20 | H178: 19 | I178: 0.11 | J178: 4 | K178: 0.01 | L178: 0 | M178: 0.01 | N178: 0 | O178: 10 | P178: 35.18
A179: 00:02:57 | B179: 00:58:23 | C179: 400 | D179: 400 | E179: 19 | F179: 20 | G179: 20 | H179: 19 | I179: 0.11 | J179: 4 | K179: 0.01 | L179: 0 | M179: 0.01 | N179: 0 | O179: 10 | P179: 35.18
A180: 00:02:58 | B180: 00:58:24 | C180: 400 | D180: 400 | E180: 19 | F180: 20 | G180: 20 | H180: 19 | I180: 0.11 | J180: 4 | K180: 0 | L180: 0 | M180: 0.01 | N180: 0 | O180: 10 | P180: 35.18
A181: 00:02:59 | B181: 00:58:25 | C181: 400 | D181: 400 | E181: 19 | F181: 20 | G181: 20 | H181: 19 | I181: 0.11 | J181: 4 | K181: 0 | L181: 0 | M181: 0.01 | N181: 0 | O181: 10 | P181: 35.18
A182: 00:03:00 | B182: 00:58:26 | C182: 400 | D182: 400 | E182: 19 | F182: 20 | G182: 20 | H182: 19 | I182: 0.11 | J182: 4 | K182: 0 | L182: 0 | M182: 0.01 | N182: 0 | O182: 10 | P182: 35.18
A183: 00:03:01 | B183: 00:58:27 | C183: 400 | D183: 400 | E183: 19 | F183: 20 | G183: 20 | H183: 19 | I183: 0.11 | J183: 4 | K183: 0 | L183: 0 | M183: 0.01 | N183: 0 | O183: 10 | P183: 35.18
A184: 00:03:02 | B184: 00:58:28 | C184: 400 | D184: 400 | E184: 19 | F184: 20 | G184: 20 | H184: 19 | I184: 0.11 | J184: 4 | K184: 0 | L184: 0 | M184: 0.01 | N184: 0 | O184: 10 | P184: 35.18
A185: 00:03:03 | B185: 00:58:29 | C185: 400 | D185: 400 | E185: 19 | F185: 20 | G185: 20 | H185: 19 | I185: 0.11 | J185: 4 | K185: 0 | L185: 0 | M185: 0.01 | N185: 0 | O185: 10 | P185: 35.18
A186: 00:03:04 | B186: 00:58:30 | C186: 400 | D186: 400 | E186: 19 | F186: 20 | G186: 20 | H186: 19 | I186: 0.11 | J186: 4 | K186: 0 | L186: 0 | M186: 0.01 | N186: 0 | O186: 10 | P186: 35.18
A187: 00:03:05 | B187: 00:58:31 | C187: 400 | D187: 400 | E187: 19 | F187: 20 | G187: 20 | H187: 19 | I187: 0.11 | J187: 4 | K187: 0.01 | L187: 0 | M187: 0.01 | N187: 0 | O187: 10 | P187: 35.18
A188: 00:03:06 | B188: 00:58:32 | C188: 400 | D188: 400 | E188: 19 | F188: 20 | G188: 20 | H188: 19 | I188: 0.11 | J188: 4 | K188: 0.01 | L188: 0 | M188: 0.01 | N188: 0 | O188: 10 | P188: 35.18
A189: 00:03:07 | B189: 00:58:33 | C189: 400 | D189: 400 | E189: 19 | F189: 20 | G189: 20 | H189: 19 | I189: 0.11 | J189: 4 | K189: 0.01 | L189: 0 | M189: 0.01 | N189: 0 | O189: 10 | P189: 35.18
A190: 00:03:08 | B190: 00:58:34 | C190: 400 | D190: 400 | E190: 19 | F190: 20 | G190: 20 | H190: 19 | I190: 0.11 | J190: 4 | K190: 0.02 | L190: 0 | M190: 0.01 | N190: 0 | O190: 10 | P190: 35.18
A191: 00:03:09 | B191: 00:58:35 | C191: 400 | D191: 400 | E191: 19 | F191: 20 | G191: 20 | H191: 19 | I191: 0.11 | J191: 4 | K191: 0.02 | L191: 0 | M191: 0.01 | N191: 0 | O191: 10 | P191: 35.18
A192: 00:03:10 | B192: 00:58:36 | C192: 400 | D192: 400 | E192: 19 | F192: 20 | G192: 20 | H192: 19 | I192: 0.11 | J192: 4 | K192: 0.02 | L192: 0 | M192: 0.01 | N192: 0 | O192: 10 | P192: 35.18
A193: 00:03:11 | B193: 00:58:37 | C193: 400 | D193: 400 | E193: 19 | F193: 20 | G193: 20 | H193: 19 | I193: 0.11 | J193: 4 | K193: 0.01 | L193: 0 | M193: 0.01 | N193: 0 | O193: 10 | P193: 35.18
A194: 00:03:12 | B194: 00:58:38 | C194: 400 | D194: 400 | E194: 19 | F194: 20 | G194: 20 | H194: 19 | I194: 0.11 | J194: 4 | K194: 0.01 | L194: 0 | M194: 0.01 | N194: 0 | O194: 10 | P194: 35.18
A195: 00:03:13 | B195: 00:58:39 | C195: 400 | D195: 400 | E195: 19 | F195: 20 | G195: 20 | H195: 19 | I195: 0.11 | J195: 4 | K195: 0.01 | L195: 0 | M195: 0.01 | N195: 0 | O195: 10 | P195: 35.18
A196: 00:03:14 | B196: 00:58:40 | C196: 400 | D196: 400 | E196: 19 | F196: 20 | G196: 20 | H196: 19 | I196: 0.11 | J196: 4 | K196: 0.01 | L196: 0 | M196: 0.01 | N196: 0 | O196: 10 | P196: 35.18
A197: 00:03:15 | B197: 00:58:41 | C197: 400 | D197: 400 | E197: 19 | F197: 20 | G197: 20 | H197: 19 | I197: 0.11 | J197: 4 | K197: -0.01 | L197: 0 | M197: 0.01 | N197: 0 | O197: 10 | P197: 35.18
A198: 00:03:16 | B198: 00:58:42 | C198: 400 | D198: 400 | E198: 19 | F198: 20 | G198: 20 | H198: 19 | I198: 0.11 | J198: 4 | K198: -0.01 | L198: 0 | M198: 0.01 | N198: 0 | O198: 10 | P198: 35.18
A199: 00:03:17 | B199: 00:58:43 | C199: 400 | D199: 400 | E199: 19 | F199: 20 | G199: 20 | H199: 19 | I199: 0.11 | J199: 4 | K199: -0.01 | L199: 0 | M199: 0.01 | N199: 0 | O199: 10 | P199: 35.18
A200: 00:03:18 | B200: 00:58:44 | C200: 400 | D200: 400 | E200: 19 | F200: 20 | G200: 20 | H200: 19 | I200: 0.11 | J200: 4 | K200: -0.01 | L200: 0 | M200: 0.01 | N200: 0 | O200: 10 | P200: 35.18
... 1929 more rows

Sheet 1499
A1: P.Zeit | C1: Pyrometer | D1: Pyrometer B | E1: MTC1 | F1: MTC2 | G1: MTC3 | H1: MTC4 | I1: Press. abs 1 | J1: Press. abs 2 | K1: Speed | L1: U RMS | M1: I RMS | N1: Power | O1: Force | P1: Abs Piston Tra. | Q1: Rel Piston Tra.
A2: 00:00:00 | B2: 00:54:04 | C2: 400 | D2: 400 | E2: 21 | F2: 22 | G2: 22 | H2: 21 | I2: 0.21 | J2: 4 | K2: 0 | L2: 0 | M2: 0.02 | N2: =L2*M2 -> 0 | O2: 5 | P2: 32.8
A3: 00:00:01 | B3: 00:54:05 | C3: 400 | D3: 400 | E3: 21 | F3: 22 | G3: 22 | H3: 21 | I3: 0.21 | J3: 4 | K3: -0.01 | L3: 0 | M3: 0.01 | N3: 0 | O3: 5 | P3: 32.8
A4: 00:00:02 | B4: 00:54:06 | C4: 400 | D4: 400 | E4: 21 | F4: 22 | G4: 22 | H4: 21 | I4: 0.21 | J4: 4 | K4: -0.01 | L4: 0 | M4: 0.01 | N4: 0 | O4: 5 | P4: 32.89
A5: 00:00:03 | B5: 00:54:07 | C5: 400 | D5: 400 | E5: 21 | F5: 22 | G5: 22 | H5: 21 | I5: 0.21 | J5: 4 | K5: -0.01 | L5: 0 | M5: 0.02 | N5: 0 | O5: 6 | P5: 33.11
A6: 00:00:04 | B6: 00:54:08 | C6: 400 | D6: 400 | E6: 20 | F6: 22 | G6: 22 | H6: 21 | I6: 2.03 | J6: 4 | K6: 6.07 | L6: 0 | M6: 0.01 | N6: 0 | O6: 6 | P6: 33.13
A7: 00:00:05 | B7: 00:54:09 | C7: 400 | D7: 400 | E7: 20 | F7: 22 | G7: 22 | H7: 21 | I7: 2.03 | J7: 6 | K7: 6.07 | L7: 0 | M7: 0.01 | N7: 0 | O7: 6 | P7: 33.15
A8: 00:00:06 | B8: 00:54:10 | C8: 400 | D8: 400 | E8: 21 | F8: 22 | G8: 22 | H8: 21 | I8: 2.74 | J8: 7 | K8: 6.07 | L8: 0 | M8: 0.02 | N8: 0 | O8: 7 | P8: 33.19
A9: 00:00:07 | B9: 00:54:11 | C9: 400 | D9: 400 | E9: 21 | F9: 22 | G9: 22 | H9: 21 | I9: 3.03 | J9: 7 | K9: 6.07 | L9: 0 | M9: 0.02 | N9: 0 | O9: 7 | P9: 33.25
A10: 00:00:08 | B10: 00:54:12 | C10: 400 | D10: 400 | E10: 21 | F10: 22 | G10: 22 | H10: 21 | I10: 3.03 | J10: 7 | K10: 2.52 | L10: 0 | M10: 0.01 | N10: 0 | O10: 7 | P10: 33.3
A11: 00:00:09 | B11: 00:54:13 | C11: 400 | D11: 400 | E11: 21 | F11: 22 | G11: 22 | H11: 21 | I11: 3.15 | J11: 7 | K11: 2.52 | L11: 0 | M11: 0.01 | N11: 0 | O11: 8 | P11: 33.42
A12: 00:00:10 | B12: 00:54:14 | C12: 400 | D12: 400 | E12: 21 | F12: 22 | G12: 22 | H12: 21 | I12: 3.15 | J12: 7 | K12: 2.52 | L12: 0 | M12: 0.01 | N12: 0 | O12: 8 | P12: 33.52
A13: 00:00:11 | B13: 00:54:15 | C13: 400 | D13: 400 | E13: 21 | F13: 22 | G13: 22 | H13: 21 | I13: 3.18 | J13: 7 | K13: 8.24 | L13: 0 | M13: 0.02 | N13: 0 | O13: 8 | P13: 33.75
A14: 00:00:12 | B14: 00:54:16 | C14: 400 | D14: 400 | E14: 21 | F14: 22 | G14: 22 | H14: 21 | I14: 2.74 | J14: 7 | K14: 8.24 | L14: 0 | M14: 0.01 | N14: 0 | O14: 8 | P14: 33.96
A15: 00:00:13 | B15: 00:54:17 | C15: 400 | D15: 400 | E15: 21 | F15: 22 | G15: 22 | H15: 21 | I15: 2.31 | J15: 7 | K15: 8.24 | L15: 0 | M15: 0.01 | N15: 0 | O15: 9 | P15: 34.14
A16: 00:00:14 | B16: 00:54:18 | C16: 400 | D16: 400 | E16: 21 | F16: 22 | G16: 22 | H16: 21 | I16: 2.31 | J16: 7 | K16: 8.24 | L16: 0 | M16: 0.01 | N16: 0 | O16: 9 | P16: 34.23
A17: 00:00:15 | B17: 00:54:19 | C17: 400 | D17: 400 | E17: 21 | F17: 22 | G17: 22 | H17: 21 | I17: 1.97 | J17: 6 | K17: 9.6 | L17: 0 | M17: 0.02 | N17: 0 | O17: 9 | P17: 34.39
A18: 00:00:16 | B18: 00:54:20 | C18: 400 | D18: 400 | E18: 21 | F18: 22 | G18: 22 | H18: 21 | I18: 1.69 | J18: 6 | K18: 9.6 | L18: 0 | M18: 0.01 | N18: 0 | O18: 10 | P18: 34.53
A19: 00:00:17 | B19: 00:54:21 | C19: 400 | D19: 400 | E19: 21 | F19: 22 | G19: 22 | H19: 21 | I19: 1.69 | J19: 6 | K19: 9.6 | L19: 0 | M19: 0.01 | N19: 0 | O19: 10 | P19: 34.59
A20: 00:00:18 | B20: 00:54:22 | C20: 400 | D20: 400 | E20: 21 | F20: 22 | G20: 22 | H20: 21 | I20: 1.47 | J20: 6 | K20: 7 | L20: 0 | M20: 0.01 | N20: 0 | O20: 10 | P20: 34.72
A21: 00:00:19 | B21: 00:54:23 | C21: 400 | D21: 400 | E21: 21 | F21: 22 | G21: 22 | H21: 21 | I21: 1.29 | J21: 6 | K21: 7 | L21: 0 | M21: 0.01 | N21: 0 | O21: 10 | P21: 34.82
A22: 00:00:20 | B22: 00:54:24 | C22: 400 | D22: 400 | E22: 21 | F22: 22 | G22: 22 | H22: 21 | I22: 1.29 | J22: 6 | K22: 7 | L22: 0 | M22: 0.01 | N22: 0 | O22: 11 | P22: 34.87
A23: 00:00:21 | B23: 00:54:25 | C23: 400 | D23: 400 | E23: 21 | F23: 22 | G23: 22 | H23: 21 | I23: 1.13 | J23: 5 | K23: 5.31 | L23: 0 | M23: 0.01 | N23: 0 | O23: 11 | P23: 34.97
A24: 00:00:22 | B24: 00:54:26 | C24: 400 | D24: 400 | E24: 21 | F24: 22 | G24: 22 | H24: 21 | I24: 1.01 | J24: 5 | K24: 5.31 | L24: 0 | M24: 0.02 | N24: 0 | O24: 11 | P24: 35.06
A25: 00:00:23 | B25: 00:54:27 | C25: 400 | D25: 400 | E25: 21 | F25: 22 | G25: 22 | H25: 21 | I25: 0.9 | J25: 5 | K25: 5.31 | L25: 0 | M25: 0.02 | N25: 0 | O25: 12 | P25: 35.1
A26: 00:00:24 | B26: 00:54:28 | C26: 400 | D26: 400 | E26: 21 | F26: 22 | G26: 22 | H26: 21 | I26: 0.9 | J26: 5 | K26: 4.55 | L26: 0 | M26: 0.01 | N26: 0 | O26: 12 | P26: 35.2
A27: 00:00:25 | B27: 00:54:29 | C27: 400 | D27: 400 | E27: 21 | F27: 22 | G27: 22 | H27: 21 | I27: 0.81 | J27: 5 | K27: 4.55 | L27: 0 | M27: 0.01 | N27: 0 | O27: 12 | P27: 35.24
A28: 00:00:26 | B28: 00:54:30 | C28: 400 | D28: 400 | E28: 21 | F28: 22 | G28: 21 | H28: 21 | I28: 0.74 | J28: 5 | K28: 4.55 | L28: 0 | M28: 0.01 | N28: 0 | O28: 12 | P28: 35.32
A29: 00:00:27 | B29: 00:54:31 | C29: 400 | D29: 400 | E29: 21 | F29: 22 | G29: 22 | H29: 21 | I29: 0.74 | J29: 5 | K29: 4.55 | L29: 0 | M29: 0.01 | N29: 0 | O29: 13 | P29: 35.41
A30: 00:00:28 | B30: 00:54:32 | C30: 400 | D30: 400 | E30: 21 | F30: 22 | G30: 22 | H30: 21 | I30: 0.67 | J30: 5 | K30: 4.12 | L30: 0 | M30: 0.01 | N30: 0 | O30: 13 | P30: 35.45
A31: 00:00:29 | B31: 00:54:33 | C31: 400 | D31: 400 | E31: 21 | F31: 22 | G31: 22 | H31: 21 | I31: 0.62 | J31: 5 | K31: 4.12 | L31: 0 | M31: 0.02 | N31: 0 | O31: 13 | P31: 35.53
A32: 00:00:30 | B32: 00:54:34 | C32: 400 | D32: 400 | E32: 21 | F32: 22 | G32: 22 | H32: 21 | I32: 0.57 | J32: 5 | K32: 4.12 | L32: 0 | M32: 0.02 | N32: 0 | O32: 14 | P32: 35.6
A33: 00:00:31 | B33: 00:54:35 | C33: 400 | D33: 400 | E33: 21 | F33: 22 | G33: 22 | H33: 21 | I33: 0.57 | J33: 5 | K33: 3.79 | L33: 0 | M33: 0.02 | N33: 0 | O33: 14 | P33: 35.64
A34: 00:00:32 | B34: 00:54:36 | C34: 400 | D34: 400 | E34: 21 | F34: 22 | G34: 21 | H34: 21 | I34: 0.53 | J34: 5 | K34: 3.79 | L34: 0 | M34: 0.01 | N34: 0 | O34: 14 | P34: 35.72
A35: 00:00:33 | B35: 00:54:37 | C35: 400 | D35: 400 | E35: 21 | F35: 22 | G35: 22 | H35: 21 | I35: 0.5 | J35: 5 | K35: 3.79 | L35: 0 | M35: 0.01 | N35: 0 | O35: 14 | P35: 35.79
A36: 00:00:34 | B36: 00:54:38 | C36: 400 | D36: 400 | E36: 21 | F36: 22 | G36: 22 | H36: 21 | I36: 0.5 | J36: 5 | K36: 3.79 | L36: 0 | M36: 0.01 | N36: 0 | O36: 15 | P36: 35.83
A37: 00:00:35 | B37: 00:54:39 | C37: 400 | D37: 400 | E37: 21 | F37: 22 | G37: 22 | H37: 21 | I37: 0.46 | J37: 5 | K37: 3.79 | L37: 0 | M37: 0.02 | N37: 0 | O37: 15 | P37: 35.9
A38: 00:00:36 | B38: 00:54:40 | C38: 400 | D38: 400 | E38: 21 | F38: 22 | G38: 22 | H38: 21 | I38: 0.44 | J38: 5 | K38: 3.79 | L38: 0 | M38: 0.02 | N38: 0 | O38: 15 | P38: 35.97
A39: 00:00:37 | B39: 00:54:41 | C39: 400 | D39: 400 | E39: 21 | F39: 22 | G39: 22 | H39: 21 | I39: 0.44 | J39: 5 | K39: 3.79 | L39: 0 | M39: 0.01 | N39: 0 | O39: 15 | P39: 36.01
A40: 00:00:38 | B40: 00:54:42 | C40: 400 | D40: 400 | E40: 21 | F40: 22 | G40: 22 | H40: 21 | I40: 0.41 | J40: 5 | K40: 3.44 | L40: 0 | M40: 0.01 | N40: 0 | O40: 16 | P40: 36.08
A41: 00:00:39 | B41: 00:54:43 | C41: 400 | D41: 400 | E41: 21 | F41: 22 | G41: 22 | H41: 21 | I41: 0.41 | J41: 5 | K41: 3.44 | L41: 0 | M41: 0.01 | N41: 0 | O41: 16 | P41: 36.11
A42: 00:00:40 | B42: 00:54:44 | C42: 400 | D42: 400 | E42: 21 | F42: 22 | G42: 22 | H42: 21 | I42: 0.39 | J42: 5 | K42: 3.44 | L42: 0 | M42: 0.01 | N42: 0 | O42: 16 | P42: 36.18
A43: 00:00:41 | B43: 00:54:45 | C43: 400 | D43: 400 | E43: 21 | F43: 22 | G43: 21 | H43: 21 | I43: 0.37 | J43: 5 | K43: 3.43 | L43: 0 | M43: 0.01 | N43: 0 | O43: 17 | P43: 36.25
A44: 00:00:42 | B44: 00:54:46 | C44: 400 | D44: 400 | E44: 21 | F44: 22 | G44: 22 | H44: 21 | I44: 0.36 | J44: 5 | K44: 3.43 | L44: 0 | M44: 0.01 | N44: 0 | O44: 17 | P44: 36.29
A45: 00:00:43 | B45: 00:54:47 | C45: 400 | D45: 400 | E45: 21 | F45: 22 | G45: 22 | H45: 21 | I45: 0.36 | J45: 5 | K45: 3.43 | L45: 0 | M45: 0.01 | N45: 0 | O45: 17 | P45: 36.35
A46: 00:00:44 | B46: 00:54:48 | C46: 400 | D46: 400 | E46: 21 | F46: 22 | G46: 22 | H46: 21 | I46: 0.34 | J46: 5 | K46: 3.43 | L46: 0 | M46: 0.01 | N46: 0 | O46: 18 | P46: 36.42
A47: 00:00:45 | B47: 00:54:49 | C47: 400 | D47: 400 | E47: 21 | F47: 22 | G47: 22 | H47: 21 | I47: 0.33 | J47: 5 | K47: 3.38 | L47: 0 | M47: 0.01 | N47: 0 | O47: 18 | P47: 36.46
A48: 00:00:46 | B48: 00:54:50 | C48: 400 | D48: 400 | E48: 21 | F48: 22 | G48: 22 | H48: 21 | I48: 0.33 | J48: 5 | K48: 3.38 | L48: 0 | M48: 0.02 | N48: 0 | O48: 18 | P48: 36.52
A49: 00:00:47 | B49: 00:54:51 | C49: 400 | D49: 400 | E49: 21 | F49: 22 | G49: 22 | H49: 21 | I49: 0.31 | J49: 5 | K49: 3.38 | L49: 0 | M49: 0.02 | N49: 0 | O49: 18 | P49: 36.59
A50: 00:00:48 | B50: 00:54:52 | C50: 400 | D50: 400 | E50: 21 | F50: 22 | G50: 22 | H50: 21 | I50: 0.3 | J50: 5 | K50: 3.27 | L50: 0 | M50: 0.02 | N50: 0 | O50: 19 | P50: 36.62
A51: 00:00:49 | B51: 00:54:53 | C51: 400 | D51: 400 | E51: 21 | F51: 22 | G51: 22 | H51: 21 | I51: 0.29 | J51: 5 | K51: 3.27 | L51: 0 | M51: 0.01 | N51: 0 | O51: 19 | P51: 36.68
A52: 00:00:50 | B52: 00:54:54 | C52: 400 | D52: 400 | E52: 21 | F52: 22 | G52: 22 | H52: 21 | I52: 0.29 | J52: 5 | K52: 3.27 | L52: 0 | M52: 0.01 | N52: 0 | O52: 19 | P52: 36.72
A53: 00:00:51 | B53: 00:54:55 | C53: 400 | D53: 400 | E53: 21 | F53: 22 | G53: 22 | H53: 21 | I53: 0.28 | J53: 5 | K53: 3.27 | L53: 0 | M53: 0.02 | N53: 0 | O53: 19 | P53: 36.77
A54: 00:00:52 | B54: 00:54:56 | C54: 400 | D54: 400 | E54: 21 | F54: 22 | G54: 22 | H54: 21 | I54: 0.27 | J54: 5 | K54: 3 | L54: 0 | M54: 0.02 | N54: 0 | O54: 20 | P54: 36.83
A55: 00:00:53 | B55: 00:54:57 | C55: 400 | D55: 400 | E55: 21 | F55: 22 | G55: 22 | H55: 21 | I55: 0.27 | J55: 5 | K55: 3 | L55: 0 | M55: 0.01 | N55: 0 | O55: 20 | P55: 36.86
A56: 00:00:54 | B56: 00:54:58 | C56: 400 | D56: 400 | E56: 21 | F56: 22 | G56: 22 | H56: 21 | I56: 0.26 | J56: 5 | K56: 3 | L56: 0 | M56: 0.01 | N56: 0 | O56: 20 | P56: 36.91
A57: 00:00:55 | B57: 00:54:59 | C57: 400 | D57: 400 | E57: 21 | F57: 22 | G57: 22 | H57: 21 | I57: 0.25 | J57: 5 | K57: 2.61 | L57: 0 | M57: 0.01 | N57: 0 | O57: 21 | P57: 36.95
A58: 00:00:56 | B58: 00:55:00 | C58: 400 | D58: 400 | E58: 21 | F58: 22 | G58: 22 | H58: 21 | I58: 0.25 | J58: 5 | K58: 2.61 | L58: 0 | M58: 0.01 | N58: 0 | O58: 21 | P58: 36.98
A59: 00:00:57 | B59: 00:55:01 | C59: 400 | D59: 400 | E59: 21 | F59: 22 | G59: 21 | H59: 21 | I59: 0.25 | J59: 5 | K59: 2.61 | L59: 0 | M59: 0.01 | N59: 0 | O59: 21 | P59: 37.02
A60: 00:00:58 | B60: 00:55:02 | C60: 400 | D60: 400 | E60: 21 | F60: 22 | G60: 22 | H60: 21 | I60: 0.24 | J60: 4 | K60: 2.38 | L60: 0 | M60: 0.02 | N60: 0 | O60: 21 | P60: 37.07
A61: 00:00:59 | B61: 00:55:03 | C61: 400 | D61: 400 | E61: 21 | F61: 22 | G61: 22 | H61: 21 | I61: 0.24 | J61: 4 | K61: 2.38 | L61: 0 | M61: 0.01 | N61: 0 | O61: 22 | P61: 37.11
A62: 00:01:00 | B62: 00:55:04 | C62: 400 | D62: 400 | E62: 21 | F62: 22 | G62: 22 | H62: 21 | I62: 0.23 | J62: 5 | K62: 2.38 | L62: 0 | M62: 0.02 | N62: 0 | O62: 22 | P62: 37.16
A63: 00:01:01 | B63: 00:55:05 | C63: 400 | D63: 400 | E63: 21 | F63: 22 | G63: 22 | H63: 21 | I63: 0.23 | J63: 4 | K63: 2.96 | L63: 0 | M63: 0.01 | N63: 0 | O63: 22 | P63: 37.22
A64: 00:01:02 | B64: 00:55:06 | C64: 400 | D64: 400 | E64: 21 | F64: 22 | G64: 22 | H64: 21 | I64: 0.23 | J64: 4 | K64: 2.96 | L64: 0 | M64: 0.01 | N64: 0 | O64: 22 | P64: 37.25
A65: 00:01:03 | B65: 00:55:07 | C65: 400 | D65: 400 | E65: 21 | F65: 22 | G65: 22 | H65: 21 | I65: 0.22 | J65: 4 | K65: 2.96 | L65: 0 | M65: 0.02 | N65: 0 | O65: 22 | P65: 37.28
A66: 00:01:04 | B66: 00:55:08 | C66: 400 | D66: 400 | E66: 21 | F66: 22 | G66: 22 | H66: 21 | I66: 0.22 | J66: 4 | K66: 2.96 | L66: 0 | M66: 0.02 | N66: 0 | O66: 22 | P66: 37.29
A67: 00:01:05 | B67: 00:55:09 | C67: 400 | D67: 400 | E67: 21 | F67: 22 | G67: 22 | H67: 21 | I67: 0.22 | J67: 4 | K67: 1.66 | L67: 0 | M67: 0.01 | N67: 0 | O67: 22 | P67: 37.32
A68: 00:01:06 | B68: 00:55:10 | C68: 400 | D68: 400 | E68: 21 | F68: 22 | G68: 22 | H68: 21 | I68: 0.21 | J68: 4 | K68: 1.66 | L68: 0 | M68: 0.01 | N68: 0 | O68: 22 | P68: 37.34
A69: 00:01:07 | B69: 00:55:11 | C69: 400 | D69: 400 | E69: 21 | F69: 22 | G69: 22 | H69: 21 | I69: 0.21 | J69: 4 | K69: 1.66 | L69: 0 | M69: 0.01 | N69: 0 | O69: 22 | P69: 37.35
A70: 00:01:08 | B70: 00:55:12 | C70: 400 | D70: 400 | E70: 21 | F70: 22 | G70: 22 | H70: 21 | I70: 0.21 | J70: 4 | K70: 0.95 | L70: 0 | M70: 0.01 | N70: 0 | O70: 22 | P70: 37.37
A71: 00:01:09 | B71: 00:55:13 | C71: 400 | D71: 400 | E71: 21 | F71: 22 | G71: 22 | H71: 21 | I71: 0.2 | J71: 4 | K71: 0.95 | L71: 0 | M71: 0.02 | N71: 0 | O71: 22 | P71: 37.38
A72: 00:01:10 | B72: 00:55:14 | C72: 400 | D72: 400 | E72: 21 | F72: 22 | G72: 22 | H72: 21 | I72: 0.2 | J72: 4 | K72: 0.95 | L72: 0 | M72: 0.01 | N72: 0 | O72: 22 | P72: 37.38
A73: 00:01:11 | B73: 00:55:15 | C73: 400 | D73: 400 | E73: 21 | F73: 22 | G73: 22 | H73: 21 | I73: 0.2 | J73: 4 | K73: 0.95 | L73: 0 | M73: 0.01 | N73: 0 | O73: 22 | P73: 37.39
A74: 00:01:12 | B74: 00:55:16 | C74: 400 | D74: 400 | E74: 21 | F74: 22 | G74: 22 | H74: 21 | I74: 0.2 | J74: 4 | K74: 0.42 | L74: 0 | M74: 0.02 | N74: 0 | O74: 22 | P74: 37.4
A75: 00:01:13 | B75: 00:55:17 | C75: 400 | D75: 400 | E75: 21 | F75: 22 | G75: 22 | H75: 21 | I75: 0.19 | J75: 4 | K75: 0.42 | L75: 0 | M75: 0.01 | N75: 0 | O75: 22 | P75: 37.4
A76: 00:01:14 | B76: 00:55:18 | C76: 400 | D76: 400 | E76: 21 | F76: 22 | G76: 22 | H76: 21 | I76: 0.19 | J76: 4 | K76: 0.42 | L76: 0 | M76: 0.01 | N76: 0 | O76: 22 | P76: 37.4
A77: 00:01:15 | B77: 00:55:19 | C77: 400 | D77: 400 | E77: 21 | F77: 22 | G77: 22 | H77: 21 | I77: 0.19 | J77: 4 | K77: 0.09 | L77: 0 | M77: 0.02 | N77: 0 | O77: 22 | P77: 37.4
A78: 00:01:16 | B78: 00:55:20 | C78: 400 | D78: 400 | E78: 21 | F78: 22 | G78: 22 | H78: 21 | I78: 0.19 | J78: 4 | K78: 0.09 | L78: 0 | M78: 0.01 | N78: 0 | O78: 22 | P78: 37.4
A79: 00:01:17 | B79: 00:55:21 | C79: 400 | D79: 400 | E79: 21 | F79: 22 | G79: 22 | H79: 21 | I79: 0.18 | J79: 4 | K79: 0.09 | L79: 0 | M79: 0.01 | N79: 0 | O79: 22 | P79: 37.4
A80: 00:01:18 | B80: 00:55:22 | C80: 400 | D80: 400 | E80: 21 | F80: 22 | G80: 22 | H80: 21 | I80: 0.18 | J80: 4 | K80: 0.09 | L80: 0 | M80: 0.01 | N80: 0 | O80: 22 | P80: 37.4
A81: 00:01:19 | B81: 00:55:23 | C81: 400 | D81: 400 | E81: 21 | F81: 22 | G81: 22 | H81: 21 | I81: 0.18 | J81: 4 | K81: 0.01 | L81: 0 | M81: 0.01 | N81: 0 | O81: 22 | P81: 37.4
A82: 00:01:20 | B82: 00:55:24 | C82: 400 | D82: 400 | E82: 21 | F82: 22 | G82: 22 | H82: 21 | I82: 0.18 | J82: 4 | K82: 0.01 | L82: 0 | M82: 0.02 | N82: 0 | O82: 22 | P82: 37.4
A83: 00:01:21 | B83: 00:55:25 | C83: 400 | D83: 400 | E83: 21 | F83: 22 | G83: 22 | H83: 21 | I83: 0.18 | J83: 4 | K83: 0.01 | L83: 0 | M83: 0.02 | N83: 0 | O83: 22 | P83: 37.4
A84: 00:01:22 | B84: 00:55:26 | C84: 400 | D84: 400 | E84: 21 | F84: 22 | G84: 22 | H84: 21 | I84: 0.18 | J84: 4 | K84: 0.01 | L84: 0 | M84: 0.02 | N84: 0 | O84: 22 | P84: 37.4
A85: 00:01:23 | B85: 00:55:27 | C85: 400 | D85: 400 | E85: 21 | F85: 22 | G85: 22 | H85: 21 | I85: 0.17 | J85: 4 | K85: 0.01 | L85: 0 | M85: 0.02 | N85: 0 | O85: 22 | P85: 37.41
A86: 00:01:24 | B86: 00:55:28 | C86: 400 | D86: 400 | E86: 21 | F86: 22 | G86: 22 | H86: 21 | I86: 0.17 | J86: 4 | K86: 0.01 | L86: 0 | M86: 0.02 | N86: 0 | O86: 22 | P86: 37.41
A87: 00:01:25 | B87: 00:55:29 | C87: 400 | D87: 400 | E87: 21 | F87: 22 | G87: 22 | H87: 21 | I87: 0.17 | J87: 4 | K87: 0.16 | L87: 0 | M87: 0.01 | N87: 0 | O87: 22 | P87: 37.41
A88: 00:01:26 | B88: 00:55:30 | C88: 400 | D88: 400 | E88: 21 | F88: 22 | G88: 22 | H88: 21 | I88: 0.17 | J88: 4 | K88: 0.16 | L88: 0 | M88: 0.01 | N88: 0 | O88: 22 | P88: 37.41
A89: 00:01:27 | B89: 00:55:31 | C89: 400 | D89: 400 | E89: 21 | F89: 22 | G89: 22 | H89: 21 | I89: 0.17 | J89: 4 | K89: 0.16 | L89: 0 | M89: 0.01 | N89: 0 | O89: 22 | P89: 37.41
A90: 00:01:28 | B90: 00:55:32 | C90: 400 | D90: 400 | E90: 21 | F90: 22 | G90: 22 | H90: 21 | I90: 0.17 | J90: 4 | K90: 0.09 | L90: 0 | M90: 0.01 | N90: 0 | O90: 22 | P90: 37.42
A91: 00:01:29 | B91: 00:55:33 | C91: 400 | D91: 400 | E91: 21 | F91: 22 | G91: 22 | H91: 21 | I91: 0.16 | J91: 4 | K91: 0.09 | L91: 0 | M91: 0.01 | N91: 0 | O91: 22 | P91: 37.42
A92: 00:01:30 | B92: 00:55:34 | C92: 400 | D92: 400 | E92: 21 | F92: 22 | G92: 22 | H92: 21 | I92: 0.16 | J92: 4 | K92: 0.09 | L92: 0 | M92: 0.02 | N92: 0 | O92: 22 | P92: 37.42
A93: 00:01:31 | B93: 00:55:35 | C93: 400 | D93: 400 | E93: 21 | F93: 22 | G93: 22 | H93: 21 | I93: 0.16 | J93: 4 | K93: 0.09 | L93: 0 | M93: 0.01 | N93: 0 | O93: 22 | P93: 37.42
A94: 00:01:32 | B94: 00:55:36 | C94: 400 | D94: 400 | E94: 21 | F94: 22 | G94: 22 | H94: 21 | I94: 0.16 | J94: 4 | K94: 0 | L94: 0 | M94: 0.02 | N94: 0 | O94: 22 | P94: 37.42
A95: 00:01:33 | B95: 00:55:37 | C95: 400 | D95: 400 | E95: 21 | F95: 22 | G95: 22 | H95: 21 | I95: 0.16 | J95: 4 | K95: 0 | L95: 0 | M95: 0.02 | N95: 0 | O95: 22 | P95: 37.42
A96: 00:01:34 | B96: 00:55:38 | C96: 400 | D96: 400 | E96: 21 | F96: 22 | G96: 22 | H96: 21 | I96: 0.16 | J96: 4 | K96: 0 | L96: 0 | M96: 0.02 | N96: 0 | O96: 22 | P96: 37.42
A97: 00:01:35 | B97: 00:55:39 | C97: 400 | D97: 400 | E97: 21 | F97: 22 | G97: 22 | H97: 21 | I97: 0.16 | J97: 4 | K97: 0 | L97: 0 | M97: 0.01 | N97: 0 | O97: 22 | P97: 37.42
A98: 00:01:36 | B98: 00:55:40 | C98: 400 | D98: 400 | E98: 20 | F98: 22 | G98: 22 | H98: 21 | I98: 0.16 | J98: 4 | K98: 0 | L98: 0 | M98: 0.02 | N98: 0 | O98: 22 | P98: 37.42
A99: 00:01:37 | B99: 00:55:41 | C99: 400 | D99: 400 | E99: 21 | F99: 22 | G99: 22 | H99: 21 | I99: 0.15 | J99: 4 | K99: 0 | L99: 0 | M99: 0.02 | N99: 0 | O99: 22 | P99: 37.42
A100: 00:01:38 | B100: 00:55:42 | C100: 400 | D100: 400 | E100: 21 | F100: 22 | G100: 22 | H100: 21 | I100: 0.15 | J100: 4 | K100: 0 | L100: 0 | M100: 0.01 | N100: 0 | O100: 22 | P100: 37.42
A101: 00:01:39 | B101: 00:55:43 | C101: 400 | D101: 400 | E101: 20 | F101: 22 | G101: 22 | H101: 21 | I101: 0.15 | J101: 4 | K101: 0 | L101: 0 | M101: 0.01 | N101: 0 | O101: 22 | P101: 37.42
A102: 00:01:40 | B102: 00:55:44 | C102: 400 | D102: 400 | E102: 21 | F102: 22 | G102: 22 | H102: 21 | I102: 0.15 | J102: 4 | K102: 0 | L102: 0 | M102: 0.01 | N102: 0 | O102: 22 | P102: 37.42
A103: 00:01:41 | B103: 00:55:45 | C103: 400 | D103: 400 | E103: 21 | F103: 22 | G103: 22 | H103: 21 | I103: 0.15 | J103: 4 | K103: 0 | L103: 0.01 | M103: 0.01 | N103: 0.0001 | O103: 22 | P103: 37.42
A104: 00:01:42 | B104: 00:55:46 | C104: 400 | D104: 400 | E104: 21 | F104: 22 | G104: 22 | H104: 21 | I104: 0.15 | J104: 4 | K104: 0.01 | L104: 0 | M104: 0.02 | N104: 0 | O104: 22 | P104: 37.42
A105: 00:01:43 | B105: 00:55:47 | C105: 400 | D105: 400 | E105: 21 | F105: 22 | G105: 22 | H105: 21 | I105: 0.15 | J105: 4 | K105: 0.01 | L105: 0 | M105: 0.01 | N105: 0 | O105: 22 | P105: 37.42
A106: 00:01:44 | B106: 00:55:48 | C106: 400 | D106: 400 | E106: 21 | F106: 22 | G106: 22 | H106: 21 | I106: 0.15 | J106: 4 | K106: 0.01 | L106: 0 | M106: 0.01 | N106: 0 | O106: 22 | P106: 37.42
A107: 00:01:45 | B107: 00:55:49 | C107: 400 | D107: 400 | E107: 21 | F107: 22 | G107: 22 | H107: 21 | I107: 0.15 | J107: 4 | K107: 0.06 | L107: 0 | M107: 0.01 | N107: 0 | O107: 22 | P107: 37.42
A108: 00:01:46 | B108: 00:55:50 | C108: 400 | D108: 400 | E108: 21 | F108: 22 | G108: 22 | H108: 21 | I108: 0.15 | J108: 4 | K108: 0.06 | L108: 0 | M108: 0.01 | N108: 0 | O108: 22 | P108: 37.42
A109: 00:01:47 | B109: 00:55:51 | C109: 400 | D109: 400 | E109: 21 | F109: 22 | G109: 22 | H109: 21 | I109: 0.15 | J109: 4 | K109: 0.06 | L109: 0 | M109: 0.01 | N109: 0 | O109: 22 | P109: 37.43
A110: 00:01:48 | B110: 00:55:52 | C110: 400 | D110: 400 | E110: 21 | F110: 22 | G110: 22 | H110: 21 | I110: 0.14 | J110: 4 | K110: 0.1 | L110: 0 | M110: 0.01 | N110: 0 | O110: 22 | P110: 37.43
A111: 00:01:49 | B111: 00:55:53 | C111: 400 | D111: 400 | E111: 21 | F111: 22 | G111: 22 | H111: 21 | I111: 0.14 | J111: 4 | K111: 0.1 | L111: 0 | M111: 0.01 | N111: 0 | O111: 22 | P111: 37.43
A112: 00:01:50 | B112: 00:55:54 | C112: 400 | D112: 400 | E112: 21 | F112: 22 | G112: 22 | H112: 21 | I112: 0.14 | J112: 4 | K112: 0.1 | L112: 0 | M112: 0.01 | N112: 0 | O112: 22 | P112: 37.43
A113: 00:01:51 | B113: 00:55:55 | C113: 400 | D113: 400 | E113: 21 | F113: 22 | G113: 22 | H113: 21 | I113: 0.14 | J113: 4 | K113: 0.1 | L113: 0 | M113: 0.01 | N113: 0 | O113: 22 | P113: 37.43
A114: 00:01:52 | B114: 00:55:56 | C114: 400 | D114: 400 | E114: 21 | F114: 22 | G114: 22 | H114: 21 | I114: 0.14 | J114: 4 | K114: -0.01 | L114: 0 | M114: 0.02 | N114: 0 | O114: 22 | P114: 37.43
A115: 00:01:53 | B115: 00:55:57 | C115: 400 | D115: 400 | E115: 21 | F115: 22 | G115: 22 | H115: 21 | I115: 0.14 | J115: 4 | K115: -0.01 | L115: 0 | M115: 0.02 | N115: 0 | O115: 22 | P115: 37.43
A116: 00:01:54 | B116: 00:55:58 | C116: 400 | D116: 400 | E116: 21 | F116: 22 | G116: 22 | H116: 21 | I116: 0.14 | J116: 4 | K116: -0.01 | L116: 0 | M116: 0.01 | N116: 0 | O116: 22 | P116: 37.43
A117: 00:01:55 | B117: 00:55:59 | C117: 400 | D117: 400 | E117: 21 | F117: 22 | G117: 22 | H117: 21 | I117: 0.14 | J117: 4 | K117: -0.01 | L117: 0 | M117: 0.02 | N117: 0 | O117: 22 | P117: 37.43
A118: 00:01:56 | B118: 00:56:00 | C118: 400 | D118: 400 | E118: 21 | F118: 22 | G118: 22 | H118: 21 | I118: 0.14 | J118: 4 | K118: 0 | L118: 0 | M118: 0.01 | N118: 0 | O118: 22 | P118: 37.43
A119: 00:01:57 | B119: 00:56:01 | C119: 400 | D119: 400 | E119: 21 | F119: 22 | G119: 22 | H119: 21 | I119: 0.14 | J119: 4 | K119: 0 | L119: 0 | M119: 0.02 | N119: 0 | O119: 22 | P119: 37.43
A120: 00:01:58 | B120: 00:56:02 | C120: 400 | D120: 400 | E120: 21 | F120: 22 | G120: 22 | H120: 21 | I120: 0.14 | J120: 4 | K120: 0 | L120: 0 | M120: 0.02 | N120: 0 | O120: 22 | P120: 37.43
A121: 00:01:59 | B121: 00:56:03 | C121: 400 | D121: 400 | E121: 21 | F121: 22 | G121: 22 | H121: 21 | I121: 0.14 | J121: 4 | K121: 0.02 | L121: 0 | M121: 0.02 | N121: 0 | O121: 22 | P121: 37.43
A122: 00:02:00 | B122: 00:56:04 | C122: 400 | D122: 400 | E122: 21 | F122: 22 | G122: 22 | H122: 21 | I122: 0.14 | J122: 4 | K122: 0.02 | L122: 0 | M122: 0.01 | N122: 0 | O122: 22 | P122: 37.43
A123: 00:02:01 | B123: 00:56:05 | C123: 400 | D123: 400 | E123: 21 | F123: 22 | G123: 22 | H123: 21 | I123: 0.14 | J123: 4 | K123: 0.02 | L123: 0 | M123: 0.02 | N123: 0 | O123: 22 | P123: 37.43
A124: 00:02:02 | B124: 00:56:06 | C124: 400 | D124: 400 | E124: 21 | F124: 22 | G124: 22 | H124: 21 | I124: 0.14 | J124: 4 | K124: 0.03 | L124: 0 | M124: 0.02 | N124: 0 | O124: 22 | P124: 37.43
A125: 00:02:03 | B125: 00:56:07 | C125: 400 | D125: 400 | E125: 21 | F125: 22 | G125: 22 | H125: 21 | I125: 0.14 | J125: 4 | K125: 0.03 | L125: 0 | M125: 0.02 | N125: 0 | O125: 22 | P125: 37.43
A126: 00:02:04 | B126: 00:56:08 | C126: 400 | D126: 400 | E126: 21 | F126: 22 | G126: 22 | H126: 21 | I126: 0.13 | J126: 4 | K126: 0.03 | L126: 0 | M126: 0.01 | N126: 0 | O126: 22 | P126: 37.43
A127: 00:02:05 | B127: 00:56:09 | C127: 400 | D127: 400 | E127: 21 | F127: 22 | G127: 22 | H127: 21 | I127: 0.13 | J127: 4 | K127: 0 | L127: 0 | M127: 0.02 | N127: 0 | O127: 22 | P127: 37.43
A128: 00:02:06 | B128: 00:56:10 | C128: 400 | D128: 400 | E128: 21 | F128: 22 | G128: 22 | H128: 21 | I128: 0.13 | J128: 4 | K128: 0 | L128: 0 | M128: 0.02 | N128: 0 | O128: 22 | P128: 37.43
A129: 00:02:07 | B129: 00:56:11 | C129: 400 | D129: 400 | E129: 21 | F129: 22 | G129: 22 | H129: 21 | I129: 0.13 | J129: 4 | K129: 0 | L129: 0 | M129: 0.02 | N129: 0 | O129: 22 | P129: 37.43
A130: 00:02:08 | B130: 00:56:12 | C130: 400 | D130: 400 | E130: 21 | F130: 22 | G130: 22 | H130: 21 | I130: 0.13 | J130: 4 | K130: 0 | L130: 0 | M130: 0.02 | N130: 0 | O130: 22 | P130: 37.43
A131: 00:02:09 | B131: 00:56:13 | C131: 400 | D131: 400 | E131: 21 | F131: 22 | G131: 21 | H131: 21 | I131: 0.13 | J131: 4 | K131: 0 | L131: 0 | M131: 0.01 | N131: 0 | O131: 22 | P131: 37.43
A132: 00:02:10 | B132: 00:56:14 | C132: 400 | D132: 400 | E132: 21 | F132: 22 | G132: 22 | H132: 21 | I132: 0.13 | J132: 4 | K132: 0 | L132: 0 | M132: 0.02 | N132: 0 | O132: 22 | P132: 37.43
A133: 00:02:11 | B133: 00:56:15 | C133: 400 | D133: 400 | E133: 21 | F133: 22 | G133: 22 | H133: 21 | I133: 0.13 | J133: 4 | K133: 0 | L133: 0 | M133: 0.02 | N133: 0 | O133: 22 | P133: 37.43
A134: 00:02:12 | B134: 00:56:16 | C134: 400 | D134: 400 | E134: 21 | F134: 22 | G134: 22 | H134: 21 | I134: 0.13 | J134: 4 | K134: 0.03 | L134: 0 | M134: 0.01 | N134: 0 | O134: 22 | P134: 37.43
A135: 00:02:13 | B135: 00:56:17 | C135: 400 | D135: 400 | E135: 21 | F135: 22 | G135: 22 | H135: 21 | I135: 0.13 | J135: 4 | K135: 0.03 | L135: 0 | M135: 0.01 | N135: 0 | O135: 22 | P135: 37.43
A136: 00:02:14 | B136: 00:56:18 | C136: 400 | D136: 400 | E136: 21 | F136: 22 | G136: 22 | H136: 21 | I136: 0.13 | J136: 4 | K136: 0.03 | L136: 0 | M136: 0.01 | N136: 0 | O136: 22 | P136: 37.43
A137: 00:02:15 | B137: 00:56:19 | C137: 400 | D137: 400 | E137: 21 | F137: 22 | G137: 21 | H137: 21 | I137: 0.13 | J137: 4 | K137: 0.03 | L137: 0 | M137: 0.01 | N137: 0 | O137: 22 | P137: 37.43
A138: 00:02:16 | B138: 00:56:20 | C138: 400 | D138: 400 | E138: 21 | F138: 22 | G138: 22 | H138: 21 | I138: 0.13 | J138: 4 | K138: 0.03 | L138: 0 | M138: 0.01 | N138: 0 | O138: 22 | P138: 37.43
A139: 00:02:17 | B139: 00:56:21 | C139: 400 | D139: 400 | E139: 21 | F139: 22 | G139: 22 | H139: 21 | I139: 0.13 | J139: 4 | K139: 0.03 | L139: 0 | M139: 0.01 | N139: 0 | O139: 22 | P139: 37.43
A140: 00:02:18 | B140: 00:56:22 | C140: 400 | D140: 400 | E140: 21 | F140: 22 | G140: 21 | H140: 21 | I140: 0.13 | J140: 4 | K140: 0.03 | L140: 0 | M140: 0.02 | N140: 0 | O140: 22 | P140: 37.43
A141: 00:02:19 | B141: 00:56:23 | C141: 400 | D141: 400 | E141: 21 | F141: 22 | G141: 21 | H141: 21 | I141: 0.13 | J141: 4 | K141: -0.01 | L141: 0 | M141: 0.02 | N141: 0 | O141: 22 | P141: 37.44
A142: 00:02:20 | B142: 00:56:24 | C142: 400 | D142: 400 | E142: 21 | F142: 22 | G142: 21 | H142: 21 | I142: 0.13 | J142: 4 | K142: -0.01 | L142: 0 | M142: 0.01 | N142: 0 | O142: 22 | P142: 37.43
A143: 00:02:21 | B143: 00:56:25 | C143: 400 | D143: 400 | E143: 21 | F143: 22 | G143: 21 | H143: 21 | I143: 0.13 | J143: 4 | K143: -0.01 | L143: 0 | M143: 0.01 | N143: 0 | O143: 22 | P143: 37.43
A144: 00:02:22 | B144: 00:56:26 | C144: 400 | D144: 400 | E144: 21 | F144: 22 | G144: 21 | H144: 21 | I144: 0.13 | J144: 4 | K144: -0.01 | L144: 0 | M144: 0.02 | N144: 0 | O144: 22 | P144: 37.43
A145: 00:02:23 | B145: 00:56:27 | C145: 400 | D145: 400 | E145: 21 | F145: 22 | G145: 21 | H145: 21 | I145: 0.13 | J145: 4 | K145: 0 | L145: 0 | M145: 0.02 | N145: 0 | O145: 22 | P145: 37.44
A146: 00:02:24 | B146: 00:56:28 | C146: 400 | D146: 400 | E146: 21 | F146: 22 | G146: 21 | H146: 21 | I146: 0.13 | J146: 4 | K146: 0 | L146: 0 | M146: 0.02 | N146: 0 | O146: 22 | P146: 37.44
A147: 00:02:25 | B147: 00:56:29 | C147: 400 | D147: 400 | E147: 21 | F147: 22 | G147: 21 | H147: 21 | I147: 0.13 | J147: 4 | K147: 0 | L147: 0 | M147: 0.01 | N147: 0 | O147: 22 | P147: 37.44
A148: 00:02:26 | B148: 00:56:30 | C148: 400 | D148: 400 | E148: 21 | F148: 22 | G148: 21 | H148: 21 | I148: 0.13 | J148: 4 | K148: 0 | L148: 0 | M148: 0.01 | N148: 0 | O148: 22 | P148: 37.44
A149: 00:02:27 | B149: 00:56:31 | C149: 400 | D149: 400 | E149: 21 | F149: 22 | G149: 21 | H149: 21 | I149: 0.13 | J149: 4 | K149: 0 | L149: 0 | M149: 0.01 | N149: 0 | O149: 22 | P149: 37.44
A150: 00:02:28 | B150: 00:56:32 | C150: 400 | D150: 400 | E150: 21 | F150: 22 | G150: 21 | H150: 21 | I150: 0.13 | J150: 4 | K150: 0 | L150: 0 | M150: 0.01 | N150: 0 | O150: 22 | P150: 37.44
A151: 00:02:29 | B151: 00:56:33 | C151: 400 | D151: 400 | E151: 21 | F151: 22 | G151: 21 | H151: 21 | I151: 0.13 | J151: 4 | K151: 0 | L151: 0 | M151: 0.01 | N151: 0 | O151: 22 | P151: 37.44
A152: 00:02:30 | B152: 00:56:34 | C152: 400 | D152: 400 | E152: 21 | F152: 22 | G152: 21 | H152: 21 | I152: 0.12 | J152: 4 | K152: 0 | L152: 0 | M152: 0.02 | N152: 0 | O152: 22 | P152: 37.44
A153: 00:02:31 | B153: 00:56:35 | C153: 400 | D153: 400 | E153: 21 | F153: 22 | G153: 21 | H153: 21 | I153: 0.12 | J153: 4 | K153: 0 | L153: 0 | M153: 0.02 | N153: 0 | O153: 22 | P153: 37.44
A154: 00:02:32 | B154: 00:56:36 | C154: 400 | D154: 400 | E154: 21 | F154: 22 | G154: 21 | H154: 21 | I154: 0.12 | J154: 4 | K154: 0.04 | L154: 0 | M154: 0.01 | N154: 0 | O154: 22 | P154: 37.44
A155: 00:02:33 | B155: 00:56:37 | C155: 400 | D155: 400 | E155: 21 | F155: 22 | G155: 21 | H155: 21 | I155: 0.12 | J155: 4 | K155: 0.04 | L155: 0 | M155: 0.01 | N155: 0 | O155: 22 | P155: 37.44
A156: 00:02:34 | B156: 00:56:38 | C156: 400 | D156: 400 | E156: 21 | F156: 22 | G156: 22 | H156: 21 | I156: 0.12 | J156: 4 | K156: 0.04 | L156: 0 | M156: 0.01 | N156: 0 | O156: 22 | P156: 37.44
A157: 00:02:35 | B157: 00:56:39 | C157: 400 | D157: 400 | E157: 21 | F157: 22 | G157: 21 | H157: 21 | I157: 0.12 | J157: 4 | K157: 0.04 | L157: 0 | M157: 0.02 | N157: 0 | O157: 22 | P157: 37.44
A158: 00:02:36 | B158: 00:56:40 | C158: 400 | D158: 400 | E158: 21 | F158: 22 | G158: 21 | H158: 21 | I158: 0.12 | J158: 4 | K158: 0.03 | L158: 0 | M158: 0.01 | N158: 0 | O158: 22 | P158: 37.44
A159: 00:02:37 | B159: 00:56:41 | C159: 400 | D159: 400 | E159: 21 | F159: 22 | G159: 21 | H159: 21 | I159: 0.12 | J159: 4 | K159: 0.03 | L159: 0 | M159: 0.02 | N159: 0 | O159: 22 | P159: 37.44
A160: 00:02:38 | B160: 00:56:42 | C160: 400 | D160: 400 | E160: 21 | F160: 22 | G160: 21 | H160: 21 | I160: 0.12 | J160: 4 | K160: 0.03 | L160: 0 | M160: 0.02 | N160: 0 | O160: 22 | P160: 37.44
A161: 00:02:39 | B161: 00:56:43 | C161: 400 | D161: 400 | E161: 21 | F161: 22 | G161: 21 | H161: 21 | I161: 0.12 | J161: 4 | K161: 0.02 | L161: 0 | M161: 0.01 | N161: 0 | O161: 22 | P161: 37.44
A162: 00:02:40 | B162: 00:56:44 | C162: 400 | D162: 400 | E162: 21 | F162: 22 | G162: 21 | H162: 21 | I162: 0.12 | J162: 4 | K162: 0.02 | L162: 0 | M162: 0.02 | N162: 0 | O162: 22 | P162: 37.44
A163: 00:02:41 | B163: 00:56:45 | C163: 400 | D163: 400 | E163: 21 | F163: 22 | G163: 21 | H163: 21 | I163: 0.12 | J163: 4 | K163: 0.02 | L163: 0 | M163: 0.02 | N163: 0 | O163: 22 | P163: 37.44
A164: 00:02:42 | B164: 00:56:46 | C164: 400 | D164: 400 | E164: 21 | F164: 22 | G164: 21 | H164: 21 | I164: 0.12 | J164: 4 | K164: 0.02 | L164: 0 | M164: 0.01 | N164: 0 | O164: 22 | P164: 37.44
A165: 00:02:43 | B165: 00:56:47 | C165: 400 | D165: 400 | E165: 21 | F165: 22 | G165: 21 | H165: 21 | I165: 0.12 | J165: 4 | K165: 0 | L165: 0 | M165: 0.02 | N165: 0 | O165: 22 | P165: 37.44
A166: 00:02:44 | B166: 00:56:48 | C166: 400 | D166: 400 | E166: 21 | F166: 22 | G166: 21 | H166: 21 | I166: 0.12 | J166: 4 | K166: 0 | L166: 0 | M166: 0.01 | N166: 0 | O166: 22 | P166: 37.44
A167: 00:02:45 | B167: 00:56:49 | C167: 400 | D167: 400 | E167: 21 | F167: 22 | G167: 21 | H167: 21 | I167: 0.12 | J167: 4 | K167: 0 | L167: 0.01 | M167: 0.02 | N167: 0.0002 | O167: 22 | P167: 37.44
A168: 00:02:46 | B168: 00:56:50 | C168: 400 | D168: 400 | E168: 21 | F168: 22 | G168: 21 | H168: 21 | I168: 0.12 | J168: 4 | K168: 0.01 | L168: 0 | M168: 0.01 | N168: 0 | O168: 22 | P168: 37.44
A169: 00:02:47 | B169: 00:56:51 | C169: 400 | D169: 400 | E169: 21 | F169: 22 | G169: 21 | H169: 21 | I169: 0.12 | J169: 4 | K169: 0.01 | L169: 0 | M169: 0.01 | N169: 0 | O169: 22 | P169: 37.44
A170: 00:02:48 | B170: 00:56:52 | C170: 400 | D170: 400 | E170: 21 | F170: 22 | G170: 21 | H170: 21 | I170: 0.12 | J170: 4 | K170: 0.01 | L170: 0 | M170: 0.02 | N170: 0 | O170: 22 | P170: 37.44
A171: 00:02:49 | B171: 00:56:53 | C171: 400 | D171: 400 | E171: 21 | F171: 22 | G171: 21 | H171: 21 | I171: 0.12 | J171: 4 | K171: -0.01 | L171: 0 | M171: 0.02 | N171: 0 | O171: 22 | P171: 37.44
A172: 00:02:50 | B172: 00:56:54 | C172: 400 | D172: 400 | E172: 21 | F172: 22 | G172: 21 | H172: 21 | I172: 0.12 | J172: 4 | K172: -0.01 | L172: 0 | M172: 0.02 | N172: 0 | O172: 22 | P172: 37.44
A173: 00:02:51 | B173: 00:56:55 | C173: 400 | D173: 400 | E173: 21 | F173: 22 | G173: 21 | H173: 21 | I173: 0.12 | J173: 4 | K173: -0.01 | L173: 0 | M173: 0.01 | N173: 0 | O173: 22 | P173: 37.44
A174: 00:02:52 | B174: 00:56:56 | C174: 400 | D174: 400 | E174: 21 | F174: 22 | G174: 21 | H174: 21 | I174: 0.12 | J174: 4 | K174: -0.01 | L174: 0 | M174: 0.01 | N174: 0 | O174: 22 | P174: 37.44
A175: 00:02:53 | B175: 00:56:57 | C175: 400 | D175: 400 | E175: 21 | F175: 22 | G175: 21 | H175: 21 | I175: 0.12 | J175: 4 | K175: -0.01 | L175: 0 | M175: 0.01 | N175: 0 | O175: 22 | P175: 37.44
A176: 00:02:54 | B176: 00:56:58 | C176: 400 | D176: 400 | E176: 21 | F176: 22 | G176: 21 | H176: 21 | I176: 0.12 | J176: 4 | K176: -0.01 | L176: 0 | M176: 0.02 | N176: 0 | O176: 22 | P176: 37.44
A177: 00:02:55 | B177: 00:56:59 | C177: 400 | D177: 400 | E177: 21 | F177: 22 | G177: 21 | H177: 21 | I177: 0.12 | J177: 4 | K177: -0.01 | L177: 0 | M177: 0.01 | N177: 0 | O177: 22 | P177: 37.44
A178: 00:02:56 | B178: 00:57:00 | C178: 400 | D178: 400 | E178: 21 | F178: 22 | G178: 21 | H178: 21 | I178: 0.12 | J178: 4 | K178: 0 | L178: 0 | M178: 0.01 | N178: 0 | O178: 22 | P178: 37.44
A179: 00:02:57 | B179: 00:57:01 | C179: 400 | D179: 400 | E179: 21 | F179: 22 | G179: 21 | H179: 21 | I179: 0.12 | J179: 4 | K179: 0 | L179: 0 | M179: 0.02 | N179: 0 | O179: 22 | P179: 37.44
A180: 00:02:58 | B180: 00:57:02 | C180: 400 | D180: 400 | E180: 21 | F180: 22 | G180: 22 | H180: 21 | I180: 0.12 | J180: 4 | K180: 0 | L180: 0 | M180: 0.01 | N180: 0 | O180: 22 | P180: 37.44
A181: 00:02:59 | B181: 00:57:03 | C181: 400 | D181: 400 | E181: 21 | F181: 22 | G181: 22 | H181: 21 | I181: 0.12 | J181: 4 | K181: 0 | L181: 0 | M181: 0.01 | N181: 0 | O181: 22 | P181: 37.44
A182: 00:03:00 | B182: 00:57:04 | C182: 400 | D182: 400 | E182: 21 | F182: 22 | G182: 21 | H182: 21 | I182: 0.12 | J182: 4 | K182: 0 | L182: 0 | M182: 0.01 | N182: 0 | O182: 22 | P182: 37.44
A183: 00:03:01 | B183: 00:57:05 | C183: 400 | D183: 400 | E183: 21 | F183: 22 | G183: 21 | H183: 21 | I183: 0.12 | J183: 4 | K183: 0 | L183: 0 | M183: 0.01 | N183: 0 | O183: 22 | P183: 37.44
A184: 00:03:02 | B184: 00:57:06 | C184: 400 | D184: 400 | E184: 21 | F184: 22 | G184: 21 | H184: 21 | I184: 0.12 | J184: 4 | K184: 0 | L184: 0 | M184: 0.02 | N184: 0 | O184: 22 | P184: 37.44
A185: 00:03:03 | B185: 00:57:07 | C185: 400 | D185: 400 | E185: 21 | F185: 22 | G185: 21 | H185: 21 | I185: 0.12 | J185: 4 | K185: 0.02 | L185: 0 | M185: 0.02 | N185: 0 | O185: 22 | P185: 37.44
A186: 00:03:04 | B186: 00:57:08 | C186: 400 | D186: 400 | E186: 21 | F186: 22 | G186: 21 | H186: 21 | I186: 0.12 | J186: 4 | K186: 0.02 | L186: 0 | M186: 0.02 | N186: 0 | O186: 22 | P186: 37.44
A187: 00:03:05 | B187: 00:57:09 | C187: 400 | D187: 400 | E187: 21 | F187: 22 | G187: 21 | H187: 21 | I187: 0.12 | J187: 4 | K187: 0.02 | L187: 0 | M187: 0.01 | N187: 0 | O187: 22 | P187: 37.44
A188: 00:03:06 | B188: 00:57:10 | C188: 400 | D188: 400 | E188: 21 | F188: 22 | G188: 21 | H188: 21 | I188: 0.12 | J188: 4 | K188: 0.03 | L188: 0 | M188: 0.01 | N188: 0 | O188: 22 | P188: 37.44
A189: 00:03:07 | B189: 00:57:11 | C189: 400 | D189: 400 | E189: 21 | F189: 22 | G189: 21 | H189: 21 | I189: 0.12 | J189: 4 | K189: 0.03 | L189: 0 | M189: 0.02 | N189: 0 | O189: 22 | P189: 37.44
A190: 00:03:08 | B190: 00:57:12 | C190: 400 | D190: 400 | E190: 21 | F190: 22 | G190: 21 | H190: 21 | I190: 0.12 | J190: 4 | K190: 0.03 | L190: 0 | M190: 0.01 | N190: 0 | O190: 22 | P190: 37.44
A191: 00:03:09 | B191: 00:57:13 | C191: 400 | D191: 400 | E191: 21 | F191: 22 | G191: 21 | H191: 21 | I191: 0.12 | J191: 4 | K191: 0.03 | L191: 0 | M191: 0.02 | N191: 0 | O191: 22 | P191: 37.44
A192: 00:03:10 | B192: 00:57:14 | C192: 400 | D192: 400 | E192: 21 | F192: 22 | G192: 21 | H192: 21 | I192: 0.12 | J192: 4 | K192: 0.03 | L192: 0 | M192: 0.02 | N192: 0 | O192: 22 | P192: 37.44
A193: 00:03:11 | B193: 00:57:15 | C193: 400 | D193: 400 | E193: 21 | F193: 22 | G193: 21 | H193: 21 | I193: 0.12 | J193: 4 | K193: 0.03 | L193: 0 | M193: 0.01 | N193: 0 | O193: 22 | P193: 37.44
A194: 00:03:12 | B194: 00:57:16 | C194: 400 | D194: 400 | E194: 21 | F194: 22 | G194: 21 | H194: 21 | I194: 0.12 | J194: 4 | K194: 0.01 | L194: 0 | M194: 0.01 | N194: 0 | O194: 22 | P194: 37.44
A195: 00:03:13 | B195: 00:57:17 | C195: 400 | D195: 400 | E195: 21 | F195: 22 | G195: 21 | H195: 21 | I195: 0.12 | J195: 4 | K195: 0.01 | L195: 0 | M195: 0.01 | N195: 0 | O195: 22 | P195: 37.44
A196: 00:03:14 | B196: 00:57:18 | C196: 400 | D196: 400 | E196: 21 | F196: 22 | G196: 21 | H196: 21 | I196: 0.12 | J196: 4 | K196: 0.01 | L196: 0 | M196: 0.02 | N196: 0 | O196: 22 | P196: 37.44
A197: 00:03:15 | B197: 00:57:19 | C197: 400 | D197: 400 | E197: 21 | F197: 22 | G197: 21 | H197: 21 | I197: 0.12 | J197: 4 | K197: 0.01 | L197: 0 | M197: 0.01 | N197: 0 | O197: 22 | P197: 37.44
A198: 00:03:16 | B198: 00:57:20 | C198: 400 | D198: 400 | E198: 21 | F198: 22 | G198: 21 | H198: 21 | I198: 0.12 | J198: 4 | K198: 0.01 | L198: 0 | M198: 0.02 | N198: 0 | O198: 22 | P198: 37.44
A199: 00:03:17 | B199: 00:57:21 | C199: 400 | D199: 400 | E199: 21 | F199: 22 | G199: 21 | H199: 21 | I199: 0.12 | J199: 4 | K199: 0.01 | L199: 0 | M199: 0.01 | N199: 0 | O199: 22 | P199: 37.44
A200: 00:03:18 | B200: 00:57:22 | C200: 400 | D200: 400 | E200: 21 | F200: 22 | G200: 21 | H200: 21 | I200: 0.12 | J200: 4 | K200: 0.01 | L200: 0 | M200: 0.01 | N200: 0 | O200: 22 | P200: 37.44
... 2011 more rows

Sheet 1500
A1: P.Zeit | C1: Pyrometer | D1: Pyrometer B | E1: MTC1 | F1: MTC2 | G1: MTC3 | H1: MTC4 | I1: Press. abs 1 | J1: Press. abs 2 | K1: Speed | L1: U RMS | M1: I RMS | N1: Power | O1: Force | P1: Abs Piston Tra. | Q1: Rel Piston Tra.
A2: 00:00:00 | B2: 00:56:01 | C2: 400 | D2: 400 | E2: 20 | F2: 21 | G2: 21 | H2: 21 | I2: 0.13 | J2: 4 | K2: -0.01 | L2: 0.01 | M2: 0.01 | N2: =L2*M2 -> 0.0001 | O2: 5 | P2: 32.38
A3: 00:00:01 | B3: 00:56:02 | C3: 400 | D3: 400 | E3: 20 | F3: 21 | G3: 21 | H3: 21 | I3: 0.13 | J3: 4 | K3: -0.01 | L3: 0 | M3: 0.02 | N3: 0 | O3: 5 | P3: 32.41
A4: 00:00:02 | B4: 00:56:03 | C4: 400 | D4: 400 | E4: 20 | F4: 21 | G4: 21 | H4: 21 | I4: 0.13 | J4: 4 | K4: -0.01 | L4: 0 | M4: 0.02 | N4: 0 | O4: 5 | P4: 32.64
A5: 00:00:03 | B5: 00:56:04 | C5: 400 | D5: 400 | E5: 20 | F5: 21 | G5: 21 | H5: 21 | I5: 0.13 | J5: 4 | K5: -0.01 | L5: 0 | M5: 0.01 | N5: 0 | O5: 5 | P5: 32.64
A6: 00:00:04 | B6: 00:56:05 | C6: 400 | D6: 400 | E6: 20 | F6: 21 | G6: 21 | H6: 21 | I6: 0.13 | J6: 4 | K6: 5.11 | L6: 0 | M6: 0.01 | N6: 0 | O6: 5 | P6: 32.65
A7: 00:00:05 | B7: 00:56:06 | C7: 400 | D7: 400 | E7: 20 | F7: 21 | G7: 21 | H7: 21 | I7: 0.13 | J7: 4 | K7: 5.11 | L7: 0 | M7: 0.01 | N7: 0 | O7: 5 | P7: 32.65
A8: 00:00:06 | B8: 00:56:07 | C8: 400 | D8: 400 | E8: 20 | F8: 21 | G8: 21 | H8: 21 | I8: 0.13 | J8: 4 | K8: 5.11 | L8: 0 | M8: 0.01 | N8: 0 | O8: 6 | P8: 32.66
A9: 00:00:07 | B9: 00:56:08 | C9: 400 | D9: 400 | E9: 20 | F9: 21 | G9: 21 | H9: 21 | I9: 0.13 | J9: 4 | K9: 0.15 | L9: 0 | M9: 0.02 | N9: 0 | O9: 6 | P9: 32.66
A10: 00:00:08 | B10: 00:56:09 | C10: 400 | D10: 400 | E10: 20 | F10: 21 | G10: 21 | H10: 21 | I10: 0.13 | J10: 4 | K10: 0.15 | L10: 0 | M10: 0.01 | N10: 0 | O10: 6 | P10: 32.66
A11: 00:00:09 | B11: 00:56:10 | C11: 400 | D11: 400 | E11: 20 | F11: 21 | G11: 21 | H11: 21 | I11: 0.13 | J11: 4 | K11: 0.15 | L11: 0 | M11: 0.01 | N11: 0 | O11: 6 | P11: 32.66
A12: 00:00:10 | B12: 00:56:11 | C12: 400 | D12: 400 | E12: 20 | F12: 21 | G12: 21 | H12: 21 | I12: 0.13 | J12: 4 | K12: 0.15 | L12: 0 | M12: 0.02 | N12: 0 | O12: 6 | P12: 32.66
A13: 00:00:11 | B13: 00:56:12 | C13: 400 | D13: 400 | E13: 20 | F13: 21 | G13: 21 | H13: 21 | I13: 0.13 | J13: 4 | K13: 0.06 | L13: 0 | M13: 0.01 | N13: 0 | O13: 6 | P13: 32.66
A14: 00:00:12 | B14: 00:56:13 | C14: 400 | D14: 400 | E14: 20 | F14: 21 | G14: 21 | H14: 21 | I14: 0.13 | J14: 4 | K14: 0.06 | L14: 0 | M14: 0.01 | N14: 0 | O14: 6 | P14: 32.66
A15: 00:00:13 | B15: 00:56:14 | C15: 400 | D15: 400 | E15: 20 | F15: 21 | G15: 21 | H15: 21 | I15: 0.13 | J15: 4 | K15: 0.06 | L15: 0 | M15: 0.01 | N15: 0 | O15: 6 | P15: 32.66
A16: 00:00:14 | B16: 00:56:15 | C16: 400 | D16: 400 | E16: 20 | F16: 21 | G16: 21 | H16: 21 | I16: 0.13 | J16: 4 | K16: 0.04 | L16: 0 | M16: 0.02 | N16: 0 | O16: 6 | P16: 32.66
A17: 00:00:15 | B17: 00:56:16 | C17: 400 | D17: 400 | E17: 20 | F17: 21 | G17: 21 | H17: 21 | I17: 0.13 | J17: 4 | K17: 0.04 | L17: 0 | M17: 0.02 | N17: 0 | O17: 6 | P17: 32.67
A18: 00:00:16 | B18: 00:56:17 | C18: 400 | D18: 400 | E18: 20 | F18: 21 | G18: 21 | H18: 21 | I18: 0.13 | J18: 4 | K18: 0.04 | L18: 0 | M18: 0.02 | N18: 0 | O18: 6 | P18: 32.67
A19: 00:00:17 | B19: 00:56:18 | C19: 400 | D19: 400 | E19: 20 | F19: 21 | G19: 21 | H19: 21 | I19: 0.13 | J19: 4 | K19: 0.04 | L19: 0 | M19: 0.02 | N19: 0 | O19: 6 | P19: 32.67
A20: 00:00:18 | B20: 00:56:19 | C20: 400 | D20: 400 | E20: 20 | F20: 21 | G20: 21 | H20: 21 | I20: 0.13 | J20: 4 | K20: 0.05 | L20: 0 | M20: 0.01 | N20: 0 | O20: 7 | P20: 32.67
A21: 00:00:19 | B21: 00:56:20 | C21: 400 | D21: 400 | E21: 20 | F21: 21 | G21: 21 | H21: 21 | I21: 0.13 | J21: 4 | K21: 0.05 | L21: 0 | M21: 0.01 | N21: 0 | O21: 7 | P21: 32.67
A22: 00:00:20 | B22: 00:56:21 | C22: 400 | D22: 400 | E22: 20 | F22: 21 | G22: 21 | H22: 21 | I22: 0.13 | J22: 4 | K22: 0.05 | L22: 0 | M22: 0.01 | N22: 0 | O22: 7 | P22: 32.67
A23: 00:00:21 | B23: 00:56:22 | C23: 400 | D23: 400 | E23: 20 | F23: 21 | G23: 21 | H23: 21 | I23: 0.13 | J23: 4 | K23: 0.04 | L23: 0 | M23: 0.02 | N23: 0 | O23: 7 | P23: 32.67
A24: 00:00:22 | B24: 00:56:23 | C24: 400 | D24: 400 | E24: 20 | F24: 21 | G24: 21 | H24: 21 | I24: 0.13 | J24: 4 | K24: 0.04 | L24: 0 | M24: 0.02 | N24: 0 | O24: 7 | P24: 32.67
A25: 00:00:23 | B25: 00:56:24 | C25: 400 | D25: 400 | E25: 20 | F25: 21 | G25: 21 | H25: 21 | I25: 0.13 | J25: 4 | K25: 0.04 | L25: 0 | M25: 0.02 | N25: 0 | O25: 7 | P25: 32.67
A26: 00:00:24 | B26: 00:56:25 | C26: 400 | D26: 400 | E26: 20 | F26: 21 | G26: 21 | H26: 21 | I26: 0.13 | J26: 4 | K26: 0.07 | L26: 0 | M26: 0.01 | N26: 0 | O26: 7 | P26: 32.67
A27: 00:00:25 | B27: 00:56:26 | C27: 400 | D27: 400 | E27: 20 | F27: 21 | G27: 21 | H27: 21 | I27: 0.13 | J27: 4 | K27: 0.07 | L27: 0 | M27: 0.01 | N27: 0 | O27: 7 | P27: 32.68
A28: 00:00:26 | B28: 00:56:27 | C28: 400 | D28: 400 | E28: 20 | F28: 21 | G28: 21 | H28: 21 | I28: 0.12 | J28: 4 | K28: 0.07 | L28: 0 | M28: 0.02 | N28: 0 | O28: 7 | P28: 32.68
A29: 00:00:27 | B29: 00:56:28 | C29: 400 | D29: 400 | E29: 20 | F29: 21 | G29: 21 | H29: 21 | I29: 0.12 | J29: 4 | K29: 0.07 | L29: 0 | M29: 0.02 | N29: 0 | O29: 7 | P29: 32.68
A30: 00:00:28 | B30: 00:56:29 | C30: 400 | D30: 400 | E30: 20 | F30: 21 | G30: 21 | H30: 21 | I30: 0.12 | J30: 4 | K30: 0.21 | L30: 0 | M30: 0.02 | N30: 0 | O30: 7 | P30: 32.69
A31: 00:00:29 | B31: 00:56:30 | C31: 400 | D31: 400 | E31: 20 | F31: 21 | G31: 21 | H31: 21 | I31: 0.12 | J31: 4 | K31: 0.21 | L31: 0 | M31: 0.01 | N31: 0 | O31: 7 | P31: 32.7
A32: 00:00:30 | B32: 00:56:31 | C32: 400 | D32: 400 | E32: 20 | F32: 21 | G32: 21 | H32: 21 | I32: 0.12 | J32: 4 | K32: 0.21 | L32: 0 | M32: 0.01 | N32: 0 | O32: 8 | P32: 32.7
A33: 00:00:31 | B33: 00:56:32 | C33: 400 | D33: 400 | E33: 20 | F33: 21 | G33: 21 | H33: 21 | I33: 0.12 | J33: 4 | K33: 0.5 | L33: 0 | M33: 0.01 | N33: 0 | O33: 8 | P33: 32.72
A34: 00:00:32 | B34: 00:56:33 | C34: 400 | D34: 400 | E34: 20 | F34: 21 | G34: 21 | H34: 21 | I34: 0.12 | J34: 4 | K34: 0.5 | L34: 0 | M34: 0.01 | N34: 0 | O34: 8 | P34: 32.73
A35: 00:00:33 | B35: 00:56:34 | C35: 400 | D35: 400 | E35: 20 | F35: 21 | G35: 21 | H35: 21 | I35: 0.12 | J35: 4 | K35: 0.5 | L35: 0 | M35: 0.01 | N35: 0 | O35: 8 | P35: 32.73
A36: 00:00:34 | B36: 00:56:35 | C36: 400 | D36: 400 | E36: 20 | F36: 21 | G36: 21 | H36: 21 | I36: 0.12 | J36: 4 | K36: 0.64 | L36: 0 | M36: 0.01 | N36: 0 | O36: 8 | P36: 32.75
A37: 00:00:35 | B37: 00:56:36 | C37: 400 | D37: 400 | E37: 20 | F37: 21 | G37: 21 | H37: 21 | I37: 0.12 | J37: 4 | K37: 0.64 | L37: 0 | M37: 0.01 | N37: 0 | O37: 8 | P37: 32.75
A38: 00:00:36 | B38: 00:56:37 | C38: 400 | D38: 400 | E38: 20 | F38: 21 | G38: 21 | H38: 21 | I38: 0.12 | J38: 4 | K38: 0.64 | L38: 0 | M38: 0.01 | N38: 0 | O38: 8 | P38: 32.77
A39: 00:00:37 | B39: 00:56:38 | C39: 400 | D39: 400 | E39: 20 | F39: 21 | G39: 21 | H39: 21 | I39: 0.12 | J39: 4 | K39: 0.64 | L39: 0 | M39: 0.02 | N39: 0 | O39: 8 | P39: 32.78
A40: 00:00:38 | B40: 00:56:39 | C40: 400 | D40: 400 | E40: 20 | F40: 21 | G40: 21 | H40: 21 | I40: 0.12 | J40: 4 | K40: 0.76 | L40: 0 | M40: 0.01 | N40: 0 | O40: 8 | P40: 32.8
A41: 00:00:39 | B41: 00:56:40 | C41: 400 | D41: 400 | E41: 20 | F41: 21 | G41: 21 | H41: 21 | I41: 0.12 | J41: 4 | K41: 0.76 | L41: 0 | M41: 0.01 | N41: 0 | O41: 8 | P41: 32.83
A42: 00:00:40 | B42: 00:56:41 | C42: 400 | D42: 400 | E42: 20 | F42: 21 | G42: 21 | H42: 21 | I42: 0.12 | J42: 4 | K42: 0.76 | L42: 0 | M42: 0.01 | N42: 0 | O42: 8 | P42: 32.84
A43: 00:00:41 | B43: 00:56:42 | C43: 400 | D43: 400 | E43: 20 | F43: 21 | G43: 21 | H43: 21 | I43: 0.12 | J43: 4 | K43: 1.38 | L43: 0 | M43: 0.02 | N43: 0 | O43: 8 | P43: 32.88
A44: 00:00:42 | B44: 00:56:43 | C44: 400 | D44: 400 | E44: 20 | F44: 21 | G44: 21 | H44: 21 | I44: 0.12 | J44: 4 | K44: 1.38 | L44: 0 | M44: 0.01 | N44: 0 | O44: 9 | P44: 32.92
A45: 00:00:43 | B45: 00:56:44 | C45: 400 | D45: 400 | E45: 20 | F45: 21 | G45: 21 | H45: 21 | I45: 0.12 | J45: 4 | K45: 1.38 | L45: 0 | M45: 0.02 | N45: 0 | O45: 9 | P45: 32.94
A46: 00:00:44 | B46: 00:56:45 | C46: 400 | D46: 400 | E46: 20 | F46: 21 | G46: 21 | H46: 21 | I46: 0.12 | J46: 4 | K46: 2.12 | L46: 0 | M46: 0.01 | N46: 0 | O46: 9 | P46: 32.98
A47: 00:00:45 | B47: 00:56:46 | C47: 400 | D47: 400 | E47: 20 | F47: 21 | G47: 21 | H47: 21 | I47: 0.12 | J47: 4 | K47: 2.12 | L47: 0 | M47: 0.01 | N47: 0 | O47: 9 | P47: 33.04
A48: 00:00:46 | B48: 00:56:47 | C48: 400 | D48: 400 | E48: 20 | F48: 21 | G48: 21 | H48: 21 | I48: 0.12 | J48: 4 | K48: 2.12 | L48: 0 | M48: 0.01 | N48: 0 | O48: 9 | P48: 33.06
A49: 00:00:47 | B49: 00:56:48 | C49: 400 | D49: 400 | E49: 20 | F49: 21 | G49: 21 | H49: 21 | I49: 0.12 | J49: 4 | K49: 2.12 | L49: 0 | M49: 0.01 | N49: 0 | O49: 9 | P49: 33.12
A50: 00:00:48 | B50: 00:56:49 | C50: 400 | D50: 400 | E50: 20 | F50: 21 | G50: 21 | H50: 21 | I50: 0.12 | J50: 4 | K50: 2.65 | L50: 0 | M50: 0.01 | N50: 0 | O50: 9 | P50: 33.17
A51: 00:00:49 | B51: 00:56:50 | C51: 400 | D51: 400 | E51: 20 | F51: 21 | G51: 21 | H51: 21 | I51: 0.12 | J51: 4 | K51: 2.65 | L51: 0 | M51: 0.01 | N51: 0 | O51: 9 | P51: 33.2
A52: 00:00:50 | B52: 00:56:51 | C52: 400 | D52: 400 | E52: 20 | F52: 21 | G52: 21 | H52: 21 | I52: 0.12 | J52: 4 | K52: 2.65 | L52: 0 | M52: 0.01 | N52: 0 | O52: 9 | P52: 33.25
A53: 00:00:51 | B53: 00:56:52 | C53: 400 | D53: 400 | E53: 20 | F53: 21 | G53: 21 | H53: 21 | I53: 0.12 | J53: 4 | K53: 2.58 | L53: 0 | M53: 0.02 | N53: 0 | O53: 9 | P53: 33.3
A54: 00:00:52 | B54: 00:56:53 | C54: 400 | D54: 400 | E54: 20 | F54: 21 | G54: 21 | H54: 21 | I54: 0.12 | J54: 4 | K54: 2.58 | L54: 0 | M54: 0.01 | N54: 0 | O54: 9 | P54: 33.32
A55: 00:00:53 | B55: 00:56:54 | C55: 400 | D55: 400 | E55: 20 | F55: 21 | G55: 21 | H55: 21 | I55: 0.12 | J55: 4 | K55: 2.58 | L55: 0 | M55: 0.01 | N55: 0 | O55: 9 | P55: 33.37
A56: 00:00:54 | B56: 00:56:55 | C56: 400 | D56: 400 | E56: 20 | F56: 21 | G56: 21 | H56: 21 | I56: 0.12 | J56: 4 | K56: 2.58 | L56: 0 | M56: 0.01 | N56: 0 | O56: 10 | P56: 33.39
A57: 00:00:55 | B57: 00:56:56 | C57: 400 | D57: 400 | E57: 20 | F57: 21 | G57: 21 | H57: 21 | I57: 0.12 | J57: 4 | K57: 2.34 | L57: 0 | M57: 0.01 | N57: 0 | O57: 10 | P57: 33.44
A58: 00:00:56 | B58: 00:56:57 | C58: 400 | D58: 400 | E58: 20 | F58: 21 | G58: 21 | H58: 21 | I58: 0.12 | J58: 4 | K58: 2.34 | L58: 0 | M58: 0.01 | N58: 0 | O58: 10 | P58: 33.48
A59: 00:00:57 | B59: 00:56:58 | C59: 400 | D59: 400 | E59: 20 | F59: 21 | G59: 21 | H59: 21 | I59: 0.12 | J59: 4 | K59: 2.34 | L59: 0 | M59: 0.01 | N59: 0 | O59: 10 | P59: 33.5
A60: 00:00:58 | B60: 00:56:59 | C60: 400 | D60: 400 | E60: 20 | F60: 21 | G60: 21 | H60: 21 | I60: 0.12 | J60: 4 | K60: 2.03 | L60: 0 | M60: 0.01 | N60: 0 | O60: 10 | P60: 33.53
A61: 00:00:59 | B61: 00:57:00 | C61: 400 | D61: 400 | E61: 20 | F61: 21 | G61: 21 | H61: 21 | I61: 0.12 | J61: 4 | K61: 2.03 | L61: 0 | M61: 0.01 | N61: 0 | O61: 10 | P61: 33.56
A62: 00:01:00 | B62: 00:57:01 | C62: 400 | D62: 400 | E62: 20 | F62: 21 | G62: 21 | H62: 21 | I62: 0.12 | J62: 4 | K62: 2.03 | L62: 0 | M62: 0.01 | N62: 0 | O62: 10 | P62: 33.58
A63: 00:01:01 | B63: 00:57:02 | C63: 400 | D63: 400 | E63: 20 | F63: 21 | G63: 21 | H63: 21 | I63: 0.12 | J63: 4 | K63: 1.39 | L63: 0 | M63: 0.02 | N63: 0 | O63: 10 | P63: 33.6
A64: 00:01:02 | B64: 00:57:03 | C64: 400 | D64: 400 | E64: 20 | F64: 21 | G64: 21 | H64: 21 | I64: 0.12 | J64: 4 | K64: 1.39 | L64: 0 | M64: 0.01 | N64: 0 | O64: 10 | P64: 33.62
A65: 00:01:03 | B65: 00:57:04 | C65: 400 | D65: 400 | E65: 20 | F65: 21 | G65: 21 | H65: 21 | I65: 0.12 | J65: 4 | K65: 1.39 | L65: 0 | M65: 0.01 | N65: 0 | O65: 10 | P65: 33.63
A66: 00:01:04 | B66: 00:57:05 | C66: 400 | D66: 400 | E66: 20 | F66: 21 | G66: 21 | H66: 21 | I66: 0.12 | J66: 4 | K66: 1.39 | L66: 0 | M66: 0.01 | N66: 0 | O66: 10 | P66: 33.65
A67: 00:01:05 | B67: 00:57:06 | C67: 400 | D67: 400 | E67: 20 | F67: 21 | G67: 21 | H67: 21 | I67: 0.12 | J67: 4 | K67: 0.92 | L67: 0 | M67: 0.01 | N67: 0 | O67: 10 | P67: 33.66
A68: 00:01:06 | B68: 00:57:07 | C68: 400 | D68: 400 | E68: 20 | F68: 21 | G68: 21 | H68: 21 | I68: 0.12 | J68: 4 | K68: 0.92 | L68: 0 | M68: 0.01 | N68: 0 | O68: 10 | P68: 33.67
A69: 00:01:07 | B69: 00:57:08 | C69: 400 | D69: 400 | E69: 20 | F69: 21 | G69: 21 | H69: 21 | I69: 0.12 | J69: 4 | K69: 0.92 | L69: 0 | M69: 0.02 | N69: 0 | O69: 10 | P69: 33.68
A70: 00:01:08 | B70: 00:57:09 | C70: 400 | D70: 400 | E70: 20 | F70: 21 | G70: 21 | H70: 21 | I70: 0.12 | J70: 4 | K70: 0.6 | L70: 0 | M70: 0.01 | N70: 0 | O70: 10 | P70: 33.69
A71: 00:01:09 | B71: 00:57:10 | C71: 400 | D71: 400 | E71: 20 | F71: 21 | G71: 21 | H71: 21 | I71: 0.12 | J71: 4 | K71: 0.6 | L71: 0 | M71: 0.02 | N71: 0 | O71: 10 | P71: 33.7
A72: 00:01:10 | B72: 00:57:11 | C72: 400 | D72: 400 | E72: 20 | F72: 21 | G72: 21 | H72: 21 | I72: 0.12 | J72: 4 | K72: 0.6 | L72: 0 | M72: 0.01 | N72: 0 | O72: 10 | P72: 33.7
A73: 00:01:11 | B73: 00:57:12 | C73: 400 | D73: 400 | E73: 20 | F73: 21 | G73: 21 | H73: 21 | I73: 0.12 | J73: 4 | K73: 0.6 | L73: 0 | M73: 0.01 | N73: 0 | O73: 10 | P73: 33.7
A74: 00:01:12 | B74: 00:57:13 | C74: 400 | D74: 400 | E74: 20 | F74: 21 | G74: 21 | H74: 21 | I74: 0.12 | J74: 4 | K74: 0.36 | L74: 0 | M74: 0.02 | N74: 0 | O74: 10 | P74: 33.71
A75: 00:01:13 | B75: 00:57:14 | C75: 400 | D75: 400 | E75: 20 | F75: 21 | G75: 21 | H75: 21 | I75: 0.12 | J75: 4 | K75: 0.36 | L75: 0 | M75: 0.01 | N75: 0 | O75: 10 | P75: 33.72
A76: 00:01:14 | B76: 00:57:15 | C76: 400 | D76: 400 | E76: 20 | F76: 21 | G76: 21 | H76: 21 | I76: 0.12 | J76: 4 | K76: 0.36 | L76: 0 | M76: 0.01 | N76: 0 | O76: 10 | P76: 33.72
A77: 00:01:15 | B77: 00:57:16 | C77: 400 | D77: 400 | E77: 20 | F77: 21 | G77: 21 | H77: 21 | I77: 0.12 | J77: 4 | K77: 0.27 | L77: 0 | M77: 0.01 | N77: 0 | O77: 10 | P77: 33.72
A78: 00:01:16 | B78: 00:57:17 | C78: 400 | D78: 400 | E78: 20 | F78: 21 | G78: 21 | H78: 21 | I78: 0.12 | J78: 4 | K78: 0.27 | L78: 0 | M78: 0.02 | N78: 0 | O78: 10 | P78: 33.73
A79: 00:01:17 | B79: 00:57:18 | C79: 400 | D79: 400 | E79: 20 | F79: 21 | G79: 21 | H79: 21 | I79: 0.12 | J79: 4 | K79: 0.27 | L79: 0 | M79: 0.02 | N79: 0 | O79: 10 | P79: 33.73
A80: 00:01:18 | B80: 00:57:19 | C80: 400 | D80: 400 | E80: 20 | F80: 21 | G80: 21 | H80: 21 | I80: 0.12 | J80: 4 | K80: 0.19 | L80: 0 | M80: 0.02 | N80: 0 | O80: 10 | P80: 33.73
A81: 00:01:19 | B81: 00:57:20 | C81: 400 | D81: 400 | E81: 20 | F81: 21 | G81: 21 | H81: 21 | I81: 0.12 | J81: 4 | K81: 0.19 | L81: 0 | M81: 0.01 | N81: 0 | O81: 10 | P81: 33.73
A82: 00:01:20 | B82: 00:57:21 | C82: 400 | D82: 400 | E82: 20 | F82: 21 | G82: 21 | H82: 21 | I82: 0.12 | J82: 4 | K82: 0.19 | L82: 0 | M82: 0.02 | N82: 0 | O82: 10 | P82: 33.74
A83: 00:01:21 | B83: 00:57:22 | C83: 400 | D83: 400 | E83: 20 | F83: 21 | G83: 21 | H83: 21 | I83: 0.12 | J83: 4 | K83: 0.1 | L83: 0 | M83: 0.01 | N83: 0 | O83: 10 | P83: 33.74
A84: 00:01:22 | B84: 00:57:23 | C84: 400 | D84: 400 | E84: 20 | F84: 21 | G84: 21 | H84: 21 | I84: 0.11 | J84: 4 | K84: 0.1 | L84: 0 | M84: 0.02 | N84: 0 | O84: 10 | P84: 33.74
A85: 00:01:23 | B85: 00:57:24 | C85: 400 | D85: 400 | E85: 20 | F85: 21 | G85: 21 | H85: 21 | I85: 0.11 | J85: 4 | K85: 0.1 | L85: 0 | M85: 0.01 | N85: 0 | O85: 10 | P85: 33.74
A86: 00:01:24 | B86: 00:57:25 | C86: 400 | D86: 400 | E86: 20 | F86: 21 | G86: 21 | H86: 21 | I86: 0.11 | J86: 4 | K86: 0.1 | L86: 0 | M86: 0.01 | N86: 0 | O86: 10 | P86: 33.74
A87: 00:01:25 | B87: 00:57:26 | C87: 400 | D87: 400 | E87: 20 | F87: 21 | G87: 21 | H87: 21 | I87: 0.11 | J87: 4 | K87: 0.06 | L87: 0 | M87: 0.01 | N87: 0 | O87: 10 | P87: 33.74
A88: 00:01:26 | B88: 00:57:27 | C88: 400 | D88: 400 | E88: 20 | F88: 21 | G88: 21 | H88: 21 | I88: 0.11 | J88: 4 | K88: 0.06 | L88: 0 | M88: 0.02 | N88: 0 | O88: 10 | P88: 33.74
A89: 00:01:27 | B89: 00:57:28 | C89: 400 | D89: 400 | E89: 20 | F89: 21 | G89: 21 | H89: 21 | I89: 0.11 | J89: 4 | K89: 0.06 | L89: 0 | M89: 0.01 | N89: 0 | O89: 10 | P89: 33.74
A90: 00:01:28 | B90: 00:57:29 | C90: 400 | D90: 400 | E90: 20 | F90: 21 | G90: 21 | H90: 21 | I90: 0.11 | J90: 4 | K90: 0.05 | L90: 0 | M90: 0.01 | N90: 0 | O90: 10 | P90: 33.74
A91: 00:01:29 | B91: 00:57:30 | C91: 400 | D91: 400 | E91: 20 | F91: 21 | G91: 21 | H91: 21 | I91: 0.11 | J91: 4 | K91: 0.05 | L91: 0 | M91: 0.01 | N91: 0 | O91: 10 | P91: 33.75
A92: 00:01:30 | B92: 00:57:31 | C92: 400 | D92: 400 | E92: 20 | F92: 21 | G92: 21 | H92: 21 | I92: 0.11 | J92: 4 | K92: 0.05 | L92: 0 | M92: 0.01 | N92: 0 | O92: 10 | P92: 33.75
A93: 00:01:31 | B93: 00:57:32 | C93: 400 | D93: 400 | E93: 20 | F93: 21 | G93: 21 | H93: 21 | I93: 0.11 | J93: 4 | K93: 0.05 | L93: 0 | M93: 0.02 | N93: 0 | O93: 10 | P93: 33.75
A94: 00:01:32 | B94: 00:57:33 | C94: 400 | D94: 400 | E94: 20 | F94: 21 | G94: 21 | H94: 21 | I94: 0.11 | J94: 4 | K94: 0.09 | L94: 0 | M94: 0.02 | N94: 0 | O94: 10 | P94: 33.75
A95: 00:01:33 | B95: 00:57:34 | C95: 400 | D95: 400 | E95: 20 | F95: 21 | G95: 21 | H95: 21 | I95: 0.11 | J95: 4 | K95: 0.09 | L95: 0 | M95: 0.02 | N95: 0 | O95: 10 | P95: 33.76
A96: 00:01:34 | B96: 00:57:35 | C96: 400 | D96: 400 | E96: 20 | F96: 21 | G96: 21 | H96: 21 | I96: 0.11 | J96: 4 | K96: 0.09 | L96: 0 | M96: 0.02 | N96: 0 | O96: 10 | P96: 33.76
A97: 00:01:35 | B97: 00:57:36 | C97: 400 | D97: 400 | E97: 20 | F97: 21 | G97: 21 | H97: 21 | I97: 0.11 | J97: 4 | K97: 0.26 | L97: 0 | M97: 0.02 | N97: 0 | O97: 10 | P97: 33.77
A98: 00:01:36 | B98: 00:57:37 | C98: 400 | D98: 400 | E98: 20 | F98: 21 | G98: 21 | H98: 21 | I98: 0.11 | J98: 4 | K98: 0.26 | L98: 0 | M98: 0.01 | N98: 0 | O98: 10 | P98: 33.77
A99: 00:01:37 | B99: 00:57:38 | C99: 400 | D99: 400 | E99: 20 | F99: 21 | G99: 21 | H99: 21 | I99: 0.11 | J99: 4 | K99: 0.26 | L99: 0 | M99: 0.01 | N99: 0 | O99: 10 | P99: 33.77
A100: 00:01:38 | B100: 00:57:39 | C100: 400 | D100: 400 | E100: 20 | F100: 21 | G100: 21 | H100: 21 | I100: 0.11 | J100: 4 | K100: 0.09 | L100: 0 | M100: 0.01 | N100: 0 | O100: 10 | P100: 33.77
A101: 00:01:39 | B101: 00:57:40 | C101: 400 | D101: 400 | E101: 20 | F101: 21 | G101: 21 | H101: 21 | I101: 0.11 | J101: 4 | K101: 0.09 | L101: 0 | M101: 0.01 | N101: 0 | O101: 10 | P101: 33.77
A102: 00:01:40 | B102: 00:57:41 | C102: 400 | D102: 400 | E102: 20 | F102: 21 | G102: 21 | H102: 21 | I102: 0.11 | J102: 4 | K102: 0.09 | L102: 0 | M102: 0.01 | N102: 0 | O102: 10 | P102: 33.77
A103: 00:01:41 | B103: 00:57:42 | C103: 400 | D103: 400 | E103: 20 | F103: 21 | G103: 21 | H103: 21 | I103: 0.11 | J103: 4 | K103: 0.04 | L103: 0 | M103: 0.01 | N103: 0 | O103: 10 | P103: 33.77
A104: 00:01:42 | B104: 00:57:43 | C104: 400 | D104: 400 | E104: 20 | F104: 21 | G104: 21 | H104: 21 | I104: 0.11 | J104: 4 | K104: 0.04 | L104: 0 | M104: 0.01 | N104: 0 | O104: 10 | P104: 33.77
A105: 00:01:43 | B105: 00:57:44 | C105: 400 | D105: 400 | E105: 20 | F105: 21 | G105: 21 | H105: 21 | I105: 0.11 | J105: 4 | K105: 0.04 | L105: 0 | M105: 0.01 | N105: 0 | O105: 10 | P105: 33.77
A106: 00:01:44 | B106: 00:57:45 | C106: 400 | D106: 400 | E106: 20 | F106: 21 | G106: 21 | H106: 21 | I106: 0.11 | J106: 4 | K106: 0.04 | L106: 0 | M106: 0.01 | N106: 0 | O106: 10 | P106: 33.78
A107: 00:01:45 | B107: 00:57:46 | C107: 400 | D107: 400 | E107: 20 | F107: 21 | G107: 21 | H107: 21 | I107: 0.11 | J107: 4 | K107: 0.11 | L107: 0 | M107: 0.01 | N107: 0 | O107: 10 | P107: 33.78
A108: 00:01:46 | B108: 00:57:47 | C108: 400 | D108: 400 | E108: 20 | F108: 21 | G108: 21 | H108: 21 | I108: 0.11 | J108: 4 | K108: 0.11 | L108: 0 | M108: 0.02 | N108: 0 | O108: 10 | P108: 33.78
A109: 00:01:47 | B109: 00:57:48 | C109: 400 | D109: 400 | E109: 20 | F109: 21 | G109: 21 | H109: 21 | I109: 0.11 | J109: 4 | K109: 0.11 | L109: 0 | M109: 0.02 | N109: 0 | O109: 10 | P109: 33.78
A110: 00:01:48 | B110: 00:57:49 | C110: 400 | D110: 400 | E110: 20 | F110: 21 | G110: 21 | H110: 21 | I110: 0.11 | J110: 4 | K110: 0.07 | L110: 0 | M110: 0.02 | N110: 0 | O110: 10 | P110: 33.78
A111: 00:01:49 | B111: 00:57:50 | C111: 400 | D111: 400 | E111: 20 | F111: 21 | G111: 21 | H111: 21 | I111: 0.11 | J111: 4 | K111: 0.07 | L111: 0 | M111: 0.02 | N111: 0 | O111: 10 | P111: 33.78
A112: 00:01:50 | B112: 00:57:51 | C112: 400 | D112: 400 | E112: 20 | F112: 21 | G112: 21 | H112: 21 | I112: 0.11 | J112: 4 | K112: 0.07 | L112: 0 | M112: 0.02 | N112: 0 | O112: 10 | P112: 33.78
A113: 00:01:51 | B113: 00:57:52 | C113: 400 | D113: 400 | E113: 20 | F113: 21 | G113: 21 | H113: 21 | I113: 0.11 | J113: 4 | K113: 0.07 | L113: 0 | M113: 0.01 | N113: 0 | O113: 10 | P113: 33.78
A114: 00:01:52 | B114: 00:57:53 | C114: 400 | D114: 400 | E114: 20 | F114: 21 | G114: 21 | H114: 21 | I114: 0.11 | J114: 4 | K114: 0.03 | L114: 0 | M114: 0.02 | N114: 0 | O114: 10 | P114: 33.78
A115: 00:01:53 | B115: 00:57:54 | C115: 400 | D115: 400 | E115: 20 | F115: 21 | G115: 21 | H115: 21 | I115: 0.11 | J115: 4 | K115: 0.03 | L115: 0 | M115: 0.02 | N115: 0 | O115: 10 | P115: 33.78
A116: 00:01:54 | B116: 00:57:55 | C116: 400 | D116: 400 | E116: 20 | F116: 21 | G116: 21 | H116: 21 | I116: 0.11 | J116: 4 | K116: 0.03 | L116: 0 | M116: 0.01 | N116: 0 | O116: 10 | P116: 33.78
A117: 00:01:55 | B117: 00:57:56 | C117: 400 | D117: 400 | E117: 20 | F117: 21 | G117: 21 | H117: 21 | I117: 0.11 | J117: 4 | K117: 0.04 | L117: 0 | M117: 0.02 | N117: 0 | O117: 10 | P117: 33.78
A118: 00:01:56 | B118: 00:57:57 | C118: 400 | D118: 400 | E118: 20 | F118: 21 | G118: 21 | H118: 21 | I118: 0.11 | J118: 4 | K118: 0.04 | L118: 0 | M118: 0.02 | N118: 0 | O118: 10 | P118: 33.79
A119: 00:01:57 | B119: 00:57:58 | C119: 400 | D119: 400 | E119: 20 | F119: 21 | G119: 21 | H119: 21 | I119: 0.11 | J119: 4 | K119: 0.04 | L119: 0 | M119: 0.01 | N119: 0 | O119: 10 | P119: 33.79
A120: 00:01:58 | B120: 00:57:59 | C120: 400 | D120: 400 | E120: 20 | F120: 21 | G120: 21 | H120: 21 | I120: 0.11 | J120: 4 | K120: 0.11 | L120: 0 | M120: 0.01 | N120: 0 | O120: 10 | P120: 33.79
A121: 00:01:59 | B121: 00:58:00 | C121: 400 | D121: 400 | E121: 20 | F121: 21 | G121: 21 | H121: 21 | I121: 0.11 | J121: 4 | K121: 0.11 | L121: 0 | M121: 0.01 | N121: 0 | O121: 10 | P121: 33.79
A122: 00:02:00 | B122: 00:58:01 | C122: 400 | D122: 400 | E122: 20 | F122: 21 | G122: 21 | H122: 21 | I122: 0.11 | J122: 4 | K122: 0.11 | L122: 0 | M122: 0.02 | N122: 0 | O122: 10 | P122: 33.79
A123: 00:02:01 | B123: 00:58:02 | C123: 400 | D123: 400 | E123: 20 | F123: 21 | G123: 21 | H123: 21 | I123: 0.11 | J123: 4 | K123: 0.07 | L123: 0 | M123: 0.01 | N123: 0 | O123: 10 | P123: 33.79
A124: 00:02:02 | B124: 00:58:03 | C124: 400 | D124: 400 | E124: 20 | F124: 21 | G124: 21 | H124: 21 | I124: 0.11 | J124: 4 | K124: 0.07 | L124: 0 | M124: 0.02 | N124: 0 | O124: 10 | P124: 33.79
A125: 00:02:03 | B125: 00:58:04 | C125: 400 | D125: 400 | E125: 20 | F125: 21 | G125: 21 | H125: 21 | I125: 0.11 | J125: 4 | K125: 0.07 | L125: 0 | M125: 0.01 | N125: 0 | O125: 10 | P125: 33.8
A126: 00:02:04 | B126: 00:58:05 | C126: 400 | D126: 400 | E126: 20 | F126: 21 | G126: 21 | H126: 21 | I126: 0.11 | J126: 4 | K126: 0.07 | L126: 0 | M126: 0.01 | N126: 0 | O126: 10 | P126: 33.8
A127: 00:02:05 | B127: 00:58:06 | C127: 400 | D127: 400 | E127: 20 | F127: 21 | G127: 21 | H127: 21 | I127: 0.11 | J127: 4 | K127: 0 | L127: 0 | M127: 0.01 | N127: 0 | O127: 10 | P127: 33.8
A128: 00:02:06 | B128: 00:58:07 | C128: 400 | D128: 400 | E128: 20 | F128: 21 | G128: 21 | H128: 21 | I128: 0.11 | J128: 4 | K128: 0 | L128: 0 | M128: 0.01 | N128: 0 | O128: 10 | P128: 33.8
A129: 00:02:07 | B129: 00:58:08 | C129: 400 | D129: 400 | E129: 20 | F129: 21 | G129: 21 | H129: 21 | I129: 0.11 | J129: 4 | K129: 0 | L129: 0 | M129: 0.01 | N129: 0 | O129: 10 | P129: 33.8
A130: 00:02:08 | B130: 00:58:09 | C130: 400 | D130: 400 | E130: 20 | F130: 21 | G130: 21 | H130: 21 | I130: 0.11 | J130: 4 | K130: 0.01 | L130: 0 | M130: 0.02 | N130: 0 | O130: 10 | P130: 33.8
A131: 00:02:09 | B131: 00:58:10 | C131: 400 | D131: 400 | E131: 20 | F131: 21 | G131: 21 | H131: 21 | I131: 0.11 | J131: 4 | K131: 0.01 | L131: 0 | M131: 0.02 | N131: 0 | O131: 10 | P131: 33.8
A132: 00:02:10 | B132: 00:58:11 | C132: 400 | D132: 400 | E132: 20 | F132: 21 | G132: 21 | H132: 21 | I132: 0.11 | J132: 4 | K132: 0.01 | L132: 0 | M132: 0.02 | N132: 0 | O132: 10 | P132: 33.8
A133: 00:02:11 | B133: 00:58:12 | C133: 400 | D133: 400 | E133: 20 | F133: 21 | G133: 21 | H133: 21 | I133: 0.11 | J133: 4 | K133: 0.01 | L133: 0 | M133: 0.01 | N133: 0 | O133: 10 | P133: 33.8
A134: 00:02:12 | B134: 00:58:13 | C134: 400 | D134: 400 | E134: 20 | F134: 21 | G134: 21 | H134: 21 | I134: 0.11 | J134: 4 | K134: 0.01 | L134: 0 | M134: 0.02 | N134: 0 | O134: 10 | P134: 33.8
A135: 00:02:13 | B135: 00:58:14 | C135: 400 | D135: 400 | E135: 20 | F135: 21 | G135: 21 | H135: 21 | I135: 0.11 | J135: 4 | K135: 0.01 | L135: 0 | M135: 0.02 | N135: 0 | O135: 10 | P135: 33.8
A136: 00:02:14 | B136: 00:58:15 | C136: 400 | D136: 400 | E136: 20 | F136: 21 | G136: 21 | H136: 21 | I136: 0.11 | J136: 4 | K136: 0.01 | L136: 0 | M136: 0.01 | N136: 0 | O136: 10 | P136: 33.8
A137: 00:02:15 | B137: 00:58:16 | C137: 400 | D137: 400 | E137: 20 | F137: 21 | G137: 21 | H137: 21 | I137: 0.11 | J137: 4 | K137: 0.02 | L137: 0 | M137: 0.01 | N137: 0 | O137: 10 | P137: 33.8
A138: 00:02:16 | B138: 00:58:17 | C138: 400 | D138: 400 | E138: 20 | F138: 21 | G138: 21 | H138: 21 | I138: 0.11 | J138: 4 | K138: 0.02 | L138: 0 | M138: 0.02 | N138: 0 | O138: 10 | P138: 33.8
A139: 00:02:17 | B139: 00:58:18 | C139: 400 | D139: 400 | E139: 20 | F139: 21 | G139: 21 | H139: 21 | I139: 0.11 | J139: 4 | K139: 0.02 | L139: 0 | M139: 0.01 | N139: 0 | O139: 10 | P139: 33.8
A140: 00:02:18 | B140: 00:58:19 | C140: 400 | D140: 400 | E140: 20 | F140: 21 | G140: 21 | H140: 21 | I140: 0.11 | J140: 4 | K140: 0.02 | L140: 0 | M140: 0.01 | N140: 0 | O140: 10 | P140: 33.8
A141: 00:02:19 | B141: 00:58:20 | C141: 400 | D141: 400 | E141: 20 | F141: 21 | G141: 21 | H141: 21 | I141: 0.11 | J141: 4 | K141: 0.02 | L141: 0 | M141: 0.01 | N141: 0 | O141: 10 | P141: 33.8
A142: 00:02:20 | B142: 00:58:21 | C142: 400 | D142: 400 | E142: 20 | F142: 21 | G142: 21 | H142: 21 | I142: 0.11 | J142: 4 | K142: 0.02 | L142: 0 | M142: 0.02 | N142: 0 | O142: 10 | P142: 33.8
A143: 00:02:21 | B143: 00:58:22 | C143: 400 | D143: 400 | E143: 20 | F143: 21 | G143: 21 | H143: 21 | I143: 0.11 | J143: 4 | K143: 0.02 | L143: 0 | M143: 0.02 | N143: 0 | O143: 10 | P143: 33.8
A144: 00:02:22 | B144: 00:58:23 | C144: 400 | D144: 400 | E144: 20 | F144: 21 | G144: 21 | H144: 21 | I144: 0.11 | J144: 4 | K144: 0 | L144: 0 | M144: 0.02 | N144: 0 | O144: 10 | P144: 33.8
A145: 00:02:23 | B145: 00:58:24 | C145: 400 | D145: 400 | E145: 20 | F145: 21 | G145: 21 | H145: 21 | I145: 0.11 | J145: 4 | K145: 0 | L145: 0 | M145: 0.01 | N145: 0 | O145: 10 | P145: 33.8
A146: 00:02:24 | B146: 00:58:25 | C146: 400 | D146: 400 | E146: 20 | F146: 21 | G146: 21 | H146: 21 | I146: 0.11 | J146: 4 | K146: 0 | L146: 0 | M146: 0.01 | N146: 0 | O146: 10 | P146: 33.8
A147: 00:02:25 | B147: 00:58:26 | C147: 400 | D147: 400 | E147: 20 | F147: 21 | G147: 21 | H147: 21 | I147: 0.11 | J147: 4 | K147: 0.04 | L147: 0 | M147: 0.02 | N147: 0 | O147: 10 | P147: 33.8
A148: 00:02:26 | B148: 00:58:27 | C148: 400 | D148: 400 | E148: 20 | F148: 21 | G148: 21 | H148: 21 | I148: 0.11 | J148: 4 | K148: 0.04 | L148: 0 | M148: 0.01 | N148: 0 | O148: 10 | P148: 33.8
A149: 00:02:27 | B149: 00:58:28 | C149: 400 | D149: 400 | E149: 20 | F149: 21 | G149: 21 | H149: 21 | I149: 0.11 | J149: 4 | K149: 0.04 | L149: 0 | M149: 0.01 | N149: 0 | O149: 10 | P149: 33.8
A150: 00:02:28 | B150: 00:58:29 | C150: 400 | D150: 400 | E150: 20 | F150: 21 | G150: 21 | H150: 21 | I150: 0.11 | J150: 4 | K150: 0 | L150: 0 | M150: 0.01 | N150: 0 | O150: 10 | P150: 33.8
A151: 00:02:29 | B151: 00:58:30 | C151: 400 | D151: 400 | E151: 20 | F151: 21 | G151: 21 | H151: 21 | I151: 0.11 | J151: 4 | K151: 0 | L151: 0 | M151: 0.01 | N151: 0 | O151: 10 | P151: 33.8
A152: 00:02:30 | B152: 00:58:31 | C152: 400 | D152: 400 | E152: 20 | F152: 21 | G152: 21 | H152: 21 | I152: 0.11 | J152: 4 | K152: 0 | L152: 0 | M152: 0.01 | N152: 0 | O152: 10 | P152: 33.8
A153: 00:02:31 | B153: 00:58:32 | C153: 400 | D153: 400 | E153: 20 | F153: 21 | G153: 21 | H153: 21 | I153: 0.11 | J153: 4 | K153: 0 | L153: 0 | M153: 0.02 | N153: 0 | O153: 10 | P153: 33.8
A154: 00:02:32 | B154: 00:58:33 | C154: 400 | D154: 400 | E154: 20 | F154: 21 | G154: 21 | H154: 21 | I154: 0.11 | J154: 4 | K154: 0.01 | L154: 0 | M154: 0.02 | N154: 0 | O154: 10 | P154: 33.8
A155: 00:02:33 | B155: 00:58:34 | C155: 400 | D155: 400 | E155: 20 | F155: 21 | G155: 21 | H155: 21 | I155: 0.11 | J155: 4 | K155: 0.01 | L155: 0 | M155: 0.02 | N155: 0 | O155: 10 | P155: 33.8
A156: 00:02:34 | B156: 00:58:35 | C156: 400 | D156: 400 | E156: 20 | F156: 21 | G156: 21 | H156: 21 | I156: 0.11 | J156: 4 | K156: 0.01 | L156: 0 | M156: 0.01 | N156: 0 | O156: 10 | P156: 33.8
A157: 00:02:35 | B157: 00:58:36 | C157: 400 | D157: 400 | E157: 20 | F157: 21 | G157: 21 | H157: 21 | I157: 0.11 | J157: 4 | K157: 0.01 | L157: 0 | M157: 0.01 | N157: 0 | O157: 10 | P157: 33.81
A158: 00:02:36 | B158: 00:58:37 | C158: 400 | D158: 400 | E158: 20 | F158: 21 | G158: 21 | H158: 21 | I158: 0.11 | J158: 4 | K158: 0.06 | L158: 0 | M158: 0.01 | N158: 0 | O158: 10 | P158: 33.81
A159: 00:02:37 | B159: 00:58:38 | C159: 400 | D159: 400 | E159: 20 | F159: 21 | G159: 21 | H159: 21 | I159: 0.11 | J159: 4 | K159: 0.06 | L159: 0 | M159: 0.01 | N159: 0 | O159: 10 | P159: 33.81
A160: 00:02:38 | B160: 00:58:39 | C160: 400 | D160: 400 | E160: 20 | F160: 21 | G160: 21 | H160: 21 | I160: 0.11 | J160: 4 | K160: 0.06 | L160: 0 | M160: 0.01 | N160: 0 | O160: 10 | P160: 33.81
A161: 00:02:39 | B161: 00:58:40 | C161: 400 | D161: 400 | E161: 20 | F161: 21 | G161: 21 | H161: 21 | I161: 0.11 | J161: 4 | K161: 0.07 | L161: 0.01 | M161: 0.02 | N161: 0.0002 | O161: 10 | P161: 33.81
A162: 00:02:40 | B162: 00:58:41 | C162: 400 | D162: 400 | E162: 20 | F162: 21 | G162: 21 | H162: 21 | I162: 0.11 | J162: 4 | K162: 0.07 | L162: 0 | M162: 0.02 | N162: 0 | O162: 10 | P162: 33.81
A163: 00:02:41 | B163: 00:58:42 | C163: 400 | D163: 400 | E163: 20 | F163: 21 | G163: 21 | H163: 21 | I163: 0.11 | J163: 4 | K163: 0.07 | L163: 0 | M163: 0.02 | N163: 0 | O163: 10 | P163: 33.81
A164: 00:02:42 | B164: 00:58:43 | C164: 400 | D164: 400 | E164: 20 | F164: 21 | G164: 21 | H164: 21 | I164: 0.11 | J164: 4 | K164: 0.07 | L164: 0 | M164: 0.01 | N164: 0 | O164: 10 | P164: 33.82
A165: 00:02:43 | B165: 00:58:44 | C165: 400 | D165: 400 | E165: 20 | F165: 21 | G165: 21 | H165: 21 | I165: 0.11 | J165: 4 | K165: 0.07 | L165: 0 | M165: 0.01 | N165: 0 | O165: 10 | P165: 33.82
A166: 00:02:44 | B166: 00:58:45 | C166: 400 | D166: 400 | E166: 20 | F166: 21 | G166: 21 | H166: 21 | I166: 0.11 | J166: 4 | K166: 0.07 | L166: 0 | M166: 0.01 | N166: 0 | O166: 10 | P166: 33.82
A167: 00:02:45 | B167: 00:58:46 | C167: 400 | D167: 400 | E167: 20 | F167: 21 | G167: 21 | H167: 21 | I167: 0.11 | J167: 4 | K167: 0.03 | L167: 0 | M167: 0.01 | N167: 0 | O167: 10 | P167: 33.82
A168: 00:02:46 | B168: 00:58:47 | C168: 400 | D168: 400 | E168: 20 | F168: 21 | G168: 21 | H168: 21 | I168: 0.11 | J168: 4 | K168: 0.03 | L168: 0 | M168: 0.02 | N168: 0 | O168: 10 | P168: 33.82
A169: 00:02:47 | B169: 00:58:48 | C169: 400 | D169: 400 | E169: 20 | F169: 21 | G169: 21 | H169: 21 | I169: 0.11 | J169: 4 | K169: 0.03 | L169: 0 | M169: 0.02 | N169: 0 | O169: 10 | P169: 33.82
A170: 00:02:48 | B170: 00:58:49 | C170: 400 | D170: 400 | E170: 20 | F170: 21 | G170: 21 | H170: 21 | I170: 0.11 | J170: 4 | K170: 0.03 | L170: 0 | M170: 0.02 | N170: 0 | O170: 10 | P170: 33.82
A171: 00:02:49 | B171: 00:58:50 | C171: 400 | D171: 400 | E171: 20 | F171: 21 | G171: 21 | H171: 21 | I171: 0.11 | J171: 4 | K171: 0 | L171: 0 | M171: 0.02 | N171: 0 | O171: 10 | P171: 33.82
A172: 00:02:50 | B172: 00:58:51 | C172: 400 | D172: 400 | E172: 20 | F172: 21 | G172: 21 | H172: 21 | I172: 0.11 | J172: 4 | K172: 0 | L172: 0 | M172: 0.02 | N172: 0 | O172: 10 | P172: 33.82
A173: 00:02:51 | B173: 00:58:52 | C173: 400 | D173: 400 | E173: 20 | F173: 21 | G173: 21 | H173: 21 | I173: 0.11 | J173: 4 | K173: 0 | L173: 0 | M173: 0.02 | N173: 0 | O173: 10 | P173: 33.82
A174: 00:02:52 | B174: 00:58:53 | C174: 400 | D174: 400 | E174: 20 | F174: 21 | G174: 21 | H174: 21 | I174: 0.11 | J174: 4 | K174: 0.04 | L174: 0 | M174: 0.02 | N174: 0 | O174: 10 | P174: 33.82
A175: 00:02:53 | B175: 00:58:54 | C175: 400 | D175: 400 | E175: 20 | F175: 21 | G175: 21 | H175: 20 | I175: 0.11 | J175: 4 | K175: 0.04 | L175: 0 | M175: 0.01 | N175: 0 | O175: 10 | P175: 33.82
A176: 00:02:54 | B176: 00:58:55 | C176: 400 | D176: 400 | E176: 20 | F176: 21 | G176: 21 | H176: 20 | I176: 0.11 | J176: 4 | K176: 0.04 | L176: 0 | M176: 0.01 | N176: 0 | O176: 10 | P176: 33.82
A177: 00:02:55 | B177: 00:58:56 | C177: 400 | D177: 400 | E177: 20 | F177: 21 | G177: 21 | H177: 20 | I177: 0.11 | J177: 4 | K177: 0.04 | L177: 0 | M177: 0.01 | N177: 0 | O177: 10 | P177: 33.82
A178: 00:02:56 | B178: 00:58:57 | C178: 400 | D178: 400 | E178: 20 | F178: 21 | G178: 21 | H178: 20 | I178: 0.11 | J178: 4 | K178: 0.07 | L178: 0 | M178: 0.02 | N178: 0 | O178: 10 | P178: 33.82
A179: 00:02:57 | B179: 00:58:58 | C179: 400 | D179: 400 | E179: 20 | F179: 21 | G179: 21 | H179: 20 | I179: 0.11 | J179: 4 | K179: 0.07 | L179: 0 | M179: 0.01 | N179: 0 | O179: 10 | P179: 33.82
A180: 00:02:58 | B180: 00:58:59 | C180: 400 | D180: 400 | E180: 20 | F180: 21 | G180: 21 | H180: 20 | I180: 0.11 | J180: 4 | K180: 0.07 | L180: 0 | M180: 0.01 | N180: 0 | O180: 10 | P180: 33.82
A181: 00:02:59 | B181: 00:59:00 | C181: 400 | D181: 400 | E181: 20 | F181: 21 | G181: 21 | H181: 20 | I181: 0.11 | J181: 4 | K181: 0.04 | L181: 0 | M181: 0.01 | N181: 0 | O181: 10 | P181: 33.82
A182: 00:03:00 | B182: 00:59:01 | C182: 400 | D182: 400 | E182: 20 | F182: 21 | G182: 21 | H182: 20 | I182: 0.11 | J182: 4 | K182: 0.04 | L182: 0 | M182: 0.01 | N182: 0 | O182: 10 | P182: 33.82
A183: 00:03:01 | B183: 00:59:02 | C183: 400 | D183: 400 | E183: 20 | F183: 21 | G183: 21 | H183: 20 | I183: 0.11 | J183: 4 | K183: 0.04 | L183: 0 | M183: 0.02 | N183: 0 | O183: 10 | P183: 33.82
A184: 00:03:02 | B184: 00:59:03 | C184: 400 | D184: 400 | E184: 20 | F184: 21 | G184: 21 | H184: 20 | I184: 0.11 | J184: 4 | K184: 0.01 | L184: 0 | M184: 0.01 | N184: 0 | O184: 10 | P184: 33.82
A185: 00:03:03 | B185: 00:59:04 | C185: 400 | D185: 400 | E185: 20 | F185: 21 | G185: 21 | H185: 20 | I185: 0.11 | J185: 4 | K185: 0.01 | L185: 0 | M185: 0.01 | N185: 0 | O185: 10 | P185: 33.82
A186: 00:03:04 | B186: 00:59:05 | C186: 400 | D186: 400 | E186: 20 | F186: 21 | G186: 21 | H186: 20 | I186: 0.11 | J186: 4 | K186: 0.01 | L186: 0 | M186: 0.02 | N186: 0 | O186: 10 | P186: 33.83
A187: 00:03:05 | B187: 00:59:06 | C187: 400 | D187: 400 | E187: 20 | F187: 21 | G187: 21 | H187: 20 | I187: 0.11 | J187: 4 | K187: -0.01 | L187: 0 | M187: 0.01 | N187: 0 | O187: 10 | P187: 33.83
A188: 00:03:06 | B188: 00:59:07 | C188: 400 | D188: 400 | E188: 20 | F188: 21 | G188: 21 | H188: 20 | I188: 0.11 | J188: 4 | K188: -0.01 | L188: 0 | M188: 0.02 | N188: 0 | O188: 10 | P188: 33.83
A189: 00:03:07 | B189: 00:59:08 | C189: 400 | D189: 400 | E189: 20 | F189: 21 | G189: 21 | H189: 20 | I189: 0.11 | J189: 4 | K189: -0.01 | L189: 0 | M189: 0.02 | N189: 0 | O189: 10 | P189: 33.83
A190: 00:03:08 | B190: 00:59:09 | C190: 400 | D190: 400 | E190: 20 | F190: 21 | G190: 21 | H190: 20 | I190: 0.11 | J190: 4 | K190: -0.01 | L190: 0 | M190: 0.02 | N190: 0 | O190: 10 | P190: 33.83
A191: 00:03:09 | B191: 00:59:10 | C191: 400 | D191: 400 | E191: 20 | F191: 21 | G191: 21 | H191: 20 | I191: 0.11 | J191: 4 | K191: 0 | L191: 0 | M191: 0.02 | N191: 0 | O191: 10 | P191: 33.83
A192: 00:03:10 | B192: 00:59:11 | C192: 400 | D192: 400 | E192: 20 | F192: 21 | G192: 21 | H192: 20 | I192: 0.11 | J192: 4 | K192: 0 | L192: 0 | M192: 0.02 | N192: 0 | O192: 10 | P192: 33.83
A193: 00:03:11 | B193: 00:59:12 | C193: 400 | D193: 400 | E193: 20 | F193: 21 | G193: 21 | H193: 20 | I193: 0.11 | J193: 4 | K193: 0 | L193: 0 | M193: 0.02 | N193: 0 | O193: 10 | P193: 33.83
A194: 00:03:12 | B194: 00:59:13 | C194: 400 | D194: 400 | E194: 20 | F194: 21 | G194: 21 | H194: 20 | I194: 0.11 | J194: 4 | K194: 0 | L194: 0 | M194: 0.02 | N194: 0 | O194: 10 | P194: 33.83
A195: 00:03:13 | B195: 00:59:14 | C195: 400 | D195: 400 | E195: 20 | F195: 21 | G195: 21 | H195: 20 | I195: 0.11 | J195: 4 | K195: 0 | L195: 0 | M195: 0.02 | N195: 0 | O195: 10 | P195: 33.83
A196: 00:03:14 | B196: 00:59:15 | C196: 400 | D196: 400 | E196: 20 | F196: 21 | G196: 21 | H196: 20 | I196: 0.11 | J196: 4 | K196: 0 | L196: 0 | M196: 0.02 | N196: 0 | O196: 10 | P196: 33.83
A197: 00:03:15 | B197: 00:59:16 | C197: 400 | D197: 400 | E197: 20 | F197: 21 | G197: 21 | H197: 20 | I197: 0.11 | J197: 4 | K197: 0 | L197: 0 | M197: 0.02 | N197: 0 | O197: 10 | P197: 33.83
A198: 00:03:16 | B198: 00:59:17 | C198: 400 | D198: 400 | E198: 20 | F198: 21 | G198: 21 | H198: 20 | I198: 0.11 | J198: 4 | K198: 0 | L198: 0 | M198: 0.02 | N198: 0 | O198: 10 | P198: 33.83
A199: 00:03:17 | B199: 00:59:18 | C199: 400 | D199: 400 | E199: 20 | F199: 21 | G199: 21 | H199: 20 | I199: 0.11 | J199: 4 | K199: 0 | L199: 0 | M199: 0.02 | N199: 0 | O199: 10 | P199: 33.83
A200: 00:03:18 | B200: 00:59:19 | C200: 400 | D200: 400 | E200: 20 | F200: 21 | G200: 21 | H200: 20 | I200: 0.11 | J200: 4 | K200: 0 | L200: 0 | M200: 0.02 | N200: 0 | O200: 10 | P200: 33.83
... 1896 more rows

Sheet 1459
A1: P.Zeit | C1: Pyrometer | D1: Pyrometer B | E1: MTC1 | F1: MTC2 | G1: MTC3 | H1: MTC4 | I1: Press. abs 1 | J1: Press. abs 2 | K1: Speed | L1: U RMS | M1: I RMS | N1: Power | O1: Force | P1: Abs Piston Tra. | Q1: Rel Piston Tra.
A2: 00:00:00 | B2: 00:57:38 | C2: 400 | D2: 400 | E2: 22 | F2: 23 | G2: 23 | H2: 23 | I2: 0.13 | J2: 4 | K2: 0 | L2: 0 | M2: 0.04 | N2: =L2*M2 -> 0 | O2: 5 | P2: 32.77
A3: 00:00:01 | B3: 00:57:39 | C3: 400 | D3: 400 | E3: 22 | F3: 23 | G3: 23 | H3: 23 | I3: 0.13 | J3: 4 | K3: 0 | L3: 0 | M3: 0.04 | N3: 0 | O3: 5 | P3: 32.93
A4: 00:00:02 | B4: 00:57:40 | C4: 400 | D4: 400 | E4: 22 | F4: 23 | G4: 23 | H4: 23 | I4: 0.13 | J4: 4 | K4: 5.54 | L4: 0 | M4: 0.04 | N4: 0 | O4: 5 | P4: 33.06
A5: 00:00:03 | B5: 00:57:41 | C5: 400 | D5: 400 | E5: 22 | F5: 23 | G5: 23 | H5: 23 | I5: 0.13 | J5: 4 | K5: 5.54 | L5: 0 | M5: 0.04 | N5: 0 | O5: 5 | P5: 33.06
A6: 00:00:04 | B6: 00:57:42 | C6: 400 | D6: 400 | E6: 22 | F6: 23 | G6: 23 | H6: 23 | I6: 0.13 | J6: 4 | K6: 5.54 | L6: 0 | M6: 0.04 | N6: 0 | O6: 5 | P6: 33.07
A7: 00:00:05 | B7: 00:57:43 | C7: 400 | D7: 400 | E7: 22 | F7: 23 | G7: 23 | H7: 23 | I7: 0.13 | J7: 4 | K7: 5.54 | L7: 0 | M7: 0.04 | N7: 0 | O7: 5 | P7: 33.07
A8: 00:00:06 | B8: 00:57:44 | C8: 400 | D8: 400 | E8: 22 | F8: 23 | G8: 23 | H8: 23 | I8: 0.12 | J8: 4 | K8: 0.17 | L8: 0 | M8: 0.04 | N8: 0 | O8: 5 | P8: 33.07
A9: 00:00:07 | B9: 00:57:45 | C9: 400 | D9: 400 | E9: 22 | F9: 23 | G9: 23 | H9: 23 | I9: 0.12 | J9: 4 | K9: 0.17 | L9: 0 | M9: 0.04 | N9: 0 | O9: 5 | P9: 33.08
A10: 00:00:08 | B10: 00:57:46 | C10: 400 | D10: 400 | E10: 22 | F10: 23 | G10: 23 | H10: 23 | I10: 0.12 | J10: 4 | K10: 0.17 | L10: 0 | M10: 0.04 | N10: 0 | O10: 5 | P10: 33.08
A11: 00:00:09 | B11: 00:57:47 | C11: 400 | D11: 400 | E11: 22 | F11: 23 | G11: 23 | H11: 23 | I11: 0.12 | J11: 4 | K11: 0.07 | L11: 0 | M11: 0.04 | N11: 0 | O11: 5 | P11: 33.08
A12: 00:00:10 | B12: 00:57:48 | C12: 400 | D12: 400 | E12: 22 | F12: 23 | G12: 23 | H12: 23 | I12: 0.12 | J12: 4 | K12: 0.07 | L12: 0 | M12: 0.04 | N12: 0 | O12: 5 | P12: 33.08
A13: 00:00:11 | B13: 00:57:49 | C13: 400 | D13: 400 | E13: 22 | F13: 23 | G13: 23 | H13: 23 | I13: 0.12 | J13: 4 | K13: 0.07 | L13: 0 | M13: 0.04 | N13: 0 | O13: 5 | P13: 33.08
A14: 00:00:12 | B14: 00:57:50 | C14: 400 | D14: 400 | E14: 22 | F14: 23 | G14: 23 | H14: 23 | I14: 0.12 | J14: 4 | K14: 0.07 | L14: 0 | M14: 0.04 | N14: 0 | O14: 5 | P14: 33.08
A15: 00:00:13 | B15: 00:57:51 | C15: 400 | D15: 400 | E15: 22 | F15: 23 | G15: 23 | H15: 23 | I15: 0.12 | J15: 4 | K15: 0.01 | L15: 0 | M15: 0.04 | N15: 0 | O15: 5 | P15: 33.08
A16: 00:00:14 | B16: 00:57:52 | C16: 400 | D16: 400 | E16: 22 | F16: 23 | G16: 23 | H16: 23 | I16: 0.12 | J16: 4 | K16: 0.01 | L16: 0 | M16: 0.04 | N16: 0 | O16: 5 | P16: 33.08
A17: 00:00:15 | B17: 00:57:53 | C17: 400 | D17: 400 | E17: 22 | F17: 23 | G17: 23 | H17: 23 | I17: 0.12 | J17: 4 | K17: 0.01 | L17: 0 | M17: 0.04 | N17: 0 | O17: 5 | P17: 33.08
A18: 00:00:16 | B18: 00:57:54 | C18: 400 | D18: 400 | E18: 22 | F18: 23 | G18: 23 | H18: 23 | I18: 0.12 | J18: 4 | K18: 0.01 | L18: 0 | M18: 0.04 | N18: 0 | O18: 5 | P18: 33.08
A19: 00:00:17 | B19: 00:57:55 | C19: 400 | D19: 400 | E19: 22 | F19: 23 | G19: 23 | H19: 23 | I19: 0.12 | J19: 4 | K19: 0.01 | L19: 0 | M19: 0.04 | N19: 0 | O19: 5 | P19: 33.08
A20: 00:00:18 | B20: 00:57:56 | C20: 400 | D20: 400 | E20: 22 | F20: 23 | G20: 23 | H20: 23 | I20: 0.12 | J20: 4 | K20: 0.01 | L20: 0 | M20: 0.04 | N20: 0 | O20: 5 | P20: 33.08
A21: 00:00:19 | B21: 00:57:57 | C21: 400 | D21: 400 | E21: 22 | F21: 23 | G21: 23 | H21: 23 | I21: 0.12 | J21: 4 | K21: 0.01 | L21: 0 | M21: 0.04 | N21: 0 | O21: 5 | P21: 33.08
A22: 00:00:20 | B22: 00:57:58 | C22: 400 | D22: 400 | E22: 22 | F22: 23 | G22: 23 | H22: 23 | I22: 0.12 | J22: 4 | K22: 0.01 | L22: 0 | M22: 0.04 | N22: 0 | O22: 5 | P22: 33.08
A23: 00:00:21 | B23: 00:57:59 | C23: 400 | D23: 400 | E23: 22 | F23: 23 | G23: 23 | H23: 23 | I23: 0.12 | J23: 4 | K23: 0.01 | L23: 0 | M23: 0.04 | N23: 0 | O23: 5 | P23: 33.08
A24: 00:00:22 | B24: 00:58:00 | C24: 400 | D24: 400 | E24: 22 | F24: 23 | G24: 23 | H24: 23 | I24: 0.12 | J24: 4 | K24: 0.01 | L24: 0 | M24: 0.04 | N24: 0 | O24: 5 | P24: 33.08
A25: 00:00:23 | B25: 00:58:01 | C25: 400 | D25: 400 | E25: 22 | F25: 23 | G25: 23 | H25: 23 | I25: 0.12 | J25: 4 | K25: 0.03 | L25: 0 | M25: 0.04 | N25: 0 | O25: 5 | P25: 33.08
A26: 00:00:24 | B26: 00:58:02 | C26: 400 | D26: 400 | E26: 22 | F26: 23 | G26: 23 | H26: 23 | I26: 0.12 | J26: 4 | K26: 0.03 | L26: 0 | M26: 0.04 | N26: 0 | O26: 5 | P26: 33.08
A27: 00:00:25 | B27: 00:58:03 | C27: 400 | D27: 400 | E27: 22 | F27: 23 | G27: 23 | H27: 23 | I27: 0.12 | J27: 4 | K27: 0.03 | L27: 0 | M27: 0.04 | N27: 0 | O27: 5 | P27: 33.08
A28: 00:00:26 | B28: 00:58:04 | C28: 400 | D28: 400 | E28: 22 | F28: 23 | G28: 23 | H28: 23 | I28: 0.12 | J28: 4 | K28: 0 | L28: 0 | M28: 0.04 | N28: 0 | O28: 5 | P28: 33.08
A29: 00:00:27 | B29: 00:58:05 | C29: 400 | D29: 400 | E29: 22 | F29: 23 | G29: 23 | H29: 23 | I29: 0.12 | J29: 4 | K29: 0 | L29: 0 | M29: 0.04 | N29: 0 | O29: 5 | P29: 33.08
A30: 00:00:28 | B30: 00:58:06 | C30: 400 | D30: 400 | E30: 22 | F30: 23 | G30: 23 | H30: 23 | I30: 0.11 | J30: 4 | K30: 0 | L30: 0 | M30: 0.04 | N30: 0 | O30: 5 | P30: 33.08
A31: 00:00:29 | B31: 00:58:07 | C31: 400 | D31: 400 | E31: 22 | F31: 23 | G31: 23 | H31: 23 | I31: 0.11 | J31: 4 | K31: 0 | L31: 0 | M31: 0.04 | N31: 0 | O31: 5 | P31: 33.08
A32: 00:00:30 | B32: 00:58:08 | C32: 400 | D32: 400 | E32: 22 | F32: 23 | G32: 23 | H32: 23 | I32: 0.11 | J32: 4 | K32: 0 | L32: 0 | M32: 0.04 | N32: 0 | O32: 5 | P32: 33.08
A33: 00:00:31 | B33: 00:58:09 | C33: 400 | D33: 400 | E33: 22 | F33: 23 | G33: 23 | H33: 23 | I33: 0.11 | J33: 4 | K33: 0 | L33: 0 | M33: 0.04 | N33: 0 | O33: 5 | P33: 33.08
A34: 00:00:32 | B34: 00:58:10 | C34: 400 | D34: 400 | E34: 22 | F34: 23 | G34: 23 | H34: 23 | I34: 0.11 | J34: 4 | K34: 0 | L34: 0 | M34: 0.04 | N34: 0 | O34: 5 | P34: 33.08
A35: 00:00:33 | B35: 00:58:11 | C35: 400 | D35: 400 | E35: 22 | F35: 23 | G35: 23 | H35: 23 | I35: 0.11 | J35: 4 | K35: 0 | L35: 0 | M35: 0.04 | N35: 0 | O35: 5 | P35: 33.08
A36: 00:00:34 | B36: 00:58:12 | C36: 400 | D36: 400 | E36: 22 | F36: 23 | G36: 23 | H36: 23 | I36: 0.11 | J36: 4 | K36: 0 | L36: 0 | M36: 0.04 | N36: 0 | O36: 5 | P36: 33.08
A37: 00:00:35 | B37: 00:58:13 | C37: 400 | D37: 400 | E37: 22 | F37: 23 | G37: 23 | H37: 23 | I37: 0.11 | J37: 4 | K37: 0 | L37: 0 | M37: 0.04 | N37: 0 | O37: 5 | P37: 33.08
A38: 00:00:36 | B38: 00:58:14 | C38: 400 | D38: 400 | E38: 22 | F38: 23 | G38: 23 | H38: 23 | I38: 0.11 | J38: 4 | K38: 0 | L38: 0 | M38: 0.04 | N38: 0 | O38: 5 | P38: 33.08
A39: 00:00:37 | B39: 00:58:15 | C39: 400 | D39: 400 | E39: 22 | F39: 23 | G39: 23 | H39: 23 | I39: 0.11 | J39: 4 | K39: 0 | L39: 0 | M39: 0.04 | N39: 0 | O39: 5 | P39: 33.08
A40: 00:00:38 | B40: 00:58:16 | C40: 400 | D40: 400 | E40: 22 | F40: 23 | G40: 23 | H40: 23 | I40: 0.11 | J40: 4 | K40: 0 | L40: 0 | M40: 0.04 | N40: 0 | O40: 5 | P40: 33.08
A41: 00:00:39 | B41: 00:58:17 | C41: 400 | D41: 400 | E41: 22 | F41: 23 | G41: 23 | H41: 23 | I41: 0.11 | J41: 4 | K41: 0 | L41: 0 | M41: 0.04 | N41: 0 | O41: 5 | P41: 33.08
A42: 00:00:40 | B42: 00:58:18 | C42: 400 | D42: 400 | E42: 22 | F42: 23 | G42: 23 | H42: 23 | I42: 0.11 | J42: 4 | K42: 0 | L42: 0 | M42: 0.04 | N42: 0 | O42: 5 | P42: 33.08
A43: 00:00:41 | B43: 00:58:19 | C43: 400 | D43: 400 | E43: 22 | F43: 23 | G43: 23 | H43: 23 | I43: 0.11 | J43: 4 | K43: 0 | L43: 0 | M43: 0.04 | N43: 0 | O43: 5 | P43: 33.08
A44: 00:00:42 | B44: 00:58:20 | C44: 400 | D44: 400 | E44: 22 | F44: 23 | G44: 23 | H44: 23 | I44: 0.11 | J44: 4 | K44: 0 | L44: 0 | M44: 0.04 | N44: 0 | O44: 5 | P44: 33.08
A45: 00:00:43 | B45: 00:58:21 | C45: 400 | D45: 400 | E45: 22 | F45: 23 | G45: 23 | H45: 23 | I45: 0.11 | J45: 4 | K45: 0 | L45: 0 | M45: 0.04 | N45: 0 | O45: 5 | P45: 33.08
A46: 00:00:44 | B46: 00:58:22 | C46: 400 | D46: 400 | E46: 22 | F46: 23 | G46: 23 | H46: 23 | I46: 0.11 | J46: 4 | K46: 0 | L46: 0 | M46: 0.04 | N46: 0 | O46: 5 | P46: 33.08
A47: 00:00:45 | B47: 00:58:23 | C47: 400 | D47: 400 | E47: 22 | F47: 23 | G47: 23 | H47: 23 | I47: 0.11 | J47: 4 | K47: 0 | L47: 0 | M47: 0.04 | N47: 0 | O47: 5 | P47: 33.08
A48: 00:00:46 | B48: 00:58:24 | C48: 400 | D48: 400 | E48: 22 | F48: 23 | G48: 23 | H48: 23 | I48: 0.11 | J48: 4 | K48: 0 | L48: 0 | M48: 0.04 | N48: 0 | O48: 6 | P48: 33.08
A49: 00:00:47 | B49: 00:58:25 | C49: 400 | D49: 400 | E49: 22 | F49: 23 | G49: 23 | H49: 23 | I49: 0.11 | J49: 4 | K49: 0 | L49: 0 | M49: 0.04 | N49: 0 | O49: 6 | P49: 33.08
A50: 00:00:48 | B50: 00:58:26 | C50: 400 | D50: 400 | E50: 22 | F50: 23 | G50: 23 | H50: 23 | I50: 0.11 | J50: 4 | K50: 0 | L50: 0 | M50: 0.04 | N50: 0 | O50: 6 | P50: 33.09
A51: 00:00:49 | B51: 00:58:27 | C51: 400 | D51: 400 | E51: 22 | F51: 23 | G51: 23 | H51: 23 | I51: 0.11 | J51: 4 | K51: 0.8 | L51: 0 | M51: 0.04 | N51: 0 | O51: 6 | P51: 33.13
A52: 00:00:50 | B52: 00:58:28 | C52: 400 | D52: 400 | E52: 22 | F52: 23 | G52: 23 | H52: 23 | I52: 0.11 | J52: 4 | K52: 0.8 | L52: 0 | M52: 0.04 | N52: 0 | O52: 6 | P52: 33.15
A53: 00:00:51 | B53: 00:58:29 | C53: 400 | D53: 400 | E53: 22 | F53: 23 | G53: 23 | H53: 23 | I53: 0.11 | J53: 4 | K53: 0.8 | L53: 0 | M53: 0.04 | N53: 0 | O53: 7 | P53: 33.18
A54: 00:00:52 | B54: 00:58:30 | C54: 400 | D54: 400 | E54: 22 | F54: 23 | G54: 23 | H54: 23 | I54: 0.11 | J54: 4 | K54: 0.8 | L54: 0 | M54: 0.04 | N54: 0 | O54: 7 | P54: 33.22
A55: 00:00:53 | B55: 00:58:31 | C55: 400 | D55: 400 | E55: 22 | F55: 23 | G55: 23 | H55: 23 | I55: 0.11 | J55: 4 | K55: 1.88 | L55: 0 | M55: 0.04 | N55: 0 | O55: 7 | P55: 33.25
A56: 00:00:54 | B56: 00:58:32 | C56: 400 | D56: 400 | E56: 22 | F56: 23 | G56: 23 | H56: 23 | I56: 0.11 | J56: 4 | K56: 1.88 | L56: 0 | M56: 0.04 | N56: 0 | O56: 7 | P56: 33.32
A57: 00:00:55 | B57: 00:58:33 | C57: 400 | D57: 400 | E57: 22 | F57: 23 | G57: 23 | H57: 23 | I57: 0.11 | J57: 4 | K57: 1.88 | L57: 0 | M57: 0.04 | N57: 0 | O57: 7 | P57: 33.44
A58: 00:00:56 | B58: 00:58:34 | C58: 400 | D58: 400 | E58: 22 | F58: 23 | G58: 23 | H58: 23 | I58: 0.11 | J58: 4 | K58: 5.38 | L58: 0 | M58: 0.04 | N58: 0 | O58: 7 | P58: 33.55
A59: 00:00:57 | B59: 00:58:35 | C59: 400 | D59: 400 | E59: 22 | F59: 23 | G59: 23 | H59: 23 | I59: 0.11 | J59: 4 | K59: 5.38 | L59: 0 | M59: 0.04 | N59: 0 | O59: 8 | P59: 33.86
A60: 00:00:58 | B60: 00:58:36 | C60: 400 | D60: 400 | E60: 22 | F60: 23 | G60: 23 | H60: 23 | I60: 0.11 | J60: 4 | K60: 5.38 | L60: 0 | M60: 0.04 | N60: 0 | O60: 8 | P60: 34.18
A61: 00:00:59 | B61: 00:58:37 | C61: 400 | D61: 400 | E61: 22 | F61: 23 | G61: 23 | H61: 23 | I61: 0.11 | J61: 4 | K61: 5.38 | L61: 0 | M61: 0.04 | N61: 0 | O61: 8 | P61: 34.29
A62: 00:01:00 | B62: 00:58:38 | C62: 400 | D62: 400 | E62: 22 | F62: 23 | G62: 23 | H62: 23 | I62: 0.11 | J62: 4 | K62: 14.35 | L62: 0 | M62: 0.04 | N62: 0 | O62: 8 | P62: 34.46
A63: 00:01:01 | B63: 00:58:39 | C63: 400 | D63: 400 | E63: 22 | F63: 23 | G63: 23 | H63: 23 | I63: 0.11 | J63: 4 | K63: 14.35 | L63: 0 | M63: 0.04 | N63: 0 | O63: 8 | P63: 34.56
A64: 00:01:02 | B64: 00:58:40 | C64: 400 | D64: 400 | E64: 22 | F64: 23 | G64: 23 | H64: 23 | I64: 0.11 | J64: 4 | K64: 14.35 | L64: 0 | M64: 0.04 | N64: 0 | O64: 9 | P64: 34.59
A65: 00:01:03 | B65: 00:58:41 | C65: 400 | D65: 400 | E65: 22 | F65: 23 | G65: 23 | H65: 23 | I65: 0.11 | J65: 4 | K65: 4.93 | L65: 0 | M65: 0.04 | N65: 0 | O65: 9 | P65: 34.64
A66: 00:01:04 | B66: 00:58:42 | C66: 400 | D66: 400 | E66: 22 | F66: 23 | G66: 23 | H66: 23 | I66: 0.11 | J66: 4 | K66: 4.93 | L66: 0 | M66: 0.04 | N66: 0 | O66: 9 | P66: 34.66
A67: 00:01:05 | B67: 00:58:43 | C67: 400 | D67: 400 | E67: 22 | F67: 23 | G67: 23 | H67: 23 | I67: 0.11 | J67: 4 | K67: 4.93 | L67: 0 | M67: 0.04 | N67: 0 | O67: 9 | P67: 34.71
A68: 00:01:06 | B68: 00:58:44 | C68: 400 | D68: 400 | E68: 22 | F68: 23 | G68: 23 | H68: 23 | I68: 0.11 | J68: 4 | K68: 2.7 | L68: 0 | M68: 0.04 | N68: 0 | O68: 9 | P68: 34.78
A69: 00:01:07 | B69: 00:58:45 | C69: 400 | D69: 400 | E69: 22 | F69: 23 | G69: 23 | H69: 23 | I69: 0.11 | J69: 4 | K69: 2.7 | L69: 0 | M69: 0.04 | N69: 0 | O69: 9 | P69: 34.82
A70: 00:01:08 | B70: 00:58:46 | C70: 400 | D70: 400 | E70: 22 | F70: 23 | G70: 23 | H70: 23 | I70: 0.11 | J70: 4 | K70: 2.7 | L70: 0 | M70: 0.04 | N70: 0 | O70: 10 | P70: 34.89
A71: 00:01:09 | B71: 00:58:47 | C71: 400 | D71: 400 | E71: 22 | F71: 23 | G71: 23 | H71: 23 | I71: 0.1 | J71: 4 | K71: 3.76 | L71: 0 | M71: 0.04 | N71: 0 | O71: 10 | P71: 34.98
A72: 00:01:10 | B72: 00:58:48 | C72: 400 | D72: 400 | E72: 22 | F72: 23 | G72: 23 | H72: 23 | I72: 0.11 | J72: 4 | K72: 3.76 | L72: 0 | M72: 0.04 | N72: 0 | O72: 10 | P72: 35.02
A73: 00:01:11 | B73: 00:58:49 | C73: 400 | D73: 400 | E73: 22 | F73: 23 | G73: 23 | H73: 23 | I73: 0.13 | J73: 4 | K73: 3.76 | L73: 0 | M73: 0.04 | N73: 0 | O73: 10 | P73: 35.09
A74: 00:01:12 | B74: 00:58:50 | C74: 400 | D74: 400 | E74: 22 | F74: 23 | G74: 23 | H74: 23 | I74: 0.13 | J74: 4 | K74: 3.76 | L74: 0 | M74: 0.04 | N74: 0 | O74: 10 | P74: 35.15
A75: 00:01:13 | B75: 00:58:51 | C75: 400 | D75: 400 | E75: 22 | F75: 23 | G75: 23 | H75: 23 | I75: 0.14 | J75: 4 | K75: 3.2 | L75: 0 | M75: 0.04 | N75: 0 | O75: 11 | P75: 35.16
A76: 00:01:14 | B76: 00:58:52 | C76: 400 | D76: 400 | E76: 22 | F76: 23 | G76: 23 | H76: 22 | I76: 0.17 | J76: 4 | K76: 3.2 | L76: 0 | M76: 0.04 | N76: 0 | O76: 11 | P76: 35.2
A77: 00:01:15 | B77: 00:58:53 | C77: 400 | D77: 400 | E77: 22 | F77: 23 | G77: 23 | H77: 22 | I77: 0.17 | J77: 4 | K77: 3.2 | L77: 0 | M77: 0.04 | N77: 0 | O77: 11 | P77: 35.24
A78: 00:01:16 | B78: 00:58:54 | C78: 400 | D78: 400 | E78: 22 | F78: 23 | G78: 23 | H78: 22 | I78: 0.19 | J78: 4 | K78: 1.94 | L78: 0 | M78: 0.04 | N78: 0 | O78: 11 | P78: 35.26
A79: 00:01:17 | B79: 00:58:55 | C79: 400 | D79: 400 | E79: 22 | F79: 23 | G79: 23 | H79: 22 | I79: 0.21 | J79: 4 | K79: 1.94 | L79: 0 | M79: 0.04 | N79: 0 | O79: 11 | P79: 35.32
A80: 00:01:18 | B80: 00:58:56 | C80: 400 | D80: 400 | E80: 22 | F80: 23 | G80: 23 | H80: 23 | I80: 0.21 | J80: 4 | K80: 1.94 | L80: 0 | M80: 0.04 | N80: 0 | O80: 11 | P80: 35.35
A81: 00:01:19 | B81: 00:58:57 | C81: 400 | D81: 400 | E81: 22 | F81: 23 | G81: 23 | H81: 22 | I81: 0.24 | J81: 4 | K81: 1.94 | L81: 0 | M81: 0.04 | N81: 0 | O81: 12 | P81: 35.42
A82: 00:01:20 | B82: 00:58:58 | C82: 400 | D82: 400 | E82: 22 | F82: 23 | G82: 23 | H82: 22 | I82: 0.27 | J82: 4 | K82: 3.12 | L82: 0 | M82: 0.04 | N82: 0 | O82: 12 | P82: 35.5
A83: 00:01:21 | B83: 00:58:59 | C83: 400 | D83: 400 | E83: 22 | F83: 23 | G83: 23 | H83: 22 | I83: 0.27 | J83: 4 | K83: 3.12 | L83: 0 | M83: 0.04 | N83: 0 | O83: 12 | P83: 35.54
A84: 00:01:22 | B84: 00:59:00 | C84: 400 | D84: 400 | E84: 22 | F84: 23 | G84: 23 | H84: 22 | I84: 0.29 | J84: 4 | K84: 3.12 | L84: 0 | M84: 0.04 | N84: 0 | O84: 12 | P84: 35.6
A85: 00:01:23 | B85: 00:59:01 | C85: 400 | D85: 400 | E85: 22 | F85: 23 | G85: 23 | H85: 22 | I85: 0.32 | J85: 4 | K85: 3.41 | L85: 0 | M85: 0.04 | N85: 0 | O85: 12 | P85: 35.65
A86: 00:01:24 | B86: 00:59:02 | C86: 400 | D86: 400 | E86: 22 | F86: 23 | G86: 23 | H86: 22 | I86: 0.32 | J86: 4 | K86: 3.41 | L86: 0 | M86: 0.04 | N86: 0 | O86: 13 | P86: 35.67
A87: 00:01:25 | B87: 00:59:03 | C87: 400 | D87: 400 | E87: 22 | F87: 23 | G87: 23 | H87: 22 | I87: 0.35 | J87: 4 | K87: 3.41 | L87: 0 | M87: 0.04 | N87: 0 | O87: 13 | P87: 35.71
A88: 00:01:26 | B88: 00:59:04 | C88: 400 | D88: 400 | E88: 22 | F88: 23 | G88: 23 | H88: 22 | I88: 0.37 | J88: 4 | K88: 1.94 | L88: 0 | M88: 0.04 | N88: 0 | O88: 13 | P88: 35.75
A89: 00:01:27 | B89: 00:59:05 | C89: 400 | D89: 400 | E89: 22 | F89: 23 | G89: 23 | H89: 22 | I89: 0.37 | J89: 4 | K89: 1.94 | L89: 0 | M89: 0.04 | N89: 0 | O89: 13 | P89: 35.77
A90: 00:01:28 | B90: 00:59:06 | C90: 400 | D90: 400 | E90: 22 | F90: 23 | G90: 23 | H90: 22 | I90: 0.39 | J90: 4 | K90: 1.94 | L90: 0 | M90: 0.04 | N90: 0 | O90: 13 | P90: 35.81
A91: 00:01:29 | B91: 00:59:07 | C91: 400 | D91: 400 | E91: 22 | F91: 23 | G91: 23 | H91: 22 | I91: 0.42 | J91: 4 | K91: 1.94 | L91: 0 | M91: 0.04 | N91: 0 | O91: 13 | P91: 35.84
A92: 00:01:30 | B92: 00:59:08 | C92: 400 | D92: 400 | E92: 22 | F92: 23 | G92: 23 | H92: 22 | I92: 0.44 | J92: 4 | K92: 2.4 | L92: 0 | M92: 0.04 | N92: 0 | O92: 14 | P92: 35.9
A93: 00:01:31 | B93: 00:59:09 | C93: 400 | D93: 400 | E93: 22 | F93: 23 | G93: 23 | H93: 22 | I93: 0.44 | J93: 4 | K93: 2.4 | L93: 0 | M93: 0.04 | N93: 0 | O93: 14 | P93: 35.96
A94: 00:01:32 | B94: 00:59:10 | C94: 400 | D94: 400 | E94: 22 | F94: 23 | G94: 23 | H94: 22 | I94: 0.46 | J94: 4 | K94: 2.4 | L94: 0 | M94: 0.04 | N94: 0 | O94: 14 | P94: 35.99
A95: 00:01:33 | B95: 00:59:11 | C95: 400 | D95: 400 | E95: 22 | F95: 23 | G95: 23 | H95: 22 | I95: 0.47 | J95: 4 | K95: 2.89 | L95: 0 | M95: 0.04 | N95: 0 | O95: 14 | P95: 36.04
A96: 00:01:34 | B96: 00:59:12 | C96: 400 | D96: 400 | E96: 22 | F96: 23 | G96: 23 | H96: 22 | I96: 0.47 | J96: 4 | K96: 2.89 | L96: 0 | M96: 0.04 | N96: 0 | O96: 14 | P96: 36.08
A97: 00:01:35 | B97: 00:59:13 | C97: 400 | D97: 400 | E97: 22 | F97: 23 | G97: 23 | H97: 22 | I97: 0.49 | J97: 4 | K97: 2.89 | L97: 0 | M97: 0.04 | N97: 0 | O97: 15 | P97: 36.1
A98: 00:01:36 | B98: 00:59:14 | C98: 400 | D98: 400 | E98: 22 | F98: 23 | G98: 23 | H98: 22 | I98: 0.5 | J98: 4 | K98: 2.89 | L98: 0 | M98: 0.04 | N98: 0 | O98: 15 | P98: 36.13
A99: 00:01:37 | B99: 00:59:15 | C99: 400 | D99: 400 | E99: 22 | F99: 23 | G99: 23 | H99: 22 | I99: 0.51 | J99: 4 | K99: 1.64 | L99: 0 | M99: 0.04 | N99: 0 | O99: 15 | P99: 36.16
A100: 00:01:38 | B100: 00:59:16 | C100: 400 | D100: 400 | E100: 22 | F100: 23 | G100: 23 | H100: 22 | I100: 0.51 | J100: 4 | K100: 1.64 | L100: 0 | M100: 0.04 | N100: 0 | O100: 15 | P100: 36.18
A101: 00:01:39 | B101: 00:59:17 | C101: 400 | D101: 400 | E101: 22 | F101: 23 | G101: 23 | H101: 22 | I101: 0.52 | J101: 4 | K101: 1.64 | L101: 0 | M101: 0.04 | N101: 0 | O101: 15 | P101: 36.24
A102: 00:01:40 | B102: 00:59:18 | C102: 400 | D102: 400 | E102: 22 | F102: 23 | G102: 23 | H102: 22 | I102: 0.53 | J102: 4 | K102: 2.23 | L102: 0 | M102: 0.04 | N102: 0 | O102: 16 | P102: 36.29
A103: 00:01:41 | B103: 00:59:19 | C103: 400 | D103: 400 | E103: 22 | F103: 23 | G103: 23 | H103: 22 | I103: 0.53 | J103: 4 | K103: 2.23 | L103: 0 | M103: 0.04 | N103: 0 | O103: 16 | P103: 36.32
A104: 00:01:42 | B104: 00:59:20 | C104: 400 | D104: 400 | E104: 22 | F104: 23 | G104: 23 | H104: 22 | I104: 0.54 | J104: 4 | K104: 2.23 | L104: 0 | M104: 0.04 | N104: 0 | O104: 16 | P104: 36.38
A105: 00:01:43 | B105: 00:59:21 | C105: 400 | D105: 400 | E105: 22 | F105: 23 | G105: 23 | H105: 22 | I105: 0.54 | J105: 4 | K105: 2.83 | L105: 0 | M105: 0.04 | N105: 0 | O105: 16 | P105: 36.41
A106: 00:01:44 | B106: 00:59:22 | C106: 400 | D106: 400 | E106: 22 | F106: 23 | G106: 23 | H106: 22 | I106: 0.55 | J106: 4 | K106: 2.83 | L106: 0 | M106: 0.04 | N106: 0 | O106: 16 | P106: 36.45
A107: 00:01:45 | B107: 00:59:23 | C107: 400 | D107: 400 | E107: 22 | F107: 23 | G107: 23 | H107: 22 | I107: 0.56 | J107: 4 | K107: 2.83 | L107: 0 | M107: 0.04 | N107: 0 | O107: 16 | P107: 36.47
A108: 00:01:46 | B108: 00:59:24 | C108: 400 | D108: 400 | E108: 22 | F108: 23 | G108: 23 | H108: 22 | I108: 0.56 | J108: 4 | K108: 2.83 | L108: 0 | M108: 0.04 | N108: 0 | O108: 16 | P108: 36.47
A109: 00:01:47 | B109: 00:59:25 | C109: 400 | D109: 400 | E109: 22 | F109: 23 | G109: 23 | H109: 22 | I109: 0.57 | J109: 4 | K109: 1.2 | L109: 0 | M109: 0.04 | N109: 0 | O109: 16 | P109: 36.48
A110: 00:01:48 | B110: 00:59:26 | C110: 400 | D110: 400 | E110: 22 | F110: 23 | G110: 23 | H110: 22 | I110: 0.57 | J110: 4 | K110: 1.2 | L110: 0 | M110: 0.04 | N110: 0 | O110: 16 | P110: 36.49
A111: 00:01:49 | B111: 00:59:27 | C111: 400 | D111: 400 | E111: 22 | F111: 23 | G111: 23 | H111: 22 | I111: 0.58 | J111: 4 | K111: 1.2 | L111: 0 | M111: 0.04 | N111: 0 | O111: 16 | P111: 36.49
A112: 00:01:50 | B112: 00:59:28 | C112: 400 | D112: 400 | E112: 22 | F112: 23 | G112: 23 | H112: 22 | I112: 0.58 | J112: 4 | K112: 0.2 | L112: 0 | M112: 0.04 | N112: 0 | O112: 16 | P112: 36.49
A113: 00:01:51 | B113: 00:59:29 | C113: 400 | D113: 400 | E113: 22 | F113: 23 | G113: 23 | H113: 22 | I113: 0.59 | J113: 4 | K113: 0.2 | L113: 0 | M113: 0.04 | N113: 0 | O113: 16 | P113: 36.49 | Q113: =P113-36.49 -> 0
A114: 00:01:52 | B114: 00:59:30 | C114: 400 | D114: 400 | E114: 22 | F114: 23 | G114: 23 | H114: 22 | I114: 0.59 | J114: 4 | K114: 0.2 | L114: 5.95 | M114: 0.88 | N114: 5.236 | O114: 16 | P114: 36.49 | Q114: 0
A115: 00:01:53 | B115: 00:59:31 | C115: 400 | D115: 400 | E115: 22 | F115: 24 | G115: 23 | H115: 23 | I115: 0.59 | J115: 4 | K115: 0.02 | L115: 5.9 | M115: 0.93 | N115: 5.487 | O115: 16 | P115: 36.49 | Q115: 0
A116: 00:01:54 | B116: 00:59:32 | C116: 400 | D116: 400 | E116: 22 | F116: 24 | G116: 23 | H116: 23 | I116: 0.6 | J116: 4 | K116: 0.02 | L116: 5.9 | M116: 0.93 | N116: 5.487 | O116: 16 | P116: 36.49 | Q116: 0
A117: 00:01:55 | B117: 00:59:33 | C117: 400 | D117: 400 | E117: 23 | F117: 24 | G117: 23 | H117: 23 | I117: 0.6 | J117: 4 | K117: 0.02 | L117: 5.89 | M117: 1 | N117: 5.89 | O117: 16 | P117: 36.49 | Q117: 0
A118: 00:01:56 | B118: 00:59:34 | C118: 400 | D118: 400 | E118: 23 | F118: 24 | G118: 23 | H118: 23 | I118: 0.61 | J118: 4 | K118: 0.02 | L118: 5.88 | M118: 1.01 | N118: 5.9388 | O118: 16 | P118: 36.49 | Q118: 0
A119: 00:01:57 | B119: 00:59:35 | C119: 400 | D119: 400 | E119: 23 | F119: 24 | G119: 23 | H119: 23 | I119: 0.61 | J119: 4 | K119: 0 | L119: 5.88 | M119: 1.01 | N119: 5.9388 | O119: 16 | P119: 36.49 | Q119: 0
A120: 00:01:58 | B120: 00:59:36 | C120: 400 | D120: 400 | E120: 23 | F120: 24 | G120: 23 | H120: 23 | I120: 0.61 | J120: 4 | K120: 0 | L120: 5.89 | M120: 1.03 | N120: 6.0667 | O120: 16 | P120: 36.49 | Q120: 0
A121: 00:01:59 | B121: 00:59:37 | C121: 400 | D121: 400 | E121: 23 | F121: 24 | G121: 23 | H121: 23 | I121: 0.62 | J121: 4 | K121: 0 | L121: 5.86 | M121: 1.05 | N121: 6.153 | O121: 16 | P121: 36.49 | Q121: 0
A122: 00:02:00 | B122: 00:59:38 | C122: 400 | D122: 400 | E122: 23 | F122: 24 | G122: 23 | H122: 23 | I122: 0.62 | J122: 4 | K122: 0.01 | L122: 5.86 | M122: 1.05 | N122: 6.153 | O122: 16 | P122: 36.49 | Q122: 0
A123: 00:02:01 | B123: 00:59:39 | C123: 400 | D123: 400 | E123: 23 | F123: 24 | G123: 23 | H123: 23 | I123: 0.62 | J123: 4 | K123: 0.01 | L123: 5.85 | M123: 1.07 | N123: 6.2595 | O123: 16 | P123: 36.49 | Q123: 0
A124: 00:02:02 | B124: 00:59:40 | C124: 400 | D124: 400 | E124: 23 | F124: 24 | G124: 23 | H124: 23 | I124: 0.62 | J124: 4 | K124: 0.01 | L124: 5.85 | M124: 1.09 | N124: 6.3765 | O124: 16 | P124: 36.49 | Q124: 0
A125: 00:02:03 | B125: 00:59:41 | C125: 400 | D125: 400 | E125: 23 | F125: 24 | G125: 23 | H125: 23 | I125: 0.62 | J125: 4 | K125: 0.05 | L125: 5.86 | M125: 1.09 | N125: 6.3874 | O125: 16 | P125: 36.5 | Q125: 0.01
A126: 00:02:04 | B126: 00:59:42 | C126: 400 | D126: 400 | E126: 23 | F126: 24 | G126: 23 | H126: 23 | I126: 0.62 | J126: 4 | K126: 0.05 | L126: 5.86 | M126: 1.1 | N126: 6.446 | O126: 16 | P126: 36.5 | Q126: 0.01
A127: 00:02:05 | B127: 00:59:43 | C127: 400 | D127: 400 | E127: 23 | F127: 24 | G127: 23 | H127: 23 | I127: 0.62 | J127: 4 | K127: 0.05 | L127: 5.86 | M127: 1.12 | N127: 6.5632 | O127: 16 | P127: 36.5 | Q127: 0.01
A128: 00:02:06 | B128: 00:59:44 | C128: 400 | D128: 400 | E128: 24 | F128: 24 | G128: 23 | H128: 23 | I128: 0.62 | J128: 4 | K128: 0.05 | L128: 5.86 | M128: 1.12 | N128: 6.5632 | O128: 16 | P128: 36.5 | Q128: 0.01
A129: 00:02:07 | B129: 00:59:45 | C129: 400 | D129: 400 | E129: 24 | F129: 24 | G129: 23 | H129: 23 | I129: 0.63 | J129: 4 | K129: 0.07 | L129: 5.86 | M129: 1.13 | N129: 6.6218 | O129: 16 | P129: 36.5 | Q129: 0.01
A130: 00:02:08 | B130: 00:59:46 | C130: 400 | D130: 400 | E130: 24 | F130: 24 | G130: 23 | H130: 23 | I130: 0.63 | J130: 4 | K130: 0.07 | L130: 5.9 | M130: 1.14 | N130: 6.726 | O130: 16 | P130: 36.5 | Q130: 0.01
A131: 00:02:09 | B131: 00:59:47 | C131: 400 | D131: 400 | E131: 25 | F131: 24 | G131: 24 | H131: 23 | I131: 0.63 | J131: 4 | K131: 0.07 | L131: 5.85 | M131: 1.15 | N131: 6.7275 | O131: 16 | P131: 36.5 | Q131: 0.01
A132: 00:02:10 | B132: 00:59:48 | C132: 400 | D132: 400 | E132: 25 | F132: 25 | G132: 24 | H132: 23 | I132: 0.63 | J132: 4 | K132: 0.03 | L132: 5.87 | M132: 1.16 | N132: 6.8092 | O132: 16 | P132: 36.5 | Q132: 0.01
A133: 00:02:11 | B133: 00:59:49 | C133: 400 | D133: 400 | E133: 25 | F133: 25 | G133: 24 | H133: 23 | I133: 0.63 | J133: 4 | K133: 0.03 | L133: 5.87 | M133: 1.16 | N133: 6.8092 | O133: 16 | P133: 36.5 | Q133: 0.01
A134: 00:02:12 | B134: 00:59:50 | C134: 400 | D134: 400 | E134: 26 | F134: 25 | G134: 24 | H134: 23 | I134: 0.63 | J134: 4 | K134: 0.03 | L134: 5.85 | M134: 1.19 | N134: 6.9615 | O134: 16 | P134: 36.51 | Q134: 0.02
A135: 00:02:13 | B135: 00:59:51 | C135: 400 | D135: 400 | E135: 26 | F135: 25 | G135: 25 | H135: 23 | I135: 0.63 | J135: 4 | K135: 0.17 | L135: 5.86 | M135: 1.19 | N135: 6.9734 | O135: 16 | P135: 36.51 | Q135: 0.02
A136: 00:02:14 | B136: 00:59:52 | C136: 400 | D136: 400 | E136: 26 | F136: 25 | G136: 25 | H136: 23 | I136: 0.63 | J136: 4 | K136: 0.17 | L136: 5.86 | M136: 1.19 | N136: 6.9734 | O136: 16 | P136: 36.51 | Q136: 0.02
A137: 00:02:15 | B137: 00:59:53 | C137: 400 | D137: 400 | E137: 27 | F137: 25 | G137: 25 | H137: 23 | I137: 0.63 | J137: 4 | K137: 0.17 | L137: 5.83 | M137: 1.2 | N137: 6.996 | O137: 16 | P137: 36.52 | Q137: 0.03
A138: 00:02:16 | B138: 00:59:54 | C138: 400 | D138: 400 | E138: 28 | F138: 26 | G138: 25 | H138: 23 | I138: 0.63 | J138: 4 | K138: 0.17 | L138: 5.84 | M138: 1.2 | N138: 7.008 | O138: 16 | P138: 36.52 | Q138: 0.03
A139: 00:02:17 | B139: 00:59:55 | C139: 410 | D139: 400 | E139: 28 | F139: 26 | G139: 25 | H139: 23 | I139: 0.63 | J139: 4 | K139: 0.16 | L139: 5.84 | M139: 1.2 | N139: 7.008 | O139: 16 | P139: 36.52 | Q139: 0.03
A140: 00:02:18 | B140: 00:59:56 | C140: 424 | D140: 400 | E140: 29 | F140: 26 | G140: 26 | H140: 23 | I140: 0.63 | J140: 4 | K140: 0.16 | L140: 5.87 | M140: 1.23 | N140: 7.2201 | O140: 16 | P140: 36.52 | Q140: 0.03
A141: 00:02:19 | B141: 00:59:57 | C141: 439 | D141: 400 | E141: 29 | F141: 26 | G141: 26 | H141: 23 | I141: 0.63 | J141: 4 | K141: 0.16 | L141: 5.85 | M141: 1.22 | N141: 7.137 | O141: 16 | P141: 36.53 | Q141: 0.04
A142: 00:02:20 | B142: 00:59:58 | C142: 439 | D142: 400 | E142: 29 | F142: 26 | G142: 26 | H142: 23 | I142: 0.63 | J142: 4 | K142: 0.25 | L142: 5.8 | M142: 1.22 | N142: 7.076 | O142: 16 | P142: 36.53 | Q142: 0.04
A143: 00:02:21 | B143: 00:59:59 | C143: 453 | D143: 400 | E143: 30 | F143: 26 | G143: 26 | H143: 23 | I143: 0.63 | J143: 4 | K143: 0.25 | L143: 5.84 | M143: 1.23 | N143: 7.1832 | O143: 16 | P143: 36.55 | Q143: 0.06
A144: 00:02:22 | B144: 01:00:00 | C144: 453 | D144: 400 | E144: 31 | F144: 26 | G144: 26 | H144: 22 | I144: 0.63 | J144: 4 | K144: 0.25 | L144: 3.48 | M144: 0.76 | N144: 2.6448 | O144: 16 | P144: 36.57 | Q144: 0.08
A145: 00:02:23 | B145: 01:00:01 | C145: 459 | D145: 400 | E145: 31 | F145: 26 | G145: 27 | H145: 23 | I145: 0.63 | J145: 4 | K145: 0.25 | L145: 5.65 | M145: 0.64 | N145: 3.616 | O145: 16 | P145: 36.61 | Q145: 0.12
A146: 00:02:24 | B146: 01:00:02 | C146: 463 | D146: 400 | E146: 31 | F146: 26 | G146: 28 | H146: 23 | I146: 0.63 | J146: 4 | K146: 1.56 | L146: 4.26 | M146: 0.58 | N146: 2.4708 | O146: 16 | P146: 36.66 | Q146: 0.17
A147: 00:02:25 | B147: 01:00:03 | C147: 463 | D147: 400 | E147: 33 | F147: 27 | G147: 28 | H147: 23 | I147: 0.63 | J147: 4 | K147: 1.56 | L147: 4.39 | M147: 0.67 | N147: 2.9413 | O147: 16 | P147: 36.67 | Q147: 0.18
A148: 00:02:26 | B148: 01:00:04 | C148: 464 | D148: 400 | E148: 34 | F148: 28 | G148: 28 | H148: 23 | I148: 0.63 | J148: 4 | K148: 1.56 | L148: 4.57 | M148: 0.72 | N148: 3.2904 | O148: 16 | P148: 36.7 | Q148: 0.21
A149: 00:02:27 | B149: 01:00:05 | C149: 466 | D149: 400 | E149: 34 | F149: 28 | G149: 28 | H149: 23 | I149: 0.63 | J149: 4 | K149: 1.58 | L149: 4.73 | M149: 0.77 | N149: 3.6421 | O149: 16 | P149: 36.72 | Q149: 0.23
A150: 00:02:28 | B150: 01:00:06 | C150: 466 | D150: 400 | E150: 35 | F150: 28 | G150: 29 | H150: 23 | I150: 0.63 | J150: 4 | K150: 1.58 | L150: 4.82 | M150: 0.81 | N150: 3.9042 | O150: 16 | P150: 36.73 | Q150: 0.24
A151: 00:02:29 | B151: 01:00:07 | C151: 469 | D151: 400 | E151: 36 | F151: 29 | G151: 29 | H151: 23 | I151: 0.64 | J151: 4 | K151: 1.58 | L151: 4.96 | M151: 0.86 | N151: 4.2656 | O151: 16 | P151: 36.74 | Q151: 0.25
A152: 00:02:30 | B152: 01:00:08 | C152: 473 | D152: 400 | E152: 37 | F152: 29 | G152: 29 | H152: 23 | I152: 0.64 | J152: 4 | K152: 0.86 | L152: 5.08 | M152: 0.9 | N152: 4.572 | O152: 16 | P152: 36.76 | Q152: 0.27
A153: 00:02:31 | B153: 01:00:09 | C153: 479 | D153: 400 | E153: 37 | F153: 29 | G153: 30 | H153: 23 | I153: 0.64 | J153: 4 | K153: 0.86 | L153: 5.16 | M153: 0.9 | N153: 4.644 | O153: 16 | P153: 36.77 | Q153: 0.28
A154: 00:02:32 | B154: 01:00:10 | C154: 479 | D154: 400 | E154: 38 | F154: 30 | G154: 30 | H154: 23 | I154: 0.64 | J154: 4 | K154: 0.86 | L154: 5.05 | M154: 0.9 | N154: 4.545 | O154: 16 | P154: 36.79 | Q154: 0.3
A155: 00:02:33 | B155: 01:00:11 | C155: 485 | D155: 400 | E155: 39 | F155: 30 | G155: 30 | H155: 23 | I155: 0.64 | J155: 4 | K155: 0.92 | L155: 5.09 | M155: 0.94 | N155: 4.7846 | O155: 16 | P155: 36.81 | Q155: 0.32
A156: 00:02:34 | B156: 01:00:12 | C156: 492 | D156: 400 | E156: 39 | F156: 30 | G156: 32 | H156: 23 | I156: 0.64 | J156: 4 | K156: 0.92 | L156: 5.1 | M156: 0.92 | N156: 4.692 | O156: 16 | P156: 36.82 | Q156: 0.33
A157: 00:02:35 | B157: 01:00:13 | C157: 498 | D157: 400 | E157: 40 | F157: 31 | G157: 32 | H157: 23 | I157: 0.64 | J157: 4 | K157: 0.92 | L157: 5.02 | M157: 0.89 | N157: 4.4678 | O157: 16 | P157: 36.84 | Q157: 0.35
A158: 00:02:36 | B158: 01:00:14 | C158: 498 | D158: 400 | E158: 40 | F158: 31 | G158: 32 | H158: 23 | I158: 0.64 | J158: 4 | K158: 0.92 | L158: 5.02 | M158: 0.87 | N158: 4.3674 | O158: 16 | P158: 36.85 | Q158: 0.36
A159: 00:02:37 | B159: 01:00:15 | C159: 503 | D159: 400 | E159: 41 | F159: 31 | G159: 33 | H159: 23 | I159: 0.64 | J159: 4 | K159: 0.86 | L159: 5.05 | M159: 0.89 | N159: 4.4945 | O159: 16 | P159: 36.86 | Q159: 0.37
A160: 00:02:38 | B160: 01:00:16 | C160: 508 | D160: 400 | E160: 42 | F160: 32 | G160: 33 | H160: 23 | I160: 0.64 | J160: 4 | K160: 0.86 | L160: 4.94 | M160: 0.87 | N160: 4.2978 | O160: 16 | P160: 36.86 | Q160: 0.37
A161: 00:02:39 | B161: 01:00:17 | C161: 508 | D161: 400 | E161: 42 | F161: 32 | G161: 33 | H161: 23 | I161: 0.64 | J161: 4 | K161: 0.86 | L161: 4.91 | M161: 0.88 | N161: 4.3208 | O161: 16 | P161: 36.87 | Q161: 0.38
A162: 00:02:40 | B162: 01:00:18 | C162: 513 | D162: 400 | E162: 42 | F162: 32 | G162: 34 | H162: 23 | I162: 0.64 | J162: 4 | K162: 0.34 | L162: 5.01 | M162: 0.89 | N162: 4.4589 | O162: 16 | P162: 36.87 | Q162: 0.38
A163: 00:02:41 | B163: 01:00:19 | C163: 518 | D163: 400 | E163: 43 | F163: 33 | G163: 34 | H163: 23 | I163: 0.64 | J163: 4 | K163: 0.34 | L163: 5.01 | M163: 0.88 | N163: 4.4088 | O163: 16 | P163: 36.89 | Q163: 0.4
A164: 00:02:42 | B164: 01:00:20 | C164: 518 | D164: 400 | E164: 43 | F164: 33 | G164: 34 | H164: 23 | I164: 0.64 | J164: 4 | K164: 0.34 | L164: 5.01 | M164: 0.86 | N164: 4.3086 | O164: 16 | P164: 36.89 | Q164: 0.4
A165: 00:02:43 | B165: 01:00:21 | C165: 523 | D165: 400 | E165: 44 | F165: 33 | G165: 34 | H165: 23 | I165: 0.64 | J165: 4 | K165: 0.34 | L165: 5.08 | M165: 0.93 | N165: 4.7244 | O165: 16 | P165: 36.91 | Q165: 0.42
A166: 00:02:44 | B166: 01:00:22 | C166: 528 | D166: 400 | E166: 45 | F166: 34 | G166: 34 | H166: 23 | I166: 0.64 | J166: 4 | K166: 0.66 | L166: 5.01 | M166: 0.89 | N166: 4.4589 | O166: 16 | P166: 36.92 | Q166: 0.43
A167: 00:02:45 | B167: 01:00:23 | C167: 528 | D167: 400 | E167: 45 | F167: 34 | G167: 34 | H167: 23 | I167: 0.64 | J167: 4 | K167: 0.66 | L167: 4.96 | M167: 0.87 | N167: 4.3152 | O167: 16 | P167: 36.93 | Q167: 0.44
A168: 00:02:46 | B168: 01:00:24 | C168: 533 | D168: 400 | E168: 45 | F168: 34 | G168: 35 | H168: 23 | I168: 0.64 | J168: 4 | K168: 0.66 | L168: 4.95 | M168: 0.91 | N168: 4.5045 | O168: 16 | P168: 36.94 | Q168: 0.45
A169: 00:02:47 | B169: 01:00:25 | C169: 538 | D169: 400 | E169: 46 | F169: 35 | G169: 35 | H169: 23 | I169: 0.64 | J169: 4 | K169: 0.61 | L169: 5.02 | M169: 0.9 | N169: 4.518 | O169: 16 | P169: 36.95 | Q169: 0.46
A170: 00:02:48 | B170: 01:00:26 | C170: 538 | D170: 400 | E170: 47 | F170: 35 | G170: 35 | H170: 23 | I170: 0.64 | J170: 4 | K170: 0.61 | L170: 4.97 | M170: 0.88 | N170: 4.3736 | O170: 16 | P170: 36.95 | Q170: 0.46
A171: 00:02:49 | B171: 01:00:27 | C171: 543 | D171: 400 | E171: 47 | F171: 35 | G171: 36 | H171: 23 | I171: 0.63 | J171: 4 | K171: 0.61 | L171: 4.97 | M171: 0.9 | N171: 4.473 | O171: 16 | P171: 36.95 | Q171: 0.46
A172: 00:02:50 | B172: 01:00:28 | C172: 548 | D172: 400 | E172: 47 | F172: 36 | G172: 36 | H172: 23 | I172: 0.63 | J172: 4 | K172: 0.61 | L172: 4.97 | M172: 0.9 | N172: 4.473 | O172: 16 | P172: 36.96 | Q172: 0.47
A173: 00:02:51 | B173: 01:00:29 | C173: 548 | D173: 464 | E173: 48 | F173: 36 | G173: 37 | H173: 23 | I173: 0.63 | J173: 4 | K173: 0.2 | L173: 5.02 | M173: 0.9 | N173: 4.518 | O173: 16 | P173: 36.96 | Q173: 0.47
A174: 00:02:52 | B174: 01:00:30 | C174: 553 | D174: 523 | E174: 49 | F174: 36 | G174: 37 | H174: 23 | I174: 0.63 | J174: 4 | K174: 0.2 | L174: 4.96 | M174: 0.88 | N174: 4.3648 | O174: 16 | P174: 36.96 | Q174: 0.47
A175: 00:02:53 | B175: 01:00:31 | C175: 558 | D175: 523 | E175: 49 | F175: 37 | G175: 37 | H175: 23 | I175: 0.64 | J175: 4 | K175: 0.2 | L175: 4.96 | M175: 0.93 | N175: 4.6128 | O175: 16 | P175: 36.97 | Q175: 0.48
A176: 00:02:54 | B176: 01:00:32 | C176: 562 | D176: 543 | E176: 49 | F176: 37 | G176: 38 | H176: 23 | I176: 0.64 | J176: 4 | K176: 0.24 | L176: 5.01 | M176: 0.9 | N176: 4.509 | O176: 16 | P176: 36.98 | Q176: 0.49
A177: 00:02:55 | B177: 01:00:33 | C177: 562 | D177: 547 | E177: 50 | F177: 38 | G177: 38 | H177: 23 | I177: 0.64 | J177: 4 | K177: 0.24 | L177: 4.94 | M177: 0.89 | N177: 4.3966 | O177: 16 | P177: 36.99 | Q177: 0.5
A178: 00:02:56 | B178: 01:00:34 | C178: 567 | D178: 547 | E178: 50 | F178: 38 | G178: 38 | H178: 23 | I178: 0.64 | J178: 4 | K178: 0.24 | L178: 5.07 | M178: 0.94 | N178: 4.7658 | O178: 16 | P178: 36.99 | Q178: 0.5
A179: 00:02:57 | B179: 01:00:35 | C179: 572 | D179: 556 | E179: 50 | F179: 38 | G179: 39 | H179: 22 | I179: 0.65 | J179: 4 | K179: 0.46 | L179: 5.08 | M179: 0.92 | N179: 4.6736 | O179: 16 | P179: 37 | Q179: 0.51
A180: 00:02:58 | B180: 01:00:36 | C180: 577 | D180: 559 | E180: 51 | F180: 39 | G180: 39 | H180: 23 | I180: 0.65 | J180: 4 | K180: 0.46 | L180: 5 | M180: 0.9 | N180: 4.5 | O180: 16 | P180: 37.01 | Q180: 0.52
A181: 00:02:59 | B181: 01:00:37 | C181: 577 | D181: 559 | E181: 51 | F181: 39 | G181: 39 | H181: 23 | I181: 0.65 | J181: 4 | K181: 0.46 | L181: 5.02 | M181: 0.93 | N181: 4.6686 | O181: 16 | P181: 37.02 | Q181: 0.53
A182: 00:03:00 | B182: 01:00:38 | C182: 582 | D182: 563 | E182: 51 | F182: 39 | G182: 40 | H182: 23 | I182: 0.66 | J182: 4 | K182: 0.51 | L182: 5.02 | M182: 0.94 | N182: 4.7188 | O182: 16 | P182: 37.03 | Q182: 0.54
A183: 00:03:01 | B183: 01:00:39 | C183: 582 | D183: 567 | E183: 52 | F183: 39 | G183: 40 | H183: 23 | I183: 0.66 | J183: 4 | K183: 0.51 | L183: 5.09 | M183: 0.94 | N183: 4.7846 | O183: 16 | P183: 37.03 | Q183: 0.54
A184: 00:03:02 | B184: 01:00:40 | C184: 586 | D184: 570 | E184: 52 | F184: 40 | G184: 40 | H184: 23 | I184: 0.66 | J184: 4 | K184: 0.51 | L184: 5.04 | M184: 0.91 | N184: 4.5864 | O184: 16 | P184: 37.05 | Q184: 0.56
A185: 00:03:03 | B185: 01:00:41 | C185: 591 | D185: 573 | E185: 53 | F185: 40 | G185: 41 | H185: 23 | I185: 0.66 | J185: 4 | K185: 0.51 | L185: 5.02 | M185: 0.94 | N185: 4.7188 | O185: 16 | P185: 37.05 | Q185: 0.56
A186: 00:03:04 | B186: 01:00:42 | C186: 591 | D186: 577 | E186: 53 | F186: 41 | G186: 41 | H186: 23 | I186: 0.66 | J186: 4 | K186: 0.52 | L186: 5.02 | M186: 0.94 | N186: 4.7188 | O186: 16 | P186: 37.06 | Q186: 0.57
A187: 00:03:05 | B187: 01:00:43 | C187: 596 | D187: 580 | E187: 54 | F187: 41 | G187: 41 | H187: 23 | I187: 0.67 | J187: 4 | K187: 0.52 | L187: 5.07 | M187: 0.95 | N187: 4.8165 | O187: 16 | P187: 37.06 | Q187: 0.57
A188: 00:03:06 | B188: 01:00:44 | C188: 601 | D188: 584 | E188: 54 | F188: 41 | G188: 42 | H188: 23 | I188: 0.67 | J188: 4 | K188: 0.52 | L188: 5.01 | M188: 0.93 | N188: 4.6593 | O188: 16 | P188: 37.06 | Q188: 0.57
A189: 00:03:07 | B189: 01:00:45 | C189: 601 | D189: 587 | E189: 54 | F189: 42 | G189: 42 | H189: 23 | I189: 0.67 | J189: 4 | K189: 0.21 | L189: 5.01 | M189: 0.93 | N189: 4.6593 | O189: 16 | P189: 37.07 | Q189: 0.58
A190: 00:03:08 | B190: 01:00:46 | C190: 606 | D190: 590 | E190: 55 | F190: 42 | G190: 42 | H190: 23 | I190: 0.67 | J190: 4 | K190: 0.21 | L190: 5.12 | M190: 0.96 | N190: 4.9152 | O190: 16 | P190: 37.07 | Q190: 0.58
A191: 00:03:09 | B191: 01:00:47 | C191: 610 | D191: 594 | E191: 55 | F191: 42 | G191: 42 | H191: 23 | I191: 0.68 | J191: 4 | K191: 0.21 | L191: 5.03 | M191: 0.92 | N191: 4.6276 | O191: 16 | P191: 37.08 | Q191: 0.59
A192: 00:03:10 | B192: 01:00:48 | C192: 615 | D192: 597 | E192: 55 | F192: 43 | G192: 43 | H192: 23 | I192: 0.68 | J192: 4 | K192: 0.21 | L192: 5.03 | M192: 0.92 | N192: 4.6276 | O192: 16 | P192: 37.08 | Q192: 0.59
A193: 00:03:11 | B193: 01:00:49 | C193: 615 | D193: 601 | E193: 56 | F193: 43 | G193: 43 | H193: 23 | I193: 0.68 | J193: 5 | K193: 0.29 | L193: 5.1 | M193: 0.97 | N193: 4.947 | O193: 16 | P193: 37.09 | Q193: 0.6
A194: 00:03:12 | B194: 01:00:50 | C194: 620 | D194: 604 | E194: 56 | F194: 43 | G194: 43 | H194: 23 | I194: 0.68 | J194: 4 | K194: 0.29 | L194: 5.07 | M194: 0.93 | N194: 4.7151 | O194: 16 | P194: 37.1 | Q194: 0.61
A195: 00:03:13 | B195: 01:00:51 | C195: 625 | D195: 608 | E195: 56 | F195: 44 | G195: 44 | H195: 23 | I195: 0.68 | J195: 4 | K195: 0.29 | L195: 5.08 | M195: 0.93 | N195: 4.7244 | O195: 16 | P195: 37.11 | Q195: 0.62
A196: 00:03:14 | B196: 01:00:52 | C196: 630 | D196: 611 | E196: 57 | F196: 44 | G196: 44 | H196: 23 | I196: 0.69 | J196: 4 | K196: 0.56 | L196: 5.06 | M196: 0.96 | N196: 4.8576 | O196: 16 | P196: 37.12 | Q196: 0.63
A197: 00:03:15 | B197: 01:00:53 | C197: 630 | D197: 615 | E197: 57 | F197: 44 | G197: 44 | H197: 23 | I197: 0.69 | J197: 4 | K197: 0.56 | L197: 5.11 | M197: 0.98 | N197: 5.0078 | O197: 16 | P197: 37.13 | Q197: 0.64
A198: 00:03:16 | B198: 01:00:54 | C198: 635 | D198: 618 | E198: 57 | F198: 45 | G198: 44 | H198: 23 | I198: 0.69 | J198: 4 | K198: 0.56 | L198: 5.05 | M198: 0.95 | N198: 4.7975 | O198: 16 | P198: 37.14 | Q198: 0.65
A199: 00:03:17 | B199: 01:00:55 | C199: 635 | D199: 622 | E199: 58 | F199: 46 | G199: 44 | H199: 23 | I199: 0.69 | J199: 4 | K199: 0.7 | L199: 5.02 | M199: 0.94 | N199: 4.7188 | O199: 16 | P199: 37.16 | Q199: 0.67
A200: 00:03:18 | B200: 01:00:56 | C200: 641 | D200: 625 | E200: 58 | F200: 46 | G200: 45 | H200: 23 | I200: 0.69 | J200: 5 | K200: 0.7 | L200: 5.16 | M200: 0.99 | N200: 5.1084 | O200: 16 | P200: 37.17 | Q200: 0.68
... 1513 more rows

Sheet Tabelle2
A1: no. | B1: name | C1: mold | D1: gas | E1: loading | H1: heating | I1: temp. | J1: holding | K1: weight | L1: density | N1: open porosity | O1: notes
C2: mm | E2: start | F2: end | G2: MPa | H2: k/ min | I2: °C | J2: min | K2: g | L2: calc. g/cm³ | M2: meas. g/cm³ | N2: %
A3: 1483 | B3: TiN Starck (ann) | C3: 20 | D3: Vak | E3: 20 | F3: 20 | G3: 32 | H3: 100 | I3: 1500 | J3: 20sec | K3: 6.5 | L3: 5.43 | M3: 4.92 | N3: 7.4 | P3: =M3/L3 -> 91%
A4: 1500 | B4: TiN Starck | C4: 20 | D4: Vak | E4: 20 | F4: 20 | G4: 32 | H4: 100 | I4: 1500 | J4: 20sec | K4: 6.5 | L4: 5.43 | M4: 4.94 | N4: 6.7 | P4: =M4/L4 -> 91%
A5: 1471 | B5: TiN Starck | C5: 20 | D5: Vak | E5: 20 | F5: 20 | G5: 50 | H5: 100 | I5: 1500 | J5: 20sec | K5: 6.47 | L5: 5.43 | M5: 5.12 | N5: 3.5 | P5: 94%
